Workbook

Sheet Data
A1: Number | B1: WEBSITE | C1: Google rank | D1: General characteristics | I1: eEurope 2002 quality criteria | U1: Quality assessment - consensus
D2: Specialization | E2: Ownership | F2: Purpose | G2: Format | H2: Paradigm | I2: Q1 | J2: Q2 | K2: Q3 | L2: Q4 | M2: Q5 | N2: Q6 | O2: Q7 | P2: Q8 | Q2: Q9 | R2: Q10 | S2: Q11 | T2: Q12 | U2: E1 | V2: A1 | W2: E2 | X2: A2 | Y2: E3 | Z2: A3 | AA2: E4 | AB2: A4 | AC2: E5 | AD2: A5 | AE2: E6 | AF2: A6 | AG2: E7 | AH2: A7 | AI2: E8 | AJ2: A8 | AK2: E9 | AL2: A9 | AM2: E10 | AN2: A10 | AO2: E11 | AP2: A11 | AQ2: E12 | AR2: A12 | AS2: E13 | AT2: A13 | AU2: E14 | AV2: A14 | AW2: E15 | AX2: A15 | AY2: E16 | AZ2: A16 | BA2: E17 | BB2: A17 | BC2: E18 | BD2: A18 | BE2: E19 | BF2: A19 | BG2: E20 | BH2: A20 | BI2: E21 | BJ2: A21 | BK2: E22 | BL2: A22 | BM2: E23 | BN2: A23 | BO2: E24 | BP2: A24 | BQ2: E25 | BR2: A25 | BS2: E26 | BT2: A26 | BU2: E27 | BV2: A27 | BW2: E28 | BX2: A28 | BY2: E29 | BZ2: A29 | CA2: E30 | CB2: A30 | CC2: E31 | CD2: A31 | CE2: E32 | CF2: A32 | CG2: E33 | CH2: A33 | CI2: E34 | CJ2: A34 | CK2: E35 | CL2: A35 | CM2: E36 | CN2: A36 | CO2: E37 | CP2: A37 | CQ2: E38 | CR2: A38 | CS2: E39 | CT2: A39 | CU2: E40 | CV2: A40 | CW2: E41 | CX2: A41 | CY2: E42 | CZ2: A42 | DA2: E43 | DB2: A43 | DC2: E44 | DD2: A44 | DE2: E45 | DF2: A45 | DG2: E46 | DH2: A46 | DI2: E47 | DJ2: A47 | DK2: E48 | DL2: A48 | DM2: E49 | DN2: A49 | DO2: E50 | DP2: A50
A3: English language
A4: 1 | B4: www.health.harvard.edu | C4: 1 | D4: 1 | E4: 5 | F4: 0 | G4: 1 | H4: 0 | I4: 0 | J4: 1 | K4: 1 | L4: 0 | M4: 1 | N4: 1 | O4: 1 | P4: 1 | Q4: 0 | R4: 1 | S4: 1 | T4: 1 | U4: 1 | V4: 2 | W4: 1 | X4: 2 | Y4: 1 | Z4: 2 | AA4: 0 | AB4: NA | AC4: 1 | AD4: 1 | AE4: 0 | AF4: NA | AG4: 1 | AH4: 1 | AI4: 0 | AJ4: NA | AK4: 0 | AL4: NA | AM4: 1 | AN4: 0 | AO4: 0 | AP4: NA | AQ4: 0 | AR4: NA | AS4: 0 | AT4: NA | AU4: 0 | AV4: NA | AW4: 0 | AX4: NA | AY4: 0 | AZ4: NA | BA4: 0 | BB4: NA | BC4: 0 | BD4: NA | BE4: 0 | BF4: NA | BG4: 0 | BH4: NA | BI4: 0 | BJ4: NA | BK4: 1 | BL4: 0 | BM4: 1 | BN4: 1 | BO4: 0 | BP4: NA | BQ4: 0 | BR4: NA | BS4: 0 | BT4: NA | BU4: 0 | BV4: NA | BW4: 0 | BX4: NA | BY4: 0 | BZ4: NA | CA4: 0 | CB4: NA | CC4: 0 | CD4: NA | CE4: 1 | CF4: 1 | CG4: 0 | CH4: NA | CI4: 0 | CJ4: NA | CK4: 0 | CL4: NA | CM4: 0 | CN4: NA | CO4: 0 | CP4: NA | CQ4: 0 | CR4: NA | CS4: 0 | CT4: NA | CU4: 0 | CV4: NA | CW4: 0 | CX4: NA | CY4: 0 | CZ4: NA | DA4: 0 | DB4: NA | DC4: 0 | DD4: NA | DE4: 0 | DF4: NA | DG4: 0 | DH4: NA | DI4: 0 | DJ4: NA | DK4: 0 | DL4: NA | DM4: 0 | DN4: NA | DO4: 0 | DP4: NA
A5: 2 | B5: www.medicalnewstoday.com | C5: 2 | D5: 1 | E5: 2 | F5: 0 | G5: 2 | H5: 0 | I5: 1 | J5: 1 | K5: 1 | L5: 0 | M5: 1 | N5: 1 | O5: 1 | P5: 1 | Q5: 1 | R5: 1 | S5: 1 | T5: 1 | U5: 1 | V5: 2 | W5: 1 | X5: 2 | Y5: 1 | Z5: 2 | AA5: 1 | AB5: 0 | AC5: 1 | AD5: 0 | AE5: 1 | AF5: 0 | AG5: 1 | AH5: 0 | AI5: 0 | AJ5: NA | AK5: 1 | AL5: 0 | AM5: 0 | AN5: NA | AO5: 1 | AP5: 1 | AQ5: 0 | AR5: NA | AS5: 1 | AT5: 2 | AU5: 0 | AV5: NA | AW5: 0 | AX5: NA | AY5: 0 | AZ5: NA | BA5: 0 | BB5: NA | BC5: 0 | BD5: NA | BE5: 1 | BF5: 1 | BG5: 0 | BH5: NA | BI5: 0 | BJ5: NA | BK5: 1 | BL5: 1 | BM5: 1 | BN5: 2 | BO5: 1 | BP5: 1 | BQ5: 0 | BR5: NA | BS5: 1 | BT5: 1 | BU5: 1 | BV5: 1 | BW5: 1 | BX5: 0 | BY5: 0 | BZ5: NA | CA5: 1 | CB5: 1 | CC5: 1 | CD5: 1 | CE5: 1 | CF5: 1 | CG5: 0 | CH5: NA | CI5: 0 | CJ5: NA | CK5: 0 | CL5: NA | CM5: 0 | CN5: NA | CO5: 0 | CP5: NA | CQ5: 0 | CR5: NA | CS5: 0 | CT5: NA | CU5: 0 | CV5: NA | CW5: 0 | CX5: NA | CY5: 0 | CZ5: NA | DA5: 0 | DB5: NA | DC5: 0 | DD5: NA | DE5: 0 | DF5: NA | DG5: 1 | DH5: 0 | DI5: 1 | DJ5: 0 | DK5: 0 | DL5: NA | DM5: 0 | DN5: NA | DO5: 1 | DP5: 0
A6: 3 | B6: www.heart.org | C6: 3 | D6: 0 | E6: 5 | F6: 0 | G6: 5 | H6: 0 | I6: 1 | J6: 1 | K6: 0 | L6: 1 | M6: 0 | N6: 1 | O6: 1 | P6: 0 | Q6: 0 | R6: 0 | S6: 0 | T6: 1 | U6: 1 | V6: 2 | W6: 1 | X6: 1 | Y6: 1 | Z6: 1 | AA6: 1 | AB6: 1 | AC6: 1 | AD6: 1 | AE6: 0 | AF6: NA | AG6: 1 | AH6: 0 | AI6: 0 | AJ6: NA | AK6: 0 | AL6: NA | AM6: 0 | AN6: NA | AO6: 0 | AP6: NA | AQ6: 0 | AR6: NA | AS6: 0 | AT6: NA | AU6: 0 | AV6: NA | AW6: 0 | AX6: NA | AY6: 0 | AZ6: NA | BA6: 0 | BB6: NA | BC6: 0 | BD6: NA | BE6: 0 | BF6: NA | BG6: 0 | BH6: NA | BI6: 0 | BJ6: NA | BK6: 1 | BL6: 1 | BM6: 1 | BN6: 2 | BO6: 0 | BP6: NA | BQ6: 0 | BR6: NA | BS6: 0 | BT6: NA | BU6: 1 | BV6: 2 | BW6: 0 | BX6: NA | BY6: 0 | BZ6: NA | CA6: 0 | CB6: NA | CC6: 0 | CD6: NA | CE6: 0 | CF6: NA | CG6: 0 | CH6: NA | CI6: 0 | CJ6: NA | CK6: 1 | CL6: 1 | CM6: 0 | CN6: NA | CO6: 0 | CP6: NA | CQ6: 0 | CR6: NA | CS6: 0 | CT6: NA | CU6: 0 | CV6: NA | CW6: 0 | CX6: NA | CY6: 0 | CZ6: NA | DA6: 1 | DB6: 1 | DC6: 0 | DD6: NA | DE6: 0 | DF6: NA | DG6: 0 | DH6: NA | DI6: 0 | DJ6: NA | DK6: 0 | DL6: NA | DM6: 0 | DN6: NA | DO6: 0 | DP6: NA
A7: 4 | B7: medlineplus.gov | C7: 4 | D7: 1 | E7: 5 | F7: 0 | G7: 1 | H7: 0 | I7: 0 | J7: 1 | K7: 1 | L7: 0 | M7: 1 | N7: 1 | O7: 1 | P7: 1 | Q7: 1 | R7: 1 | S7: 1 | T7: 1 | U7: 1 | V7: 2 | W7: 1 | X7: 2 | Y7: 1 | Z7: 1 | AA7: 1 | AB7: 1 | AC7: 1 | AD7: 1 | AE7: 0 | AF7: NA | AG7: 1 | AH7: 2 | AI7: 1 | AJ7: 1 | AK7: 1 | AL7: 1 | AM7: 0 | AN7: NA | AO7: 1 | AP7: 1 | AQ7: 0 | AR7: NA | AS7: 0 | AT7: NA | AU7: 0 | AV7: NA | AW7: 0 | AX7: NA | AY7: 1 | AZ7: 1 | BA7: 1 | BB7: 2 | BC7: 1 | BD7: 0 | BE7: 1 | BF7: 2 | BG7: 1 | BH7: 0 | BI7: 1 | BJ7: 1 | BK7: 1 | BL7: 1 | BM7: 1 | BN7: 1 | BO7: 1 | BP7: 0 | BQ7: 0 | BR7: NA | BS7: 1 | BT7: 0 | BU7: 1 | BV7: 0 | BW7: 1 | BX7: 0 | BY7: 0 | BZ7: NA | CA7: 1 | CB7: 0 | CC7: 1 | CD7: 1 | CE7: 1 | CF7: 1 | CG7: 0 | CH7: NA | CI7: 0 | CJ7: NA | CK7: 1 | CL7: 2 | CM7: 1 | CN7: 1 | CO7: 1 | CP7: 2 | CQ7: 1 | CR7: 0 | CS7: 1 | CT7: 2 | CU7: 0 | CV7: NA | CW7: 0 | CX7: NA | CY7: 0 | CZ7: NA | DA7: 1 | DB7: 0 | DC7: 0 | DD7: NA | DE7: 0 | DF7: NA | DG7: 1 | DH7: 0 | DI7: 0 | DJ7: NA | DK7: 0 | DL7: NA | DM7: 0 | DN7: NA | DO7: 0 | DP7: NA
A8: 5 | B8: en.wikipedia.org | C8: 5 | D8: 1 | E8: 0 | F8: 0 | G8: 1 | H8: 0 | I8: 1 | J8: 1 | K8: 0 | L8: 1 | M8: 0 | N8: 1 | O8: 1 | P8: 0 | Q8: 1 | R8: 0 | S8: 1 | T8: 0 | U8: 1 | V8: 2 | W8: 0 | X8: NA | Y8: 0 | Z8: NA | AA8: 1 | AB8: 0 | AC8: 1 | AD8: 1 | AE8: 1 | AF8: 0 | AG8: 1 | AH8: 0 | AI8: 0 | AJ8: NA | AK8: 0 | AL8: NA | AM8: 0 | AN8: NA | AO8: 0 | AP8: NA | AQ8: 0 | AR8: NA | AS8: 0 | AT8: NA | AU8: 0 | AV8: NA | AW8: 0 | AX8: NA | AY8: 0 | AZ8: NA | BA8: 0 | BB8: NA | BC8: 0 | BD8: NA | BE8: 0 | BF8: NA | BG8: 1 | BH8: 0 | BI8: 1 | BJ8: 0 | BK8: 1 | BL8: 1 | BM8: 0 | BN8: NA | BO8: 1 | BP8: 1 | BQ8: 0 | BR8: NA | BS8: 1 | BT8: 1 | BU8: 1 | BV8: 0 | BW8: 1 | BX8: 1 | BY8: 0 | BZ8: NA | CA8: 0 | CB8: NA | CC8: 1 | CD8: 1 | CE8: 0 | CF8: NA | CG8: 0 | CH8: NA | CI8: 0 | CJ8: NA | CK8: 1 | CL8: 2 | CM8: 1 | CN8: 0 | CO8: 0 | CP8: NA | CQ8: 0 | CR8: NA | CS8: 1 | CT8: 2 | CU8: 0 | CV8: NA | CW8: 0 | CX8: NA | CY8: 0 | CZ8: NA | DA8: 1 | DB8: 0 | DC8: 0 | DD8: NA | DE8: 0 | DF8: NA | DG8: 0 | DH8: NA | DI8: 0 | DJ8: NA | DK8: 0 | DL8: NA | DM8: 0 | DN8: NA | DO8: 0 | DP8: NA
A9: 6 | B9: www.healthline.com | C9: 6 | D9: 1 | E9: 0 | F9: 2 | G9: 1 | H9: 0 | I9: 1 | J9: 1 | K9: 1 | L9: 0 | M9: 1 | N9: 1 | O9: 1 | P9: 1 | Q9: 1 | R9: 1 | S9: 1 | T9: 1 | U9: 1 | V9: 1 | W9: 1 | X9: 1 | Y9: 0 | Z9: NA | AA9: 0 | AB9: NA | AC9: 1 | AD9: 2 | AE9: 0 | AF9: NA | AG9: 1 | AH9: 2 | AI9: 1 | AJ9: 1 | AK9: 1 | AL9: 1 | AM9: 0 | AN9: NA | AO9: 1 | AP9: 1 | AQ9: 1 | AR9: 1 | AS9: 0 | AT9: NA | AU9: 0 | AV9: NA | AW9: 0 | AX9: NA | AY9: 0 | AZ9: NA | BA9: 0 | BB9: NA | BC9: 0 | BD9: NA | BE9: 1 | BF9: 0 | BG9: 1 | BH9: 1 | BI9: 1 | BJ9: 0 | BK9: 1 | BL9: 0 | BM9: 1 | BN9: 1 | BO9: 1 | BP9: 0 | BQ9: 0 | BR9: NA | BS9: 0 | BT9: NA | BU9: 1 | BV9: 0 | BW9: 1 | BX9: 2 | BY9: 0 | BZ9: NA | CA9: 1 | CB9: 1 | CC9: 1 | CD9: 0 | CE9: 1 | CF9: 2 | CG9: 0 | CH9: NA | CI9: 0 | CJ9: NA | CK9: 1 | CL9: 1 | CM9: 1 | CN9: 1 | CO9: 1 | CP9: 0 | CQ9: 1 | CR9: 1 | CS9: 1 | CT9: 2 | CU9: 0 | CV9: NA | CW9: 0 | CX9: NA | CY9: 0 | CZ9: NA | DA9: 1 | DB9: 1 | DC9: 0 | DD9: NA | DE9: 1 | DF9: 1 | DG9: 1 | DH9: 1 | DI9: 1 | DJ9: 1 | DK9: 0 | DL9: NA | DM9: 0 | DN9: NA | DO9: 0 | DP9: NA
A10: 7 | B10: www.webmd.com | C10: 7 | D10: 1 | E10: 6 | F10: 0 | G10: 2 | H10: 0 | I10: 0 | J10: 1 | K10: 1 | L10: 1 | M10: 1 | N10: 1 | O10: 1 | P10: 0 | Q10: 1 | R10: 1 | S10: 1 | T10: 1 | U10: 1 | V10: 2 | W10: 1 | X10: 1 | Y10: 1 | Z10: 1 | AA10: 1 | AB10: 2 | AC10: 1 | AD10: 2 | AE10: 1 | AF10: 1 | AG10: 1 | AH10: 1 | AI10: 1 | AJ10: 1 | AK10: 1 | AL10: 1 | AM10: 1 | AN10: 0 | AO10: 1 | AP10: 1 | AQ10: 1 | AR10: 0 | AS10: 1 | AT10: 2 | AU10: 1 | AV10: 1 | AW10: 0 | AX10: NA | AY10: 0 | AZ10: NA | BA10: 0 | BB10: NA | BC10: 1 | BD10: 0 | BE10: 1 | BF10: 0 | BG10: 1 | BH10: 0 | BI10: 1 | BJ10: 1 | BK10: 1 | BL10: 1 | BM10: 1 | BN10: 2 | BO10: 1 | BP10: 0 | BQ10: 0 | BR10: NA | BS10: 1 | BT10: 1 | BU10: 1 | BV10: 2 | BW10: 1 | BX10: 1 | BY10: 1 | BZ10: 0 | CA10: 1 | CB10: 2 | CC10: 1 | CD10: 1 | CE10: 1 | CF10: 1 | CG10: 1 | CH10: 1 | CI10: 0 | CJ10: NA | CK10: 1 | CL10: 1 | CM10: 1 | CN10: 1 | CO10: 0 | CP10: NA | CQ10: 0 | CR10: NA | CS10: 1 | CT10: 2 | CU10: 0 | CV10: NA | CW10: 0 | CX10: NA | CY10: 0 | CZ10: NA | DA10: 1 | DB10: 1 | DC10: 1 | DD10: 2 | DE10: 0 | DF10: NA | DG10: 0 | DH10: NA | DI10: 0 | DJ10: NA | DK10: 0 | DL10: NA | DM10: 0 | DN10: NA | DO10: 0 | DP10: NA
A11: 8 | B11: www.nhlbi.nih.gov | C11: 8 | D11: 1 | E11: 5 | F11: 0 | G11: 1 | H11: 0 | I11: 1 | J11: 1 | K11: 1 | L11: 1 | M11: 1 | N11: 1 | O11: 1 | P11: 0 | Q11: 0 | R11: 0 | S11: 0 | T11: 1 | U11: 1 | V11: 2 | W11: 1 | X11: 2 | Y11: 1 | Z11: 1 | AA11: 1 | AB11: 0 | AC11: 1 | AD11: 2 | AE11: 0 | AF11: NA | AG11: 1 | AH11: 1 | AI11: 1 | AJ11: 1 | AK11: 1 | AL11: 1 | AM11: 0 | AN11: NA | AO11: 1 | AP11: 0 | AQ11: 1 | AR11: 0 | AS11: 1 | AT11: 2 | AU11: 0 | AV11: NA | AW11: 0 | AX11: NA | AY11: 0 | AZ11: NA | BA11: 0 | BB11: NA | BC11: 1 | BD11: 0 | BE11: 1 | BF11: 1 | BG11: 1 | BH11: 1 | BI11: 1 | BJ11: 0 | BK11: 1 | BL11: 1 | BM11: 1 | BN11: 2 | BO11: 1 | BP11: 1 | BQ11: 0 | BR11: NA | BS11: 1 | BT11: 1 | BU11: 1 | BV11: 2 | BW11: 0 | BX11: NA | BY11: 0 | BZ11: NA | CA11: 1 | CB11: 2 | CC11: 1 | CD11: 1 | CE11: 1 | CF11: 2 | CG11: 0 | CH11: NA | CI11: 1 | CJ11: 2 | CK11: 1 | CL11: 2 | CM11: 1 | CN11: 1 | CO11: 1 | CP11: 0 | CQ11: 0 | CR11: NA | CS11: 0 | CT11: NA | CU11: 0 | CV11: NA | CW11: 0 | CX11: NA | CY11: 0 | CZ11: NA | DA11: 0 | DB11: NA | DC11: 0 | DD11: NA | DE11: 0 | DF11: NA | DG11: 1 | DH11: 0 | DI11: 1 | DJ11: 0 | DK11: 0 | DL11: NA | DM11: 0 | DN11: NA | DO11: 0 | DP11: NA
A12: 9 | B12: www.mayoclinic.org | C12: 9 | D12: 1 | E12: 1 | F12: 1 | G12: 3 | H12: 0 | I12: 1 | J12: 1 | K12: 1 | L12: 1 | M12: 1 | N12: 1 | O12: 1 | P12: 1 | Q12: 1 | R12: 0 | S12: 0 | T12: 0 | U12: 1 | V12: 2 | W12: 0 | X12: NA | Y12: 1 | Z12: 1 | AA12: 1 | AB12: 2 | AC12: 1 | AD12: 1 | AE12: 0 | AF12: NA | AG12: 1 | AH12: 2 | AI12: 1 | AJ12: 1 | AK12: 0 | AL12: NA | AM12: 1 | AN12: 1 | AO12: 1 | AP12: 2 | AQ12: 0 | AR12: NA | AS12: 1 | AT12: 1 | AU12: 0 | AV12: NA | AW12: 0 | AX12: NA | AY12: 1 | AZ12: 0 | BA12: 1 | BB12: 2 | BC12: 1 | BD12: 1 | BE12: 1 | BF12: 1 | BG12: 1 | BH12: 2 | BI12: 1 | BJ12: 1 | BK12: 1 | BL12: 1 | BM12: 1 | BN12: 2 | BO12: 0 | BP12: NA | BQ12: 0 | BR12: NA | BS12: 0 | BT12: NA | BU12: 1 | BV12: 2 | BW12: 1 | BX12: 0 | BY12: 0 | BZ12: NA | CA12: 1 | CB12: 2 | CC12: 1 | CD12: 1 | CE12: 1 | CF12: 2 | CG12: 1 | CH12: 1 | CI12: 0 | CJ12: NA | CK12: 1 | CL12: 2 | CM12: 1 | CN12: 1 | CO12: 0 | CP12: NA | CQ12: 1 | CR12: 0 | CS12: 1 | CT12: 2 | CU12: 0 | CV12: NA | CW12: 0 | CX12: NA | CY12: 0 | CZ12: NA | DA12: 1 | DB12: 2 | DC12: 0 | DD12: NA | DE12: 0 | DF12: NA | DG12: 0 | DH12: NA | DI12: 0 | DJ12: NA | DK12: 0 | DL12: NA | DM12: 0 | DN12: NA | DO12: 0 | DP12: NA
A13: 10 | B13: www.radiologyinfo.org | C13: 10 | D13: 1 | E13: 0 | F13: 0 | G13: 1 | H13: 0 | I13: 0 | J13: 1 | K13: 1 | L13: 1 | M13: 1 | N13: 1 | O13: 1 | P13: 0 | Q13: 0 | R13: 0 | S13: 0 | T13: 0 | U13: 1 | V13: 1 | W13: 1 | X13: 1 | Y13: 1 | Z13: 1 | AA13: 1 | AB13: 0 | AC13: 0 | AD13: NA | AE13: 0 | AF13: NA | AG13: 1 | AH13: 0 | AI13: 1 | AJ13: 1 | AK13: 1 | AL13: 2 | AM13: 0 | AN13: NA | AO13: 1 | AP13: 1 | AQ13: 0 | AR13: NA | AS13: 1 | AT13: 0 | AU13: 1 | AV13: 1 | AW13: 0 | AX13: NA | AY13: 0 | AZ13: NA | BA13: 1 | BB13: 2 | BC13: 1 | BD13: 2 | BE13: 1 | BF13: 2 | BG13: 1 | BH13: 2 | BI13: 1 | BJ13: 1 | BK13: 1 | BL13: 2 | BM13: 1 | BN13: 0 | BO13: 1 | BP13: 1 | BQ13: 0 | BR13: NA | BS13: 1 | BT13: 2 | BU13: 1 | BV13: 1 | BW13: 0 | BX13: NA | BY13: 0 | BZ13: NA | CA13: 1 | CB13: 1 | CC13: 1 | CD13: 1 | CE13: 1 | CF13: 2 | CG13: 0 | CH13: NA | CI13: 1 | CJ13: 2 | CK13: 1 | CL13: 2 | CM13: 1 | CN13: 2 | CO13: 0 | CP13: NA | CQ13: 0 | CR13: NA | CS13: 1 | CT13: 2 | CU13: 0 | CV13: NA | CW13: 0 | CX13: NA | CY13: 0 | CZ13: NA | DA13: 1 | DB13: 1 | DC13: 0 | DD13: NA | DE13: 1 | DF13: 1 | DG13: 1 | DH13: 0 | DI13: 0 | DJ13: NA | DK13: 0 | DL13: NA | DM13: 0 | DN13: NA | DO13: 0 | DP13: NA
A14: 11 | B14: www.nhs.uk | C14: 11 | D14: 1 | E14: 1 | F14: 0 | G14: 1 | H14: 0 | I14: 1 | J14: 1 | K14: 0 | L14: 1 | M14: 1 | N14: 1 | O14: 0 | P14: 0 | Q14: 0 | R14: 0 | S14: 1 | T14: 1 | U14: 1 | V14: 2 | W14: 1 | X14: 2 | Y14: 1 | Z14: 2 | AA14: 1 | AB14: 0 | AC14: 1 | AD14: 2 | AE14: 0 | AF14: NA | AG14: 1 | AH14: 1 | AI14: 1 | AJ14: 1 | AK14: 0 | AL14: NA | AM14: 1 | AN14: 1 | AO14: 1 | AP14: 1 | AQ14: 1 | AR14: 1 | AS14: 1 | AT14: 2 | AU14: 0 | AV14: NA | AW14: 0 | AX14: NA | AY14: 0 | AZ14: NA | BA14: 1 | BB14: 2 | BC14: 1 | BD14: 1 | BE14: 1 | BF14: 1 | BG14: 1 | BH14: 1 | BI14: 1 | BJ14: 0 | BK14: 1 | BL14: 1 | BM14: 1 | BN14: 1 | BO14: 1 | BP14: 1 | BQ14: 0 | BR14: NA | BS14: 0 | BT14: NA | BU14: 1 | BV14: 2 | BW14: 1 | BX14: 2 | BY14: 1 | BZ14: 2 | CA14: 1 | CB14: 2 | CC14: 1 | CD14: 2 | CE14: 1 | CF14: 2 | CG14: 1 | CH14: 2 | CI14: 0 | CJ14: NA | CK14: 1 | CL14: 2 | CM14: 1 | CN14: 1 | CO14: 1 | CP14: 2 | CQ14: 1 | CR14: 2 | CS14: 1 | CT14: 2 | CU14: 0 | CV14: NA | CW14: 0 | CX14: NA | CY14: 0 | CZ14: NA | DA14: 1 | DB14: 2 | DC14: 1 | DD14: 0 | DE14: 0 | DF14: NA | DG14: 1 | DH14: 0 | DI14: 0 | DJ14: NA | DK14: 0 | DL14: NA | DM14: 0 | DN14: NA | DO14: 0 | DP14: NA
A15: 12 | B15: www.bhf.org.uk | C15: 12 | D15: 0 | E15: 0 | F15: 2 | G15: 1 | H15: 1 | I15: 1 | J15: 1 | K15: 1 | L15: 1 | M15: 1 | N15: 1 | O15: 1 | P15: 0 | Q15: 0 | R15: 0 | S15: 0 | T15: 0 | U15: 1 | V15: 1 | W15: 1 | X15: 2 | Y15: 1 | Z15: 2 | AA15: 0 | AB15: NA | AC15: 0 | AD15: NA | AE15: 0 | AF15: NA | AG15: 1 | AH15: 1 | AI15: 0 | AJ15: NA | AK15: 0 | AL15: NA | AM15: 1 | AN15: 0 | AO15: 0 | AP15: NA | AQ15: 1 | AR15: 2 | AS15: 1 | AT15: 2 | AU15: 0 | AV15: NA | AW15: 0 | AX15: NA | AY15: 0 | AZ15: NA | BA15: 0 | BB15: NA | BC15: 0 | BD15: NA | BE15: 1 | BF15: 1 | BG15: 1 | BH15: 1 | BI15: 1 | BJ15: 0 | BK15: 1 | BL15: 1 | BM15: 1 | BN15: 1 | BO15: 1 | BP15: 1 | BQ15: 0 | BR15: NA | BS15: 0 | BT15: NA | BU15: 1 | BV15: 1 | BW15: 1 | BX15: 2 | BY15: 1 | BZ15: 2 | CA15: 1 | CB15: 2 | CC15: 1 | CD15: 2 | CE15: 1 | CF15: 0 | CG15: 1 | CH15: 1 | CI15: 1 | CJ15: 2 | CK15: 1 | CL15: 1 | CM15: 0 | CN15: NA | CO15: 1 | CP15: 0 | CQ15: 1 | CR15: 1 | CS15: 1 | CT15: 2 | CU15: 0 | CV15: NA | CW15: 0 | CX15: NA | CY15: 0 | CZ15: NA | DA15: 0 | DB15: NA | DC15: 0 | DD15: NA | DE15: 1 | DF15: 0 | DG15: 0 | DH15: NA | DI15: 0 | DJ15: NA | DK15: 0 | DL15: NA | DM15: 0 | DN15: NA | DO15: 0 | DP15: NA
A16: 13 | B16: www.svhhearthealth.com.au | C16: 13 | D16: 0 | E16: 1 | F16: 0 | G16: 1 | H16: 0 | I16: 1 | J16: 1 | K16: 0 | L16: 1 | M16: 1 | N16: 1 | O16: 1 | P16: 0 | Q16: 0 | R16: 0 | S16: 0 | T16: 0 | U16: 1 | V16: 2 | W16: 0 | X16: NA | Y16: 0 | Z16: NA | AA16: 0 | AB16: NA | AC16: 0 | AD16: NA | AE16: 0 | AF16: NA | AG16: 1 | AH16: 2 | AI16: 1 | AJ16: 1 | AK16: 0 | AL16: NA | AM16: 1 | AN16: 1 | AO16: 1 | AP16: 2 | AQ16: 1 | AR16: 2 | AS16: 1 | AT16: 1 | AU16: 1 | AV16: 1 | AW16: 0 | AX16: NA | AY16: 1 | AZ16: 2 | BA16: 0 | BB16: NA | BC16: 1 | BD16: 2 | BE16: 1 | BF16: 1 | BG16: 1 | BH16: 1 | BI16: 1 | BJ16: 1 | BK16: 1 | BL16: 1 | BM16: 1 | BN16: 1 | BO16: 0 | BP16: NA | BQ16: 0 | BR16: NA | BS16: 1 | BT16: 1 | BU16: 0 | BV16: NA | BW16: 1 | BX16: 0 | BY16: 0 | BZ16: NA | CA16: 1 | CB16: 0 | CC16: 0 | CD16: NA | CE16: 0 | CF16: NA | CG16: 1 | CH16: 0 | CI16: 0 | CJ16: NA | CK16: 1 | CL16: 2 | CM16: 1 | CN16: 2 | CO16: 0 | CP16: NA | CQ16: 0 | CR16: NA | CS16: 1 | CT16: 1 | CU16: 0 | CV16: NA | CW16: 0 | CX16: NA | CY16: 0 | CZ16: NA | DA16: 0 | DB16: NA | DC16: 0 | DD16: NA | DE16: 0 | DF16: NA | DG16: 0 | DH16: NA | DI16: 0 | DJ16: NA | DK16: 0 | DL16: NA | DM16: 0 | DN16: NA | DO16: 0 | DP16: NA
A17: 14 | B17: www.heartfoundation.org.nz | C17: 14 | D17: 0 | E17: 0 | F17: 2 | G17: 1 | H17: 0 | I17: 1 | J17: 1 | K17: 0 | L17: 1 | M17: 0 | N17: 1 | O17: 1 | P17: 0 | Q17: 0 | R17: 0 | S17: 0 | T17: 0 | U17: 1 | V17: 1 | W17: 0 | X17: NA | Y17: 0 | Z17: NA | AA17: 1 | AB17: 1 | AC17: 1 | AD17: 1 | AE17: 0 | AF17: NA | AG17: 1 | AH17: 1 | AI17: 0 | AJ17: NA | AK17: 0 | AL17: NA | AM17: 1 | AN17: 0 | AO17: 0 | AP17: NA | AQ17: 1 | AR17: 1 | AS17: 1 | AT17: 2 | AU17: 0 | AV17: NA | AW17: 0 | AX17: NA | AY17: 0 | AZ17: NA | BA17: 0 | BB17: NA | BC17: 1 | BD17: 1 | BE17: 0 | BF17: NA | BG17: 1 | BH17: 1 | BI17: 1 | BJ17: 0 | BK17: 0 | BL17: NA | BM17: 1 | BN17: 2 | BO17: 0 | BP17: NA | BQ17: 0 | BR17: NA | BS17: 1 | BT17: 1 | BU17: 0 | BV17: NA | BW17: 1 | BX17: 0 | BY17: 0 | BZ17: NA | CA17: 1 | CB17: 1 | CC17: 1 | CD17: 2 | CE17: 1 | CF17: 1 | CG17: 0 | CH17: NA | CI17: 0 | CJ17: NA | CK17: 1 | CL17: 1 | CM17: 1 | CN17: 2 | CO17: 1 | CP17: 2 | CQ17: 0 | CR17: NA | CS17: 1 | CT17: 2 | CU17: 0 | CV17: NA | CW17: 0 | CX17: NA | CY17: 0 | CZ17: NA | DA17: 1 | DB17: 0 | DC17: 0 | DD17: NA | DE17: 1 | DF17: 0 | DG17: 0 | DH17: NA | DI17: 0 | DJ17: NA | DK17: 0 | DL17: NA | DM17: 0 | DN17: NA | DO17: 0 | DP17: NA
A18: 15 | B18: www.texasheart.org | C18: 15 | D18: 0 | E18: 5 | F18: 0 | G18: 3 | H18: 0 | I18: 1 | J18: 1 | K18: 1 | L18: 1 | M18: 1 | N18: 1 | O18: 1 | P18: 0 | Q18: 0 | R18: 0 | S18: 0 | T18: 1 | U18: 1 | V18: 2 | W18: 1 | X18: 1 | Y18: 1 | Z18: 0 | AA18: 1 | AB18: 2 | AC18: 1 | AD18: 1 | AE18: 1 | AF18: 1 | AG18: 1 | AH18: 1 | AI18: 1 | AJ18: 2 | AK18: 0 | AL18: NA | AM18: 1 | AN18: 1 | AO18: 1 | AP18: 1 | AQ18: 0 | AR18: NA | AS18: 1 | AT18: 2 | AU18: 0 | AV18: NA | AW18: 0 | AX18: NA | AY18: 1 | AZ18: 1 | BA18: 0 | BB18: NA | BC18: 0 | BD18: NA | BE18: 1 | BF18: 1 | BG18: 1 | BH18: 1 | BI18: 1 | BJ18: 0 | BK18: 1 | BL18: 1 | BM18: 1 | BN18: 2 | BO18: 1 | BP18: 1 | BQ18: 0 | BR18: NA | BS18: 1 | BT18: 0 | BU18: 1 | BV18: 1 | BW18: 0 | BX18: NA | BY18: 0 | BZ18: NA | CA18: 1 | CB18: 1 | CC18: 1 | CD18: 1 | CE18: 1 | CF18: 2 | CG18: 0 | CH18: NA | CI18: 0 | CJ18: NA | CK18: 1 | CL18: 1 | CM18: 0 | CN18: NA | CO18: 0 | CP18: NA | CQ18: 0 | CR18: NA | CS18: 0 | CT18: NA | CU18: 0 | CV18: NA | CW18: 0 | CX18: NA | CY18: 0 | CZ18: NA | DA18: 1 | DB18: 0 | DC18: 0 | DD18: NA | DE18: 1 | DF18: 1 | DG18: 0 | DH18: NA | DI18: 1 | DJ18: 0 | DK18: 0 | DL18: NA | DM18: 0 | DN18: NA | DO18: 0 | DP18: NA
A19: 16 | B19: www.hopkinsmedicine.org | C19: 17 | D19: 1 | E19: 1 | F19: 0 | G19: 3 | H19: 0 | I19: 1 | J19: 1 | K19: 1 | L19: 1 | M19: 1 | N19: 1 | O19: 1 | P19: 0 | Q19: 0 | R19: 0 | S19: 0 | T19: 0 | U19: 1 | V19: 2 | W19: 0 | X19: NA | Y19: 0 | Z19: NA | AA19: 1 | AB19: 2 | AC19: 1 | AD19: 2 | AE19: 0 | AF19: NA | AG19: 1 | AH19: 1 | AI19: 1 | AJ19: 2 | AK19: 1 | AL19: 2 | AM19: 1 | AN19: 1 | AO19: 1 | AP19: 1 | AQ19: 1 | AR19: 2 | AS19: 0 | AT19: NA | AU19: 1 | AV19: 2 | AW19: 1 | AX19: 2 | AY19: 1 | AZ19: 2 | BA19: 1 | BB19: 2 | BC19: 1 | BD19: 2 | BE19: 1 | BF19: 2 | BG19: 1 | BH19: 2 | BI19: 1 | BJ19: 2 | BK19: 1 | BL19: 2 | BM19: 1 | BN19: 2 | BO19: 1 | BP19: 2 | BQ19: 1 | BR19: 2 | BS19: 1 | BT19: 2 | BU19: 1 | BV19: 0 | BW19: 1 | BX19: 1 | BY19: 1 | BZ19: 1 | CA19: 1 | CB19: 2 | CC19: 1 | CD19: 1 | CE19: 0 | CF19: NA | CG19: 1 | CH19: 1 | CI19: 0 | CJ19: NA | CK19: 1 | CL19: 2 | CM19: 1 | CN19: 2 | CO19: 0 | CP19: NA | CQ19: 0 | CR19: NA | CS19: 0 | CT19: NA | CU19: 1 | CV19: 2 | CW19: 0 | CX19: NA | CY19: 0 | CZ19: NA | DA19: 0 | DB19: NA | DC19: 1 | DD19: 1 | DE19: 0 | DF19: NA | DG19: 0 | DH19: NA | DI19: 0 | DJ19: NA | DK19: 0 | DL19: NA | DM19: 0 | DN19: NA | DO19: 0 | DP19: NA
A20: 17 | B20: kidshealth.org | C20: 19 | D20: 1 | E20: 6 | F20: 0 | G20: 0 | H20: 0 | I20: 0 | J20: 1 | K20: 0 | L20: 1 | M20: 0 | N20: 1 | O20: 1 | P20: 0 | Q20: 0 | R20: 0 | S20: 0 | T20: 1 | U20: 1 | V20: 1 | W20: 1 | X20: 1 | Y20: 0 | Z20: NA | AA20: 0 | AB20: NA | AC20: 0 | AD20: NA | AE20: 0 | AF20: NA | AG20: 0 | AH20: NA | AI20: 1 | AJ20: 1 | AK20: 1 | AL20: 0 | AM20: 0 | AN20: NA | AO20: 1 | AP20: 0 | AQ20: 0 | AR20: NA | AS20: 0 | AT20: NA | AU20: 0 | AV20: NA | AW20: 0 | AX20: NA | AY20: 0 | AZ20: NA | BA20: 0 | BB20: NA | BC20: 0 | BD20: NA | BE20: 1 | BF20: 0 | BG20: 1 | BH20: 1 | BI20: 1 | BJ20: 0 | BK20: 0 | BL20: NA | BM20: 1 | BN20: 0 | BO20: 1 | BP20: 1 | BQ20: 0 | BR20: NA | BS20: 1 | BT20: 1 | BU20: 0 | BV20: NA | BW20: 0 | BX20: NA | BY20: 0 | BZ20: NA | CA20: 1 | CB20: 2 | CC20: 1 | CD20: 0 | CE20: 0 | CF20: NA | CG20: 1 | CH20: 1 | CI20: 0 | CJ20: NA | CK20: 1 | CL20: 1 | CM20: 1 | CN20: 0 | CO20: 0 | CP20: NA | CQ20: 0 | CR20: NA | CS20: 0 | CT20: NA | CU20: 0 | CV20: NA | CW20: 0 | CX20: NA | CY20: 0 | CZ20: NA | DA20: 0 | DB20: NA | DC20: 0 | DD20: NA | DE20: 0 | DF20: NA | DG20: 0 | DH20: NA | DI20: 0 | DJ20: NA | DK20: 0 | DL20: NA | DM20: 0 | DN20: NA | DO20: 0 | DP20: NA
A21: 18 | B21: www.verywellhealth.com | C21: 24 | D21: 1 | E21: 5 | F21: 0 | G21: 1 | H21: 0 | I21: 1 | J21: 1 | K21: 1 | L21: 1 | M21: 1 | N21: 1 | O21: 1 | P21: 1 | Q21: 1 | R21: 1 | S21: 0 | T21: 1 | U21: 1 | V21: 1 | W21: 0 | X21: NA | Y21: 1 | Z21: 0 | AA21: 1 | AB21: 2 | AC21: 1 | AD21: 2 | AE21: 0 | AF21: NA | AG21: 1 | AH21: 0 | AI21: 0 | AJ21: NA | AK21: 0 | AL21: NA | AM21: 0 | AN21: NA | AO21: 0 | AP21: NA | AQ21: 1 | AR21: 1 | AS21: 0 | AT21: NA | AU21: 0 | AV21: NA | AW21: 0 | AX21: NA | AY21: 0 | AZ21: NA | BA21: 0 | BB21: NA | BC21: 0 | BD21: NA | BE21: 0 | BF21: NA | BG21: 0 | BH21: NA | BI21: 0 | BJ21: NA | BK21: 0 | BL21: NA | BM21: 0 | BN21: NA | BO21: 0 | BP21: NA | BQ21: 0 | BR21: NA | BS21: 0 | BT21: NA | BU21: 1 | BV21: 1 | BW21: 0 | BX21: NA | BY21: 0 | BZ21: NA | CA21: 0 | CB21: NA | CC21: 0 | CD21: NA | CE21: 0 | CF21: NA | CG21: 0 | CH21: NA | CI21: 0 | CJ21: NA | CK21: 1 | CL21: 1 | CM21: 1 | CN21: 0 | CO21: 0 | CP21: NA | CQ21: 0 | CR21: NA | CS21: 0 | CT21: NA | CU21: 0 | CV21: NA | CW21: 0 | CX21: NA | CY21: 0 | CZ21: NA | DA21: 1 | DB21: 0 | DC21: 0 | DD21: NA | DE21: 1 | DF21: 1 | DG21: 0 | DH21: NA | DI21: 0 | DJ21: NA | DK21: 0 | DL21: NA | DM21: 0 | DN21: NA | DO21: 0 | DP21: NA
A22: 19 | B22: www.ottawaheart.ca | C22: 25 | D22: 0 | E22: 1 | F22: 0 | G22: 3 | H22: 0 | I22: 1 | J22: 1 | K22: 0 | L22: 1 | M22: 1 | N22: 1 | O22: 0 | P22: 0 | Q22: 0 | R22: 0 | S22: 0 | T22: 0 | U22: 1 | V22: 2 | W22: 0 | X22: NA | Y22: 1 | Z22: 1 | AA22: 0 | AB22: NA | AC22: 0 | AD22: NA | AE22: 0 | AF22: NA | AG22: 0 | AH22: NA | AI22: 1 | AJ22: 0 | AK22: 0 | AL22: NA | AM22: 1 | AN22: 1 | AO22: 0 | AP22: NA | AQ22: 1 | AR22: 2 | AS22: 1 | AT22: 2 | AU22: 0 | AV22: NA | AW22: 0 | AX22: NA | AY22: 0 | AZ22: NA | BA22: 0 | BB22: NA | BC22: 0 | BD22: NA | BE22: 1 | BF22: 0 | BG22: 1 | BH22: 1 | BI22: 1 | BJ22: 1 | BK22: 1 | BL22: 2 | BM22: 1 | BN22: 0 | BO22: 0 | BP22: NA | BQ22: 0 | BR22: NA | BS22: 1 | BT22: 2 | BU22: 1 | BV22: 0 | BW22: 1 | BX22: 0 | BY22: 0 | BZ22: NA | CA22: 0 | CB22: NA | CC22: 1 | CD22: 0 | CE22: 0 | CF22: NA | CG22: 0 | CH22: NA | CI22: 0 | CJ22: NA | CK22: 0 | CL22: NA | CM22: 0 | CN22: NA | CO22: 0 | CP22: NA | CQ22: 0 | CR22: NA | CS22: 1 | CT22: 1 | CU22: 0 | CV22: NA | CW22: 0 | CX22: NA | CY22: 0 | CZ22: NA | DA22: 0 | DB22: NA | DC22: 0 | DD22: NA | DE22: 0 | DF22: NA | DG22: 0 | DH22: NA | DI22: 0 | DJ22: NA | DK22: 0 | DL22: NA | DM22: 0 | DN22: NA | DO22: 0 | DP22: NA
A23: 20 | B23: my.clevelandclinic.org | C23: 56 | D23: 1 | E23: 1 | F23: 1 | G23: 3 | H23: 0 | I23: 1 | J23: 1 | K23: 0 | L23: 1 | M23: 0 | N23: 1 | O23: 1 | P23: 0 | Q23: 0 | R23: 0 | S23: 0 | T23: 0 | U23: 1 | V23: 1 | W23: 1 | X23: 2 | Y23: 1 | Z23: 1 | AA23: 1 | AB23: 0 | AC23: 1 | AD23: 2 | AE23: 0 | AF23: NA | AG23: 1 | AH23: 0 | AI23: 1 | AJ23: 1 | AK23: 1 | AL23: 0 | AM23: 1 | AN23: 0 | AO23: 0 | AP23: NA | AQ23: 0 | AR23: NA | AS23: 0 | AT23: NA | AU23: 0 | AV23: NA | AW23: 0 | AX23: NA | AY23: 0 | AZ23: NA | BA23: 0 | BB23: NA | BC23: 0 | BD23: NA | BE23: 0 | BF23: NA | BG23: 1 | BH23: 1 | BI23: 1 | BJ23: 1 | BK23: 1 | BL23: 1 | BM23: 1 | BN23: 1 | BO23: 0 | BP23: NA | BQ23: 0 | BR23: NA | BS23: 0 | BT23: NA | BU23: 1 | BV23: 0 | BW23: 0 | BX23: NA | BY23: 0 | BZ23: NA | CA23: 0 | CB23: NA | CC23: 1 | CD23: 0 | CE23: 0 | CF23: NA | CG23: 0 | CH23: NA | CI23: 0 | CJ23: NA | CK23: 1 | CL23: 1 | CM23: 0 | CN23: NA | CO23: 0 | CP23: NA | CQ23: 0 | CR23: NA | CS23: 0 | CT23: NA | CU23: 0 | CV23: NA | CW23: 0 | CX23: NA | CY23: 0 | CZ23: NA | DA23: 1 | DB23: 0 | DC23: 1 | DD23: 1 | DE23: 0 | DF23: NA | DG23: 0 | DH23: NA | DI23: 0 | DJ23: NA | DK23: 0 | DL23: NA | DM23: 0 | DN23: NA | DO23: 0 | DP23: NA
A24: 21 | B24: www.heartandstroke.ca | C24: 57 | D24: 0 | E24: 0 | F24: 2 | G24: 0 | H24: 0 | I24: 1 | J24: 1 | K24: 0 | L24: 1 | M24: 1 | N24: 0 | O24: 1 | P24: 0 | Q24: 0 | R24: 0 | S24: 0 | T24: 0 | U24: 1 | V24: 2 | W24: 0 | X24: NA | Y24: 0 | Z24: NA | AA24: 0 | AB24: NA | AC24: 0 | AD24: NA | AE24: 0 | AF24: NA | AG24: 1 | AH24: 1 | AI24: 1 | AJ24: 0 | AK24: 1 | AL24: 2 | AM24: 0 | AN24: NA | AO24: 0 | AP24: NA | AQ24: 0 | AR24: NA | AS24: 0 | AT24: NA | AU24: 0 | AV24: NA | AW24: 0 | AX24: NA | AY24: 1 | AZ24: 2 | BA24: 1 | BB24: 2 | BC24: 1 | BD24: 2 | BE24: 1 | BF24: 2 | BG24: 1 | BH24: 1 | BI24: 1 | BJ24: 1 | BK24: 1 | BL24: 1 | BM24: 1 | BN24: 0 | BO24: 1 | BP24: 1 | BQ24: 0 | BR24: NA | BS24: 1 | BT24: 1 | BU24: 0 | BV24: NA | BW24: 1 | BX24: 0 | BY24: 0 | BZ24: NA | CA24: 1 | CB24: 2 | CC24: 0 | CD24: NA | CE24: 0 | CF24: NA | CG24: 1 | CH24: 1 | CI24: 0 | CJ24: NA | CK24: 1 | CL24: 1 | CM24: 0 | CN24: NA | CO24: 0 | CP24: NA | CQ24: 0 | CR24: NA | CS24: 0 | CT24: NA | CU24: 0 | CV24: NA | CW24: 0 | CX24: NA | CY24: 0 | CZ24: NA | DA24: 0 | DB24: NA | DC24: 0 | DD24: NA | DE24: 0 | DF24: NA | DG24: 0 | DH24: NA | DI24: 0 | DJ24: NA | DK24: 0 | DL24: NA | DM24: 0 | DN24: NA | DO24: 0 | DP24: NA
A25: 22 | B25: www.medicinenet.com | C25: 59 | D25: 1 | E25: 2 | F25: 0 | G25: 2 | H25: 0 | I25: 0 | J25: 1 | K25: 1 | L25: 1 | M25: 1 | N25: 1 | O25: 1 | P25: 1 | Q25: 0 | R25: 0 | S25: 0 | T25: 1 | U25: 1 | V25: 1 | W25: 1 | X25: 2 | Y25: 1 | Z25: 2 | AA25: 0 | AB25: NA | AC25: 1 | AD25: 1 | AE25: 0 | AF25: NA | AG25: 1 | AH25: 2 | AI25: 0 | AJ25: NA | AK25: 0 | AL25: NA | AM25: 1 | AN25: 1 | AO25: 0 | AP25: NA | AQ25: 0 | AR25: NA | AS25: 1 | AT25: 2 | AU25: 0 | AV25: NA | AW25: 0 | AX25: NA | AY25: 0 | AZ25: NA | BA25: 0 | BB25: NA | BC25: 0 | BD25: NA | BE25: 1 | BF25: 1 | BG25: 1 | BH25: 1 | BI25: 1 | BJ25: 1 | BK25: 1 | BL25: 1 | BM25: 1 | BN25: 1 | BO25: 1 | BP25: 0 | BQ25: 1 | BR25: 0 | BS25: 1 | BT25: 0 | BU25: 1 | BV25: 1 | BW25: 0 | BX25: NA | BY25: 0 | BZ25: NA | CA25: 0 | CB25: NA | CC25: 1 | CD25: 1 | CE25: 1 | CF25: 2 | CG25: 0 | CH25: NA | CI25: 0 | CJ25: NA | CK25: 1 | CL25: 1 | CM25: 1 | CN25: 0 | CO25: 1 | CP25: 0 | CQ25: 1 | CR25: 1 | CS25: 1 | CT25: 2 | CU25: 0 | CV25: NA | CW25: 0 | CX25: NA | CY25: 0 | CZ25: NA | DA25: 1 | DB25: 1 | DC25: 1 | DD25: 1 | DE25: 1 | DF25: 1 | DG25: 0 | DH25: NA | DI25: 0 | DJ25: NA | DK25: 0 | DL25: NA | DM25: 0 | DN25: NA | DO25: 0 | DP25: NA
A26: 23 | B26: www.delraymedicalctr.com | C26: 67 | D26: 1 | E26: 1 | F26: 1 | G26: 3 | H26: 0 | I26: 1 | J26: 1 | K26: 0 | L26: 0 | M26: 0 | N26: 1 | O26: 1 | P26: 0 | Q26: 0 | R26: 0 | S26: 0 | T26: 0 | U26: 1 | V26: 1 | W26: 1 | X26: 1 | Y26: 1 | Z26: 0 | AA26: 1 | AB26: 0 | AC26: 0 | AD26: NA | AE26: 1 | AF26: 2 | AG26: 0 | AH26: NA | AI26: 0 | AJ26: NA | AK26: 0 | AL26: NA | AM26: 0 | AN26: NA | AO26: 0 | AP26: NA | AQ26: 0 | AR26: NA | AS26: 0 | AT26: NA | AU26: 0 | AV26: NA | AW26: 0 | AX26: NA | AY26: 0 | AZ26: NA | BA26: 0 | BB26: NA | BC26: 0 | BD26: NA | BE26: 0 | BF26: NA | BG26: 0 | BH26: NA | BI26: 0 | BJ26: NA | BK26: 0 | BL26: NA | BM26: 0 | BN26: NA | BO26: 0 | BP26: NA | BQ26: 0 | BR26: NA | BS26: 0 | BT26: NA | BU26: 0 | BV26: NA | BW26: 0 | BX26: NA | BY26: 0 | BZ26: NA | CA26: 0 | CB26: NA | CC26: 0 | CD26: NA | CE26: 0 | CF26: NA | CG26: 0 | CH26: NA | CI26: 0 | CJ26: NA | CK26: 0 | CL26: NA | CM26: 0 | CN26: NA | CO26: 0 | CP26: NA | CQ26: 0 | CR26: NA | CS26: 1 | CT26: 1 | CU26: 0 | CV26: NA | CW26: 0 | CX26: NA | CY26: 0 | CZ26: NA | DA26: 0 | DB26: NA | DC26: 0 | DD26: NA | DE26: 0 | DF26: NA | DG26: 0 | DH26: NA | DI26: 0 | DJ26: NA | DK26: 0 | DL26: NA | DM26: 0 | DN26: NA | DO26: 0 | DP26: NA
A27: 24 | B27: www.urmc.rochester.edu | C27: 73 | D27: 1 | E27: 5 | F27: 0 | G27: 1 | H27: 0 | I27: 0 | J27: 1 | K27: 1 | L27: 1 | M27: 0 | N27: 1 | O27: 1 | P27: 0 | Q27: 0 | R27: 0 | S27: 0 | T27: 1 | U27: 1 | V27: 2 | W27: 0 | X27: NA | Y27: 0 | Z27: NA | AA27: 1 | AB27: 2 | AC27: 1 | AD27: 2 | AE27: 0 | AF27: NA | AG27: 1 | AH27: 1 | AI27: 1 | AJ27: 2 | AK27: 1 | AL27: 2 | AM27: 1 | AN27: 1 | AO27: 1 | AP27: 1 | AQ27: 1 | AR27: 2 | AS27: 0 | AT27: NA | AU27: 1 | AV27: 2 | AW27: 1 | AX27: 2 | AY27: 1 | AZ27: 2 | BA27: 1 | BB27: 2 | BC27: 1 | BD27: 2 | BE27: 1 | BF27: 2 | BG27: 1 | BH27: 2 | BI27: 1 | BJ27: 2 | BK27: 1 | BL27: 2 | BM27: 1 | BN27: 2 | BO27: 1 | BP27: 2 | BQ27: 1 | BR27: 2 | BS27: 1 | BT27: 2 | BU27: 1 | BV27: 0 | BW27: 1 | BX27: 1 | BY27: 1 | BZ27: 1 | CA27: 1 | CB27: 2 | CC27: 1 | CD27: 1 | CE27: 0 | CF27: NA | CG27: 1 | CH27: 1 | CI27: 0 | CJ27: NA | CK27: 1 | CL27: 2 | CM27: 1 | CN27: 2 | CO27: 0 | CP27: NA | CQ27: 0 | CR27: NA | CS27: 0 | CT27: NA | CU27: 1 | CV27: 2 | CW27: 0 | CX27: NA | CY27: 0 | CZ27: NA | DA27: 0 | DB27: NA | DC27: 1 | DD27: 1 | DE27: 0 | DF27: NA | DG27: 0 | DH27: NA | DI27: 0 | DJ27: NA | DK27: 0 | DL27: NA | DM27: 0 | DN27: NA | DO27: 0 | DP27: NA
A28: 25 | B28: www.newcastle-hospitals.org.uk | C28: 83 | D28: 1 | E28: 1 | F28: 1 | G28: 3 | H28: 0 | I28: 1 | J28: 1 | K28: 0 | L28: 1 | M28: 1 | N28: 0 | O28: 0 | P28: 0 | Q28: 0 | R28: 0 | S28: 0 | T28: 0 | U28: 1 | V28: 2 | W28: 0 | X28: NA | Y28: 0 | Z28: NA | AA28: 0 | AB28: NA | AC28: 0 | AD28: NA | AE28: 0 | AF28: NA | AG28: 1 | AH28: 0 | AI28: 1 | AJ28: 0 | AK28: 1 | AL28: 1 | AM28: 1 | AN28: 0 | AO28: 1 | AP28: 0 | AQ28: 0 | AR28: NA | AS28: 1 | AT28: 2 | AU28: 1 | AV28: 2 | AW28: 0 | AX28: NA | AY28: 1 | AZ28: 1 | BA28: 1 | BB28: 1 | BC28: 1 | BD28: 1 | BE28: 1 | BF28: 2 | BG28: 1 | BH28: 0 | BI28: 1 | BJ28: 1 | BK28: 1 | BL28: 0 | BM28: 0 | BN28: NA | BO28: 1 | BP28: 0 | BQ28: 1 | BR28: 0 | BS28: 1 | BT28: 1 | BU28: 0 | BV28: NA | BW28: 1 | BX28: 0 | BY28: 0 | BZ28: NA | CA28: 1 | CB28: 1 | CC28: 1 | CD28: 0 | CE28: 0 | CF28: NA | CG28: 0 | CH28: NA | CI28: 0 | CJ28: NA | CK28: 1 | CL28: 1 | CM28: 1 | CN28: 0 | CO28: 0 | CP28: NA | CQ28: 1 | CR28: 1 | CS28: 1 | CT28: 2 | CU28: 0 | CV28: NA | CW28: 0 | CX28: NA | CY28: 0 | CZ28: NA | DA28: 0 | DB28: NA | DC28: 0 | DD28: NA | DE28: 0 | DF28: NA | DG28: 0 | DH28: NA | DI28: 0 | DJ28: NA | DK28: 0 | DL28: NA | DM28: 0 | DN28: NA | DO28: 0 | DP28: NA
A29: German language
A30: 1 | B30: netdoktor.de | C30: 2 | D30: 1 | E30: 2 | F30: 0 | G30: 1 | H30: 0 | I30: 1 | J30: 1 | K30: 1 | L30: 1 | M30: 1 | N30: 1 | O30: 1 | P30: 1 | Q30: 0 | R30: 1 | S30: 0 | T30: 0 | U30: 1 | V30: 2 | W30: 0 | X30: NA | Y30: 1 | Z30: 1 | AA30: 1 | AB30: 1 | AC30: 1 | AD30: 2 | AE30: 1 | AF30: 2 | AG30: 1 | AH30: 2 | AI30: 0 | AJ30: NA | AK30: 1 | AL30: 0 | AM30: 1 | AN30: 2 | AO30: 0 | AP30: NA | AQ30: 0 | AR30: NA | AS30: 0 | AT30: NA | AU30: 0 | AV30: NA | AW30: 0 | AX30: NA | AY30: 0 | AZ30: NA | BA30: 0 | BB30: NA | BC30: 0 | BD30: NA | BE30: 1 | BF30: 0 | BG30: 1 | BH30: 1 | BI30: 1 | BJ30: 0 | BK30: 1 | BL30: 1 | BM30: 1 | BN30: 2 | BO30: 1 | BP30: 2 | BQ30: 0 | BR30: NA | BS30: 1 | BT30: 0 | BU30: 1 | BV30: 1 | BW30: 1 | BX30: 0 | BY30: 0 | BZ30: NA | CA30: 0 | CB30: NA | CC30: 0 | CD30: NA | CE30: 1 | CF30: 1 | CG30: 0 | CH30: NA | CI30: 1 | CJ30: 2 | CK30: 1 | CL30: 1 | CM30: 1 | CN30: 1 | CO30: 1 | CP30: 0 | CQ30: 0 | CR30: NA | CS30: 0 | CT30: NA | CU30: 0 | CV30: NA | CW30: 0 | CX30: NA | CY30: 0 | CZ30: NA | DA30: 1 | DB30: 0 | DC30: 0 | DD30: NA | DE30: 0 | DF30: NA | DG30: 0 | DH30: NA | DI30: 0 | DJ30: NA | DK30: 0 | DL30: NA | DM30: 0 | DN30: NA | DO30: 0 | DP30: NA
A31: 2 | B31: qualitaetskliniken.de | C31: 3 | D31: 1 | E31: 2 | F31: 0 | G31: 1 | H31: 0 | I31: 1 | J31: 1 | K31: 0 | L31: 1 | M31: 1 | N31: 1 | O31: 1 | P31: 0 | Q31: 0 | R31: 0 | S31: 1 | T31: 0 | U31: 1 | V31: 2 | W31: 0 | X31: NA | Y31: 1 | Z31: 0 | AA31: 1 | AB31: 1 | AC31: 1 | AD31: 2 | AE31: 0 | AF31: NA | AG31: 1 | AH31: 1 | AI31: 0 | AJ31: NA | AK31: 0 | AL31: NA | AM31: 1 | AN31: 2 | AO31: 0 | AP31: NA | AQ31: 0 | AR31: NA | AS31: 0 | AT31: NA | AU31: 0 | AV31: NA | AW31: 0 | AX31: NA | AY31: 0 | AZ31: NA | BA31: 0 | BB31: NA | BC31: 0 | BD31: NA | BE31: 1 | BF31: 0 | BG31: 1 | BH31: 1 | BI31: 1 | BJ31: 0 | BK31: 1 | BL31: 1 | BM31: 1 | BN31: 1 | BO31: 1 | BP31: 1 | BQ31: 0 | BR31: NA | BS31: 0 | BT31: NA | BU31: 1 | BV31: 0 | BW31: 1 | BX31: 2 | BY31: 0 | BZ31: NA | CA31: 0 | CB31: NA | CC31: 1 | CD31: 1 | CE31: 1 | CF31: 0 | CG31: 0 | CH31: NA | CI31: 0 | CJ31: NA | CK31: 0 | CL31: NA | CM31: 0 | CN31: NA | CO31: 0 | CP31: NA | CQ31: 0 | CR31: NA | CS31: 1 | CT31: 2 | CU31: 0 | CV31: NA | CW31: 0 | CX31: NA | CY31: 0 | CZ31: NA | DA31: 1 | DB31: 0 | DC31: 0 | DD31: NA | DE31: 0 | DF31: NA | DG31: 0 | DH31: NA | DI31: 0 | DJ31: NA | DK31: 0 | DL31: NA | DM31: 0 | DN31: NA | DO31: 0 | DP31: NA
A32: 3 | B32: herzerholung.de | C32: 4 | D32: 0 | E32: 2 | F32: 1 | G32: 3 | H32: 0 | I32: 1 | J32: 1 | K32: 1 | L32: 1 | M32: 1 | N32: 1 | O32: 1 | P32: 0 | Q32: 0 | R32: 0 | S32: 0 | T32: 0 | U32: 1 | V32: 2 | W32: 1 | X32: 2 | Y32: 1 | Z32: 1 | AA32: 0 | AB32: NA | AC32: 1 | AD32: 2 | AE32: 0 | AF32: NA | AG32: 1 | AH32: 0 | AI32: 0 | AJ32: NA | AK32: 0 | AL32: NA | AM32: 0 | AN32: NA | AO32: 0 | AP32: NA | AQ32: 0 | AR32: NA | AS32: 0 | AT32: NA | AU32: 0 | AV32: NA | AW32: 0 | AX32: NA | AY32: 0 | AZ32: NA | BA32: 0 | BB32: NA | BC32: 0 | BD32: NA | BE32: 1 | BF32: 1 | BG32: 1 | BH32: 1 | BI32: 1 | BJ32: 1 | BK32: 1 | BL32: 2 | BM32: 1 | BN32: 0 | BO32: 1 | BP32: 1 | BQ32: 0 | BR32: NA | BS32: 1 | BT32: 0 | BU32: 1 | BV32: 1 | BW32: 1 | BX32: 0 | BY32: 0 | BZ32: NA | CA32: 0 | CB32: NA | CC32: 1 | CD32: 1 | CE32: 1 | CF32: 1 | CG32: 0 | CH32: NA | CI32: 1 | CJ32: 2 | CK32: 1 | CL32: 2 | CM32: 1 | CN32: 0 | CO32: 1 | CP32: 1 | CQ32: 0 | CR32: NA | CS32: 1 | CT32: 0 | CU32: 0 | CV32: NA | CW32: 0 | CX32: NA | CY32: 0 | CZ32: NA | DA32: 1 | DB32: 0 | DC32: 0 | DD32: NA | DE32: 1 | DF32: 0 | DG32: 1 | DH32: 1 | DI32: 0 | DJ32: NA | DK32: 0 | DL32: NA | DM32: 0 | DN32: NA | DO32: 0 | DP32: NA
A33: 4 | B33: herzstiftung.de | C33: 5 | D33: 0 | E33: 0 | F33: 1 | G33: 3 | H33: 0 | I33: 1 | J33: 1 | K33: 1 | L33: 1 | M33: 1 | N33: 1 | O33: 1 | P33: 0 | Q33: 0 | R33: 0 | S33: 0 | T33: 0 | U33: 1 | V33: 1 | W33: 1 | X33: 2 | Y33: 1 | Z33: 2 | AA33: 1 | AB33: 2 | AC33: 1 | AD33: 2 | AE33: 1 | AF33: 2 | AG33: 1 | AH33: 1 | AI33: 0 | AJ33: NA | AK33: 1 | AL33: 0 | AM33: 1 | AN33: 1 | AO33: 0 | AP33: NA | AQ33: 0 | AR33: NA | AS33: 0 | AT33: NA | AU33: 0 | AV33: NA | AW33: 0 | AX33: NA | AY33: 0 | AZ33: NA | BA33: 0 | BB33: NA | BC33: 0 | BD33: NA | BE33: 1 | BF33: 1 | BG33: 1 | BH33: 1 | BI33: 1 | BJ33: 1 | BK33: 1 | BL33: 2 | BM33: 1 | BN33: 1 | BO33: 1 | BP33: 2 | BQ33: 0 | BR33: NA | BS33: 1 | BT33: 1 | BU33: 1 | BV33: 2 | BW33: 0 | BX33: NA | BY33: 0 | BZ33: NA | CA33: 0 | CB33: NA | CC33: 0 | CD33: NA | CE33: 1 | CF33: 1 | CG33: 1 | CH33: 2 | CI33: 1 | CJ33: 2 | CK33: 1 | CL33: 2 | CM33: 1 | CN33: 1 | CO33: 0 | CP33: NA | CQ33: 1 | CR33: 2 | CS33: 1 | CT33: 1 | CU33: 0 | CV33: NA | CW33: 0 | CX33: NA | CY33: 0 | CZ33: NA | DA33: 1 | DB33: 0 | DC33: 0 | DD33: NA | DE33: 0 | DF33: NA | DG33: 0 | DH33: NA | DI33: 0 | DJ33: NA | DK33: 0 | DL33: NA | DM33: 0 | DN33: NA | DO33: 0 | DP33: NA
A34: 5 | B34: herzbewusst.de | C34: 6 | D34: 0 | E34: 2 | F34: 0 | G34: 1 | H34: 0 | I34: 1 | J34: 1 | K34: 0 | L34: 1 | M34: 1 | N34: 1 | O34: 1 | P34: 0 | Q34: 0 | R34: 0 | S34: 0 | T34: 0 | U34: 1 | V34: 2 | W34: 1 | X34: 0 | Y34: 1 | Z34: 0 | AA34: 1 | AB34: 2 | AC34: 1 | AD34: 2 | AE34: 0 | AF34: NA | AG34: 1 | AH34: 1 | AI34: 0 | AJ34: NA | AK34: 1 | AL34: 1 | AM34: 1 | AN34: 1 | AO34: 0 | AP34: NA | AQ34: 0 | AR34: NA | AS34: 0 | AT34: NA | AU34: 0 | AV34: NA | AW34: 0 | AX34: NA | AY34: 0 | AZ34: NA | BA34: 0 | BB34: NA | BC34: 0 | BD34: NA | BE34: 1 | BF34: 1 | BG34: 1 | BH34: 1 | BI34: 1 | BJ34: 1 | BK34: 1 | BL34: 2 | BM34: 1 | BN34: 2 | BO34: 0 | BP34: NA | BQ34: 0 | BR34: NA | BS34: 1 | BT34: 0 | BU34: 1 | BV34: 0 | BW34: 0 | BX34: NA | BY34: 0 | BZ34: NA | CA34: 0 | CB34: NA | CC34: 0 | CD34: NA | CE34: 1 | CF34: 0 | CG34: 0 | CH34: NA | CI34: 0 | CJ34: NA | CK34: 1 | CL34: 1 | CM34: 1 | CN34: 0 | CO34: 0 | CP34: NA | CQ34: 1 | CR34: 2 | CS34: 1 | CT34: 2 | CU34: 0 | CV34: NA | CW34: 0 | CX34: NA | CY34: 0 | CZ34: NA | DA34: 1 | DB34: 0 | DC34: 0 | DD34: NA | DE34: 0 | DF34: NA | DG34: 0 | DH34: NA | DI34: 0 | DJ34: NA | DK34: 0 | DL34: NA | DM34: 0 | DN34: NA | DO34: 0 | DP34: NA
A35: 6 | B35: devicemed.de | C35: 7 | D35: 1 | E35: 2 | F35: 0 | G35: 2 | H35: 0 | I35: 1 | J35: 1 | K35: 0 | L35: 0 | M35: 0 | N35: 1 | O35: 1 | P35: 1 | Q35: 0 | R35: 1 | S35: 0 | T35: 0 | U35: 1 | V35: 2 | W35: 1 | X35: 1 | Y35: 1 | Z35: 1 | AA35: 1 | AB35: 2 | AC35: 1 | AD35: 2 | AE35: 1 | AF35: 2 | AG35: 1 | AH35: 0 | AI35: 0 | AJ35: NA | AK35: 0 | AL35: NA | AM35: 1 | AN35: 1 | AO35: 0 | AP35: NA | AQ35: 0 | AR35: NA | AS35: 0 | AT35: NA | AU35: 0 | AV35: NA | AW35: 0 | AX35: NA | AY35: 0 | AZ35: NA | BA35: 0 | BB35: NA | BC35: 0 | BD35: NA | BE35: 1 | BF35: 1 | BG35: 1 | BH35: 1 | BI35: 0 | BJ35: NA | BK35: 0 | BL35: NA | BM35: 1 | BN35: 1 | BO35: 0 | BP35: NA | BQ35: 0 | BR35: NA | BS35: 0 | BT35: NA | BU35: 1 | BV35: 0 | BW35: 0 | BX35: NA | BY35: 0 | BZ35: NA | CA35: 0 | CB35: NA | CC35: 0 | CD35: NA | CE35: 1 | CF35: 1 | CG35: 0 | CH35: NA | CI35: 0 | CJ35: NA | CK35: 0 | CL35: NA | CM35: 1 | CN35: 2 | CO35: 0 | CP35: NA | CQ35: 1 | CR35: 0 | CS35: 0 | CT35: NA | CU35: 0 | CV35: NA | CW35: 0 | CX35: NA | CY35: 0 | CZ35: NA | DA35: 1 | DB35: 0 | DC35: 0 | DD35: NA | DE35: 0 | DF35: NA | DG35: 0 | DH35: NA | DI35: 0 | DJ35: NA | DK35: 0 | DL35: NA | DM35: 0 | DN35: NA | DO35: 0 | DP35: NA
A36: 7 | B36: patienten-information.de | C36: 8 | D36: 1 | E36: 0 | F36: 0 | G36: 1 | H36: 0 | I36: 1 | J36: 1 | K36: 1 | L36: 1 | M36: 1 | N36: 1 | O36: 1 | P36: 0 | Q36: 0 | R36: 1 | S36: 0 | T36: 0 | U36: 1 | V36: 1 | W36: 1 | X36: 2 | Y36: 1 | Z36: 1 | AA36: 0 | AB36: NA | AC36: 0 | AD36: NA | AE36: 0 | AF36: NA | AG36: 1 | AH36: 0 | AI36: 0 | AJ36: NA | AK36: 0 | AL36: NA | AM36: 1 | AN36: 0 | AO36: 0 | AP36: NA | AQ36: 0 | AR36: NA | AS36: 0 | AT36: NA | AU36: 0 | AV36: NA | AW36: 0 | AX36: NA | AY36: 0 | AZ36: NA | BA36: 0 | BB36: NA | BC36: 0 | BD36: NA | BE36: 0 | BF36: NA | BG36: 1 | BH36: 0 | BI36: 0 | BJ36: NA | BK36: 1 | BL36: 0 | BM36: 1 | BN36: 0 | BO36: 0 | BP36: NA | BQ36: 0 | BR36: NA | BS36: 1 | BT36: 0 | BU36: 1 | BV36: 1 | BW36: 0 | BX36: NA | BY36: 0 | BZ36: NA | CA36: 0 | CB36: NA | CC36: 0 | CD36: NA | CE36: 1 | CF36: 1 | CG36: 0 | CH36: NA | CI36: 0 | CJ36: NA | CK36: 1 | CL36: 1 | CM36: 0 | CN36: NA | CO36: 0 | CP36: NA | CQ36: 1 | CR36: 0 | CS36: 1 | CT36: 2 | CU36: 0 | CV36: NA | CW36: 0 | CX36: NA | CY36: 0 | CZ36: NA | DA36: 1 | DB36: 1 | DC36: 0 | DD36: NA | DE36: 1 | DF36: 0 | DG36: 1 | DH36: 1 | DI36: 0 | DJ36: NA | DK36: 0 | DL36: NA | DM36: 0 | DN36: NA | DO36: 0 | DP36: NA
A37: 8 | B37: cardio-guide.com | C37: 10 | D37: 0 | E37: 2 | F37: 0 | G37: 1 | H37: 0 | I37: 1 | J37: 1 | K37: 1 | L37: 0 | M37: 0 | N37: 1 | O37: 1 | P37: 1 | Q37: 0 | R37: 0 | S37: 0 | T37: 0 | U37: 1 | V37: 2 | W37: 1 | X37: 1 | Y37: 1 | Z37: 1 | AA37: 1 | AB37: 2 | AC37: 1 | AD37: 1 | AE37: 0 | AF37: NA | AG37: 0 | AH37: NA | AI37: 0 | AJ37: NA | AK37: 0 | AL37: NA | AM37: 0 | AN37: NA | AO37: 0 | AP37: NA | AQ37: 0 | AR37: NA | AS37: 0 | AT37: NA | AU37: 0 | AV37: NA | AW37: 0 | AX37: NA | AY37: 0 | AZ37: NA | BA37: 0 | BB37: NA | BC37: 0 | BD37: NA | BE37: 1 | BF37: 1 | BG37: 1 | BH37: 1 | BI37: 1 | BJ37: 1 | BK37: 1 | BL37: 1 | BM37: 1 | BN37: 1 | BO37: 1 | BP37: 0 | BQ37: 0 | BR37: NA | BS37: 1 | BT37: 1 | BU37: 1 | BV37: 0 | BW37: 1 | BX37: 1 | BY37: 0 | BZ37: NA | CA37: 0 | CB37: NA | CC37: 1 | CD37: 0 | CE37: 1 | CF37: 1 | CG37: 1 | CH37: 1 | CI37: 0 | CJ37: NA | CK37: 1 | CL37: 1 | CM37: 1 | CN37: 1 | CO37: 0 | CP37: NA | CQ37: 0 | CR37: NA | CS37: 1 | CT37: 2 | CU37: 0 | CV37: NA | CW37: 0 | CX37: NA | CY37: 0 | CZ37: NA | DA37: 1 | DB37: 1 | DC37: 1 | DD37: 0 | DE37: 0 | DF37: NA | DG37: 0 | DH37: NA | DI37: 0 | DJ37: NA | DK37: 0 | DL37: NA | DM37: 0 | DN37: NA | DO37: 0 | DP37: NA
A38: 9 | B38: apotheken-umschau.de | C38: 11 | D38: 0 | E38: 2 | F38: 0 | G38: 1 | H38: 0 | I38: 1 | J38: 1 | K38: 1 | L38: 1 | M38: 1 | N38: 1 | O38: 1 | P38: 1 | Q38: 0 | R38: 0 | S38: 1 | T38: 0 | U38: 1 | V38: 2 | W38: 0 | X38: NA | Y38: 1 | Z38: 0 | AA38: 1 | AB38: 2 | AC38: 1 | AD38: 2 | AE38: 1 | AF38: 1 | AG38: 0 | AH38: NA | AI38: 0 | AJ38: NA | AK38: 0 | AL38: NA | AM38: 0 | AN38: NA | AO38: 0 | AP38: NA | AQ38: 0 | AR38: NA | AS38: 0 | AT38: NA | AU38: 0 | AV38: NA | AW38: 0 | AX38: NA | AY38: 0 | AZ38: NA | BA38: 0 | BB38: NA | BC38: 0 | BD38: NA | BE38: 1 | BF38: 1 | BG38: 1 | BH38: 1 | BI38: 1 | BJ38: 0 | BK38: 0 | BL38: NA | BM38: 1 | BN38: 1 | BO38: 1 | BP38: 1 | BQ38: 0 | BR38: NA | BS38: 0 | BT38: NA | BU38: 1 | BV38: 0 | BW38: 0 | BX38: NA | BY38: 0 | BZ38: NA | CA38: 0 | CB38: NA | CC38: 0 | CD38: NA | CE38: 0 | CF38: NA | CG38: 0 | CH38: NA | CI38: 0 | CJ38: NA | CK38: 1 | CL38: 1 | CM38: 1 | CN38: 0 | CO38: 1 | CP38: 0 | CQ38: 0 | CR38: NA | CS38: 0 | CT38: NA | CU38: 0 | CV38: NA | CW38: 0 | CX38: NA | CY38: 0 | CZ38: NA | DA38: 1 | DB38: 0 | DC38: 0 | DD38: NA | DE38: 0 | DF38: NA | DG38: 0 | DH38: NA | DI38: 0 | DJ38: NA | DK38: 0 | DL38: NA | DM38: 0 | DN38: NA | DO38: 0 | DP38: NA
A39: 10 | B39: cardiosecur.com | C39: 12 | D39: 0 | E39: 3 | F39: 1 | G39: 3 | H39: 0 | I39: 1 | J39: 1 | K39: 0 | L39: 1 | M39: 0 | N39: 1 | O39: 1 | P39: 0 | Q39: 0 | R39: 0 | S39: 0 | T39: 0 | U39: 1 | V39: 2 | W39: 0 | X39: NA | Y39: 1 | Z39: 0 | AA39: 1 | AB39: 1 | AC39: 1 | AD39: 2 | AE39: 1 | AF39: 0 | AG39: 1 | AH39: 0 | AI39: 0 | AJ39: NA | AK39: 0 | AL39: NA | AM39: 1 | AN39: 1 | AO39: 0 | AP39: NA | AQ39: 0 | AR39: NA | AS39: 0 | AT39: NA | AU39: 0 | AV39: NA | AW39: 0 | AX39: NA | AY39: 0 | AZ39: NA | BA39: 0 | BB39: NA | BC39: 0 | BD39: NA | BE39: 0 | BF39: NA | BG39: 1 | BH39: 1 | BI39: 1 | BJ39: 0 | BK39: 0 | BL39: NA | BM39: 1 | BN39: 1 | BO39: 1 | BP39: 0 | BQ39: 0 | BR39: NA | BS39: 1 | BT39: 0 | BU39: 1 | BV39: 1 | BW39: 0 | BX39: NA | BY39: 0 | BZ39: NA | CA39: 0 | CB39: NA | CC39: 0 | CD39: NA | CE39: 1 | CF39: 1 | CG39: 0 | CH39: NA | CI39: 0 | CJ39: NA | CK39: 1 | CL39: 1 | CM39: 0 | CN39: NA | CO39: 0 | CP39: NA | CQ39: 0 | CR39: NA | CS39: 1 | CT39: 2 | CU39: 0 | CV39: NA | CW39: 0 | CX39: NA | CY39: 0 | CZ39: NA | DA39: 1 | DB39: 0 | DC39: 0 | DD39: NA | DE39: 0 | DF39: NA | DG39: 0 | DH39: NA | DI39: 0 | DJ39: NA | DK39: 0 | DL39: NA | DM39: 0 | DN39: NA | DO39: 0 | DP39: NA
A40: 11 | B40: kardiologie-bremen.com | C40: 13 | D40: 0 | E40: 2 | F40: 1 | G40: 3 | H40: 0 | I40: 1 | J40: 1 | K40: 0 | L40: 0 | M40: 0 | N40: 1 | O40: 1 | P40: 1 | Q40: 0 | R40: 0 | S40: 0 | T40: 0 | U40: 1 | V40: 1 | W40: 0 | X40: NA | Y40: 0 | Z40: NA | AA40: 1 | AB40: 1 | AC40: 1 | AD40: 2 | AE40: 1 | AF40: 0 | AG40: 0 | AH40: NA | AI40: 0 | AJ40: NA | AK40: 0 | AL40: NA | AM40: 0 | AN40: NA | AO40: 0 | AP40: NA | AQ40: 0 | AR40: NA | AS40: 0 | AT40: NA | AU40: 0 | AV40: NA | AW40: 0 | AX40: NA | AY40: 0 | AZ40: NA | BA40: 0 | BB40: NA | BC40: 0 | BD40: NA | BE40: 1 | BF40: 0 | BG40: 1 | BH40: 1 | BI40: 1 | BJ40: 0 | BK40: 1 | BL40: 0 | BM40: 1 | BN40: 1 | BO40: 1 | BP40: 1 | BQ40: 0 | BR40: NA | BS40: 1 | BT40: 0 | BU40: 1 | BV40: 0 | BW40: 0 | BX40: NA | BY40: 0 | BZ40: NA | CA40: 0 | CB40: NA | CC40: 1 | CD40: 1 | CE40: 0 | CF40: NA | CG40: 0 | CH40: NA | CI40: 0 | CJ40: NA | CK40: 0 | CL40: NA | CM40: 0 | CN40: NA | CO40: 0 | CP40: NA | CQ40: 0 | CR40: NA | CS40: 0 | CT40: NA | CU40: 0 | CV40: NA | CW40: 0 | CX40: NA | CY40: 0 | CZ40: NA | DA40: 0 | DB40: NA | DC40: 0 | DD40: NA | DE40: 0 | DF40: NA | DG40: 0 | DH40: NA | DI40: 0 | DJ40: NA | DK40: 0 | DL40: NA | DM40: 0 | DN40: NA | DO40: 0 | DP40: NA
A41: 12 | B41: ndr.de | C41: 14 | D41: 1 | E41: 6 | F41: 0 | G41: 2 | H41: 2 | I41: 1 | J41: 0 | K41: 0 | L41: 0 | M41: 0 | N41: 1 | O41: 1 | P41: 1 | Q41: 0 | R41: 1 | S41: 0 | T41: 0 | U41: 1 | V41: 1 | W41: 1 | X41: 1 | Y41: 1 | Z41: 1 | AA41: 1 | AB41: 2 | AC41: 1 | AD41: 1 | AE41: 0 | AF41: NA | AG41: 1 | AH41: 2 | AI41: 0 | AJ41: NA | AK41: 0 | AL41: NA | AM41: 1 | AN41: 0 | AO41: 0 | AP41: NA | AQ41: 0 | AR41: NA | AS41: 0 | AT41: NA | AU41: 0 | AV41: NA | AW41: 0 | AX41: NA | AY41: 0 | AZ41: NA | BA41: 0 | BB41: NA | BC41: 0 | BD41: NA | BE41: 0 | BF41: NA | BG41: 1 | BH41: 1 | BI41: 1 | BJ41: 0 | BK41: 1 | BL41: 0 | BM41: 1 | BN41: 0 | BO41: 0 | BP41: NA | BQ41: 0 | BR41: NA | BS41: 0 | BT41: NA | BU41: 1 | BV41: 1 | BW41: 0 | BX41: NA | BY41: 0 | BZ41: NA | CA41: 0 | CB41: NA | CC41: 0 | CD41: NA | CE41: 1 | CF41: 2 | CG41: 0 | CH41: NA | CI41: 0 | CJ41: NA | CK41: 0 | CL41: NA | CM41: 0 | CN41: NA | CO41: 0 | CP41: NA | CQ41: 0 | CR41: NA | CS41: 0 | CT41: NA | CU41: 0 | CV41: NA | CW41: 0 | CX41: NA | CY41: 0 | CZ41: NA | DA41: 1 | DB41: 2 | DC41: 1 | DD41: 1 | DE41: 0 | DF41: NA | DG41: 1 | DH41: 1 | DI41: 1 | DJ41: 1 | DK41: 0 | DL41: NA | DM41: 0 | DN41: NA | DO41: 0 | DP41: NA
A42: 13 | B42: cardio-centrum.com | C42: 15 | D42: 0 | E42: 1 | F42: 1 | G42: 3 | H42: 0 | I42: 1 | J42: 1 | K42: 0 | L42: 0 | M42: 0 | N42: 1 | O42: 1 | P42: 0 | Q42: 0 | R42: 0 | S42: 0 | T42: 0 | U42: 1 | V42: 1 | W42: 0 | X42: NA | Y42: 0 | Z42: NA | AA42: 1 | AB42: 2 | AC42: 1 | AD42: 1 | AE42: 1 | AF42: 0 | AG42: 1 | AH42: 0 | AI42: 0 | AJ42: NA | AK42: 0 | AL42: NA | AM42: 0 | AN42: NA | AO42: 0 | AP42: NA | AQ42: 0 | AR42: NA | AS42: 1 | AT42: 1 | AU42: 0 | AV42: NA | AW42: 0 | AX42: NA | AY42: 0 | AZ42: NA | BA42: 0 | BB42: NA | BC42: 0 | BD42: NA | BE42: 0 | BF42: NA | BG42: 1 | BH42: 1 | BI42: 0 | BJ42: NA | BK42: 1 | BL42: 0 | BM42: 1 | BN42: 0 | BO42: 0 | BP42: NA | BQ42: 0 | BR42: NA | BS42: 1 | BT42: 0 | BU42: 0 | BV42: NA | BW42: 1 | BX42: 1 | BY42: 0 | BZ42: NA | CA42: 0 | CB42: NA | CC42: 0 | CD42: NA | CE42: 1 | CF42: 2 | CG42: 0 | CH42: NA | CI42: 0 | CJ42: NA | CK42: 0 | CL42: NA | CM42: 0 | CN42: NA | CO42: 0 | CP42: NA | CQ42: 0 | CR42: NA | CS42: 1 | CT42: 2 | CU42: 0 | CV42: NA | CW42: 0 | CX42: NA | CY42: 0 | CZ42: NA | DA42: 0 | DB42: NA | DC42: 0 | DD42: NA | DE42: 0 | DF42: NA | DG42: 0 | DH42: NA | DI42: 0 | DJ42: NA | DK42: 0 | DL42: NA | DM42: 0 | DN42: NA | DO42: 0 | DP42: NA
A43: 14 | B43: kardionet.de | C43: 20 | D43: 0 | E43: 2 | F43: 0 | G43: 1 | H43: 0 | I43: 1 | J43: 1 | K43: 1 | L43: 0 | M43: 0 | N43: 1 | O43: 1 | P43: 1 | Q43: 0 | R43: 0 | S43: 1 | T43: 0 | U43: 1 | V43: 2 | W43: 0 | X43: NA | Y43: 0 | Z43: NA | AA43: 0 | AB43: NA | AC43: 1 | AD43: 2 | AE43: 1 | AF43: 1 | AG43: 1 | AH43: 1 | AI43: 0 | AJ43: NA | AK43: 0 | AL43: NA | AM43: 0 | AN43: NA | AO43: 0 | AP43: NA | AQ43: 0 | AR43: NA | AS43: 0 | AT43: NA | AU43: 0 | AV43: NA | AW43: 0 | AX43: NA | AY43: 0 | AZ43: NA | BA43: 0 | BB43: NA | BC43: 0 | BD43: NA | BE43: 0 | BF43: NA | BG43: 1 | BH43: 1 | BI43: 0 | BJ43: NA | BK43: 1 | BL43: 0 | BM43: 1 | BN43: 1 | BO43: 1 | BP43: 0 | BQ43: 0 | BR43: NA | BS43: 0 | BT43: NA | BU43: 1 | BV43: 1 | BW43: 0 | BX43: NA | BY43: 0 | BZ43: NA | CA43: 0 | CB43: NA | CC43: 0 | CD43: NA | CE43: 1 | CF43: 2 | CG43: 0 | CH43: NA | CI43: 0 | CJ43: NA | CK43: 0 | CL43: NA | CM43: 0 | CN43: NA | CO43: 0 | CP43: NA | CQ43: 0 | CR43: NA | CS43: 0 | CT43: NA | CU43: 0 | CV43: NA | CW43: 0 | CX43: NA | CY43: 0 | CZ43: NA | DA43: 0 | DB43: NA | DC43: 0 | DD43: NA | DE43: 0 | DF43: NA | DG43: 0 | DH43: NA | DI43: 0 | DJ43: NA | DK43: 0 | DL43: NA | DM43: 0 | DN43: NA | DO43: 0 | DP43: NA
A44: 15 | B44: netdoktor.at | C44: 21 | D44: 1 | E44: 2 | F44: 0 | G44: 2 | H44: 0 | I44: 1 | J44: 1 | K44: 0 | L44: 1 | M44: 1 | N44: 1 | O44: 1 | P44: 1 | Q44: 1 | R44: 1 | S44: 0 | T44: 0 | U44: 1 | V44: 2 | W44: 1 | X44: 1 | Y44: 1 | Z44: 0 | AA44: 1 | AB44: 2 | AC44: 1 | AD44: 2 | AE44: 1 | AF44: 1 | AG44: 1 | AH44: 0 | AI44: 1 | AJ44: 0 | AK44: 1 | AL44: 2 | AM44: 1 | AN44: 2 | AO44: 0 | AP44: NA | AQ44: 0 | AR44: NA | AS44: 1 | AT44: 0 | AU44: 0 | AV44: NA | AW44: 0 | AX44: NA | AY44: 1 | AZ44: 2 | BA44: 0 | BB44: NA | BC44: 1 | BD44: 0 | BE44: 1 | BF44: 0 | BG44: 1 | BH44: 1 | BI44: 1 | BJ44: 1 | BK44: 1 | BL44: 2 | BM44: 1 | BN44: 1 | BO44: 1 | BP44: 0 | BQ44: 0 | BR44: NA | BS44: 1 | BT44: 1 | BU44: 1 | BV44: 1 | BW44: 0 | BX44: NA | BY44: 0 | BZ44: NA | CA44: 0 | CB44: NA | CC44: 1 | CD44: 0 | CE44: 1 | CF44: 1 | CG44: 0 | CH44: NA | CI44: 1 | CJ44: 2 | CK44: 1 | CL44: 2 | CM44: 1 | CN44: 2 | CO44: 0 | CP44: NA | CQ44: 1 | CR44: 1 | CS44: 0 | CT44: NA | CU44: 0 | CV44: NA | CW44: 0 | CX44: NA | CY44: 0 | CZ44: NA | DA44: 1 | DB44: 1 | DC44: 1 | DD44: 0 | DE44: 1 | DF44: 0 | DG44: 0 | DH44: NA | DI44: 0 | DJ44: NA | DK44: 0 | DL44: NA | DM44: 0 | DN44: NA | DO44: 0 | DP44: NA
A45: 16 | B45: lakumed.de | C45: 22 | D45: 1 | E45: 1 | F45: 1 | G45: 3 | H45: 0 | I45: 1 | J45: 1 | K45: 1 | L45: 0 | M45: 0 | N45: 1 | O45: 1 | P45: 1 | Q45: 0 | R45: 0 | S45: 0 | T45: 0 | U45: 1 | V45: 0 | W45: 1 | X45: 0 | Y45: 1 | Z45: 2 | AA45: 1 | AB45: 0 | AC45: 1 | AD45: 2 | AE45: 1 | AF45: 0 | AG45: 0 | AH45: NA | AI45: 0 | AJ45: NA | AK45: 0 | AL45: NA | AM45: 1 | AN45: 1 | AO45: 0 | AP45: NA | AQ45: 0 | AR45: NA | AS45: 0 | AT45: NA | AU45: 0 | AV45: NA | AW45: 0 | AX45: NA | AY45: 0 | AZ45: NA | BA45: 0 | BB45: NA | BC45: 0 | BD45: NA | BE45: 1 | BF45: 1 | BG45: 1 | BH45: 0 | BI45: 1 | BJ45: 0 | BK45: 1 | BL45: 0 | BM45: 1 | BN45: 0 | BO45: 0 | BP45: NA | BQ45: 0 | BR45: NA | BS45: 0 | BT45: NA | BU45: 0 | BV45: NA | BW45: 0 | BX45: NA | BY45: 0 | BZ45: NA | CA45: 0 | CB45: NA | CC45: 0 | CD45: NA | CE45: 0 | CF45: NA | CG45: 0 | CH45: NA | CI45: 0 | CJ45: NA | CK45: 0 | CL45: NA | CM45: 0 | CN45: NA | CO45: 0 | CP45: NA | CQ45: 0 | CR45: NA | CS45: 0 | CT45: NA | CU45: 0 | CV45: NA | CW45: 0 | CX45: NA | CY45: 0 | CZ45: NA | DA45: 1 | DB45: 2 | DC45: 0 | DD45: NA | DE45: 0 | DF45: NA | DG45: 0 | DH45: NA | DI45: 0 | DJ45: NA | DK45: 0 | DL45: NA | DM45: 0 | DN45: NA | DO45: 0 | DP45: NA
A46: 17 | B46: cardio-bielefeld.de | C46: 23 | D46: 0 | E46: 1 | F46: 1 | G46: 3 | H46: 0 | I46: 1 | J46: 0 | K46: 0 | L46: 0 | M46: 0 | N46: 1 | O46: 1 | P46: 0 | Q46: 0 | R46: 0 | S46: 0 | T46: 0 | U46: 1 | V46: 0 | W46: 0 | X46: NA | Y46: 0 | Z46: NA | AA46: 0 | AB46: NA | AC46: 1 | AD46: 2 | AE46: 0 | AF46: NA | AG46: 0 | AH46: NA | AI46: 0 | AJ46: NA | AK46: 0 | AL46: NA | AM46: 0 | AN46: NA | AO46: 0 | AP46: NA | AQ46: 0 | AR46: NA | AS46: 0 | AT46: NA | AU46: 0 | AV46: NA | AW46: 0 | AX46: NA | AY46: 0 | AZ46: NA | BA46: 0 | BB46: NA | BC46: 0 | BD46: NA | BE46: 0 | BF46: NA | BG46: 0 | BH46: NA | BI46: 0 | BJ46: NA | BK46: 0 | BL46: NA | BM46: 1 | BN46: 0 | BO46: 0 | BP46: NA | BQ46: 0 | BR46: NA | BS46: 0 | BT46: NA | BU46: 1 | BV46: 1 | BW46: 0 | BX46: NA | BY46: 0 | BZ46: NA | CA46: 0 | CB46: NA | CC46: 0 | CD46: NA | CE46: 0 | CF46: NA | CG46: 0 | CH46: NA | CI46: 0 | CJ46: NA | CK46: 1 | CL46: 1 | CM46: 0 | CN46: NA | CO46: 0 | CP46: NA | CQ46: 1 | CR46: 1 | CS46: 0 | CT46: NA | CU46: 0 | CV46: NA | CW46: 0 | CX46: NA | CY46: 0 | CZ46: NA | DA46: 1 | DB46: 0 | DC46: 0 | DD46: NA | DE46: 0 | DF46: NA | DG46: 0 | DH46: NA | DI46: 0 | DJ46: NA | DK46: 0 | DL46: NA | DM46: 0 | DN46: NA | DO46: 0 | DP46: NA
A47: 18 | B47: theheart.de | C47: 24 | D47: 0 | E47: 4 | F47: 0 | G47: 1 | H47: 0 | I47: 1 | J47: 1 | K47: 1 | L47: 1 | M47: 1 | N47: 1 | O47: 1 | P47: 1 | Q47: 0 | R47: 0 | S47: 1 | T47: 0 | U47: 1 | V47: 1 | W47: 1 | X47: 2 | Y47: 1 | Z47: 1 | AA47: 1 | AB47: 2 | AC47: 1 | AD47: 2 | AE47: 1 | AF47: 1 | AG47: 1 | AH47: 1 | AI47: 0 | AJ47: NA | AK47: 0 | AL47: NA | AM47: 0 | AN47: NA | AO47: 0 | AP47: NA | AQ47: 0 | AR47: NA | AS47: 0 | AT47: NA | AU47: 0 | AV47: NA | AW47: 0 | AX47: NA | AY47: 0 | AZ47: NA | BA47: 0 | BB47: NA | BC47: 0 | BD47: NA | BE47: 0 | BF47: NA | BG47: 1 | BH47: 1 | BI47: 1 | BJ47: 0 | BK47: 1 | BL47: 1 | BM47: 1 | BN47: 1 | BO47: 0 | BP47: NA | BQ47: 0 | BR47: NA | BS47: 0 | BT47: NA | BU47: 1 | BV47: 2 | BW47: 0 | BX47: NA | BY47: 0 | BZ47: NA | CA47: 0 | CB47: NA | CC47: 0 | CD47: NA | CE47: 1 | CF47: 2 | CG47: 0 | CH47: NA | CI47: 0 | CJ47: NA | CK47: 1 | CL47: 1 | CM47: 0 | CN47: NA | CO47: 0 | CP47: NA | CQ47: 1 | CR47: 0 | CS47: 0 | CT47: NA | CU47: 0 | CV47: NA | CW47: 0 | CX47: NA | CY47: 0 | CZ47: NA | DA47: 1 | DB47: 0 | DC47: 1 | DD47: 2 | DE47: 1 | DF47: 2 | DG47: 1 | DH47: 1 | DI47: 0 | DJ47: NA | DK47: 0 | DL47: NA | DM47: 1 | DN47: 1 | DO47: 1 | DP47: 0
A48: 19 | B48: leading-medicine-guide.de | C48: 25 | D48: 1 | E48: 2 | F48: 1 | G48: 1 | H48: 0 | I48: 1 | J48: 1 | K48: 0 | L48: 1 | M48: 1 | N48: 1 | O48: 1 | P48: 1 | Q48: 0 | R48: 1 | S48: 0 | T48: 0 | U48: 1 | V48: 2 | W48: 1 | X48: 0 | Y48: 1 | Z48: 0 | AA48: 1 | AB48: 2 | AC48: 1 | AD48: 2 | AE48: 1 | AF48: 1 | AG48: 1 | AH48: 0 | AI48: 0 | AJ48: NA | AK48: 0 | AL48: NA | AM48: 0 | AN48: NA | AO48: 0 | AP48: NA | AQ48: 0 | AR48: NA | AS48: 0 | AT48: NA | AU48: 0 | AV48: NA | AW48: 0 | AX48: NA | AY48: 0 | AZ48: NA | BA48: 0 | BB48: NA | BC48: 0 | BD48: NA | BE48: 1 | BF48: 1 | BG48: 1 | BH48: 0 | BI48: 1 | BJ48: 0 | BK48: 1 | BL48: 1 | BM48: 1 | BN48: 0 | BO48: 1 | BP48: 0 | BQ48: 0 | BR48: NA | BS48: 0 | BT48: NA | BU48: 1 | BV48: 0 | BW48: 0 | BX48: NA | BY48: 0 | BZ48: NA | CA48: 0 | CB48: NA | CC48: 0 | CD48: NA | CE48: 0 | CF48: NA | CG48: 0 | CH48: NA | CI48: 0 | CJ48: NA | CK48: 1 | CL48: 1 | CM48: 1 | CN48: 0 | CO48: 0 | CP48: NA | CQ48: 0 | CR48: NA | CS48: 0 | CT48: NA | CU48: 0 | CV48: NA | CW48: 0 | CX48: NA | CY48: 0 | CZ48: NA | DA48: 0 | DB48: NA | DC48: 0 | DD48: NA | DE48: 0 | DF48: NA | DG48: 0 | DH48: NA | DI48: 0 | DJ48: NA | DK48: 0 | DL48: NA | DM48: 0 | DN48: NA | DO48: 0 | DP48: NA
A49: 20 | B49: hirslanden.ch | C49: 26 | D49: 1 | E49: 1 | F49: 1 | G49: 3 | H49: 0 | I49: 1 | J49: 1 | K49: 0 | L49: 0 | M49: 0 | N49: 1 | O49: 1 | P49: 1 | Q49: 0 | R49: 1 | S49: 0 | T49: 0 | U49: 1 | V49: 0 | W49: 1 | X49: 2 | Y49: 1 | Z49: 0 | AA49: 1 | AB49: 2 | AC49: 1 | AD49: 2 | AE49: 1 | AF49: 2 | AG49: 0 | AH49: NA | AI49: 0 | AJ49: NA | AK49: 0 | AL49: NA | AM49: 1 | AN49: 0 | AO49: 0 | AP49: NA | AQ49: 0 | AR49: NA | AS49: 0 | AT49: NA | AU49: 0 | AV49: NA | AW49: 0 | AX49: NA | AY49: 0 | AZ49: NA | BA49: 0 | BB49: NA | BC49: 0 | BD49: NA | BE49: 0 | BF49: NA | BG49: 0 | BH49: NA | BI49: 1 | BJ49: 0 | BK49: 0 | BL49: NA | BM49: 1 | BN49: 2 | BO49: 0 | BP49: NA | BQ49: 0 | BR49: NA | BS49: 0 | BT49: NA | BU49: 1 | BV49: 0 | BW49: 0 | BX49: NA | BY49: 0 | BZ49: NA | CA49: 0 | CB49: NA | CC49: 0 | CD49: NA | CE49: 1 | CF49: 0 | CG49: 0 | CH49: NA | CI49: 0 | CJ49: NA | CK49: 1 | CL49: 1 | CM49: 0 | CN49: NA | CO49: 0 | CP49: NA | CQ49: 0 | CR49: NA | CS49: 0 | CT49: NA | CU49: 0 | CV49: NA | CW49: 0 | CX49: NA | CY49: 0 | CZ49: NA | DA49: 0 | DB49: NA | DC49: 0 | DD49: NA | DE49: 0 | DF49: NA | DG49: 0 | DH49: NA | DI49: 0 | DJ49: NA | DK49: 0 | DL49: NA | DM49: 0 | DN49: NA | DO49: 0 | DP49: NA
A50: 21 | B50: swr.de | C50: 31 | D50: 1 | E50: 6 | F50: 0 | G50: 2 | H50: 2 | I50: 1 | J50: 0 | K50: 0 | L50: 0 | M50: 0 | N50: 1 | O50: 1 | P50: 1 | Q50: 0 | R50: 1 | S50: 1 | T50: 0 | U50: 1 | V50: 0 | W50: 0 | X50: NA | Y50: 0 | Z50: NA | AA50: 0 | AB50: NA | AC50: 0 | AD50: NA | AE50: 0 | AF50: NA | AG50: 0 | AH50: NA | AI50: 0 | AJ50: NA | AK50: 0 | AL50: NA | AM50: 0 | AN50: NA | AO50: 0 | AP50: NA | AQ50: 0 | AR50: NA | AS50: 0 | AT50: NA | AU50: 0 | AV50: NA | AW50: 0 | AX50: NA | AY50: 0 | AZ50: NA | BA50: 0 | BB50: NA | BC50: 0 | BD50: NA | BE50: 0 | BF50: NA | BG50: 1 | BH50: 0 | BI50: 1 | BJ50: 0 | BK50: 0 | BL50: NA | BM50: 0 | BN50: NA | BO50: 0 | BP50: NA | BQ50: 0 | BR50: NA | BS50: 0 | BT50: NA | BU50: 0 | BV50: NA | BW50: 0 | BX50: NA | BY50: 0 | BZ50: NA | CA50: 0 | CB50: NA | CC50: 0 | CD50: NA | CE50: 1 | CF50: 1 | CG50: 0 | CH50: NA | CI50: 0 | CJ50: NA | CK50: 0 | CL50: NA | CM50: 0 | CN50: NA | CO50: 0 | CP50: NA | CQ50: 0 | CR50: NA | CS50: 0 | CT50: NA | CU50: 0 | CV50: NA | CW50: 0 | CX50: NA | CY50: 0 | CZ50: NA | DA50: 1 | DB50: 2 | DC50: 0 | DD50: NA | DE50: 0 | DF50: NA | DG50: 0 | DH50: NA | DI50: 0 | DJ50: NA | DK50: 0 | DL50: NA | DM50: 0 | DN50: NA | DO50: 0 | DP50: NA
A51: 22 | B51: rotkreuzkliniken.de | C51: 34 | D51: 1 | E51: 1 | F51: 1 | G51: 3 | H51: 0 | I51: 1 | J51: 1 | K51: 1 | L51: 0 | M51: 0 | N51: 1 | O51: 1 | P51: 0 | Q51: 0 | R51: 0 | S51: 0 | T51: 0 | U51: 1 | V51: 1 | W51: 1 | X51: 2 | Y51: 1 | Z51: 0 | AA51: 0 | AB51: NA | AC51: 0 | AD51: NA | AE51: 0 | AF51: NA | AG51: 0 | AH51: NA | AI51: 0 | AJ51: NA | AK51: 0 | AL51: NA | AM51: 1 | AN51: 0 | AO51: 0 | AP51: NA | AQ51: 0 | AR51: NA | AS51: 0 | AT51: NA | AU51: 0 | AV51: NA | AW51: 0 | AX51: NA | AY51: 0 | AZ51: NA | BA51: 0 | BB51: NA | BC51: 0 | BD51: NA | BE51: 1 | BF51: 0 | BG51: 1 | BH51: 1 | BI51: 1 | BJ51: 1 | BK51: 1 | BL51: 0 | BM51: 1 | BN51: 1 | BO51: 1 | BP51: 1 | BQ51: 0 | BR51: NA | BS51: 0 | BT51: NA | BU51: 1 | BV51: 0 | BW51: 0 | BX51: NA | BY51: 1 | BZ51: 0 | CA51: 0 | CB51: NA | CC51: 0 | CD51: NA | CE51: 0 | CF51: NA | CG51: 0 | CH51: NA | CI51: 0 | CJ51: NA | CK51: 1 | CL51: 1 | CM51: 1 | CN51: 0 | CO51: 0 | CP51: NA | CQ51: 1 | CR51: 0 | CS51: 0 | CT51: NA | CU51: 0 | CV51: NA | CW51: 0 | CX51: NA | CY51: 0 | CZ51: NA | DA51: 0 | DB51: NA | DC51: 1 | DD51: 1 | DE51: 0 | DF51: NA | DG51: 0 | DH51: NA | DI51: 0 | DJ51: NA | DK51: 0 | DL51: NA | DM51: 0 | DN51: NA | DO51: 0 | DP51: NA
A52: 23 | B52: praxis-herz-gefaesse.de | C52: 35 | D52: 0 | E52: 1 | F52: 1 | G52: 3 | H52: 0 | I52: 1 | J52: 1 | K52: 1 | L52: 0 | M52: 0 | N52: 1 | O52: 1 | P52: 0 | Q52: 0 | R52: 0 | S52: 0 | T52: 0 | U52: 1 | V52: 1 | W52: 0 | X52: NA | Y52: 0 | Z52: NA | AA52: 1 | AB52: 2 | AC52: 1 | AD52: 1 | AE52: 0 | AF52: NA | AG52: 1 | AH52: 0 | AI52: 0 | AJ52: NA | AK52: 0 | AL52: NA | AM52: 0 | AN52: NA | AO52: 0 | AP52: NA | AQ52: 0 | AR52: NA | AS52: 0 | AT52: NA | AU52: 0 | AV52: NA | AW52: 0 | AX52: NA | AY52: 0 | AZ52: NA | BA52: 0 | BB52: NA | BC52: 0 | BD52: NA | BE52: 0 | BF52: NA | BG52: 1 | BH52: 1 | BI52: 0 | BJ52: NA | BK52: 1 | BL52: 1 | BM52: 1 | BN52: 0 | BO52: 1 | BP52: 0 | BQ52: 0 | BR52: NA | BS52: 1 | BT52: 0 | BU52: 1 | BV52: 0 | BW52: 0 | BX52: NA | BY52: 0 | BZ52: NA | CA52: 0 | CB52: NA | CC52: 1 | CD52: 0 | CE52: 0 | CF52: NA | CG52: 1 | CH52: 1 | CI52: 0 | CJ52: NA | CK52: 0 | CL52: NA | CM52: 0 | CN52: NA | CO52: 0 | CP52: NA | CQ52: 0 | CR52: NA | CS52: 0 | CT52: NA | CU52: 0 | CV52: NA | CW52: 0 | CX52: NA | CY52: 0 | CZ52: NA | DA52: 0 | DB52: NA | DC52: 0 | DD52: NA | DE52: 0 | DF52: NA | DG52: 0 | DH52: NA | DI52: 0 | DJ52: NA | DK52: 0 | DL52: NA | DM52: 0 | DN52: NA | DO52: 0 | DP52: NA
A53: 24 | B53: herzzentrum.immanuel.de | C53: 37 | D53: 0 | E53: 1 | F53: 1 | G53: 3 | H53: 0 | I53: 1 | J53: 1 | K53: 0 | L53: 1 | M53: 1 | N53: 1 | O53: 1 | P53: 0 | Q53: 1 | R53: 0 | S53: 0 | T53: 0 | U53: 1 | V53: 1 | W53: 1 | X53: 2 | Y53: 0 | Z53: NA | AA53: 1 | AB53: 2 | AC53: 1 | AD53: 0 | AE53: 0 | AF53: NA | AG53: 1 | AH53: 1 | AI53: 0 | AJ53: NA | AK53: 0 | AL53: NA | AM53: 0 | AN53: NA | AO53: 0 | AP53: NA | AQ53: 0 | AR53: NA | AS53: 0 | AT53: NA | AU53: 0 | AV53: NA | AW53: 0 | AX53: NA | AY53: 0 | AZ53: NA | BA53: 0 | BB53: NA | BC53: 1 | BD53: 0 | BE53: 1 | BF53: 1 | BG53: 1 | BH53: 1 | BI53: 0 | BJ53: NA | BK53: 0 | BL53: NA | BM53: 1 | BN53: 1 | BO53: 1 | BP53: 2 | BQ53: 0 | BR53: NA | BS53: 1 | BT53: 0 | BU53: 1 | BV53: 0 | BW53: 0 | BX53: NA | BY53: 0 | BZ53: NA | CA53: 0 | CB53: NA | CC53: 0 | CD53: NA | CE53: 1 | CF53: 0 | CG53: 0 | CH53: NA | CI53: 0 | CJ53: NA | CK53: 1 | CL53: 1 | CM53: 1 | CN53: 0 | CO53: 0 | CP53: NA | CQ53: 1 | CR53: 0 | CS53: 1 | CT53: 2 | CU53: 0 | CV53: NA | CW53: 0 | CX53: NA | CY53: 0 | CZ53: NA | DA53: 1 | DB53: 0 | DC53: 0 | DD53: NA | DE53: 0 | DF53: NA | DG53: 0 | DH53: NA | DI53: 0 | DJ53: NA | DK53: 0 | DL53: NA | DM53: 0 | DN53: NA | DO53: 0 | DP53: NA
A54: 25 | B54: aktion-meditech.de | C54: 39 | D54: 1 | E54: 0 | F54: 0 | G54: 2 | H54: 0 | I54: 1 | J54: 1 | K54: 0 | L54: 1 | M54: 1 | N54: 1 | O54: 1 | P54: 0 | Q54: 0 | R54: 1 | S54: 0 | T54: 0 | U54: 1 | V54: 1 | W54: 1 | X54: 2 | Y54: 1 | Z54: 0 | AA54: 1 | AB54: 1 | AC54: 1 | AD54: 2 | AE54: 0 | AF54: NA | AG54: 0 | AH54: NA | AI54: 0 | AJ54: NA | AK54: 0 | AL54: NA | AM54: 0 | AN54: NA | AO54: 0 | AP54: NA | AQ54: 0 | AR54: NA | AS54: 0 | AT54: NA | AU54: 0 | AV54: NA | AW54: 0 | AX54: NA | AY54: 0 | AZ54: NA | BA54: 0 | BB54: NA | BC54: 0 | BD54: NA | BE54: 0 | BF54: NA | BG54: 1 | BH54: 0 | BI54: 0 | BJ54: NA | BK54: 0 | BL54: NA | BM54: 0 | BN54: NA | BO54: 0 | BP54: NA | BQ54: 0 | BR54: NA | BS54: 0 | BT54: NA | BU54: 1 | BV54: 0 | BW54: 0 | BX54: NA | BY54: 0 | BZ54: NA | CA54: 0 | CB54: NA | CC54: 0 | CD54: NA | CE54: 0 | CF54: NA | CG54: 0 | CH54: NA | CI54: 0 | CJ54: NA | CK54: 1 | CL54: 1 | CM54: 0 | CN54: NA | CO54: 0 | CP54: NA | CQ54: 0 | CR54: NA | CS54: 0 | CT54: NA | CU54: 0 | CV54: NA | CW54: 0 | CX54: NA | CY54: 0 | CZ54: NA | DA54: 1 | DB54: 0 | DC54: 0 | DD54: NA | DE54: 0 | DF54: NA | DG54: 0 | DH54: NA | DI54: 0 | DJ54: NA | DK54: 0 | DL54: NA | DM54: 0 | DN54: NA | DO54: 0 | DP54: NA
A55: Hungarian language
A56: 1 | B56: www.webbeteg.hu | C56: 1 | D56: 1 | E56: 2 | F56: 0 | G56: 1 | H56: 0 | I56: 1 | J56: 1 | K56: 1 | L56: 1 | M56: 1 | N56: 1 | O56: 1 | P56: 1 | Q56: 0 | R56: 1 | S56: 1 | T56: 0 | U56: 1 | V56: 2 | W56: 1 | X56: 1 | Y56: 1 | Z56: 0 | AA56: 1 | AB56: 2 | AC56: 1 | AD56: 2 | AE56: 1 | AF56: 1 | AG56: 1 | AH56: 1 | AI56: 0 | AJ56: NA | AK56: 0 | AL56: NA | AM56: 1 | AN56: 0 | AO56: 0 | AP56: NA | AQ56: 0 | AR56: NA | AS56: 0 | AT56: NA | AU56: 0 | AV56: NA | AW56: 0 | AX56: NA | AY56: 0 | AZ56: NA | BA56: 0 | BB56: NA | BC56: 0 | BD56: NA | BE56: 0 | BF56: NA | BG56: 1 | BH56: 0 | BI56: 1 | BJ56: 0 | BK56: 1 | BL56: 1 | BM56: 1 | BN56: 1 | BO56: 0 | BP56: NA | BQ56: 0 | BR56: NA | BS56: 0 | BT56: NA | BU56: 1 | BV56: 0 | BW56: 0 | BX56: NA | BY56: 0 | BZ56: NA | CA56: 0 | CB56: NA | CC56: 0 | CD56: NA | CE56: 0 | CF56: NA | CG56: 0 | CH56: NA | CI56: 0 | CJ56: NA | CK56: 1 | CL56: 1 | CM56: 1 | CN56: 0 | CO56: 0 | CP56: NA | CQ56: 1 | CR56: 1 | CS56: 0 | CT56: NA | CU56: 0 | CV56: NA | CW56: 1 | CX56: 1 | CY56: 1 | CZ56: 2 | DA56: 1 | DB56: 0 | DC56: 0 | DD56: NA | DE56: 0 | DF56: NA | DG56: 0 | DH56: NA | DI56: 0 | DJ56: NA | DK56: 0 | DL56: NA | DM56: 0 | DN56: NA | DO56: 0 | DP56: NA
A57: 2 | B57: www.egeszsegkalauz.hu | C57: 2 | D57: 1 | E57: 2 | F57: 0 | G57: 1 | H57: 0 | I57: 1 | J57: 1 | K57: 1 | L57: 1 | M57: 0 | N57: 1 | O57: 1 | P57: 1 | Q57: 0 | R57: 1 | S57: 1 | T57: 0 | U57: 1 | V57: 2 | W57: 0 | X57: NA | Y57: 0 | Z57: NA | AA57: 1 | AB57: 1 | AC57: 0 | AD57: NA | AE57: 0 | AF57: NA | AG57: 0 | AH57: NA | AI57: 0 | AJ57: NA | AK57: 0 | AL57: NA | AM57: 0 | AN57: NA | AO57: 0 | AP57: NA | AQ57: 0 | AR57: NA | AS57: 0 | AT57: NA | AU57: 0 | AV57: NA | AW57: 0 | AX57: NA | AY57: 0 | AZ57: NA | BA57: 0 | BB57: NA | BC57: 0 | BD57: NA | BE57: 0 | BF57: NA | BG57: 0 | BH57: NA | BI57: 0 | BJ57: NA | BK57: 0 | BL57: NA | BM57: 1 | BN57: 0 | BO57: 0 | BP57: NA | BQ57: 0 | BR57: NA | BS57: 0 | BT57: NA | BU57: 1 | BV57: 1 | BW57: 0 | BX57: NA | BY57: 0 | BZ57: NA | CA57: 0 | CB57: NA | CC57: 1 | CD57: 0 | CE57: 1 | CF57: 2 | CG57: 0 | CH57: NA | CI57: 0 | CJ57: NA | CK57: 1 | CL57: 1 | CM57: 0 | CN57: NA | CO57: 0 | CP57: NA | CQ57: 1 | CR57: 0 | CS57: 0 | CT57: NA | CU57: 0 | CV57: NA | CW57: 0 | CX57: NA | CY57: 0 | CZ57: NA | DA57: 0 | DB57: NA | DC57: 0 | DD57: NA | DE57: 1 | DF57: 2 | DG57: 1 | DH57: 0 | DI57: 1 | DJ57: 2 | DK57: 0 | DL57: NA | DM57: 0 | DN57: NA | DO57: 0 | DP57: NA
A58: 3 | B58: www.hazipatika.com | C58: 3 | D58: 1 | E58: 2 | F58: 0 | G58: 1 | H58: 0 | I58: 1 | J58: 1 | K58: 1 | L58: 0 | M58: 0 | N58: 1 | O58: 1 | P58: 1 | Q58: 0 | R58: 1 | S58: 1 | T58: 0 | U58: 1 | V58: 2 | W58: 0 | X58: NA | Y58: 1 | Z58: 0 | AA58: 1 | AB58: 0 | AC58: 1 | AD58: 0 | AE58: 1 | AF58: 0 | AG58: 1 | AH58: 0 | AI58: 1 | AJ58: 1 | AK58: 0 | AL58: NA | AM58: 1 | AN58: 0 | AO58: 1 | AP58: 1 | AQ58: 0 | AR58: NA | AS58: 0 | AT58: NA | AU58: 0 | AV58: NA | AW58: 0 | AX58: NA | AY58: 0 | AZ58: NA | BA58: 0 | BB58: NA | BC58: 0 | BD58: NA | BE58: 0 | BF58: NA | BG58: 1 | BH58: 1 | BI58: 1 | BJ58: 0 | BK58: 1 | BL58: 0 | BM58: 1 | BN58: 2 | BO58: 1 | BP58: 1 | BQ58: 0 | BR58: NA | BS58: 1 | BT58: 0 | BU58: 1 | BV58: 1 | BW58: 0 | BX58: NA | BY58: 0 | BZ58: NA | CA58: 1 | CB58: 1 | CC58: 0 | CD58: NA | CE58: 1 | CF58: 1 | CG58: 0 | CH58: NA | CI58: 0 | CJ58: NA | CK58: 1 | CL58: 1 | CM58: 1 | CN58: 1 | CO58: 0 | CP58: NA | CQ58: 1 | CR58: 1 | CS58: 0 | CT58: NA | CU58: 0 | CV58: NA | CW58: 0 | CX58: NA | CY58: 0 | CZ58: NA | DA58: 0 | DB58: NA | DC58: 1 | DD58: 1 | DE58: 1 | DF58: 1 | DG58: 1 | DH58: 0 | DI58: 1 | DJ58: 0 | DK58: 0 | DL58: NA | DM58: 0 | DN58: NA | DO58: 0 | DP58: NA
A59: 4 | B59: www.kardiokozpont.hu | C59: 4 | D59: 0 | E59: 1 | F59: 1 | G59: 3 | H59: 0 | I59: 1 | J59: 0 | K59: 0 | L59: 0 | M59: 0 | N59: 1 | O59: 1 | P59: 1 | Q59: 0 | R59: 1 | S59: 1 | T59: 0 | U59: 1 | V59: 2 | W59: 1 | X59: 0 | Y59: 1 | Z59: 2 | AA59: 1 | AB59: 2 | AC59: 0 | AD59: NA | AE59: 1 | AF59: 0 | AG59: 1 | AH59: 0 | AI59: 0 | AJ59: NA | AK59: 0 | AL59: NA | AM59: 0 | AN59: NA | AO59: 0 | AP59: NA | AQ59: 0 | AR59: NA | AS59: 0 | AT59: NA | AU59: 0 | AV59: NA | AW59: 0 | AX59: NA | AY59: 0 | AZ59: NA | BA59: 0 | BB59: NA | BC59: 0 | BD59: NA | BE59: 0 | BF59: NA | BG59: 0 | BH59: NA | BI59: 0 | BJ59: NA | BK59: 0 | BL59: NA | BM59: 0 | BN59: NA | BO59: 0 | BP59: NA | BQ59: 0 | BR59: NA | BS59: 0 | BT59: NA | BU59: 1 | BV59: 1 | BW59: 0 | BX59: NA | BY59: 0 | BZ59: NA | CA59: 0 | CB59: NA | CC59: 1 | CD59: 0 | CE59: 1 | CF59: 1 | CG59: 0 | CH59: NA | CI59: 0 | CJ59: NA | CK59: 1 | CL59: 1 | CM59: 0 | CN59: NA | CO59: 0 | CP59: NA | CQ59: 1 | CR59: 2 | CS59: 0 | CT59: NA | CU59: 0 | CV59: NA | CW59: 0 | CX59: NA | CY59: 0 | CZ59: NA | DA59: 0 | DB59: NA | DC59: 0 | DD59: NA | DE59: 1 | DF59: 2 | DG59: 1 | DH59: 2 | DI59: 1 | DJ59: 1 | DK59: 0 | DL59: NA | DM59: 0 | DN59: NA | DO59: 0 | DP59: NA
A60: 5 | B60: www.gvmd.hu | C60: 9 | D60: 1 | E60: 4 | F60: 1 | G60: 4 | H60: 0 | I60: 1 | J60: 0 | K60: 0 | L60: 0 | M60: 0 | N60: 0 | O60: 1 | P60: 1 | Q60: 0 | R60: 1 | S60: 0 | T60: 0 | U60: 1 | V60: 2 | W60: 1 | X60: 2 | Y60: 1 | Z60: 1 | AA60: 1 | AB60: 1 | AC60: 1 | AD60: 1 | AE60: 0 | AF60: NA | AG60: 1 | AH60: 1 | AI60: 0 | AJ60: NA | AK60: 0 | AL60: NA | AM60: 1 | AN60: 1 | AO60: 0 | AP60: NA | AQ60: 1 | AR60: 1 | AS60: 0 | AT60: NA | AU60: 0 | AV60: NA | AW60: 0 | AX60: NA | AY60: 0 | AZ60: NA | BA60: 0 | BB60: NA | BC60: 1 | BD60: 1 | BE60: 1 | BF60: 0 | BG60: 1 | BH60: 2 | BI60: 1 | BJ60: 1 | BK60: 1 | BL60: 1 | BM60: 1 | BN60: 2 | BO60: 1 | BP60: 1 | BQ60: 0 | BR60: NA | BS60: 0 | BT60: NA | BU60: 1 | BV60: 1 | BW60: 0 | BX60: NA | BY60: 0 | BZ60: NA | CA60: 0 | CB60: NA | CC60: 1 | CD60: 1 | CE60: 1 | CF60: 1 | CG60: 1 | CH60: 1 | CI60: 1 | CJ60: 2 | CK60: 1 | CL60: 1 | CM60: 1 | CN60: 0 | CO60: 0 | CP60: NA | CQ60: 1 | CR60: 1 | CS60: 0 | CT60: NA | CU60: 0 | CV60: NA | CW60: 0 | CX60: NA | CY60: 0 | CZ60: NA | DA60: 1 | DB60: 0 | DC60: 0 | DD60: NA | DE60: 1 | DF60: 1 | DG60: 1 | DH60: 0 | DI60: 1 | DJ60: 0 | DK60: 0 | DL60: NA | DM60: 0 | DN60: NA | DO60: 0 | DP60: NA
A61: 6 | B61: orvosilexikon.hu | C61: 19 | D61: 1 | E61: 4 | F61: 0 | G61: 1 | H61: 0 | I61: 1 | J61: 1 | K61: 1 | L61: 0 | M61: 0 | N61: 1 | O61: 1 | P61: 1 | Q61: 0 | R61: 0 | S61: 1 | T61: 0 | U61: 1 | V61: 2 | W61: 1 | X61: 0 | Y61: 1 | Z61: 2 | AA61: 1 | AB61: 1 | AC61: 1 | AD61: 1 | AE61: 0 | AF61: NA | AG61: 1 | AH61: 0 | AI61: 0 | AJ61: NA | AK61: 0 | AL61: NA | AM61: 1 | AN61: 1 | AO61: 1 | AP61: 0 | AQ61: 0 | AR61: NA | AS61: 0 | AT61: NA | AU61: 0 | AV61: NA | AW61: 0 | AX61: NA | AY61: 0 | AZ61: NA | BA61: 0 | BB61: NA | BC61: 0 | BD61: NA | BE61: 0 | BF61: NA | BG61: 1 | BH61: 1 | BI61: 0 | BJ61: NA | BK61: 1 | BL61: 2 | BM61: 1 | BN61: 1 | BO61: 0 | BP61: NA | BQ61: 1 | BR61: 1 | BS61: 1 | BT61: 0 | BU61: 0 | BV61: NA | BW61: 1 | BX61: 1 | BY61: 0 | BZ61: NA | CA61: 0 | CB61: NA | CC61: 1 | CD61: 2 | CE61: 1 | CF61: 2 | CG61: 0 | CH61: NA | CI61: 1 | CJ61: 2 | CK61: 0 | CL61: NA | CM61: 1 | CN61: 0 | CO61: 0 | CP61: NA | CQ61: 1 | CR61: 1 | CS61: 1 | CT61: 2 | CU61: 0 | CV61: NA | CW61: 0 | CX61: NA | CY61: 0 | CZ61: NA | DA61: 1 | DB61: 1 | DC61: 0 | DD61: NA | DE61: 1 | DF61: 2 | DG61: 1 | DH61: 1 | DI61: 1 | DJ61: 0 | DK61: 0 | DL61: NA | DM61: 0 | DN61: NA | DO61: 0 | DP61: NA
A62: 7 | B62: otszonline.hu | C62: 23 | D62: 1 | E62: 2 | F62: 0 | G62: 1 | H62: 0 | I62: 1 | J62: 1 | K62: 1 | L62: 0 | M62: 0 | N62: 1 | O62: 1 | P62: 1 | Q62: 1 | R62: 1 | S62: 1 | T62: 0 | U62: 1 | V62: 2 | W62: 1 | X62: 1 | Y62: 0 | Z62: NA | AA62: 1 | AB62: 2 | AC62: 1 | AD62: 2 | AE62: 0 | AF62: NA | AG62: 1 | AH62: 1 | AI62: 0 | AJ62: NA | AK62: 0 | AL62: NA | AM62: 1 | AN62: 1 | AO62: 0 | AP62: NA | AQ62: 0 | AR62: NA | AS62: 0 | AT62: NA | AU62: 0 | AV62: NA | AW62: 0 | AX62: NA | AY62: 0 | AZ62: NA | BA62: 0 | BB62: NA | BC62: 1 | BD62: 0 | BE62: 1 | BF62: 1 | BG62: 1 | BH62: 1 | BI62: 1 | BJ62: 1 | BK62: 1 | BL62: 2 | BM62: 1 | BN62: 2 | BO62: 0 | BP62: NA | BQ62: 0 | BR62: NA | BS62: 0 | BT62: NA | BU62: 1 | BV62: 0 | BW62: 0 | BX62: NA | BY62: 0 | BZ62: NA | CA62: 0 | CB62: NA | CC62: 1 | CD62: 0 | CE62: 0 | CF62: NA | CG62: 0 | CH62: NA | CI62: 0 | CJ62: NA | CK62: 1 | CL62: 0 | CM62: 0 | CN62: NA | CO62: 0 | CP62: NA | CQ62: 1 | CR62: 1 | CS62: 0 | CT62: NA | CU62: 0 | CV62: NA | CW62: 0 | CX62: NA | CY62: 0 | CZ62: NA | DA62: 1 | DB62: 1 | DC62: 0 | DD62: NA | DE62: 0 | DF62: NA | DG62: 0 | DH62: NA | DI62: 0 | DJ62: NA | DK62: 0 | DL62: NA | DM62: 0 | DN62: NA | DO62: 0 | DP62: NA
A63: 8 | B63: www.servier.hu | C63: 29 | D63: 1 | E63: 3 | F63: 1 | G63: 3 | H63: 0 | I63: 1 | J63: 1 | K63: 0 | L63: 0 | M63: 0 | N63: 1 | O63: 1 | P63: 1 | Q63: 0 | R63: 0 | S63: 0 | T63: 0 | U63: 1 | V63: 2 | W63: 1 | X63: 2 | Y63: 1 | Z63: 2 | AA63: 1 | AB63: 2 | AC63: 0 | AD63: NA | AE63: 0 | AF63: NA | AG63: 1 | AH63: 2 | AI63: 0 | AJ63: NA | AK63: 0 | AL63: NA | AM63: 1 | AN63: 2 | AO63: 0 | AP63: NA | AQ63: 0 | AR63: NA | AS63: 0 | AT63: NA | AU63: 0 | AV63: NA | AW63: 0 | AX63: NA | AY63: 0 | AZ63: NA | BA63: 0 | BB63: NA | BC63: 0 | BD63: NA | BE63: 1 | BF63: 1 | BG63: 1 | BH63: 1 | BI63: 1 | BJ63: 0 | BK63: 1 | BL63: 1 | BM63: 1 | BN63: 2 | BO63: 0 | BP63: NA | BQ63: 0 | BR63: NA | BS63: 0 | BT63: NA | BU63: 1 | BV63: 1 | BW63: 0 | BX63: NA | BY63: 0 | BZ63: NA | CA63: 0 | CB63: NA | CC63: 1 | CD63: 1 | CE63: 1 | CF63: 2 | CG63: 1 | CH63: 2 | CI63: 0 | CJ63: NA | CK63: 0 | CL63: NA | CM63: 0 | CN63: NA | CO63: 0 | CP63: NA | CQ63: 1 | CR63: 1 | CS63: 0 | CT63: NA | CU63: 0 | CV63: NA | CW63: 0 | CX63: NA | CY63: 0 | CZ63: NA | DA63: 1 | DB63: 1 | DC63: 0 | DD63: NA | DE63: 1 | DF63: 2 | DG63: 1 | DH63: 1 | DI63: 1 | DJ63: 0 | DK63: 0 | DL63: NA | DM63: 0 | DN63: NA | DO63: 0 | DP63: NA
A64: 9 | B64: maganrendelesbudapest.hu | C64: 46 | D64: 1 | E64: 2 | F64: 1 | G64: 3 | H64: 0 | I64: 1 | J64: 0 | K64: 1 | L64: 0 | M64: 0 | N64: 1 | O64: 1 | P64: 0 | Q64: 0 | R64: 0 | S64: 0 | T64: 0 | U64: 1 | V64: 1 | W64: 1 | X64: 0 | Y64: 1 | Z64: 1 | AA64: 1 | AB64: 0 | AC64: 0 | AD64: NA | AE64: 0 | AF64: NA | AG64: 1 | AH64: 1 | AI64: 0 | AJ64: NA | AK64: 0 | AL64: NA | AM64: 1 | AN64: 0 | AO64: 0 | AP64: NA | AQ64: 0 | AR64: NA | AS64: 0 | AT64: NA | AU64: 0 | AV64: NA | AW64: 0 | AX64: NA | AY64: 0 | AZ64: NA | BA64: 0 | BB64: NA | BC64: 0 | BD64: NA | BE64: 0 | BF64: NA | BG64: 1 | BH64: 0 | BI64: 0 | BJ64: NA | BK64: 1 | BL64: 0 | BM64: 1 | BN64: 0 | BO64: 0 | BP64: NA | BQ64: 0 | BR64: NA | BS64: 0 | BT64: NA | BU64: 0 | BV64: NA | BW64: 0 | BX64: NA | BY64: 0 | BZ64: NA | CA64: 0 | CB64: NA | CC64: 0 | CD64: NA | CE64: 1 | CF64: 1 | CG64: 0 | CH64: NA | CI64: 0 | CJ64: NA | CK64: 0 | CL64: NA | CM64: 0 | CN64: NA | CO64: 0 | CP64: NA | CQ64: 1 | CR64: 1 | CS64: 0 | CT64: NA | CU64: 0 | CV64: NA | CW64: 0 | CX64: NA | CY64: 0 | CZ64: NA | DA64: 1 | DB64: 1 | DC64: 0 | DD64: NA | DE64: 0 | DF64: NA | DG64: 1 | DH64: 1 | DI64: 0 | DJ64: NA | DK64: 0 | DL64: NA | DM64: 0 | DN64: NA | DO64: 0 | DP64: NA
A65: 10 | B65: hu.albertcountyhomecare.com | C65: 61 | D65: 0 | E65: 6 | F65: 0 | G65: 5 | H65: 0 | I65: 0 | J65: 0 | K65: 0 | L65: 0 | M65: 0 | N65: 0 | O65: 0 | P65: 0 | Q65: 0 | R65: 0 | S65: 0 | T65: 0 | U65: 1 | V65: 2 | W65: 1 | X65: 2 | Y65: 1 | Z65: 1 | AA65: 1 | AB65: 2 | AC65: 1 | AD65: 2 | AE65: 1 | AF65: 1 | AG65: 1 | AH65: 2 | AI65: 0 | AJ65: NA | AK65: 1 | AL65: 1 | AM65: 1 | AN65: 2 | AO65: 0 | AP65: NA | AQ65: 0 | AR65: NA | AS65: 1 | AT65: 2 | AU65: 0 | AV65: NA | AW65: 0 | AX65: NA | AY65: 0 | AZ65: NA | BA65: 0 | BB65: NA | BC65: 0 | BD65: NA | BE65: 1 | BF65: 2 | BG65: 1 | BH65: 1 | BI65: 1 | BJ65: 1 | BK65: 1 | BL65: 1 | BM65: 1 | BN65: 2 | BO65: 1 | BP65: 1 | BQ65: 1 | BR65: 0 | BS65: 1 | BT65: 0 | BU65: 1 | BV65: 1 | BW65: 1 | BX65: 0 | BY65: 0 | BZ65: NA | CA65: 1 | CB65: 0 | CC65: 1 | CD65: 2 | CE65: 1 | CF65: 2 | CG65: 0 | CH65: NA | CI65: 1 | CJ65: 1 | CK65: 1 | CL65: 2 | CM65: 1 | CN65: 1 | CO65: 0 | CP65: NA | CQ65: 1 | CR65: 2 | CS65: 1 | CT65: 2 | CU65: 0 | CV65: NA | CW65: 1 | CX65: 1 | CY65: 1 | CZ65: 1 | DA65: 1 | DB65: 2 | DC65: 0 | DD65: NA | DE65: 1 | DF65: 2 | DG65: 1 | DH65: 2 | DI65: 1 | DJ65: 1 | DK65: 0 | DL65: NA | DM65: 0 | DN65: NA | DO65: 0 | DP65: NA
A66: 11 | B66: hu.valentimcare.com | C66: 63 | D66: 0 | E66: 6 | F66: 0 | G66: 1 | H66: 0 | I66: 0 | J66: 0 | K66: 0 | L66: 0 | M66: 0 | N66: 0 | O66: 0 | P66: 0 | Q66: 0 | R66: 0 | S66: 0 | T66: 0 | U66: 1 | V66: 2 | W66: 0 | X66: NA | Y66: 1 | Z66: 1 | AA66: 1 | AB66: 2 | AC66: 1 | AD66: 2 | AE66: 1 | AF66: 0 | AG66: 1 | AH66: 2 | AI66: 1 | AJ66: 2 | AK66: 1 | AL66: 1 | AM66: 1 | AN66: 2 | AO66: 1 | AP66: 2 | AQ66: 1 | AR66: 0 | AS66: 0 | AT66: NA | AU66: 1 | AV66: 1 | AW66: 0 | AX66: NA | AY66: 1 | AZ66: 2 | BA66: 1 | BB66: 2 | BC66: 1 | BD66: 1 | BE66: 1 | BF66: 1 | BG66: 1 | BH66: 1 | BI66: 1 | BJ66: 1 | BK66: 1 | BL66: 1 | BM66: 1 | BN66: 2 | BO66: 1 | BP66: 1 | BQ66: 1 | BR66: 1 | BS66: 1 | BT66: 1 | BU66: 1 | BV66: 2 | BW66: 1 | BX66: 0 | BY66: 0 | BZ66: NA | CA66: 1 | CB66: 1 | CC66: 1 | CD66: 1 | CE66: 1 | CF66: 2 | CG66: 0 | CH66: NA | CI66: 0 | CJ66: NA | CK66: 1 | CL66: 2 | CM66: 1 | CN66: 1 | CO66: 0 | CP66: NA | CQ66: 1 | CR66: 2 | CS66: 1 | CT66: 2 | CU66: 0 | CV66: NA | CW66: 1 | CX66: 1 | CY66: 1 | CZ66: 1 | DA66: 1 | DB66: 1 | DC66: 0 | DD66: NA | DE66: 1 | DF66: 2 | DG66: 1 | DH66: 1 | DI66: 1 | DJ66: 1 | DK66: 0 | DL66: NA | DM66: 0 | DN66: NA | DO66: 0 | DP66: NA
A67: 12 | B67: www.clinicco.ro | C67: 68 | D67: 1 | E67: 1 | F67: 1 | G67: 3 | H67: 0 | I67: 1 | J67: 0 | K67: 0 | L67: 0 | M67: 0 | N67: 1 | O67: 1 | P67: 0 | Q67: 0 | R67: 0 | S67: 0 | T67: 0 | U67: 1 | V67: 2 | W67: 1 | X67: 0 | Y67: 1 | Z67: 0 | AA67: 1 | AB67: 1 | AC67: 1 | AD67: 2 | AE67: 1 | AF67: 1 | AG67: 1 | AH67: 1 | AI67: 0 | AJ67: NA | AK67: 0 | AL67: NA | AM67: 0 | AN67: NA | AO67: 0 | AP67: NA | AQ67: 0 | AR67: NA | AS67: 0 | AT67: NA | AU67: 0 | AV67: NA | AW67: 0 | AX67: NA | AY67: 0 | AZ67: NA | BA67: 0 | BB67: NA | BC67: 0 | BD67: NA | BE67: 0 | BF67: NA | BG67: 1 | BH67: 1 | BI67: 0 | BJ67: NA | BK67: 1 | BL67: 1 | BM67: 1 | BN67: 2 | BO67: 0 | BP67: NA | BQ67: 0 | BR67: NA | BS67: 0 | BT67: NA | BU67: 0 | BV67: NA | BW67: 0 | BX67: NA | BY67: 0 | BZ67: NA | CA67: 0 | CB67: NA | CC67: 0 | CD67: NA | CE67: 0 | CF67: NA | CG67: 0 | CH67: NA | CI67: 0 | CJ67: NA | CK67: 1 | CL67: 1 | CM67: 0 | CN67: NA | CO67: 0 | CP67: NA | CQ67: 1 | CR67: 2 | CS67: 0 | CT67: NA | CU67: 0 | CV67: NA | CW67: 0 | CX67: NA | CY67: 0 | CZ67: NA | DA67: 0 | DB67: NA | DC67: 0 | DD67: NA | DE67: 0 | DF67: NA | DG67: 0 | DH67: NA | DI67: 0 | DJ67: NA | DK67: 0 | DL67: NA | DM67: 0 | DN67: NA | DO67: 0 | DP67: NA
A68: 13 | B68: www.mkrt.hu | C68: 72 | D68: 0 | E68: 0 | F68: 0 | G68: 0 | H68: 0 | I68: 1 | J68: 0 | K68: 0 | L68: 0 | M68: 0 | N68: 1 | O68: 1 | P68: 0 | Q68: 0 | R68: 0 | S68: 0 | T68: 0 | U68: 0 | V68: NA | W68: 0 | X68: NA | Y68: 1 | Z68: 2 | AA68: 1 | AB68: 0 | AC68: 1 | AD68: 0 | AE68: 1 | AF68: 0 | AG68: 1 | AH68: 1 | AI68: 0 | AJ68: NA | AK68: 0 | AL68: NA | AM68: 1 | AN68: 1 | AO68: 0 | AP68: NA | AQ68: 0 | AR68: NA | AS68: 0 | AT68: NA | AU68: 0 | AV68: NA | AW68: 0 | AX68: NA | AY68: 0 | AZ68: NA | BA68: 0 | BB68: NA | BC68: 0 | BD68: NA | BE68: 0 | BF68: NA | BG68: 1 | BH68: 1 | BI68: 1 | BJ68: 1 | BK68: 1 | BL68: 1 | BM68: 1 | BN68: 2 | BO68: 0 | BP68: NA | BQ68: 0 | BR68: NA | BS68: 0 | BT68: NA | BU68: 0 | BV68: NA | BW68: 0 | BX68: NA | BY68: 0 | BZ68: NA | CA68: 0 | CB68: NA | CC68: 0 | CD68: NA | CE68: 0 | CF68: NA | CG68: 1 | CH68: 1 | CI68: 0 | CJ68: NA | CK68: 1 | CL68: 1 | CM68: 0 | CN68: NA | CO68: 0 | CP68: NA | CQ68: 1 | CR68: 2 | CS68: 0 | CT68: NA | CU68: 0 | CV68: NA | CW68: 0 | CX68: NA | CY68: 0 | CZ68: NA | DA68: 1 | DB68: 2 | DC68: 0 | DD68: NA | DE68: 1 | DF68: 1 | DG68: 1 | DH68: 0 | DI68: 1 | DJ68: 0 | DK68: 0 | DL68: NA | DM68: 0 | DN68: NA | DO68: 0 | DP68: NA
A69: 14 | B69: gyorplusz.hu | C69: 74 | D69: 1 | E69: 2 | F69: 0 | G69: 2 | H69: 0 | I69: 1 | J69: 0 | K69: 0 | L69: 1 | M69: 0 | N69: 0 | O69: 1 | P69: 1 | Q69: 0 | R69: 1 | S69: 0 | T69: 0 | U69: 1 | V69: 1 | W69: 1 | X69: 1 | Y69: 0 | Z69: NA | AA69: 1 | AB69: 2 | AC69: 1 | AD69: 2 | AE69: 1 | AF69: 1 | AG69: 1 | AH69: 0 | AI69: 0 | AJ69: NA | AK69: 0 | AL69: NA | AM69: 1 | AN69: 0 | AO69: 0 | AP69: NA | AQ69: 0 | AR69: NA | AS69: 0 | AT69: NA | AU69: 0 | AV69: NA | AW69: 0 | AX69: NA | AY69: 0 | AZ69: NA | BA69: 0 | BB69: NA | BC69: 0 | BD69: NA | BE69: 1 | BF69: 1 | BG69: 1 | BH69: 1 | BI69: 1 | BJ69: 0 | BK69: 1 | BL69: 0 | BM69: 1 | BN69: 0 | BO69: 0 | BP69: NA | BQ69: 0 | BR69: NA | BS69: 0 | BT69: NA | BU69: 1 | BV69: 0 | BW69: 0 | BX69: NA | BY69: 0 | BZ69: NA | CA69: 0 | CB69: NA | CC69: 0 | CD69: NA | CE69: 0 | CF69: NA | CG69: 0 | CH69: NA | CI69: 0 | CJ69: NA | CK69: 1 | CL69: 0 | CM69: 0 | CN69: NA | CO69: 0 | CP69: NA | CQ69: 1 | CR69: 1 | CS69: 0 | CT69: NA | CU69: 0 | CV69: NA | CW69: 0 | CX69: NA | CY69: 0 | CZ69: NA | DA69: 0 | DB69: NA | DC69: 0 | DD69: NA | DE69: 0 | DF69: NA | DG69: 0 | DH69: NA | DI69: 0 | DJ69: NA | DK69: 0 | DL69: NA | DM69: 0 | DN69: NA | DO69: 0 | DP69: NA
A70: 15 | B70: sanitatem.hu | C70: 75 | D70: 1 | E70: 1 | F70: 1 | G70: 3 | H70: 0 | I70: 1 | J70: 1 | K70: 0 | L70: 1 | M70: 1 | N70: 0 | O70: 1 | P70: 0 | Q70: 0 | R70: 0 | S70: 0 | T70: 0 | U70: 1 | V70: 2 | W70: 1 | X70: 0 | Y70: 1 | Z70: 0 | AA70: 1 | AB70: 2 | AC70: 1 | AD70: 2 | AE70: 0 | AF70: NA | AG70: 1 | AH70: 0 | AI70: 0 | AJ70: NA | AK70: 0 | AL70: NA | AM70: 1 | AN70: 1 | AO70: 0 | AP70: NA | AQ70: 0 | AR70: NA | AS70: 0 | AT70: NA | AU70: 0 | AV70: NA | AW70: 0 | AX70: NA | AY70: 0 | AZ70: NA | BA70: 0 | BB70: NA | BC70: 0 | BD70: NA | BE70: 0 | BF70: NA | BG70: 1 | BH70: 1 | BI70: 1 | BJ70: 1 | BK70: 1 | BL70: 2 | BM70: 1 | BN70: 2 | BO70: 0 | BP70: NA | BQ70: 0 | BR70: NA | BS70: 0 | BT70: NA | BU70: 1 | BV70: 1 | BW70: 0 | BX70: NA | BY70: 0 | BZ70: NA | CA70: 0 | CB70: NA | CC70: 1 | CD70: 1 | CE70: 0 | CF70: NA | CG70: 0 | CH70: NA | CI70: 1 | CJ70: 2 | CK70: 1 | CL70: 1 | CM70: 1 | CN70: 1 | CO70: 0 | CP70: NA | CQ70: 1 | CR70: 1 | CS70: 0 | CT70: NA | CU70: 0 | CV70: NA | CW70: 0 | CX70: NA | CY70: 0 | CZ70: NA | DA70: 0 | DB70: NA | DC70: 0 | DD70: NA | DE70: 1 | DF70: 1 | DG70: 0 | DH70: NA | DI70: 0 | DJ70: NA | DK70: 0 | DL70: NA | DM70: 0 | DN70: NA | DO70: 0 | DP70: NA
A71: 16 | B71: www.jgypk.hu | C71: 82 | D71: 1 | E71: 5 | F71: 0 | G71: 5 | H71: 0 | I71: 1 | J71: 1 | K71: 0 | L71: 1 | M71: 1 | N71: 0 | O71: 1 | P71: 1 | Q71: 0 | R71: 0 | S71: 0 | T71: 0 | U71: 1 | V71: 1 | W71: 1 | X71: 1 | Y71: 1 | Z71: 1 | AA71: 1 | AB71: 1 | AC71: 1 | AD71: 1 | AE71: 0 | AF71: NA | AG71: 1 | AH71: 2 | AI71: 0 | AJ71: NA | AK71: 0 | AL71: NA | AM71: 1 | AN71: 2 | AO71: 0 | AP71: NA | AQ71: 0 | AR71: NA | AS71: 0 | AT71: NA | AU71: 0 | AV71: NA | AW71: 0 | AX71: NA | AY71: 0 | AZ71: NA | BA71: 0 | BB71: NA | BC71: 0 | BD71: NA | BE71: 0 | BF71: NA | BG71: 0 | BH71: NA | BI71: 0 | BJ71: NA | BK71: 0 | BL71: NA | BM71: 1 | BN71: 0 | BO71: 0 | BP71: NA | BQ71: 0 | BR71: NA | BS71: 0 | BT71: NA | BU71: 1 | BV71: 1 | BW71: 0 | BX71: NA | BY71: 0 | BZ71: NA | CA71: 0 | CB71: NA | CC71: 0 | CD71: NA | CE71: 0 | CF71: NA | CG71: 0 | CH71: NA | CI71: 0 | CJ71: NA | CK71: 0 | CL71: NA | CM71: 0 | CN71: NA | CO71: 0 | CP71: NA | CQ71: 0 | CR71: NA | CS71: 0 | CT71: NA | CU71: 0 | CV71: NA | CW71: 0 | CX71: NA | CY71: 0 | CZ71: NA | DA71: 1 | DB71: 0 | DC71: 0 | DD71: NA | DE71: 1 | DF71: 1 | DG71: 0 | DH71: NA | DI71: 1 | DJ71: 1 | DK71: 0 | DL71: NA | DM71: 0 | DN71: NA | DO71: 0 | DP71: NA
A72: 17 | B72: hu.sciencenetnews.com | C72: 85 | D72: 1 | E72: 6 | F72: 0 | G72: 0 | H72: 0 | I72: 0 | J72: 0 | K72: 0 | L72: 0 | M72: 0 | N72: 0 | O72: 0 | P72: 1 | Q72: 1 | R72: 0 | S72: 0 | T72: 0 | U72: 1 | V72: 1 | W72: 1 | X72: 1 | Y72: 0 | Z72: NA | AA72: 1 | AB72: 0 | AC72: 1 | AD72: 0 | AE72: 0 | AF72: NA | AG72: 1 | AH72: 1 | AI72: 0 | AJ72: NA | AK72: 0 | AL72: NA | AM72: 0 | AN72: NA | AO72: 0 | AP72: NA | AQ72: 0 | AR72: NA | AS72: 0 | AT72: NA | AU72: 0 | AV72: NA | AW72: 0 | AX72: NA | AY72: 0 | AZ72: NA | BA72: 0 | BB72: NA | BC72: 0 | BD72: NA | BE72: 0 | BF72: NA | BG72: 1 | BH72: 1 | BI72: 1 | BJ72: 0 | BK72: 1 | BL72: 0 | BM72: 1 | BN72: 1 | BO72: 1 | BP72: 0 | BQ72: 0 | BR72: NA | BS72: 0 | BT72: NA | BU72: 0 | BV72: NA | BW72: 0 | BX72: NA | BY72: 0 | BZ72: NA | CA72: 0 | CB72: NA | CC72: 0 | CD72: NA | CE72: 0 | CF72: NA | CG72: 0 | CH72: NA | CI72: 0 | CJ72: NA | CK72: 1 | CL72: 1 | CM72: 0 | CN72: NA | CO72: 0 | CP72: NA | CQ72: 1 | CR72: 1 | CS72: 0 | CT72: NA | CU72: 0 | CV72: NA | CW72: 0 | CX72: NA | CY72: 0 | CZ72: NA | DA72: 0 | DB72: NA | DC72: 1 | DD72: 0 | DE72: 0 | DF72: NA | DG72: 0 | DH72: NA | DI72: 0 | DJ72: NA | DK72: 0 | DL72: NA | DM72: 0 | DN72: NA | DO72: 0 | DP72: NA
A73: 18 | B73: www.szivunkert.hu | C73: 98 | D73: 0 | E73: 3 | F73: 1 | G73: 3 | H73: 0 | I73: 1 | J73: 1 | K73: 0 | L73: 1 | M73: 1 | N73: 1 | O73: 1 | P73: 0 | Q73: 0 | R73: 0 | S73: 0 | T73: 0 | U73: 1 | V73: 2 | W73: 1 | X73: 1 | Y73: 0 | Z73: NA | AA73: 1 | AB73: 0 | AC73: 1 | AD73: 2 | AE73: 0 | AF73: NA | AG73: 1 | AH73: 1 | AI73: 0 | AJ73: NA | AK73: 0 | AL73: NA | AM73: 0 | AN73: NA | AO73: 0 | AP73: NA | AQ73: 0 | AR73: NA | AS73: 0 | AT73: NA | AU73: 0 | AV73: NA | AW73: 0 | AX73: NA | AY73: 0 | AZ73: NA | BA73: 0 | BB73: NA | BC73: 0 | BD73: NA | BE73: 0 | BF73: NA | BG73: 1 | BH73: 1 | BI73: 1 | BJ73: 0 | BK73: 1 | BL73: 0 | BM73: 1 | BN73: 2 | BO73: 0 | BP73: NA | BQ73: 0 | BR73: NA | BS73: 0 | BT73: NA | BU73: 1 | BV73: 0 | BW73: 0 | BX73: NA | BY73: 0 | BZ73: NA | CA73: 0 | CB73: NA | CC73: 0 | CD73: NA | CE73: 0 | CF73: NA | CG73: 0 | CH73: NA | CI73: 0 | CJ73: NA | CK73: 1 | CL73: 1 | CM73: 1 | CN73: 0 | CO73: 0 | CP73: NA | CQ73: 1 | CR73: 1 | CS73: 0 | CT73: NA | CU73: 0 | CV73: NA | CW73: 0 | CX73: NA | CY73: 0 | CZ73: NA | DA73: 0 | DB73: NA | DC73: 0 | DD73: NA | DE73: 0 | DF73: NA | DG73: 0 | DH73: NA | DI73: 0 | DJ73: NA | DK73: 0 | DL73: NA | DM73: 0 | DN73: NA | DO73: 0 | DP73: NA
A74: 19 | B74: hu.tutkrabov.net | C74: 102 | D74: 1 | E74: 6 | F74: 0 | G74: 1 | H74: 0 | I74: 0 | J74: 0 | K74: 0 | L74: 0 | M74: 0 | N74: 0 | O74: 0 | P74: 0 | Q74: 0 | R74: 0 | S74: 0 | T74: 0 | U74: 1 | V74: 2 | W74: 1 | X74: 1 | Y74: 1 | Z74: 2 | AA74: 1 | AB74: 2 | AC74: 0 | AD74: NA | AE74: 0 | AF74: NA | AG74: 1 | AH74: 1 | AI74: 0 | AJ74: NA | AK74: 0 | AL74: NA | AM74: 1 | AN74: 1 | AO74: 0 | AP74: NA | AQ74: 0 | AR74: NA | AS74: 0 | AT74: NA | AU74: 0 | AV74: NA | AW74: 0 | AX74: NA | AY74: 0 | AZ74: NA | BA74: 0 | BB74: NA | BC74: 0 | BD74: NA | BE74: 0 | BF74: NA | BG74: 1 | BH74: 0 | BI74: 1 | BJ74: 1 | BK74: 1 | BL74: 1 | BM74: 1 | BN74: 1 | BO74: 0 | BP74: NA | BQ74: 0 | BR74: NA | BS74: 1 | BT74: 0 | BU74: 0 | BV74: NA | BW74: 0 | BX74: NA | BY74: 0 | BZ74: NA | CA74: 0 | CB74: NA | CC74: 0 | CD74: NA | CE74: 1 | CF74: 1 | CG74: 0 | CH74: NA | CI74: 0 | CJ74: NA | CK74: 1 | CL74: 2 | CM74: 1 | CN74: 1 | CO74: 1 | CP74: 1 | CQ74: 1 | CR74: 1 | CS74: 0 | CT74: NA | CU74: 0 | CV74: NA | CW74: 0 | CX74: NA | CY74: 0 | CZ74: NA | DA74: 1 | DB74: 0 | DC74: 0 | DD74: NA | DE74: 1 | DF74: 1 | DG74: 1 | DH74: 1 | DI74: 1 | DJ74: 1 | DK74: 0 | DL74: NA | DM74: 0 | DN74: NA | DO74: 0 | DP74: NA
A75: 20 | B75: ahv.blogotirni.com | C75: 104 | D75: 1 | E75: 6 | F75: 0 | G75: 1 | H75: 0 | I75: 0 | J75: 0 | K75: 0 | L75: 0 | M75: 0 | N75: 0 | O75: 0 | P75: 0 | Q75: 0 | R75: 0 | S75: 0 | T75: 0 | U75: 1 | V75: 0 | W75: 1 | X75: 1 | Y75: 1 | Z75: 1 | AA75: 0 | AB75: NA | AC75: 0 | AD75: NA | AE75: 0 | AF75: NA | AG75: 1 | AH75: 0 | AI75: 0 | AJ75: NA | AK75: 0 | AL75: NA | AM75: 0 | AN75: NA | AO75: 0 | AP75: NA | AQ75: 0 | AR75: NA | AS75: 0 | AT75: NA | AU75: 0 | AV75: NA | AW75: 0 | AX75: NA | AY75: 0 | AZ75: NA | BA75: 0 | BB75: NA | BC75: 0 | BD75: NA | BE75: 0 | BF75: NA | BG75: 1 | BH75: 1 | BI75: 1 | BJ75: 1 | BK75: 1 | BL75: 1 | BM75: 1 | BN75: 1 | BO75: 0 | BP75: NA | BQ75: 0 | BR75: NA | BS75: 1 | BT75: 0 | BU75: 1 | BV75: 0 | BW75: 0 | BX75: NA | BY75: 0 | BZ75: NA | CA75: 1 | CB75: 1 | CC75: 1 | CD75: 2 | CE75: 1 | CF75: 2 | CG75: 0 | CH75: NA | CI75: 0 | CJ75: NA | CK75: 1 | CL75: 1 | CM75: 1 | CN75: 1 | CO75: 1 | CP75: 1 | CQ75: 1 | CR75: 1 | CS75: 1 | CT75: 1 | CU75: 0 | CV75: NA | CW75: 0 | CX75: NA | CY75: 0 | CZ75: NA | DA75: 0 | DB75: NA | DC75: 0 | DD75: NA | DE75: 0 | DF75: NA | DG75: 0 | DH75: NA | DI75: 0 | DJ75: NA | DK75: 0 | DL75: NA | DM75: 0 | DN75: NA | DO75: 0 | DP75: NA
A76: 21 | B76: mek.oszk.hu | C76: 105 | D76: 1 | E76: 0 | F76: 0 | G76: 5 | H76: 0 | I76: 1 | J76: 1 | K76: 0 | L76: 1 | M76: 1 | N76: 1 | O76: 1 | P76: 1 | Q76: 1 | R76: 1 | S76: 0 | T76: 0 | U76: 1 | V76: 0 | W76: 1 | X76: 1 | Y76: 1 | Z76: 1 | AA76: 0 | AB76: NA | AC76: 0 | AD76: NA | AE76: 0 | AF76: NA | AG76: 1 | AH76: 1 | AI76: 0 | AJ76: NA | AK76: 0 | AL76: NA | AM76: 1 | AN76: 1 | AO76: 0 | AP76: NA | AQ76: 0 | AR76: NA | AS76: 0 | AT76: NA | AU76: 0 | AV76: NA | AW76: 0 | AX76: NA | AY76: 0 | AZ76: NA | BA76: 0 | BB76: NA | BC76: 0 | BD76: NA | BE76: 0 | BF76: NA | BG76: 1 | BH76: 0 | BI76: 0 | BJ76: NA | BK76: 1 | BL76: 1 | BM76: 0 | BN76: NA | BO76: 0 | BP76: NA | BQ76: 0 | BR76: NA | BS76: 0 | BT76: NA | BU76: 0 | BV76: NA | BW76: 0 | BX76: NA | BY76: 0 | BZ76: NA | CA76: 0 | CB76: NA | CC76: 1 | CD76: 0 | CE76: 0 | CF76: NA | CG76: 0 | CH76: NA | CI76: 0 | CJ76: NA | CK76: 0 | CL76: 1 | CM76: 0 | CN76: NA | CO76: 0 | CP76: NA | CQ76: 1 | CR76: 0 | CS76: 0 | CT76: NA | CU76: 0 | CV76: NA | CW76: 0 | CX76: NA | CY76: 0 | CZ76: NA | DA76: 1 | DB76: 0 | DC76: 0 | DD76: NA | DE76: 0 | DF76: NA | DG76: 0 | DH76: NA | DI76: 0 | DJ76: NA | DK76: 0 | DL76: NA | DM76: 0 | DN76: NA | DO76: 0 | DP76: NA
A77: 22 | B77: hu.medic-life.com | C77: 106 | D77: 1 | E77: 6 | F77: 0 | G77: 1 | H77: 0 | I77: 0 | J77: 0 | K77: 0 | L77: 0 | M77: 0 | N77: 0 | O77: 1 | P77: 0 | Q77: 0 | R77: 0 | S77: 0 | T77: 0 | U77: 1 | V77: 2 | W77: 1 | X77: 1 | Y77: 1 | Z77: 1 | AA77: 1 | AB77: 1 | AC77: 1 | AD77: 1 | AE77: 0 | AF77: NA | AG77: 1 | AH77: 1 | AI77: 1 | AJ77: 1 | AK77: 1 | AL77: 1 | AM77: 0 | AN77: NA | AO77: 0 | AP77: NA | AQ77: 0 | AR77: NA | AS77: 0 | AT77: NA | AU77: 0 | AV77: NA | AW77: 0 | AX77: NA | AY77: 0 | AZ77: NA | BA77: 0 | BB77: NA | BC77: 1 | BD77: 1 | BE77: 1 | BF77: 1 | BG77: 1 | BH77: 1 | BI77: 1 | BJ77: 1 | BK77: 1 | BL77: 1 | BM77: 1 | BN77: 1 | BO77: 1 | BP77: 1 | BQ77: 0 | BR77: NA | BS77: 0 | BT77: NA | BU77: 1 | BV77: 1 | BW77: 1 | BX77: 1 | BY77: 0 | BZ77: NA | CA77: 1 | CB77: 0 | CC77: 1 | CD77: 0 | CE77: 1 | CF77: 1 | CG77: 0 | CH77: NA | CI77: 0 | CJ77: NA | CK77: 1 | CL77: 1 | CM77: 1 | CN77: 1 | CO77: 0 | CP77: NA | CQ77: 0 | CR77: NA | CS77: 0 | CT77: NA | CU77: 0 | CV77: NA | CW77: 0 | CX77: NA | CY77: 0 | CZ77: NA | DA77: 1 | DB77: 0 | DC77: 0 | DD77: NA | DE77: 1 | DF77: 0 | DG77: 1 | DH77: 0 | DI77: 1 | DJ77: 0 | DK77: 0 | DL77: NA | DM77: 0 | DN77: NA | DO77: 0 | DP77: NA
A78: 23 | B78: hogyan-kell.com | C78: 107 | D78: 1 | E78: 6 | F78: 0 | G78: 1 | H78: 1 | I78: 0 | J78: 0 | K78: 0 | L78: 0 | M78: 0 | N78: 0 | O78: 0 | P78: 0 | Q78: 0 | R78: 0 | S78: 0 | T78: 0 | U78: 1 | V78: 1 | W78: 1 | X78: 1 | Y78: 1 | Z78: 0 | AA78: 1 | AB78: 2 | AC78: 1 | AD78: 2 | AE78: 0 | AF78: NA | AG78: 1 | AH78: 1 | AI78: 1 | AJ78: 1 | AK78: 1 | AL78: 1 | AM78: 0 | AN78: NA | AO78: 1 | AP78: 1 | AQ78: 0 | AR78: NA | AS78: 0 | AT78: NA | AU78: 0 | AV78: NA | AW78: 0 | AX78: NA | AY78: 0 | AZ78: NA | BA78: 1 | BB78: 2 | BC78: 1 | BD78: 1 | BE78: 1 | BF78: 1 | BG78: 1 | BH78: 1 | BI78: 1 | BJ78: 1 | BK78: 1 | BL78: 1 | BM78: 1 | BN78: 1 | BO78: 1 | BP78: 1 | BQ78: 1 | BR78: 1 | BS78: 0 | BT78: NA | BU78: 1 | BV78: 0 | BW78: 0 | BX78: NA | BY78: 0 | BZ78: NA | CA78: 0 | CB78: NA | CC78: 0 | CD78: NA | CE78: 0 | CF78: NA | CG78: 0 | CH78: NA | CI78: 0 | CJ78: NA | CK78: 1 | CL78: 1 | CM78: 0 | CN78: NA | CO78: 0 | CP78: NA | CQ78: 1 | CR78: 1 | CS78: 0 | CT78: NA | CU78: 0 | CV78: NA | CW78: 0 | CX78: NA | CY78: 0 | CZ78: NA | DA78: 0 | DB78: NA | DC78: 0 | DD78: NA | DE78: 0 | DF78: NA | DG78: 0 | DH78: NA | DI78: 0 | DJ78: NA | DK78: 0 | DL78: NA | DM78: 0 | DN78: NA | DO78: 0 | DP78: NA
A79: 24 | B79: astent.blogspot.com | C79: 117 | D79: 0 | E79: 6 | F79: 0 | G79: 4 | H79: 0 | I79: 0 | J79: 0 | K79: 0 | L79: 0 | M79: 0 | N79: 0 | O79: 0 | P79: 0 | Q79: 0 | R79: 0 | S79: 0 | T79: 0 | U79: 1 | V79: 1 | W79: 0 | X79: NA | Y79: 1 | Z79: 0 | AA79: 0 | AB79: NA | AC79: 0 | AD79: NA | AE79: 0 | AF79: NA | AG79: 0 | AH79: NA | AI79: 0 | AJ79: NA | AK79: 0 | AL79: NA | AM79: 0 | AN79: NA | AO79: 0 | AP79: NA | AQ79: 0 | AR79: NA | AS79: 0 | AT79: NA | AU79: 0 | AV79: NA | AW79: 0 | AX79: NA | AY79: 0 | AZ79: NA | BA79: 0 | BB79: NA | BC79: 0 | BD79: NA | BE79: 0 | BF79: NA | BG79: 1 | BH79: 1 | BI79: 1 | BJ79: 0 | BK79: 1 | BL79: 1 | BM79: 1 | BN79: 2 | BO79: 1 | BP79: 0 | BQ79: 0 | BR79: NA | BS79: 0 | BT79: NA | BU79: 0 | BV79: NA | BW79: 0 | BX79: NA | BY79: 0 | BZ79: NA | CA79: 0 | CB79: NA | CC79: 0 | CD79: NA | CE79: 0 | CF79: NA | CG79: 0 | CH79: NA | CI79: 0 | CJ79: NA | CK79: 0 | CL79: NA | CM79: 0 | CN79: NA | CO79: 0 | CP79: NA | CQ79: 1 | CR79: 1 | CS79: 0 | CT79: NA | CU79: 0 | CV79: NA | CW79: 0 | CX79: NA | CY79: 0 | CZ79: NA | DA79: 0 | DB79: NA | DC79: 0 | DD79: NA | DE79: 0 | DF79: NA | DG79: 0 | DH79: NA | DI79: 0 | DJ79: NA | DK79: 0 | DL79: NA | DM79: 0 | DN79: NA | DO79: 0 | DP79: NA
A80: 25 | B80: www.informed.hu | C80: 121 | D80: 1 | E80: 2 | F80: 2 | G80: 1 | H80: 0 | I80: 1 | J80: 1 | K80: 1 | L80: 1 | M80: 1 | N80: 1 | O80: 1 | P80: 1 | Q80: 1 | R80: 1 | S80: 0 | T80: 0 | U80: 1 | V80: 1 | W80: 1 | X80: 1 | Y80: 1 | Z80: 0 | AA80: 0 | AB80: NA | AC80: 0 | AD80: NA | AE80: 0 | AF80: NA | AG80: 1 | AH80: 1 | AI80: 0 | AJ80: NA | AK80: 0 | AL80: NA | AM80: 0 | AN80: NA | AO80: 0 | AP80: NA | AQ80: 0 | AR80: NA | AS80: 0 | AT80: NA | AU80: 0 | AV80: NA | AW80: 0 | AX80: NA | AY80: 0 | AZ80: NA | BA80: 0 | BB80: NA | BC80: 0 | BD80: NA | BE80: 0 | BF80: NA | BG80: 1 | BH80: 0 | BI80: 0 | BJ80: NA | BK80: 1 | BL80: 1 | BM80: 1 | BN80: 2 | BO80: 0 | BP80: NA | BQ80: 0 | BR80: NA | BS80: 0 | BT80: NA | BU80: 0 | BV80: NA | BW80: 0 | BX80: NA | BY80: 0 | BZ80: NA | CA80: 0 | CB80: NA | CC80: 1 | CD80: 0 | CE80: 0 | CF80: NA | CG80: 0 | CH80: NA | CI80: 0 | CJ80: NA | CK80: 0 | CL80: NA | CM80: 0 | CN80: NA | CO80: 0 | CP80: NA | CQ80: 1 | CR80: 1 | CS80: 1 | CT80: 1 | CU80: 0 | CV80: NA | CW80: 0 | CX80: NA | CY80: 0 | CZ80: NA | DA80: 1 | DB80: 1 | DC80: 0 | DD80: NA | DE80: 0 | DF80: NA | DG80: 0 | DH80: NA | DI80: 0 | DJ80: NA | DK80: 0 | DL80: NA | DM80: 0 | DN80: NA | DO80: 0 | DP80: NA
A81: Romanian language
A82: 1 | B82: promediq.ro | C82: 2 | D82: 0 | E82: 1 | F82: 1 | G82: 3 | H82: 0 | I82: 1 | J82: 1 | K82: 1 | L82: 0 | M82: 0 | N82: 0 | O82: 1 | P82: 0 | Q82: 0 | R82: 0 | S82: 0 | T82: 0 | U82: 1 | V82: 2 | W82: 1 | X82: 2 | Y82: 1 | Z82: 1 | AA82: 0 | AB82: NA | AC82: 1 | AD82: 2 | AE82: 1 | AF82: 1 | AG82: 1 | AH82: 2 | AI82: 0 | AJ82: NA | AK82: 0 | AL82: NA | AM82: 1 | AN82: 0 | AO82: 0 | AP82: NA | AQ82: 0 | AR82: NA | AS82: 1 | AT82: 2 | AU82: 0 | AV82: NA | AW82: 0 | AX82: NA | AY82: 0 | AZ82: NA | BA82: 0 | BB82: NA | BC82: 0 | BD82: NA | BE82: 1 | BF82: 1 | BG82: 1 | BH82: 0 | BI82: 1 | BJ82: 0 | BK82: 1 | BL82: 0 | BM82: 1 | BN82: 1 | BO82: 1 | BP82: 1 | BQ82: 0 | BR82: NA | BS82: 1 | BT82: 1 | BU82: 1 | BV82: 0 | BW82: 1 | BX82: 0 | BY82: 1 | BZ82: 1 | CA82: 1 | CB82: 0 | CC82: 1 | CD82: 1 | CE82: 1 | CF82: 2 | CG82: 1 | CH82: 1 | CI82: 0 | CJ82: NA | CK82: 1 | CL82: 2 | CM82: 1 | CN82: 1 | CO82: 1 | CP82: 1 | CQ82: 0 | CR82: NA | CS82: 1 | CT82: 2 | CU82: 0 | CV82: NA | CW82: 0 | CX82: NA | CY82: 0 | CZ82: NA | DA82: 1 | DB82: 1 | DC82: 0 | DD82: NA | DE82: 0 | DF82: NA | DG82: 0 | DH82: NA | DI82: 0 | DJ82: NA | DK82: 0 | DL82: NA | DM82: 0 | DN82: NA | DO82: 0 | DP82: NA
A83: 2 | B83: www.libertatea.ro | C83: 3 | D83: 1 | E83: 0 | F83: 0 | G83: 2 | H83: 2 | I83: 1 | J83: 1 | K83: 0 | L83: 0 | M83: 0 | N83: 1 | O83: 1 | P83: 0 | Q83: 0 | R83: 1 | S83: 0 | T83: 0 | U83: 1 | V83: 1 | W83: 0 | X83: NA | Y83: 1 | Z83: 1 | AA83: 1 | AB83: 0 | AC83: 0 | AD83: NA | AE83: 0 | AF83: NA | AG83: 1 | AH83: 0 | AI83: 0 | AJ83: NA | AK83: 0 | AL83: NA | AM83: 0 | AN83: NA | AO83: 0 | AP83: NA | AQ83: 0 | AR83: NA | AS83: 1 | AT83: 2 | AU83: 0 | AV83: NA | AW83: 0 | AX83: NA | AY83: 0 | AZ83: NA | BA83: 0 | BB83: NA | BC83: 0 | BD83: NA | BE83: 1 | BF83: 0 | BG83: 0 | BH83: NA | BI83: 1 | BJ83: 0 | BK83: 0 | BL83: NA | BM83: 1 | BN83: 0 | BO83: 1 | BP83: 0 | BQ83: 0 | BR83: NA | BS83: 0 | BT83: NA | BU83: 0 | BV83: NA | BW83: 0 | BX83: NA | BY83: 0 | BZ83: NA | CA83: 0 | CB83: NA | CC83: 0 | CD83: NA | CE83: 0 | CF83: NA | CG83: 0 | CH83: NA | CI83: 0 | CJ83: NA | CK83: 1 | CL83: 2 | CM83: 1 | CN83: 1 | CO83: 0 | CP83: NA | CQ83: 0 | CR83: NA | CS83: 0 | CT83: NA | CU83: 0 | CV83: NA | CW83: 0 | CX83: NA | CY83: 0 | CZ83: NA | DA83: 0 | DB83: NA | DC83: 0 | DD83: NA | DE83: 0 | DF83: NA | DG83: 0 | DH83: NA | DI83: 0 | DJ83: NA | DK83: 0 | DL83: NA | DM83: 0 | DN83: NA | DO83: 0 | DP83: NA
A84: 3 | B84: www.spitalulangiomedica.ro | C84: 4 | D84: 0 | E84: 1 | F84: 1 | G84: 3 | H84: 0 | I84: 1 | J84: 1 | K84: 0 | L84: 0 | M84: 0 | N84: 1 | O84: 1 | P84: 0 | Q84: 0 | R84: 0 | S84: 0 | T84: 0 | U84: 1 | V84: 1 | W84: 0 | X84: NA | Y84: 0 | Z84: NA | AA84: 1 | AB84: 2 | AC84: 1 | AD84: 2 | AE84: 1 | AF84: 1 | AG84: 1 | AH84: 1 | AI84: 0 | AJ84: NA | AK84: 0 | AL84: NA | AM84: 0 | AN84: NA | AO84: 0 | AP84: NA | AQ84: 0 | AR84: NA | AS84: 0 | AT84: NA | AU84: 0 | AV84: NA | AW84: 0 | AX84: NA | AY84: 0 | AZ84: NA | BA84: 0 | BB84: NA | BC84: 0 | BD84: NA | BE84: 1 | BF84: 0 | BG84: 0 | BH84: NA | BI84: 0 | BJ84: NA | BK84: 1 | BL84: 0 | BM84: 1 | BN84: 1 | BO84: 0 | BP84: NA | BQ84: 0 | BR84: NA | BS84: 0 | BT84: NA | BU84: 0 | BV84: NA | BW84: 0 | BX84: NA | BY84: 0 | BZ84: NA | CA84: 0 | CB84: NA | CC84: 1 | CD84: 0 | CE84: 0 | CF84: NA | CG84: 0 | CH84: NA | CI84: 0 | CJ84: NA | CK84: 1 | CL84: 0 | CM84: 1 | CN84: 0 | CO84: 0 | CP84: NA | CQ84: 1 | CR84: 1 | CS84: 1 | CT84: 1 | CU84: 0 | CV84: NA | CW84: 0 | CX84: NA | CY84: 0 | CZ84: NA | DA84: 1 | DB84: 0 | DC84: 0 | DD84: NA | DE84: 0 | DF84: NA | DG84: 0 | DH84: NA | DI84: 0 | DJ84: NA | DK84: 0 | DL84: NA | DM84: 0 | DN84: NA | DO84: 0 | DP84: NA
A85: 4 | B85: www.clinicapolisano.ro | C85: 5 | D85: 1 | E85: 1 | F85: 0 | G85: 3 | H85: 0 | I85: 1 | J85: 1 | K85: 0 | L85: 0 | M85: 0 | N85: 1 | O85: 1 | P85: 0 | Q85: 0 | R85: 0 | S85: 0 | T85: 0 | U85: 1 | V85: 2 | W85: 1 | X85: 0 | Y85: 1 | Z85: 0 | AA85: 1 | AB85: 1 | AC85: 1 | AD85: 1 | AE85: 1 | AF85: 0 | AG85: 1 | AH85: 2 | AI85: 0 | AJ85: NA | AK85: 0 | AL85: NA | AM85: 1 | AN85: 2 | AO85: 0 | AP85: NA | AQ85: 0 | AR85: NA | AS85: 1 | AT85: 2 | AU85: 0 | AV85: NA | AW85: 0 | AX85: NA | AY85: 0 | AZ85: NA | BA85: 0 | BB85: NA | BC85: 0 | BD85: NA | BE85: 1 | BF85: 0 | BG85: 1 | BH85: 0 | BI85: 1 | BJ85: 1 | BK85: 0 | BL85: NA | BM85: 1 | BN85: 0 | BO85: 1 | BP85: 1 | BQ85: 0 | BR85: NA | BS85: 1 | BT85: 2 | BU85: 1 | BV85: 0 | BW85: 0 | BX85: NA | BY85: 0 | BZ85: NA | CA85: 0 | CB85: NA | CC85: 0 | CD85: NA | CE85: 0 | CF85: NA | CG85: 0 | CH85: NA | CI85: 0 | CJ85: NA | CK85: 1 | CL85: 1 | CM85: 1 | CN85: 0 | CO85: 0 | CP85: NA | CQ85: 0 | CR85: NA | CS85: 1 | CT85: 1 | CU85: 0 | CV85: NA | CW85: 0 | CX85: NA | CY85: 0 | CZ85: NA | DA85: 0 | DB85: NA | DC85: 0 | DD85: NA | DE85: 0 | DF85: NA | DG85: 0 | DH85: NA | DI85: 0 | DJ85: NA | DK85: 0 | DL85: NA | DM85: 0 | DN85: NA | DO85: 0 | DP85: NA
A86: 5 | B86: www.revistagalenus.ro | C86: 13 | D86: 1 | E86: 6 | F86: 0 | G86: 2 | H86: 0 | I86: 1 | J86: 1 | K86: 0 | L86: 0 | M86: 0 | N86: 1 | O86: 1 | P86: 1 | Q86: 0 | R86: 0 | S86: 0 | T86: 0 | U86: 1 | V86: 0 | W86: 0 | X86: NA | Y86: 0 | Z86: NA | AA86: 1 | AB86: 1 | AC86: 1 | AD86: 2 | AE86: 1 | AF86: 2 | AG86: 0 | AH86: NA | AI86: 0 | AJ86: NA | AK86: 0 | AL86: NA | AM86: 0 | AN86: NA | AO86: 0 | AP86: NA | AQ86: 0 | AR86: NA | AS86: 0 | AT86: NA | AU86: 0 | AV86: NA | AW86: 0 | AX86: NA | AY86: 0 | AZ86: NA | BA86: 0 | BB86: NA | BC86: 0 | BD86: NA | BE86: 0 | BF86: NA | BG86: 0 | BH86: NA | BI86: 0 | BJ86: NA | BK86: 0 | BL86: NA | BM86: 0 | BN86: NA | BO86: 0 | BP86: NA | BQ86: 0 | BR86: NA | BS86: 0 | BT86: NA | BU86: 0 | BV86: NA | BW86: 0 | BX86: NA | BY86: 0 | BZ86: NA | CA86: 0 | CB86: NA | CC86: 0 | CD86: NA | CE86: 0 | CF86: NA | CG86: 0 | CH86: NA | CI86: 0 | CJ86: NA | CK86: 0 | CL86: NA | CM86: 1 | CN86: 0 | CO86: 0 | CP86: NA | CQ86: 0 | CR86: NA | CS86: 0 | CT86: NA | CU86: 0 | CV86: NA | CW86: 0 | CX86: NA | CY86: 0 | CZ86: NA | DA86: 0 | DB86: NA | DC86: 0 | DD86: NA | DE86: 0 | DF86: NA | DG86: 0 | DH86: NA | DI86: 0 | DJ86: NA | DK86: 0 | DL86: NA | DM86: 0 | DN86: NA | DO86: 0 | DP86: NA
A87: 6 | B87: www.clinicco.ro | C87: 14 | D87: 1 | E87: 1 | F87: 1 | G87: 3 | H87: 0 | I87: 1 | J87: 1 | K87: 0 | L87: 0 | M87: 0 | N87: 1 | O87: 1 | P87: 0 | Q87: 0 | R87: 0 | S87: 0 | T87: 0 | U87: 1 | V87: 1 | W87: 0 | X87: NA | Y87: 0 | Z87: NA | AA87: 1 | AB87: 1 | AC87: 1 | AD87: 2 | AE87: 1 | AF87: 1 | AG87: 0 | AH87: NA | AI87: 0 | AJ87: NA | AK87: 0 | AL87: NA | AM87: 0 | AN87: NA | AO87: 0 | AP87: NA | AQ87: 0 | AR87: NA | AS87: 0 | AT87: NA | AU87: 0 | AV87: NA | AW87: 0 | AX87: NA | AY87: 1 | AZ87: 0 | BA87: 0 | BB87: NA | BC87: 0 | BD87: NA | BE87: 0 | BF87: NA | BG87: 0 | BH87: NA | BI87: 0 | BJ87: NA | BK87: 1 | BL87: 0 | BM87: 1 | BN87: 1 | BO87: 0 | BP87: NA | BQ87: 0 | BR87: NA | BS87: 0 | BT87: NA | BU87: 0 | BV87: NA | BW87: 0 | BX87: NA | BY87: 0 | BZ87: NA | CA87: 0 | CB87: NA | CC87: 0 | CD87: NA | CE87: 0 | CF87: NA | CG87: 0 | CH87: NA | CI87: 0 | CJ87: NA | CK87: 1 | CL87: 0 | CM87: 0 | CN87: NA | CO87: 0 | CP87: NA | CQ87: 0 | CR87: NA | CS87: 0 | CT87: NA | CU87: 0 | CV87: NA | CW87: 0 | CX87: NA | CY87: 0 | CZ87: NA | DA87: 0 | DB87: NA | DC87: 0 | DD87: NA | DE87: 0 | DF87: NA | DG87: 0 | DH87: NA | DI87: 0 | DJ87: NA | DK87: 0 | DL87: NA | DM87: 0 | DN87: NA | DO87: 0 | DP87: NA
A88: 7 | B88: www.ziaruldeiasi.ro | C88: 16 | D88: 1 | E88: 2 | F88: 0 | G88: 2 | H88: 2 | I88: 1 | J88: 1 | K88: 0 | L88: 1 | M88: 0 | N88: 1 | O88: 1 | P88: 1 | Q88: 0 | R88: 1 | S88: 0 | T88: 0 | U88: 0 | V88: NA | W88: 0 | X88: NA | Y88: 0 | Z88: NA | AA88: 1 | AB88: 0 | AC88: 1 | AD88: 0 | AE88: 0 | AF88: NA | AG88: 0 | AH88: NA | AI88: 0 | AJ88: NA | AK88: 0 | AL88: NA | AM88: 0 | AN88: NA | AO88: 0 | AP88: NA | AQ88: 0 | AR88: NA | AS88: 0 | AT88: NA | AU88: 0 | AV88: NA | AW88: 0 | AX88: NA | AY88: 0 | AZ88: NA | BA88: 0 | BB88: NA | BC88: 0 | BD88: NA | BE88: 0 | BF88: NA | BG88: 0 | BH88: NA | BI88: 0 | BJ88: NA | BK88: 0 | BL88: NA | BM88: 0 | BN88: NA | BO88: 0 | BP88: NA | BQ88: 0 | BR88: NA | BS88: 0 | BT88: NA | BU88: 1 | BV88: 2 | BW88: 0 | BX88: NA | BY88: 0 | BZ88: NA | CA88: 0 | CB88: NA | CC88: 0 | CD88: NA | CE88: 1 | CF88: 2 | CG88: 1 | CH88: 1 | CI88: 1 | CJ88: 1 | CK88: 0 | CL88: NA | CM88: 0 | CN88: NA | CO88: 0 | CP88: NA | CQ88: 0 | CR88: NA | CS88: 0 | CT88: NA | CU88: 0 | CV88: NA | CW88: 0 | CX88: NA | CY88: 0 | CZ88: NA | DA88: 0 | DB88: NA | DC88: 0 | DD88: NA | DE88: 1 | DF88: 1 | DG88: 1 | DH88: 0 | DI88: 0 | DJ88: NA | DK88: 0 | DL88: NA | DM88: 0 | DN88: NA | DO88: 0 | DP88: NA
A89: 8 | B89: www.angioplastie.ro | C89: 19 | D89: 0 | E89: 1 | F89: 0 | G89: 0 | H89: 0 | I89: 1 | J89: 1 | K89: 0 | L89: 0 | M89: 0 | N89: 1 | O89: 1 | P89: 0 | Q89: 0 | R89: 0 | S89: 0 | T89: 0 | U89: 1 | V89: 1 | W89: 0 | X89: NA | Y89: 0 | Z89: NA | AA89: 0 | AB89: NA | AC89: 0 | AD89: NA | AE89: 0 | AF89: NA | AG89: 0 | AH89: NA | AI89: 0 | AJ89: NA | AK89: 0 | AL89: NA | AM89: 0 | AN89: NA | AO89: 0 | AP89: NA | AQ89: 0 | AR89: NA | AS89: 1 | AT89: 2 | AU89: 0 | AV89: NA | AW89: 0 | AX89: NA | AY89: 1 | AZ89: 0 | BA89: 0 | BB89: NA | BC89: 0 | BD89: NA | BE89: 0 | BF89: NA | BG89: 0 | BH89: NA | BI89: 0 | BJ89: NA | BK89: 1 | BL89: 0 | BM89: 0 | BN89: NA | BO89: 0 | BP89: NA | BQ89: 0 | BR89: NA | BS89: 1 | BT89: 0 | BU89: 1 | BV89: 0 | BW89: 0 | BX89: NA | BY89: 0 | BZ89: NA | CA89: 1 | CB89: 0 | CC89: 0 | CD89: NA | CE89: 1 | CF89: 2 | CG89: 0 | CH89: NA | CI89: 0 | CJ89: NA | CK89: 1 | CL89: 2 | CM89: 1 | CN89: 2 | CO89: 1 | CP89: 1 | CQ89: 0 | CR89: NA | CS89: 1 | CT89: 1 | CU89: 0 | CV89: NA | CW89: 0 | CX89: NA | CY89: 0 | CZ89: NA | DA89: 0 | DB89: NA | DC89: 1 | DD89: 0 | DE89: 0 | DF89: NA | DG89: 0 | DH89: NA | DI89: 0 | DJ89: NA | DK89: 0 | DL89: NA | DM89: 0 | DN89: NA | DO89: 0 | DP89: NA
A90: 9 | B90: www.bbraun.ro | C90: 20 | D90: 1 | E90: 3 | F90: 1 | G90: 3 | H90: 0 | I90: 1 | J90: 1 | K90: 0 | L90: 0 | M90: 0 | N90: 1 | O90: 1 | P90: 0 | Q90: 0 | R90: 1 | S90: 0 | T90: 0 | U90: 1 | V90: 0 | W90: 0 | X90: NA | Y90: 0 | Z90: NA | AA90: 0 | AB90: NA | AC90: 1 | AD90: 1 | AE90: 0 | AF90: NA | AG90: 0 | AH90: NA | AI90: 0 | AJ90: NA | AK90: 0 | AL90: NA | AM90: 0 | AN90: NA | AO90: 0 | AP90: NA | AQ90: 0 | AR90: NA | AS90: 0 | AT90: NA | AU90: 0 | AV90: NA | AW90: 0 | AX90: NA | AY90: 0 | AZ90: NA | BA90: 0 | BB90: NA | BC90: 0 | BD90: NA | BE90: 1 | BF90: 0 | BG90: 0 | BH90: NA | BI90: 0 | BJ90: NA | BK90: 0 | BL90: NA | BM90: 0 | BN90: NA | BO90: 0 | BP90: NA | BQ90: 0 | BR90: NA | BS90: 0 | BT90: NA | BU90: 1 | BV90: 0 | BW90: 1 | BX90: 0 | BY90: 0 | BZ90: NA | CA90: 0 | CB90: NA | CC90: 0 | CD90: NA | CE90: 0 | CF90: NA | CG90: 0 | CH90: NA | CI90: 0 | CJ90: NA | CK90: 0 | CL90: NA | CM90: 0 | CN90: NA | CO90: 0 | CP90: NA | CQ90: 0 | CR90: NA | CS90: 0 | CT90: NA | CU90: 0 | CV90: NA | CW90: 0 | CX90: NA | CY90: 0 | CZ90: NA | DA90: 0 | DB90: NA | DC90: 0 | DD90: NA | DE90: 0 | DF90: NA | DG90: 0 | DH90: NA | DI90: 0 | DJ90: NA | DK90: 0 | DL90: NA | DM90: 0 | DN90: NA | DO90: 0 | DP90: NA
A91: 10 | B91: austriamed.ro | C91: 47 | D91: 1 | E91: 1 | F91: 1 | G91: 3 | H91: 0 | I91: 1 | J91: 1 | K91: 0 | L91: 0 | M91: 0 | N91: 1 | O91: 1 | P91: 0 | Q91: 0 | R91: 0 | S91: 0 | T91: 0 | U91: 1 | V91: 0 | W91: 1 | X91: 1 | Y91: 1 | Z91: 0 | AA91: 0 | AB91: NA | AC91: 0 | AD91: NA | AE91: 0 | AF91: NA | AG91: 1 | AH91: 1 | AI91: 0 | AJ91: NA | AK91: 0 | AL91: NA | AM91: 0 | AN91: NA | AO91: 0 | AP91: NA | AQ91: 0 | AR91: NA | AS91: 0 | AT91: NA | AU91: 0 | AV91: NA | AW91: 0 | AX91: NA | AY91: 0 | AZ91: NA | BA91: 0 | BB91: NA | BC91: 0 | BD91: NA | BE91: 0 | BF91: NA | BG91: 0 | BH91: NA | BI91: 0 | BJ91: NA | BK91: 1 | BL91: 0 | BM91: 1 | BN91: 0 | BO91: 0 | BP91: NA | BQ91: 0 | BR91: NA | BS91: 0 | BT91: NA | BU91: 0 | BV91: NA | BW91: 0 | BX91: NA | BY91: 0 | BZ91: NA | CA91: 0 | CB91: NA | CC91: 0 | CD91: NA | CE91: 0 | CF91: NA | CG91: 0 | CH91: NA | CI91: 0 | CJ91: NA | CK91: 1 | CL91: 1 | CM91: 1 | CN91: 1 | CO91: 0 | CP91: NA | CQ91: 0 | CR91: NA | CS91: 0 | CT91: NA | CU91: 0 | CV91: NA | CW91: 0 | CX91: NA | CY91: 0 | CZ91: NA | DA91: 0 | DB91: NA | DC91: 0 | DD91: NA | DE91: 0 | DF91: NA | DG91: 0 | DH91: NA | DI91: 0 | DJ91: NA | DK91: 0 | DL91: NA | DM91: 0 | DN91: NA | DO91: 0 | DP91: NA
A92: 11 | B92: www.regiocard.ro | C92: 58 | D92: 0 | E92: 1 | F92: 1 | G92: 3 | H92: 0 | I92: 1 | J92: 1 | K92: 0 | L92: 0 | M92: 0 | N92: 0 | O92: 1 | P92: 0 | Q92: 0 | R92: 0 | S92: 0 | T92: 0 | U92: 1 | V92: 1 | W92: 0 | X92: NA | Y92: 0 | Z92: NA | AA92: 1 | AB92: 2 | AC92: 1 | AD92: 2 | AE92: 1 | AF92: 1 | AG92: 0 | AH92: NA | AI92: 0 | AJ92: NA | AK92: 0 | AL92: NA | AM92: 0 | AN92: NA | AO92: 0 | AP92: NA | AQ92: 0 | AR92: NA | AS92: 0 | AT92: NA | AU92: 0 | AV92: NA | AW92: 0 | AX92: NA | AY92: 0 | AZ92: NA | BA92: 0 | BB92: NA | BC92: 0 | BD92: NA | BE92: 0 | BF92: NA | BG92: 0 | BH92: NA | BI92: 0 | BJ92: NA | BK92: 0 | BL92: NA | BM92: 0 | BN92: NA | BO92: 0 | BP92: NA | BQ92: 0 | BR92: NA | BS92: 0 | BT92: NA | BU92: 0 | BV92: NA | BW92: 0 | BX92: NA | BY92: 0 | BZ92: NA | CA92: 0 | CB92: NA | CC92: 0 | CD92: NA | CE92: 0 | CF92: NA | CG92: 0 | CH92: NA | CI92: 0 | CJ92: NA | CK92: 1 | CL92: 1 | CM92: 0 | CN92: NA | CO92: 0 | CP92: NA | CQ92: 0 | CR92: NA | CS92: 0 | CT92: NA | CU92: 0 | CV92: NA | CW92: 0 | CX92: NA | CY92: 0 | CZ92: NA | DA92: 0 | DB92: NA | DC92: 0 | DD92: NA | DE92: 0 | DF92: NA | DG92: 0 | DH92: NA | DI92: 0 | DJ92: NA | DK92: 0 | DL92: NA | DM92: 0 | DN92: NA | DO92: 0 | DP92: NA
A93: 12 | B93: www.realitatea.net | C93: 67 | D93: 1 | E93: 2 | F93: 0 | G93: 2 | H93: 2 | I93: 1 | J93: 1 | K93: 0 | L93: 0 | M93: 0 | N93: 1 | O93: 1 | P93: 0 | Q93: 0 | R93: 1 | S93: 0 | T93: 0 | U93: 1 | V93: 0 | W93: 0 | X93: NA | Y93: 1 | Z93: 1 | AA93: 0 | AB93: NA | AC93: 0 | AD93: NA | AE93: 0 | AF93: NA | AG93: 1 | AH93: 0 | AI93: 1 | AJ93: 0 | AK93: 1 | AL93: 0 | AM93: 0 | AN93: NA | AO93: 1 | AP93: 0 | AQ93: 0 | AR93: NA | AS93: 1 | AT93: 2 | AU93: 0 | AV93: NA | AW93: 0 | AX93: NA | AY93: 0 | AZ93: NA | BA93: 0 | BB93: NA | BC93: 0 | BD93: NA | BE93: 1 | BF93: 0 | BG93: 0 | BH93: NA | BI93: 1 | BJ93: 0 | BK93: 0 | BL93: NA | BM93: 1 | BN93: 0 | BO93: 1 | BP93: 0 | BQ93: 0 | BR93: NA | BS93: 0 | BT93: NA | BU93: 1 | BV93: 0 | BW93: 1 | BX93: 1 | BY93: 1 | BZ93: 1 | CA93: 0 | CB93: NA | CC93: 0 | CD93: NA | CE93: 0 | CF93: NA | CG93: 0 | CH93: NA | CI93: 0 | CJ93: NA | CK93: 1 | CL93: 1 | CM93: 1 | CN93: 1 | CO93: 0 | CP93: NA | CQ93: 0 | CR93: NA | CS93: 0 | CT93: NA | CU93: 0 | CV93: NA | CW93: 0 | CX93: NA | CY93: 0 | CZ93: NA | DA93: 0 | DB93: NA | DC93: 0 | DD93: NA | DE93: 0 | DF93: NA | DG93: 0 | DH93: NA | DI93: 0 | DJ93: NA | DK93: 0 | DL93: NA | DM93: 0 | DN93: NA | DO93: 0 | DP93: NA
A94: 13 | B94: raportuldegarda.ro | C94: 74 | D94: 1 | E94: 6 | F94: 0 | G94: 1 | H94: 0 | I94: 0 | J94: 1 | K94: 0 | L94: 0 | M94: 0 | N94: 0 | O94: 1 | P94: 1 | Q94: 0 | R94: 1 | S94: 0 | T94: 0 | U94: 1 | V94: 0 | W94: 1 | X94: 2 | Y94: 1 | Z94: 1 | AA94: 0 | AB94: NA | AC94: 0 | AD94: NA | AE94: 0 | AF94: NA | AG94: 0 | AH94: NA | AI94: 0 | AJ94: NA | AK94: 0 | AL94: NA | AM94: 0 | AN94: NA | AO94: 0 | AP94: NA | AQ94: 0 | AR94: NA | AS94: 0 | AT94: NA | AU94: 0 | AV94: NA | AW94: 0 | AX94: NA | AY94: 0 | AZ94: NA | BA94: 0 | BB94: NA | BC94: 0 | BD94: NA | BE94: 0 | BF94: NA | BG94: 0 | BH94: NA | BI94: 0 | BJ94: NA | BK94: 0 | BL94: NA | BM94: 0 | BN94: NA | BO94: 0 | BP94: NA | BQ94: 0 | BR94: NA | BS94: 0 | BT94: NA | BU94: 1 | BV94: 1 | BW94: 0 | BX94: NA | BY94: 0 | BZ94: NA | CA94: 0 | CB94: NA | CC94: 0 | CD94: NA | CE94: 1 | CF94: 0 | CG94: 0 | CH94: NA | CI94: 0 | CJ94: NA | CK94: 0 | CL94: NA | CM94: 0 | CN94: NA | CO94: 0 | CP94: NA | CQ94: 0 | CR94: NA | CS94: 0 | CT94: NA | CU94: 0 | CV94: NA | CW94: 0 | CX94: NA | CY94: 0 | CZ94: NA | DA94: 1 | DB94: 1 | DC94: 0 | DD94: NA | DE94: 0 | DF94: NA | DG94: 0 | DH94: NA | DI94: 0 | DJ94: NA | DK94: 0 | DL94: NA | DM94: 0 | DN94: NA | DO94: 0 | DP94: NA
A95: 14 | B95: www.chirurgievasculara.ro | C95: 82 | D95: 0 | E95: 1 | F95: 1 | G95: 3 | H95: 0 | I95: 1 | J95: 1 | K95: 0 | L95: 0 | M95: 0 | N95: 0 | O95: 1 | P95: 0 | Q95: 0 | R95: 0 | S95: 0 | T95: 0 | U95: 1 | V95: 2 | W95: 0 | X95: NA | Y95: 1 | Z95: 0 | AA95: 1 | AB95: 0 | AC95: 1 | AD95: 0 | AE95: 0 | AF95: NA | AG95: 0 | AH95: NA | AI95: 1 | AJ95: 2 | AK95: 1 | AL95: 1 | AM95: 1 | AN95: 1 | AO95: 1 | AP95: 1 | AQ95: 1 | AR95: 2 | AS95: 1 | AT95: 2 | AU95: 1 | AV95: 0 | AW95: 0 | AX95: NA | AY95: 1 | AZ95: 2 | BA95: 0 | BB95: NA | BC95: 0 | BD95: NA | BE95: 1 | BF95: 1 | BG95: 1 | BH95: 2 | BI95: 1 | BJ95: 1 | BK95: 1 | BL95: 2 | BM95: 1 | BN95: 2 | BO95: 0 | BP95: NA | BQ95: 1 | BR95: 0 | BS95: 1 | BT95: 2 | BU95: 1 | BV95: 0 | BW95: 0 | BX95: NA | BY95: 0 | BZ95: NA | CA95: 1 | CB95: 1 | CC95: 1 | CD95: 1 | CE95: 0 | CF95: NA | CG95: 0 | CH95: NA | CI95: 0 | CJ95: NA | CK95: 1 | CL95: 0 | CM95: 1 | CN95: 1 | CO95: 1 | CP95: 0 | CQ95: 0 | CR95: NA | CS95: 0 | CT95: NA | CU95: 0 | CV95: NA | CW95: 0 | CX95: NA | CY95: 0 | CZ95: NA | DA95: 1 | DB95: 0 | DC95: 0 | DD95: NA | DE95: 0 | DF95: NA | DG95: 0 | DH95: NA | DI95: 0 | DJ95: NA | DK95: 0 | DL95: NA | DM95: 0 | DN95: NA | DO95: 0 | DP95: NA
A96: 15 | B96: acum.tv | C96: 93 | D96: 1 | E96: 0 | F96: 0 | G96: 2 | H96: 0 | I96: 1 | J96: 1 | K96: 0 | L96: 0 | M96: 0 | N96: 1 | O96: 1 | P96: 1 | Q96: 0 | R96: 1 | S96: 0 | T96: 0 | U96: 1 | V96: 0 | W96: 0 | X96: NA | Y96: 0 | Z96: NA | AA96: 1 | AB96: 0 | AC96: 1 | AD96: 1 | AE96: 1 | AF96: 1 | AG96: 0 | AH96: NA | AI96: 0 | AJ96: NA | AK96: 0 | AL96: NA | AM96: 0 | AN96: NA | AO96: 0 | AP96: NA | AQ96: 0 | AR96: NA | AS96: 1 | AT96: 0 | AU96: 0 | AV96: NA | AW96: 0 | AX96: NA | AY96: 0 | AZ96: NA | BA96: 0 | BB96: NA | BC96: 0 | BD96: NA | BE96: 0 | BF96: NA | BG96: 0 | BH96: NA | BI96: 0 | BJ96: NA | BK96: 0 | BL96: NA | BM96: 0 | BN96: NA | BO96: 0 | BP96: NA | BQ96: 0 | BR96: NA | BS96: 0 | BT96: NA | BU96: 0 | BV96: NA | BW96: 0 | BX96: NA | BY96: 0 | BZ96: NA | CA96: 0 | CB96: NA | CC96: 0 | CD96: NA | CE96: 0 | CF96: NA | CG96: 0 | CH96: NA | CI96: 1 | CJ96: 0 | CK96: 1 | CL96: 1 | CM96: 0 | CN96: NA | CO96: 0 | CP96: NA | CQ96: 0 | CR96: NA | CS96: 0 | CT96: NA | CU96: 0 | CV96: NA | CW96: 0 | CX96: NA | CY96: 0 | CZ96: NA | DA96: 0 | DB96: NA | DC96: 0 | DD96: NA | DE96: 0 | DF96: NA | DG96: 0 | DH96: NA | DI96: 0 | DJ96: NA | DK96: 0 | DL96: NA | DM96: 0 | DN96: NA | DO96: 0 | DP96: NA
A97: 16 | B97: www.cardio-team.ro | C97: 97 | D97: 0 | E97: 1 | F97: 1 | G97: 3 | H97: 0 | I97: 1 | J97: 1 | K97: 0 | L97: 0 | M97: 0 | N97: 0 | O97: 1 | P97: 0 | Q97: 0 | R97: 0 | S97: 0 | T97: 0 | U97: 0 | V97: NA | W97: 0 | X97: NA | Y97: 0 | Z97: NA | AA97: 1 | AB97: 0 | AC97: 1 | AD97: 1 | AE97: 0 | AF97: NA | AG97: 0 | AH97: NA | AI97: 0 | AJ97: NA | AK97: 0 | AL97: NA | AM97: 0 | AN97: NA | AO97: 0 | AP97: NA | AQ97: 0 | AR97: NA | AS97: 0 | AT97: NA | AU97: 0 | AV97: NA | AW97: 0 | AX97: NA | AY97: 0 | AZ97: NA | BA97: 0 | BB97: NA | BC97: 0 | BD97: NA | BE97: 0 | BF97: NA | BG97: 0 | BH97: NA | BI97: 0 | BJ97: NA | BK97: 0 | BL97: NA | BM97: 0 | BN97: NA | BO97: 0 | BP97: NA | BQ97: 0 | BR97: NA | BS97: 0 | BT97: NA | BU97: 1 | BV97: 0 | BW97: 0 | BX97: NA | BY97: 0 | BZ97: NA | CA97: 0 | CB97: NA | CC97: 0 | CD97: NA | CE97: 1 | CF97: 0 | CG97: 1 | CH97: 1 | CI97: 1 | CJ97: 1 | CK97: 1 | CL97: 1 | CM97: 0 | CN97: NA | CO97: 0 | CP97: NA | CQ97: 0 | CR97: NA | CS97: 0 | CT97: NA | CU97: 0 | CV97: NA | CW97: 0 | CX97: NA | CY97: 0 | CZ97: NA | DA97: 0 | DB97: NA | DC97: 0 | DD97: NA | DE97: 0 | DF97: NA | DG97: 0 | DH97: NA | DI97: 0 | DJ97: NA | DK97: 0 | DL97: NA | DM97: 0 | DN97: NA | DO97: 0 | DP97: NA
A98: 17 | B98: www.humanitas.net | C98: 106 | D98: 1 | E98: 1 | F98: 1 | G98: 3 | H98: 0 | I98: 0 | J98: 1 | K98: 0 | L98: 0 | M98: 0 | N98: 0 | O98: 1 | P98: 0 | Q98: 0 | R98: 0 | S98: 0 | T98: 0 | U98: 1 | V98: 1 | W98: 0 | X98: NA | Y98: 1 | Z98: 0 | AA98: 1 | AB98: 1 | AC98: 1 | AD98: 1 | AE98: 0 | AF98: NA | AG98: 0 | AH98: NA | AI98: 1 | AJ98: 1 | AK98: 1 | AL98: 0 | AM98: 1 | AN98: 1 | AO98: 1 | AP98: 1 | AQ98: 0 | AR98: NA | AS98: 1 | AT98: 2 | AU98: 0 | AV98: NA | AW98: 0 | AX98: NA | AY98: 0 | AZ98: NA | BA98: 0 | BB98: NA | BC98: 0 | BD98: NA | BE98: 0 | BF98: NA | BG98: 0 | BH98: NA | BI98: 0 | BJ98: NA | BK98: 0 | BL98: NA | BM98: 1 | BN98: 1 | BO98: 1 | BP98: 1 | BQ98: 0 | BR98: NA | BS98: 1 | BT98: 1 | BU98: 0 | BV98: NA | BW98: 0 | BX98: NA | BY98: 0 | BZ98: NA | CA98: 0 | CB98: NA | CC98: 1 | CD98: 1 | CE98: 0 | CF98: NA | CG98: 0 | CH98: NA | CI98: 0 | CJ98: NA | CK98: 1 | CL98: 1 | CM98: 1 | CN98: 1 | CO98: 0 | CP98: NA | CQ98: 0 | CR98: NA | CS98: 0 | CT98: NA | CU98: 0 | CV98: NA | CW98: 0 | CX98: NA | CY98: 0 | CZ98: NA | DA98: 0 | DB98: NA | DC98: 0 | DD98: NA | DE98: 0 | DF98: NA | DG98: 0 | DH98: NA | DI98: 0 | DJ98: NA | DK98: 0 | DL98: NA | DM98: 0 | DN98: NA | DO98: 0 | DP98: NA
A99: 18 | B99: www.medconmed.ro | C99: 109 | D99: 1 | E99: 3 | F99: 1 | G99: 3 | H99: 0 | I99: 1 | J99: 1 | K99: 0 | L99: 0 | M99: 1 | N99: 0 | O99: 1 | P99: 0 | Q99: 0 | R99: 0 | S99: 0 | T99: 0 | U99: 1 | V99: 1 | W99: 0 | X99: NA | Y99: 0 | Z99: NA | AA99: 1 | AB99: 0 | AC99: 1 | AD99: 0 | AE99: 0 | AF99: NA | AG99: 0 | AH99: NA | AI99: 0 | AJ99: NA | AK99: 0 | AL99: NA | AM99: 0 | AN99: NA | AO99: 0 | AP99: NA | AQ99: 0 | AR99: NA | AS99: 1 | AT99: 2 | AU99: 0 | AV99: NA | AW99: 0 | AX99: NA | AY99: 0 | AZ99: NA | BA99: 0 | BB99: NA | BC99: 0 | BD99: NA | BE99: 1 | BF99: 1 | BG99: 1 | BH99: 1 | BI99: 1 | BJ99: 1 | BK99: 1 | BL99: 1 | BM99: 1 | BN99: 0 | BO99: 1 | BP99: 1 | BQ99: 0 | BR99: NA | BS99: 1 | BT99: 0 | BU99: 1 | BV99: 1 | BW99: 0 | BX99: NA | BY99: 0 | BZ99: NA | CA99: 0 | CB99: NA | CC99: 0 | CD99: NA | CE99: 0 | CF99: NA | CG99: 0 | CH99: NA | CI99: 0 | CJ99: NA | CK99: 1 | CL99: 1 | CM99: 1 | CN99: 1 | CO99: 0 | CP99: NA | CQ99: 0 | CR99: NA | CS99: 0 | CT99: NA | CU99: 0 | CV99: NA | CW99: 0 | CX99: NA | CY99: 0 | CZ99: NA | DA99: 0 | DB99: NA | DC99: 0 | DD99: NA | DE99: 0 | DF99: NA | DG99: 0 | DH99: NA | DI99: 0 | DJ99: NA | DK99: 0 | DL99: NA | DM99: 0 | DN99: NA | DO99: 0 | DP99: NA
A100: 19 | B100: doc.ro | C100: 114 | D100: 1 | E100: 6 | F100: 0 | G100: 4 | H100: 1 | I100: 0 | J100: 0 | K100: 0 | L100: 0 | M100: 0 | N100: 0 | O100: 0 | P100: 1 | Q100: 0 | R100: 0 | S100: 0 | T100: 0 | U100: 1 | V100: 0 | W100: 1 | X100: 0 | Y100: 1 | Z100: 0 | AA100: 1 | AB100: 2 | AC100: 1 | AD100: 2 | AE100: 1 | AF100: 2 | AG100: 1 | AH100: 2 | AI100: 0 | AJ100: NA | AK100: 0 | AL100: NA | AM100: 0 | AN100: NA | AO100: 0 | AP100: NA | AQ100: 0 | AR100: NA | AS100: 0 | AT100: NA | AU100: 0 | AV100: NA | AW100: 0 | AX100: NA | AY100: 0 | AZ100: NA | BA100: 0 | BB100: NA | BC100: 0 | BD100: NA | BE100: 1 | BF100: 0 | BG100: 1 | BH100: 1 | BI100: 1 | BJ100: 0 | BK100: 1 | BL100: 1 | BM100: 1 | BN100: 1 | BO100: 0 | BP100: NA | BQ100: 0 | BR100: NA | BS100: 0 | BT100: NA | BU100: 0 | BV100: NA | BW100: 0 | BX100: NA | BY100: 0 | BZ100: NA | CA100: 0 | CB100: NA | CC100: 0 | CD100: NA | CE100: 0 | CF100: NA | CG100: 0 | CH100: NA | CI100: 0 | CJ100: NA | CK100: 1 | CL100: 1 | CM100: 1 | CN100: 1 | CO100: 0 | CP100: NA | CQ100: 0 | CR100: NA | CS100: 1 | CT100: 0 | CU100: 1 | CV100: 0 | CW100: 0 | CX100: NA | CY100: 0 | CZ100: NA | DA100: 1 | DB100: 2 | DC100: 0 | DD100: NA | DE100: 0 | DF100: NA | DG100: 0 | DH100: NA | DI100: 0 | DJ100: NA | DK100: 0 | DL100: NA | DM100: 0 | DN100: NA | DO100: 0 | DP100: NA
A101: 20 | B101: www.cardiolifearad.ro | C101: 117 | D101: 0 | E101: 1 | F101: 1 | G101: 3 | H101: 0 | I101: 1 | J101: 1 | K101: 0 | L101: 0 | M101: 0 | N101: 1 | O101: 1 | P101: 0 | Q101: 0 | R101: 0 | S101: 0 | T101: 0 | U101: 1 | V101: 1 | W101: 0 | X101: NA | Y101: 0 | Z101: NA | AA101: 0 | AB101: NA | AC101: 0 | AD101: NA | AE101: 0 | AF101: NA | AG101: 0 | AH101: NA | AI101: 0 | AJ101: NA | AK101: 0 | AL101: NA | AM101: 0 | AN101: NA | AO101: 0 | AP101: NA | AQ101: 0 | AR101: NA | AS101: 0 | AT101: NA | AU101: 0 | AV101: NA | AW101: 0 | AX101: NA | AY101: 0 | AZ101: NA | BA101: 0 | BB101: NA | BC101: 0 | BD101: NA | BE101: 1 | BF101: 0 | BG101: 0 | BH101: NA | BI101: 0 | BJ101: NA | BK101: 1 | BL101: 1 | BM101: 1 | BN101: 1 | BO101: 0 | BP101: NA | BQ101: 0 | BR101: NA | BS101: 1 | BT101: 0 | BU101: 0 | BV101: NA | BW101: 0 | BX101: NA | BY101: 0 | BZ101: NA | CA101: 0 | CB101: NA | CC101: 0 | CD101: NA | CE101: 0 | CF101: NA | CG101: 0 | CH101: NA | CI101: 0 | CJ101: NA | CK101: 0 | CL101: NA | CM101: 1 | CN101: 0 | CO101: 0 | CP101: NA | CQ101: 0 | CR101: NA | CS101: 0 | CT101: NA | CU101: 0 | CV101: NA | CW101: 0 | CX101: NA | CY101: 0 | CZ101: NA | DA101: 0 | DB101: NA | DC101: 0 | DD101: NA | DE101: 0 | DF101: NA | DG101: 0 | DH101: NA | DI101: 0 | DJ101: NA | DK101: 0 | DL101: NA | DM101: 0 | DN101: NA | DO101: 0 | DP101: NA
A102: 21 | B102: ro.caloriehealthy.com | C102: 131 | D102: 1 | E102: 6 | F102: 0 | G102: 0 | H102: 1 | I102: 0 | J102: 0 | K102: 0 | L102: 0 | M102: 0 | N102: 0 | O102: 0 | P102: 0 | Q102: 0 | R102: 0 | S102: 0 | T102: 0 | U102: 0 | V102: NA | W102: 0 | X102: NA | Y102: 0 | Z102: NA | AA102: 0 | AB102: NA | AC102: 0 | AD102: NA | AE102: 0 | AF102: NA | AG102: 0 | AH102: NA | AI102: 0 | AJ102: NA | AK102: 0 | AL102: NA | AM102: 0 | AN102: NA | AO102: 0 | AP102: NA | AQ102: 0 | AR102: NA | AS102: 0 | AT102: NA | AU102: 0 | AV102: NA | AW102: 0 | AX102: NA | AY102: 0 | AZ102: NA | BA102: 0 | BB102: NA | BC102: 0 | BD102: NA | BE102: 0 | BF102: NA | BG102: 0 | BH102: NA | BI102: 1 | BJ102: 0 | BK102: 1 | BL102: 0 | BM102: 1 | BN102: 1 | BO102: 0 | BP102: NA | BQ102: 0 | BR102: NA | BS102: 0 | BT102: NA | BU102: 0 | BV102: NA | BW102: 0 | BX102: NA | BY102: 0 | BZ102: NA | CA102: 0 | CB102: NA | CC102: 0 | CD102: NA | CE102: 0 | CF102: NA | CG102: 0 | CH102: NA | CI102: 0 | CJ102: NA | CK102: 0 | CL102: NA | CM102: 0 | CN102: NA | CO102: 0 | CP102: NA | CQ102: 0 | CR102: NA | CS102: 0 | CT102: NA | CU102: 0 | CV102: NA | CW102: 0 | CX102: NA | CY102: 0 | CZ102: NA | DA102: 0 | DB102: NA | DC102: 0 | DD102: NA | DE102: 0 | DF102: NA | DG102: 0 | DH102: NA | DI102: 0 | DJ102: NA | DK102: 0 | DL102: NA | DM102: 0 | DN102: NA | DO102: 0 | DP102: NA
A103: 22 | B103: ro.medicok.com | C103: 136 | D103: 1 | E103: 6 | F103: 0 | G103: 0 | H103: 1 | I103: 0 | J103: 0 | K103: 0 | L103: 0 | M103: 0 | N103: 0 | O103: 0 | P103: 0 | Q103: 0 | R103: 1 | S103: 0 | T103: 0 | U103: 1 | V103: 1 | W103: 1 | X103: 1 | Y103: 0 | Z103: NA | AA103: 0 | AB103: NA | AC103: 0 | AD103: NA | AE103: 0 | AF103: NA | AG103: 1 | AH103: 0 | AI103: 0 | AJ103: NA | AK103: 0 | AL103: NA | AM103: 0 | AN103: NA | AO103: 0 | AP103: NA | AQ103: 0 | AR103: NA | AS103: 1 | AT103: 2 | AU103: 0 | AV103: NA | AW103: 0 | AX103: NA | AY103: 0 | AZ103: NA | BA103: 0 | BB103: NA | BC103: 0 | BD103: NA | BE103: 1 | BF103: 0 | BG103: 1 | BH103: 0 | BI103: 1 | BJ103: 0 | BK103: 1 | BL103: 1 | BM103: 1 | BN103: 1 | BO103: 0 | BP103: NA | BQ103: 0 | BR103: NA | BS103: 1 | BT103: 0 | BU103: 0 | BV103: NA | BW103: 1 | BX103: 0 | BY103: 0 | BZ103: NA | CA103: 0 | CB103: NA | CC103: 0 | CD103: NA | CE103: 0 | CF103: NA | CG103: 0 | CH103: NA | CI103: 0 | CJ103: NA | CK103: 0 | CL103: NA | CM103: 0 | CN103: NA | CO103: 0 | CP103: NA | CQ103: 0 | CR103: NA | CS103: 0 | CT103: NA | CU103: 0 | CV103: NA | CW103: 0 | CX103: NA | CY103: 0 | CZ103: NA | DA103: 0 | DB103: NA | DC103: 0 | DD103: NA | DE103: 0 | DF103: NA | DG103: 0 | DH103: NA | DI103: 0 | DJ103: NA | DK103: 0 | DL103: NA | DM103: 0 | DN103: NA | DO103: 0 | DP103: NA
A104: 23 | B104: albertcountyhomecare.com | C104: 152 | D104: 1 | E104: 6 | F104: 0 | G104: 0 | H104: 0 | I104: 0 | J104: 0 | K104: 0 | L104: 0 | M104: 0 | N104: 0 | O104: 0 | P104: 0 | Q104: 0 | R104: 0 | S104: 0 | T104: 0 | U104: 1 | V104: 1 | W104: 1 | X104: 2 | Y104: 1 | Z104: 0 | AA104: 1 | AB104: 1 | AC104: 0 | AD104: NA | AE104: 0 | AF104: NA | AG104: 1 | AH104: 1 | AI104: 0 | AJ104: NA | AK104: 0 | AL104: NA | AM104: 0 | AN104: NA | AO104: 0 | AP104: NA | AQ104: 0 | AR104: NA | AS104: 0 | AT104: NA | AU104: 0 | AV104: NA | AW104: 0 | AX104: NA | AY104: 0 | AZ104: NA | BA104: 0 | BB104: NA | BC104: 0 | BD104: NA | BE104: 1 | BF104: 1 | BG104: 1 | BH104: 1 | BI104: 1 | BJ104: 1 | BK104: 1 | BL104: 0 | BM104: 1 | BN104: 1 | BO104: 1 | BP104: 0 | BQ104: 0 | BR104: NA | BS104: 1 | BT104: 1 | BU104: 1 | BV104: 1 | BW104: 1 | BX104: 1 | BY104: 0 | BZ104: NA | CA104: 1 | CB104: 1 | CC104: 1 | CD104: 2 | CE104: 1 | CF104: 2 | CG104: 0 | CH104: NA | CI104: 1 | CJ104: 2 | CK104: 1 | CL104: 1 | CM104: 1 | CN104: 1 | CO104: 1 | CP104: 1 | CQ104: 0 | CR104: NA | CS104: 0 | CT104: NA | CU104: 0 | CV104: NA | CW104: 1 | CX104: 2 | CY104: 0 | CZ104: NA | DA104: 1 | DB104: 1 | DC104: 0 | DD104: NA | DE104: 1 | DF104: 1 | DG104: 1 | DH104: 2 | DI104: 1 | DJ104: 0 | DK104: 0 | DL104: NA | DM104: 0 | DN104: NA | DO104: 0 | DP104: NA
A105: 24 | B105: www.csid.ro | C105: 158 | D105: 1 | E105: 2 | F105: 0 | G105: 2 | H105: 0 | I105: 1 | J105: 0 | K105: 1 | L105: 0 | M105: 0 | N105: 0 | O105: 1 | P105: 0 | Q105: 1 | R105: 0 | S105: 0 | T105: 0 | U105: 1 | V105: 1 | W105: 0 | X105: NA | Y105: 1 | Z105: 0 | AA105: 0 | AB105: NA | AC105: 0 | AD105: NA | AE105: 0 | AF105: NA | AG105: 0 | AH105: NA | AI105: 1 | AJ105: 0 | AK105: 1 | AL105: 0 | AM105: 0 | AN105: NA | AO105: 1 | AP105: 0 | AQ105: 0 | AR105: NA | AS105: 1 | AT105: 2 | AU105: 0 | AV105: NA | AW105: 0 | AX105: NA | AY105: 0 | AZ105: NA | BA105: 0 | BB105: NA | BC105: 0 | BD105: NA | BE105: 1 | BF105: 0 | BG105: 1 | BH105: 0 | BI105: 0 | BJ105: NA | BK105: 0 | BL105: NA | BM105: 1 | BN105: 0 | BO105: 1 | BP105: 0 | BQ105: 0 | BR105: NA | BS105: 0 | BT105: NA | BU105: 1 | BV105: 0 | BW105: 1 | BX105: 1 | BY105: 0 | BZ105: NA | CA105: 0 | CB105: NA | CC105: 0 | CD105: NA | CE105: 0 | CF105: NA | CG105: 0 | CH105: NA | CI105: 0 | CJ105: NA | CK105: 1 | CL105: 2 | CM105: 1 | CN105: 1 | CO105: 0 | CP105: NA | CQ105: 0 | CR105: NA | CS105: 0 | CT105: NA | CU105: 0 | CV105: NA | CW105: 0 | CX105: NA | CY105: 0 | CZ105: NA | DA105: 0 | DB105: NA | DC105: 0 | DD105: NA | DE105: 0 | DF105: NA | DG105: 0 | DH105: NA | DI105: 0 | DJ105: NA | DK105: 0 | DL105: NA | DM105: 0 | DN105: NA | DO105: 0 | DP105: NA
A106: 25 | B106: www.easistent.ro | C106: 167 | D106: 0 | E106: 6 | F106: 0 | G106: 1 | H106: 0 | I106: 0 | J106: 1 | K106: 0 | L106: 0 | M106: 0 | N106: 0 | O106: 1 | P106: 1 | Q106: 1 | R106: 1 | S106: 0 | T106: 0 | U106: 1 | V106: 1 | W106: 0 | X106: NA | Y106: 0 | Z106: NA | AA106: 1 | AB106: 0 | AC106: 0 | AD106: NA | AE106: 1 | AF106: 1 | AG106: 0 | AH106: NA | AI106: 0 | AJ106: NA | AK106: 0 | AL106: NA | AM106: 0 | AN106: NA | AO106: 0 | AP106: NA | AQ106: 0 | AR106: NA | AS106: 0 | AT106: NA | AU106: 0 | AV106: NA | AW106: 0 | AX106: NA | AY106: 0 | AZ106: NA | BA106: 0 | BB106: NA | BC106: 0 | BD106: NA | BE106: 0 | BF106: NA | BG106: 0 | BH106: NA | BI106: 0 | BJ106: NA | BK106: 0 | BL106: NA | BM106: 0 | BN106: NA | BO106: 0 | BP106: NA | BQ106: 0 | BR106: NA | BS106: 0 | BT106: NA | BU106: 1 | BV106: 0 | BW106: 0 | BX106: NA | BY106: 0 | BZ106: NA | CA106: 0 | CB106: NA | CC106: 0 | CD106: NA | CE106: 0 | CF106: NA | CG106: 0 | CH106: NA | CI106: 0 | CJ106: NA | CK106: 0 | CL106: NA | CM106: 1 | CN106: 0 | CO106: 0 | CP106: NA | CQ106: 0 | CR106: NA | CS106: 0 | CT106: NA | CU106: 0 | CV106: NA | CW106: 0 | CX106: NA | CY106: 0 | CZ106: NA | DA106: 0 | DB106: NA | DC106: 0 | DD106: NA | DE106: 0 | DF106: NA | DG106: 0 | DH106: NA | DI106: 0 | DJ106: NA | DK106: 0 | DL106: NA | DM106: 0 | DN106: NA | DO106: 0 | DP106: NA
A107: Russian language
A108: 1 | B108: www.wikiwand.com | C108: 1 | D108: 1 | E108: 6 | F108: 0 | G108: 1 | H108: 2 | I108: 0 | J108: 1 | K108: 0 | L108: 1 | M108: 1 | N108: 1 | O108: 0 | P108: 0 | Q108: 1 | R108: 0 | S108: 1 | T108: 0 | U108: 1 | V108: 2 | W108: 1 | X108: 1 | Y108: 1 | Z108: 1 | AA108: 1 | AB108: 1 | AC108: 1 | AD108: 2 | AE108: 1 | AF108: 0 | AG108: 0 | AH108: NA | AI108: 0 | AJ108: NA | AK108: 1 | AL108: 1 | AM108: 1 | AN108: 1 | AO108: 0 | AP108: NA | AQ108: 0 | AR108: NA | AS108: 1 | AT108: 2 | AU108: 0 | AV108: NA | AW108: 0 | AX108: NA | AY108: 0 | AZ108: NA | BA108: 0 | BB108: NA | BC108: 1 | BD108: 0 | BE108: 1 | BF108: 0 | BG108: 1 | BH108: 1 | BI108: 1 | BJ108: 0 | BK108: 1 | BL108: 1 | BM108: 1 | BN108: 2 | BO108: 0 | BP108: NA | BQ108: 0 | BR108: NA | BS108: 1 | BT108: 0 | BU108: 0 | BV108: NA | BW108: 0 | BX108: NA | BY108: 0 | BZ108: NA | CA108: 1 | CB108: 1 | CC108: 1 | CD108: 0 | CE108: 1 | CF108: 1 | CG108: 0 | CH108: NA | CI108: 0 | CJ108: NA | CK108: 1 | CL108: 2 | CM108: 0 | CN108: NA | CO108: 0 | CP108: NA | CQ108: 1 | CR108: 0 | CS108: 1 | CT108: 0 | CU108: 1 | CV108: 0 | CW108: 0 | CX108: NA | CY108: 0 | CZ108: NA | DA108: 1 | DB108: 0 | DC108: 0 | DD108: NA | DE108: 0 | DF108: NA | DG108: 1 | DH108: 0 | DI108: 0 | DJ108: NA | DK108: 0 | DL108: NA | DM108: 0 | DN108: NA | DO108: 0 | DP108: NA
A109: 2 | B109: www.10gkb.by | C109: 3 | D109: 1 | E109: 1 | F109: 1 | G109: 3 | H109: 0 | I109: 1 | J109: 1 | K109: 0 | L109: 1 | M109: 0 | N109: 0 | O109: 1 | P109: 1 | Q109: 0 | R109: 1 | S109: 1 | T109: 0 | U109: 1 | V109: 2 | W109: 0 | X109: NA | Y109: 1 | Z109: 0 | AA109: 0 | AB109: NA | AC109: 1 | AD109: 2 | AE109: 0 | AF109: NA | AG109: 1 | AH109: 0 | AI109: 0 | AJ109: NA | AK109: 0 | AL109: NA | AM109: 0 | AN109: NA | AO109: 0 | AP109: NA | AQ109: 0 | AR109: NA | AS109: 1 | AT109: 2 | AU109: 0 | AV109: NA | AW109: 0 | AX109: NA | AY109: 0 | AZ109: NA | BA109: 0 | BB109: NA | BC109: 0 | BD109: NA | BE109: 1 | BF109: 1 | BG109: 1 | BH109: 1 | BI109: 1 | BJ109: 0 | BK109: 1 | BL109: 1 | BM109: 1 | BN109: 1 | BO109: 0 | BP109: NA | BQ109: 0 | BR109: NA | BS109: 1 | BT109: 0 | BU109: 1 | BV109: 0 | BW109: 1 | BX109: 1 | BY109: 0 | BZ109: NA | CA109: 1 | CB109: 1 | CC109: 1 | CD109: 1 | CE109: 1 | CF109: 2 | CG109: 1 | CH109: 1 | CI109: 0 | CJ109: NA | CK109: 1 | CL109: 2 | CM109: 1 | CN109: 1 | CO109: 0 | CP109: NA | CQ109: 1 | CR109: 0 | CS109: 1 | CT109: 1 | CU109: 1 | CV109: 1 | CW109: 0 | CX109: NA | CY109: 0 | CZ109: NA | DA109: 0 | DB109: NA | DC109: 0 | DD109: NA | DE109: 0 | DF109: NA | DG109: 1 | DH109: 2 | DI109: 0 | DJ109: NA | DK109: 0 | DL109: NA | DM109: 0 | DN109: NA | DO109: 0 | DP109: NA
A110: 3 | B110: www.rambam-health.org.il | C110: 4 | D110: 1 | E110: 1 | F110: 1 | G110: 3 | H110: 0 | I110: 1 | J110: 1 | K110: 1 | L110: 1 | M110: 1 | N110: 1 | O110: 1 | P110: 0 | Q110: 0 | R110: 0 | S110: 0 | T110: 0 | U110: 1 | V110: 2 | W110: 0 | X110: NA | Y110: 0 | Z110: NA | AA110: 0 | AB110: NA | AC110: 1 | AD110: 2 | AE110: 0 | AF110: NA | AG110: 1 | AH110: 0 | AI110: 0 | AJ110: NA | AK110: 0 | AL110: NA | AM110: 0 | AN110: NA | AO110: 0 | AP110: NA | AQ110: 0 | AR110: NA | AS110: 1 | AT110: 2 | AU110: 0 | AV110: NA | AW110: 0 | AX110: NA | AY110: 0 | AZ110: NA | BA110: 0 | BB110: NA | BC110: 0 | BD110: NA | BE110: 1 | BF110: 1 | BG110: 1 | BH110: 1 | BI110: 1 | BJ110: 0 | BK110: 1 | BL110: 0 | BM110: 1 | BN110: 1 | BO110: 0 | BP110: NA | BQ110: 0 | BR110: NA | BS110: 0 | BT110: NA | BU110: 1 | BV110: 1 | BW110: 0 | BX110: NA | BY110: 0 | BZ110: NA | CA110: 0 | CB110: NA | CC110: 0 | CD110: NA | CE110: 1 | CF110: 0 | CG110: 0 | CH110: NA | CI110: 0 | CJ110: NA | CK110: 1 | CL110: 0 | CM110: 1 | CN110: 0 | CO110: 0 | CP110: NA | CQ110: 1 | CR110: 0 | CS110: 0 | CT110: NA | CU110: 1 | CV110: 0 | CW110: 0 | CX110: NA | CY110: 0 | CZ110: NA | DA110: 0 | DB110: NA | DC110: 0 | DD110: NA | DE110: 0 | DF110: NA | DG110: 1 | DH110: 0 | DI110: 0 | DJ110: NA | DK110: 0 | DL110: NA | DM110: 0 | DN110: NA | DO110: 0 | DP110: NA
A111: 4 | B111: gb71.ru | C111: 5 | D111: 1 | E111: 1 | F111: 1 | G111: 3 | H111: 0 | I111: 1 | J111: 0 | K111: 0 | L111: 1 | M111: 1 | N111: 0 | O111: 1 | P111: 0 | Q111: 0 | R111: 0 | S111: 0 | T111: 0 | U111: 1 | V111: 2 | W111: 1 | X111: 1 | Y111: 0 | Z111: NA | AA111: 1 | AB111: 0 | AC111: 1 | AD111: 2 | AE111: 1 | AF111: 2 | AG111: 0 | AH111: NA | AI111: 0 | AJ111: NA | AK111: 0 | AL111: NA | AM111: 0 | AN111: NA | AO111: 0 | AP111: NA | AQ111: 0 | AR111: NA | AS111: 0 | AT111: NA | AU111: 0 | AV111: NA | AW111: 0 | AX111: NA | AY111: 0 | AZ111: NA | BA111: 0 | BB111: NA | BC111: 0 | BD111: NA | BE111: 1 | BF111: 0 | BG111: 0 | BH111: NA | BI111: 0 | BJ111: NA | BK111: 0 | BL111: NA | BM111: 0 | BN111: NA | BO111: 0 | BP111: NA | BQ111: 0 | BR111: NA | BS111: 0 | BT111: NA | BU111: 0 | BV111: NA | BW111: 0 | BX111: NA | BY111: 0 | BZ111: NA | CA111: 0 | CB111: NA | CC111: 0 | CD111: NA | CE111: 0 | CF111: NA | CG111: 0 | CH111: NA | CI111: 0 | CJ111: NA | CK111: 0 | CL111: NA | CM111: 1 | CN111: 0 | CO111: 0 | CP111: NA | CQ111: 1 | CR111: 0 | CS111: 0 | CT111: NA | CU111: 0 | CV111: NA | CW111: 0 | CX111: NA | CY111: 0 | CZ111: NA | DA111: 1 | DB111: 0 | DC111: 0 | DD111: NA | DE111: 0 | DF111: NA | DG111: 0 | DH111: NA | DI111: 0 | DJ111: NA | DK111: 0 | DL111: NA | DM111: 0 | DN111: NA | DO111: 0 | DP111: NA
A112: 5 | B112: heart-master.com | C112: 6 | D112: 0 | E112: 1 | F112: 2 | G112: 3 | H112: 0 | I112: 1 | J112: 1 | K112: 0 | L112: 0 | M112: 0 | N112: 0 | O112: 1 | P112: 1 | Q112: 1 | R112: 0 | S112: 0 | T112: 0 | U112: 1 | V112: 2 | W112: 0 | X112: NA | Y112: 0 | Z112: NA | AA112: 1 | AB112: 2 | AC112: 1 | AD112: 2 | AE112: 1 | AF112: 2 | AG112: 1 | AH112: 2 | AI112: 1 | AJ112: 0 | AK112: 0 | AL112: NA | AM112: 0 | AN112: NA | AO112: 1 | AP112: 0 | AQ112: 0 | AR112: NA | AS112: 0 | AT112: NA | AU112: 0 | AV112: NA | AW112: 0 | AX112: NA | AY112: 1 | AZ112: 2 | BA112: 1 | BB112: 0 | BC112: 1 | BD112: 2 | BE112: 1 | BF112: 2 | BG112: 1 | BH112: 2 | BI112: 1 | BJ112: 2 | BK112: 1 | BL112: 0 | BM112: 1 | BN112: 2 | BO112: 1 | BP112: 1 | BQ112: 0 | BR112: NA | BS112: 1 | BT112: 1 | BU112: 1 | BV112: 1 | BW112: 1 | BX112: 0 | BY112: 0 | BZ112: NA | CA112: 1 | CB112: 2 | CC112: 1 | CD112: 0 | CE112: 0 | CF112: NA | CG112: 1 | CH112: 1 | CI112: 0 | CJ112: NA | CK112: 1 | CL112: 1 | CM112: 1 | CN112: 1 | CO112: 1 | CP112: 2 | CQ112: 0 | CR112: NA | CS112: 1 | CT112: 2 | CU112: 0 | CV112: NA | CW112: 0 | CX112: NA | CY112: 0 | CZ112: NA | DA112: 0 | DB112: NA | DC112: 0 | DD112: NA | DE112: 0 | DF112: NA | DG112: 0 | DH112: NA | DI112: 0 | DJ112: NA | DK112: 0 | DL112: NA | DM112: 0 | DN112: NA | DO112: 0 | DP112: NA
A113: 6 | B113: www.infarkta.net | C113: 7 | D113: 1 | E113: 1 | F113: 1 | G113: 3 | H113: 0 | I113: 1 | J113: 1 | K113: 1 | L113: 1 | M113: 1 | N113: 0 | O113: 1 | P113: 0 | Q113: 0 | R113: 0 | S113: 0 | T113: 0 | U113: 1 | V113: 2 | W113: 0 | X113: NA | Y113: 0 | Z113: NA | AA113: 1 | AB113: 1 | AC113: 1 | AD113: 2 | AE113: 0 | AF113: NA | AG113: 0 | AH113: NA | AI113: 0 | AJ113: NA | AK113: 0 | AL113: NA | AM113: 0 | AN113: NA | AO113: 0 | AP113: NA | AQ113: 0 | AR113: NA | AS113: 0 | AT113: NA | AU113: 0 | AV113: NA | AW113: 0 | AX113: NA | AY113: 0 | AZ113: NA | BA113: 0 | BB113: NA | BC113: 0 | BD113: NA | BE113: 0 | BF113: NA | BG113: 0 | BH113: NA | BI113: 0 | BJ113: NA | BK113: 0 | BL113: NA | BM113: 0 | BN113: NA | BO113: 0 | BP113: NA | BQ113: 0 | BR113: NA | BS113: 0 | BT113: NA | BU113: 0 | BV113: NA | BW113: 0 | BX113: NA | BY113: 0 | BZ113: NA | CA113: 0 | CB113: NA | CC113: 0 | CD113: NA | CE113: 0 | CF113: NA | CG113: 0 | CH113: NA | CI113: 0 | CJ113: NA | CK113: 1 | CL113: 1 | CM113: 0 | CN113: NA | CO113: 0 | CP113: NA | CQ113: 0 | CR113: NA | CS113: 0 | CT113: NA | CU113: 0 | CV113: NA | CW113: 0 | CX113: NA | CY113: 0 | CZ113: NA | DA113: 0 | DB113: NA | DC113: 0 | DD113: NA | DE113: 0 | DF113: NA | DG113: 0 | DH113: NA | DI113: 0 | DJ113: NA | DK113: 0 | DL113: NA | DM113: 0 | DN113: NA | DO113: 0 | DP113: NA
A114: 7 | B114: medvestnik.ru | C114: 8 | D114: 1 | E114: 6 | F114: 0 | G114: 2 | H114: 2 | I114: 1 | J114: 1 | K114: 0 | L114: 0 | M114: 0 | N114: 0 | O114: 1 | P114: 1 | Q114: 0 | R114: 1 | S114: 0 | T114: 0 | U114: 1 | V114: 1 | W114: 0 | X114: NA | Y114: 1 | Z114: 0 | AA114: 1 | AB114: 0 | AC114: 1 | AD114: 1 | AE114: 1 | AF114: 0 | AG114: 0 | AH114: NA | AI114: 0 | AJ114: NA | AK114: 0 | AL114: NA | AM114: 0 | AN114: NA | AO114: 0 | AP114: NA | AQ114: 0 | AR114: NA | AS114: 0 | AT114: NA | AU114: 0 | AV114: NA | AW114: 0 | AX114: NA | AY114: 0 | AZ114: NA | BA114: 0 | BB114: NA | BC114: 0 | BD114: NA | BE114: 0 | BF114: NA | BG114: 0 | BH114: NA | BI114: 0 | BJ114: NA | BK114: 0 | BL114: NA | BM114: 0 | BN114: NA | BO114: 0 | BP114: NA | BQ114: 0 | BR114: NA | BS114: 0 | BT114: NA | BU114: 0 | BV114: NA | BW114: 0 | BX114: NA | BY114: 0 | BZ114: NA | CA114: 0 | CB114: NA | CC114: 0 | CD114: NA | CE114: 0 | CF114: NA | CG114: 0 | CH114: NA | CI114: 0 | CJ114: NA | CK114: 0 | CL114: NA | CM114: 0 | CN114: NA | CO114: 0 | CP114: NA | CQ114: 0 | CR114: NA | CS114: 0 | CT114: NA | CU114: 0 | CV114: NA | CW114: 0 | CX114: NA | CY114: 0 | CZ114: NA | DA114: 0 | DB114: NA | DC114: 0 | DD114: NA | DE114: 0 | DF114: NA | DG114: 0 | DH114: NA | DI114: 0 | DJ114: NA | DK114: 0 | DL114: NA | DM114: 0 | DN114: NA | DO114: 0 | DP114: NA
A115: 8 | B115: www.bundesaerztekammer.de | C115: 12 | D115: 1 | E115: 0 | F115: 2 | G115: 1 | H115: 0 | I115: 1 | J115: 1 | K115: 1 | L115: 0 | M115: 0 | N115: 1 | O115: 1 | P115: 1 | Q115: 1 | R115: 1 | S115: 0 | T115: 0 | U115: 1 | V115: 0 | W115: 0 | X115: NA | Y115: 0 | Z115: NA | AA115: 0 | AB115: NA | AC115: 0 | AD115: NA | AE115: 0 | AF115: NA | AG115: 0 | AH115: NA | AI115: 0 | AJ115: NA | AK115: 0 | AL115: NA | AM115: 0 | AN115: NA | AO115: 0 | AP115: NA | AQ115: 0 | AR115: NA | AS115: 0 | AT115: NA | AU115: 0 | AV115: NA | AW115: 0 | AX115: NA | AY115: 0 | AZ115: NA | BA115: 0 | BB115: NA | BC115: 0 | BD115: NA | BE115: 0 | BF115: NA | BG115: 0 | BH115: NA | BI115: 0 | BJ115: NA | BK115: 1 | BL115: 0 | BM115: 1 | BN115: 0 | BO115: 0 | BP115: NA | BQ115: 0 | BR115: NA | BS115: 1 | BT115: 0 | BU115: 1 | BV115: 0 | BW115: 0 | BX115: NA | BY115: 0 | BZ115: NA | CA115: 0 | CB115: NA | CC115: 0 | CD115: NA | CE115: 0 | CF115: NA | CG115: 0 | CH115: NA | CI115: 0 | CJ115: NA | CK115: 1 | CL115: 0 | CM115: 1 | CN115: 0 | CO115: 0 | CP115: NA | CQ115: 1 | CR115: 0 | CS115: 0 | CT115: NA | CU115: 0 | CV115: NA | CW115: 0 | CX115: NA | CY115: 0 | CZ115: NA | DA115: 1 | DB115: 0 | DC115: 0 | DD115: NA | DE115: 0 | DF115: NA | DG115: 0 | DH115: NA | DI115: 0 | DJ115: NA | DK115: 0 | DL115: NA | DM115: 0 | DN115: NA | DO115: 0 | DP115: NA
A116: 9 | B116: nauka.vesti.ru | C116: 26 | D116: 1 | E116: 6 | F116: 0 | G116: 2 | H116: 2 | I116: 1 | J116: 0 | K116: 0 | L116: 0 | M116: 0 | N116: 0 | O116: 1 | P116: 1 | Q116: 0 | R116: 1 | S116: 0 | T116: 0 | U116: 1 | V116: 2 | W116: 1 | X116: 2 | Y116: 1 | Z116: 1 | AA116: 1 | AB116: 1 | AC116: 0 | AD116: NA | AE116: 1 | AF116: 0 | AG116: 0 | AH116: NA | AI116: 0 | AJ116: NA | AK116: 0 | AL116: NA | AM116: 0 | AN116: NA | AO116: 0 | AP116: NA | AQ116: 0 | AR116: NA | AS116: 0 | AT116: NA | AU116: 0 | AV116: NA | AW116: 0 | AX116: NA | AY116: 0 | AZ116: NA | BA116: 0 | BB116: NA | BC116: 0 | BD116: NA | BE116: 0 | BF116: NA | BG116: 0 | BH116: NA | BI116: 0 | BJ116: NA | BK116: 0 | BL116: NA | BM116: 0 | BN116: NA | BO116: 0 | BP116: NA | BQ116: 0 | BR116: NA | BS116: 0 | BT116: NA | BU116: 0 | BV116: NA | BW116: 0 | BX116: NA | BY116: 0 | BZ116: NA | CA116: 0 | CB116: NA | CC116: 0 | CD116: NA | CE116: 0 | CF116: NA | CG116: 0 | CH116: NA | CI116: 0 | CJ116: NA | CK116: 0 | CL116: NA | CM116: 0 | CN116: NA | CO116: 0 | CP116: NA | CQ116: 0 | CR116: NA | CS116: 0 | CT116: NA | CU116: 0 | CV116: NA | CW116: 0 | CX116: NA | CY116: 0 | CZ116: NA | DA116: 0 | DB116: NA | DC116: 0 | DD116: NA | DE116: 0 | DF116: NA | DG116: 0 | DH116: NA | DI116: 0 | DJ116: NA | DK116: 0 | DL116: NA | DM116: 0 | DN116: NA | DO116: 0 | DP116: NA
A117: 10 | B117: kemcardio.ru | C117: 29 | D117: 0 | E117: 5 | F117: 1 | G117: 3 | H117: 0 | I117: 1 | J117: 1 | K117: 0 | L117: 0 | M117: 0 | N117: 0 | O117: 1 | P117: 0 | Q117: 0 | R117: 0 | S117: 0 | T117: 0 | U117: 1 | V117: 1 | W117: 0 | X117: NA | Y117: 1 | Z117: 0 | AA117: 1 | AB117: 0 | AC117: 0 | AD117: NA | AE117: 0 | AF117: NA | AG117: 0 | AH117: NA | AI117: 0 | AJ117: NA | AK117: 1 | AL117: 1 | AM117: 0 | AN117: NA | AO117: 1 | AP117: 0 | AQ117: 0 | AR117: NA | AS117: 0 | AT117: NA | AU117: 0 | AV117: NA | AW117: 0 | AX117: NA | AY117: 0 | AZ117: NA | BA117: 0 | BB117: NA | BC117: 0 | BD117: NA | BE117: 1 | BF117: 0 | BG117: 1 | BH117: 0 | BI117: 1 | BJ117: 0 | BK117: 1 | BL117: 0 | BM117: 1 | BN117: 1 | BO117: 0 | BP117: NA | BQ117: 0 | BR117: NA | BS117: 0 | BT117: NA | BU117: 0 | BV117: NA | BW117: 0 | BX117: NA | BY117: 0 | BZ117: NA | CA117: 0 | CB117: NA | CC117: 0 | CD117: NA | CE117: 0 | CF117: NA | CG117: 0 | CH117: NA | CI117: 0 | CJ117: NA | CK117: 0 | CL117: NA | CM117: 1 | CN117: 0 | CO117: 0 | CP117: NA | CQ117: 0 | CR117: NA | CS117: 0 | CT117: NA | CU117: 0 | CV117: NA | CW117: 0 | CX117: NA | CY117: 0 | CZ117: NA | DA117: 0 | DB117: NA | DC117: 0 | DD117: NA | DE117: 0 | DF117: NA | DG117: 0 | DH117: NA | DI117: 0 | DJ117: NA | DK117: 0 | DL117: NA | DM117: 0 | DN117: NA | DO117: 0 | DP117: NA
A118: 11 | B118: www.almazovcentre.ru | C118: 39 | D118: 0 | E118: 1 | F118: 1 | G118: 3 | H118: 0 | I118: 1 | J118: 1 | K118: 0 | L118: 0 | M118: 0 | N118: 0 | O118: 1 | P118: 0 | Q118: 0 | R118: 0 | S118: 0 | T118: 0 | U118: 1 | V118: 2 | W118: 0 | X118: NA | Y118: 0 | Z118: NA | AA118: 0 | AB118: NA | AC118: 1 | AD118: 2 | AE118: 0 | AF118: NA | AG118: 0 | AH118: NA | AI118: 0 | AJ118: NA | AK118: 0 | AL118: NA | AM118: 0 | AN118: NA | AO118: 0 | AP118: NA | AQ118: 0 | AR118: NA | AS118: 0 | AT118: NA | AU118: 0 | AV118: NA | AW118: 0 | AX118: NA | AY118: 0 | AZ118: NA | BA118: 0 | BB118: NA | BC118: 0 | BD118: NA | BE118: 0 | BF118: NA | BG118: 1 | BH118: 0 | BI118: 1 | BJ118: 0 | BK118: 0 | BL118: NA | BM118: 1 | BN118: 2 | BO118: 0 | BP118: NA | BQ118: 0 | BR118: NA | BS118: 0 | BT118: NA | BU118: 0 | BV118: NA | BW118: 0 | BX118: NA | BY118: 0 | BZ118: NA | CA118: 0 | CB118: NA | CC118: 0 | CD118: NA | CE118: 0 | CF118: NA | CG118: 0 | CH118: NA | CI118: 0 | CJ118: NA | CK118: 0 | CL118: NA | CM118: 0 | CN118: NA | CO118: 0 | CP118: NA | CQ118: 0 | CR118: NA | CS118: 0 | CT118: NA | CU118: 0 | CV118: NA | CW118: 0 | CX118: NA | CY118: 0 | CZ118: NA | DA118: 0 | DB118: NA | DC118: 0 | DD118: NA | DE118: 0 | DF118: NA | DG118: 0 | DH118: NA | DI118: 0 | DJ118: NA | DK118: 0 | DL118: NA | DM118: 0 | DN118: NA | DO118: 0 | DP118: NA
A119: 12 | B119: www.patienten-information.de | C119: 43 | D119: 1 | E119: 0 | F119: 2 | G119: 1 | H119: 0 | I119: 1 | J119: 1 | K119: 1 | L119: 0 | M119: 0 | N119: 1 | O119: 1 | P119: 1 | Q119: 1 | R119: 1 | S119: 0 | T119: 0 | U119: 1 | V119: 1 | W119: 0 | X119: NA | Y119: 0 | Z119: NA | AA119: 0 | AB119: NA | AC119: 0 | AD119: NA | AE119: 0 | AF119: NA | AG119: 0 | AH119: NA | AI119: 0 | AJ119: NA | AK119: 0 | AL119: NA | AM119: 0 | AN119: NA | AO119: 0 | AP119: NA | AQ119: 0 | AR119: NA | AS119: 0 | AT119: NA | AU119: 0 | AV119: NA | AW119: 0 | AX119: NA | AY119: 0 | AZ119: NA | BA119: 0 | BB119: NA | BC119: 0 | BD119: NA | BE119: 0 | BF119: NA | BG119: 0 | BH119: NA | BI119: 0 | BJ119: NA | BK119: 1 | BL119: 0 | BM119: 1 | BN119: 0 | BO119: 0 | BP119: NA | BQ119: 0 | BR119: NA | BS119: 0 | BT119: NA | BU119: 1 | BV119: 0 | BW119: 0 | BX119: NA | BY119: 0 | BZ119: NA | CA119: 0 | CB119: NA | CC119: 0 | CD119: NA | CE119: 1 | CF119: 0 | CG119: 0 | CH119: NA | CI119: 0 | CJ119: NA | CK119: 1 | CL119: 0 | CM119: 0 | CN119: NA | CO119: 0 | CP119: NA | CQ119: 0 | CR119: NA | CS119: 0 | CT119: NA | CU119: 0 | CV119: NA | CW119: 0 | CX119: NA | CY119: 0 | CZ119: NA | DA119: 1 | DB119: 0 | DC119: 0 | DD119: NA | DE119: 1 | DF119: 0 | DG119: 0 | DH119: NA | DI119: 0 | DJ119: NA | DK119: 0 | DL119: NA | DM119: 0 | DN119: NA | DO119: 0 | DP119: NA
A120: 13 | B120: www.kp.md | C120: 46 | D120: 1 | E120: 6 | F120: 0 | G120: 2 | H120: 2 | I120: 1 | J120: 0 | K120: 0 | L120: 1 | M120: 0 | N120: 0 | O120: 1 | P120: 1 | Q120: 0 | R120: 0 | S120: 0 | T120: 0 | U120: 1 | V120: 1 | W120: 1 | X120: 0 | Y120: 1 | Z120: 0 | AA120: 1 | AB120: 1 | AC120: 1 | AD120: 1 | AE120: 1 | AF120: 2 | AG120: 0 | AH120: NA | AI120: 0 | AJ120: NA | AK120: 0 | AL120: NA | AM120: 0 | AN120: NA | AO120: 0 | AP120: NA | AQ120: 0 | AR120: NA | AS120: 0 | AT120: NA | AU120: 0 | AV120: NA | AW120: 0 | AX120: NA | AY120: 0 | AZ120: NA | BA120: 0 | BB120: NA | BC120: 0 | BD120: NA | BE120: 0 | BF120: NA | BG120: 0 | BH120: NA | BI120: 0 | BJ120: NA | BK120: 0 | BL120: NA | BM120: 0 | BN120: NA | BO120: 0 | BP120: NA | BQ120: 0 | BR120: NA | BS120: 0 | BT120: NA | BU120: 0 | BV120: NA | BW120: 0 | BX120: NA | BY120: 0 | BZ120: NA | CA120: 0 | CB120: NA | CC120: 0 | CD120: NA | CE120: 0 | CF120: NA | CG120: 0 | CH120: NA | CI120: 0 | CJ120: NA | CK120: 0 | CL120: NA | CM120: 0 | CN120: NA | CO120: 0 | CP120: NA | CQ120: 0 | CR120: NA | CS120: 0 | CT120: NA | CU120: 0 | CV120: NA | CW120: 0 | CX120: NA | CY120: 0 | CZ120: NA | DA120: 0 | DB120: NA | DC120: 0 | DD120: NA | DE120: 0 | DF120: NA | DG120: 0 | DH120: NA | DI120: 0 | DJ120: NA | DK120: 0 | DL120: NA | DM120: 0 | DN120: NA | DO120: 0 | DP120: NA
A121: 14 | B121: www.cardio-tomsk.ru | C121: 52 | D121: 0 | E121: 1 | F121: 1 | G121: 3 | H121: 0 | I121: 1 | J121: 1 | K121: 0 | L121: 0 | M121: 0 | N121: 0 | O121: 1 | P121: 0 | Q121: 0 | R121: 0 | S121: 0 | T121: 0 | U121: 1 | V121: 2 | W121: 1 | X121: 2 | Y121: 1 | Z121: 0 | AA121: 1 | AB121: 0 | AC121: 1 | AD121: 2 | AE121: 0 | AF121: NA | AG121: 1 | AH121: 1 | AI121: 0 | AJ121: NA | AK121: 0 | AL121: NA | AM121: 0 | AN121: NA | AO121: 0 | AP121: NA | AQ121: 0 | AR121: NA | AS121: 0 | AT121: NA | AU121: 0 | AV121: NA | AW121: 0 | AX121: NA | AY121: 0 | AZ121: NA | BA121: 0 | BB121: NA | BC121: 0 | BD121: NA | BE121: 0 | BF121: NA | BG121: 0 | BH121: NA | BI121: 1 | BJ121: 0 | BK121: 1 | BL121: 0 | BM121: 1 | BN121: 0 | BO121: 0 | BP121: NA | BQ121: 0 | BR121: NA | BS121: 0 | BT121: NA | BU121: 1 | BV121: 1 | BW121: 0 | BX121: NA | BY121: 0 | BZ121: NA | CA121: 0 | CB121: NA | CC121: 0 | CD121: NA | CE121: 1 | CF121: 1 | CG121: 0 | CH121: NA | CI121: 0 | CJ121: NA | CK121: 0 | CL121: NA | CM121: 0 | CN121: NA | CO121: 0 | CP121: NA | CQ121: 0 | CR121: NA | CS121: 0 | CT121: NA | CU121: 0 | CV121: NA | CW121: 0 | CX121: NA | CY121: 0 | CZ121: NA | DA121: 0 | DB121: NA | DC121: 0 | DD121: NA | DE121: 0 | DF121: NA | DG121: 0 | DH121: NA | DI121: 0 | DJ121: NA | DK121: 0 | DL121: NA | DM121: 0 | DN121: NA | DO121: 0 | DP121: NA
A122: 15 | B122: gb71.ru | C122: 71 | D122: 1 | E122: 1 | F122: 1 | G122: 3 | H122: 0 | I122: 1 | J122: 0 | K122: 0 | L122: 1 | M122: 1 | N122: 0 | O122: 1 | P122: 0 | Q122: 0 | R122: 0 | S122: 0 | T122: 0 | U122: 1 | V122: 2 | W122: 1 | X122: 1 | Y122: 1 | Z122: 1 | AA122: 0 | AB122: NA | AC122: 0 | AD122: NA | AE122: 0 | AF122: NA | AG122: 0 | AH122: NA | AI122: 0 | AJ122: NA | AK122: 0 | AL122: NA | AM122: 1 | AN122: 0 | AO122: 0 | AP122: NA | AQ122: 0 | AR122: NA | AS122: 0 | AT122: NA | AU122: 0 | AV122: NA | AW122: 0 | AX122: NA | AY122: 0 | AZ122: NA | BA122: 0 | BB122: NA | BC122: 0 | BD122: NA | BE122: 1 | BF122: 1 | BG122: 1 | BH122: 1 | BI122: 1 | BJ122: 0 | BK122: 1 | BL122: 0 | BM122: 1 | BN122: 1 | BO122: 0 | BP122: NA | BQ122: 0 | BR122: NA | BS122: 1 | BT122: 0 | BU122: 0 | BV122: NA | BW122: 1 | BX122: 0 | BY122: 0 | BZ122: NA | CA122: 0 | CB122: NA | CC122: 1 | CD122: 1 | CE122: 1 | CF122: 2 | CG122: 0 | CH122: NA | CI122: 0 | CJ122: NA | CK122: 0 | CL122: NA | CM122: 0 | CN122: NA | CO122: 0 | CP122: NA | CQ122: 0 | CR122: NA | CS122: 0 | CT122: NA | CU122: 0 | CV122: NA | CW122: 0 | CX122: NA | CY122: 0 | CZ122: NA | DA122: 1 | DB122: 1 | DC122: 0 | DD122: NA | DE122: 0 | DF122: NA | DG122: 0 | DH122: NA | DI122: 0 | DJ122: NA | DK122: 0 | DL122: NA | DM122: 0 | DN122: NA | DO122: 0 | DP122: NA
A123: 16 | B123: www.heart.kiev.ua | C123: 74 | D123: 0 | E123: 1 | F123: 1 | G123: 3 | H123: 0 | I123: 1 | J123: 1 | K123: 0 | L123: 0 | M123: 0 | N123: 0 | O123: 1 | P123: 0 | Q123: 0 | R123: 0 | S123: 0 | T123: 0 | U123: 1 | V123: 1 | W123: 1 | X123: 2 | Y123: 1 | Z123: 0 | AA123: 1 | AB123: 1 | AC123: 1 | AD123: 2 | AE123: 0 | AF123: NA | AG123: 1 | AH123: 0 | AI123: 0 | AJ123: NA | AK123: 0 | AL123: NA | AM123: 0 | AN123: NA | AO123: 0 | AP123: NA | AQ123: 0 | AR123: NA | AS123: 0 | AT123: NA | AU123: 0 | AV123: NA | AW123: 0 | AX123: NA | AY123: 0 | AZ123: NA | BA123: 0 | BB123: NA | BC123: 0 | BD123: NA | BE123: 0 | BF123: NA | BG123: 1 | BH123: 0 | BI123: 1 | BJ123: 0 | BK123: 1 | BL123: 0 | BM123: 1 | BN123: 1 | BO123: 0 | BP123: NA | BQ123: 0 | BR123: NA | BS123: 0 | BT123: NA | BU123: 0 | BV123: NA | BW123: 0 | BX123: NA | BY123: 0 | BZ123: NA | CA123: 0 | CB123: NA | CC123: 0 | CD123: NA | CE123: 0 | CF123: NA | CG123: 0 | CH123: NA | CI123: 0 | CJ123: NA | CK123: 0 | CL123: NA | CM123: 0 | CN123: NA | CO123: 0 | CP123: NA | CQ123: 0 | CR123: NA | CS123: 0 | CT123: NA | CU123: 0 | CV123: NA | CW123: 0 | CX123: NA | CY123: 0 | CZ123: NA | DA123: 0 | DB123: NA | DC123: 0 | DD123: NA | DE123: 0 | DF123: NA | DG123: 0 | DH123: NA | DI123: 1 | DJ123: 0 | DK123: 0 | DL123: NA | DM123: 0 | DN123: NA | DO123: 0 | DP123: NA
A124: 17 | B124: azbyka.ru | C124: 75 | D124: 1 | E124: 6 | F124: 0 | G124: 2 | H124: 2 | I124: 1 | J124: 1 | K124: 0 | L124: 1 | M124: 1 | N124: 0 | O124: 0 | P124: 0 | Q124: 0 | R124: 0 | S124: 0 | T124: 0 | U124: 1 | V124: 1 | W124: 1 | X124: 0 | Y124: 1 | Z124: 0 | AA124: 0 | AB124: NA | AC124: 0 | AD124: NA | AE124: 0 | AF124: NA | AG124: 0 | AH124: NA | AI124: 0 | AJ124: NA | AK124: 0 | AL124: NA | AM124: 0 | AN124: NA | AO124: 0 | AP124: NA | AQ124: 0 | AR124: NA | AS124: 0 | AT124: NA | AU124: 0 | AV124: NA | AW124: 0 | AX124: NA | AY124: 0 | AZ124: NA | BA124: 0 | BB124: NA | BC124: 0 | BD124: NA | BE124: 1 | BF124: 0 | BG124: 1 | BH124: 0 | BI124: 0 | BJ124: NA | BK124: 0 | BL124: NA | BM124: 0 | BN124: NA | BO124: 0 | BP124: NA | BQ124: 0 | BR124: NA | BS124: 0 | BT124: NA | BU124: 0 | BV124: NA | BW124: 0 | BX124: NA | BY124: 0 | BZ124: NA | CA124: 0 | CB124: NA | CC124: 0 | CD124: NA | CE124: 0 | CF124: NA | CG124: 0 | CH124: NA | CI124: 0 | CJ124: NA | CK124: 0 | CL124: NA | CM124: 0 | CN124: NA | CO124: 0 | CP124: NA | CQ124: 0 | CR124: NA | CS124: 0 | CT124: NA | CU124: 0 | CV124: NA | CW124: 0 | CX124: NA | CY124: 0 | CZ124: NA | DA124: 0 | DB124: NA | DC124: 0 | DD124: NA | DE124: 0 | DF124: NA | DG124: 0 | DH124: NA | DI124: 0 | DJ124: NA | DK124: 0 | DL124: NA | DM124: 0 | DN124: NA | DO124: 0 | DP124: NA
A125: 18 | B125: www.aif.ru | C125: 78 | D125: 1 | E125: 6 | F125: 0 | G125: 2 | H125: 2 | I125: 1 | J125: 0 | K125: 0 | L125: 1 | M125: 0 | N125: 0 | O125: 1 | P125: 1 | Q125: 0 | R125: 1 | S125: 0 | T125: 0 | U125: 1 | V125: 1 | W125: 1 | X125: 0 | Y125: 0 | Z125: NA | AA125: 1 | AB125: 0 | AC125: 1 | AD125: 0 | AE125: 0 | AF125: NA | AG125: 0 | AH125: NA | AI125: 0 | AJ125: NA | AK125: 1 | AL125: 0 | AM125: 0 | AN125: NA | AO125: 0 | AP125: NA | AQ125: 0 | AR125: NA | AS125: 0 | AT125: NA | AU125: 0 | AV125: NA | AW125: 0 | AX125: NA | AY125: 0 | AZ125: NA | BA125: 0 | BB125: NA | BC125: 1 | BD125: 0 | BE125: 1 | BF125: 0 | BG125: 1 | BH125: 0 | BI125: 0 | BJ125: NA | BK125: 0 | BL125: NA | BM125: 1 | BN125: 1 | BO125: 0 | BP125: NA | BQ125: 0 | BR125: NA | BS125: 0 | BT125: NA | BU125: 0 | BV125: NA | BW125: 0 | BX125: NA | BY125: 0 | BZ125: NA | CA125: 0 | CB125: NA | CC125: 0 | CD125: NA | CE125: 0 | CF125: NA | CG125: 0 | CH125: NA | CI125: 0 | CJ125: NA | CK125: 0 | CL125: NA | CM125: 0 | CN125: NA | CO125: 0 | CP125: NA | CQ125: 0 | CR125: NA | CS125: 0 | CT125: NA | CU125: 0 | CV125: NA | CW125: 0 | CX125: NA | CY125: 0 | CZ125: NA | DA125: 0 | DB125: NA | DC125: 0 | DD125: NA | DE125: 0 | DF125: NA | DG125: 0 | DH125: NA | DI125: 0 | DJ125: NA | DK125: 0 | DL125: NA | DM125: 0 | DN125: NA | DO125: 0 | DP125: NA
A126: 19 | B126: www.metronews.ru | C126: 81 | D126: 1 | E126: 6 | F126: 0 | G126: 2 | H126: 2 | I126: 1 | J126: 0 | K126: 0 | L126: 1 | M126: 0 | N126: 0 | O126: 1 | P126: 0 | Q126: 0 | R126: 1 | S126: 0 | T126: 0 | U126: 1 | V126: 1 | W126: 1 | X126: 2 | Y126: 1 | Z126: 0 | AA126: 1 | AB126: 0 | AC126: 1 | AD126: 2 | AE126: 0 | AF126: NA | AG126: 1 | AH126: 2 | AI126: 0 | AJ126: NA | AK126: 0 | AL126: NA | AM126: 0 | AN126: NA | AO126: 0 | AP126: NA | AQ126: 0 | AR126: NA | AS126: 0 | AT126: NA | AU126: 0 | AV126: NA | AW126: 0 | AX126: NA | AY126: 0 | AZ126: NA | BA126: 0 | BB126: NA | BC126: 0 | BD126: NA | BE126: 1 | BF126: 0 | BG126: 0 | BH126: NA | BI126: 0 | BJ126: NA | BK126: 0 | BL126: NA | BM126: 1 | BN126: 1 | BO126: 0 | BP126: NA | BQ126: 0 | BR126: NA | BS126: 0 | BT126: NA | BU126: 0 | BV126: NA | BW126: 0 | BX126: NA | BY126: 0 | BZ126: NA | CA126: 0 | CB126: NA | CC126: 0 | CD126: NA | CE126: 1 | CF126: 1 | CG126: 0 | CH126: NA | CI126: 0 | CJ126: NA | CK126: 0 | CL126: NA | CM126: 1 | CN126: 2 | CO126: 1 | CP126: 0 | CQ126: 1 | CR126: 1 | CS126: 0 | CT126: NA | CU126: 0 | CV126: NA | CW126: 0 | CX126: NA | CY126: 0 | CZ126: NA | DA126: 0 | DB126: NA | DC126: 0 | DD126: NA | DE126: 0 | DF126: NA | DG126: 0 | DH126: NA | DI126: 0 | DJ126: NA | DK126: 0 | DL126: NA | DM126: 0 | DN126: NA | DO126: 0 | DP126: NA
A127: 20 | B127: www.4gp.by | C127: 82 | D127: 1 | E127: 1 | F127: 1 | G127: 3 | H127: 0 | I127: 1 | J127: 1 | K127: 0 | L127: 0 | M127: 0 | N127: 0 | O127: 1 | P127: 0 | Q127: 0 | R127: 0 | S127: 0 | T127: 0 | U127: 1 | V127: 1 | W127: 1 | X127: 2 | Y127: 0 | Z127: NA | AA127: 0 | AB127: NA | AC127: 0 | AD127: NA | AE127: 0 | AF127: NA | AG127: 0 | AH127: NA | AI127: 0 | AJ127: NA | AK127: 0 | AL127: NA | AM127: 0 | AN127: NA | AO127: 0 | AP127: NA | AQ127: 0 | AR127: NA | AS127: 1 | AT127: 0 | AU127: 0 | AV127: NA | AW127: 0 | AX127: NA | AY127: 0 | AZ127: NA | BA127: 0 | BB127: NA | BC127: 0 | BD127: NA | BE127: 1 | BF127: 0 | BG127: 1 | BH127: 0 | BI127: 1 | BJ127: 0 | BK127: 1 | BL127: 0 | BM127: 1 | BN127: 0 | BO127: 0 | BP127: NA | BQ127: 0 | BR127: NA | BS127: 0 | BT127: NA | BU127: 1 | BV127: 1 | BW127: 0 | BX127: NA | BY127: 0 | BZ127: NA | CA127: 0 | CB127: NA | CC127: 1 | CD127: 0 | CE127: 1 | CF127: 2 | CG127: 1 | CH127: 1 | CI127: 0 | CJ127: NA | CK127: 0 | CL127: NA | CM127: 0 | CN127: NA | CO127: 0 | CP127: NA | CQ127: 0 | CR127: NA | CS127: 0 | CT127: NA | CU127: 0 | CV127: NA | CW127: 0 | CX127: NA | CY127: 0 | CZ127: NA | DA127: 0 | DB127: NA | DC127: 0 | DD127: NA | DE127: 0 | DF127: NA | DG127: 1 | DH127: 1 | DI127: 0 | DJ127: NA | DK127: 0 | DL127: NA | DM127: 0 | DN127: NA | DO127: 0 | DP127: NA
A128: 21 | B128: mamadeti.ru | C128: 85 | D128: 1 | E128: 1 | F128: 1 | G128: 3 | H128: 0 | I128: 1 | J128: 1 | K128: 0 | L128: 0 | M128: 0 | N128: 0 | O128: 1 | P128: 0 | Q128: 0 | R128: 0 | S128: 0 | T128: 0 | U128: 1 | V128: 1 | W128: 0 | X128: NA | Y128: 1 | Z128: 1 | AA128: 1 | AB128: 0 | AC128: 1 | AD128: 0 | AE128: 1 | AF128: 0 | AG128: 1 | AH128: 2 | AI128: 1 | AJ128: 0 | AK128: 0 | AL128: NA | AM128: 1 | AN128: 1 | AO128: 1 | AP128: 0 | AQ128: 0 | AR128: NA | AS128: 0 | AT128: NA | AU128: 0 | AV128: NA | AW128: 0 | AX128: NA | AY128: 0 | AZ128: NA | BA128: 0 | BB128: NA | BC128: 0 | BD128: NA | BE128: 1 | BF128: 0 | BG128: 1 | BH128: 0 | BI128: 0 | BJ128: NA | BK128: 1 | BL128: 1 | BM128: 1 | BN128: 2 | BO128: 1 | BP128: 0 | BQ128: 0 | BR128: NA | BS128: 1 | BT128: 0 | BU128: 1 | BV128: 1 | BW128: 0 | BX128: NA | BY128: 0 | BZ128: NA | CA128: 0 | CB128: NA | CC128: 0 | CD128: NA | CE128: 0 | CF128: NA | CG128: 0 | CH128: NA | CI128: 0 | CJ128: NA | CK128: 0 | CL128: NA | CM128: 1 | CN128: 2 | CO128: 0 | CP128: NA | CQ128: 0 | CR128: NA | CS128: 0 | CT128: NA | CU128: 0 | CV128: NA | CW128: 0 | CX128: NA | CY128: 0 | CZ128: NA | DA128: 0 | DB128: NA | DC128: 0 | DD128: NA | DE128: 0 | DF128: NA | DG128: 0 | DH128: NA | DI128: 0 | DJ128: NA | DK128: 0 | DL128: NA | DM128: 0 | DN128: NA | DO128: 0 | DP128: NA
A129: 22 | B129: rocb.ru | C129: 86 | D129: 1 | E129: 1 | F129: 1 | G129: 3 | H129: 0 | I129: 1 | J129: 0 | K129: 0 | L129: 0 | M129: 0 | N129: 1 | O129: 1 | P129: 0 | Q129: 0 | R129: 0 | S129: 0 | T129: 0 | U129: 1 | V129: 1 | W129: 0 | X129: NA | Y129: 0 | Z129: NA | AA129: 1 | AB129: 1 | AC129: 0 | AD129: NA | AE129: 0 | AF129: NA | AG129: 0 | AH129: NA | AI129: 0 | AJ129: NA | AK129: 0 | AL129: NA | AM129: 0 | AN129: NA | AO129: 0 | AP129: NA | AQ129: 0 | AR129: NA | AS129: 1 | AT129: 1 | AU129: 0 | AV129: NA | AW129: 0 | AX129: NA | AY129: 0 | AZ129: NA | BA129: 0 | BB129: NA | BC129: 0 | BD129: NA | BE129: 0 | BF129: NA | BG129: 0 | BH129: NA | BI129: 0 | BJ129: NA | BK129: 1 | BL129: 1 | BM129: 1 | BN129: 1 | BO129: 1 | BP129: 0 | BQ129: 0 | BR129: NA | BS129: 1 | BT129: 1 | BU129: 1 | BV129: 0 | BW129: 0 | BX129: NA | BY129: 0 | BZ129: NA | CA129: 0 | CB129: NA | CC129: 1 | CD129: 0 | CE129: 0 | CF129: NA | CG129: 0 | CH129: NA | CI129: 0 | CJ129: NA | CK129: 0 | CL129: NA | CM129: 0 | CN129: NA | CO129: 0 | CP129: NA | CQ129: 0 | CR129: NA | CS129: 0 | CT129: NA | CU129: 0 | CV129: NA | CW129: 0 | CX129: NA | CY129: 0 | CZ129: NA | DA129: 0 | DB129: NA | DC129: 0 | DD129: NA | DE129: 0 | DF129: NA | DG129: 0 | DH129: NA | DI129: 0 | DJ129: NA | DK129: 0 | DL129: NA | DM129: 0 | DN129: NA | DO129: 0 | DP129: NA
A130: 23 | B130: gkb1.ru | C130: 87 | D130: 1 | E130: 1 | F130: 1 | G130: 3 | H130: 0 | I130: 1 | J130: 1 | K130: 0 | L130: 1 | M130: 1 | N130: 0 | O130: 1 | P130: 0 | Q130: 0 | R130: 0 | S130: 0 | T130: 0 | U130: 1 | V130: 2 | W130: 1 | X130: 0 | Y130: 0 | Z130: NA | AA130: 1 | AB130: 2 | AC130: 1 | AD130: 2 | AE130: 1 | AF130: 1 | AG130: 1 | AH130: 2 | AI130: 0 | AJ130: NA | AK130: 0 | AL130: NA | AM130: 0 | AN130: NA | AO130: 0 | AP130: NA | AQ130: 0 | AR130: NA | AS130: 0 | AT130: NA | AU130: 0 | AV130: NA | AW130: 0 | AX130: NA | AY130: 0 | AZ130: NA | BA130: 0 | BB130: NA | BC130: 0 | BD130: NA | BE130: 0 | BF130: NA | BG130: 1 | BH130: 1 | BI130: 1 | BJ130: 0 | BK130: 1 | BL130: 1 | BM130: 1 | BN130: 1 | BO130: 1 | BP130: 2 | BQ130: 0 | BR130: NA | BS130: 1 | BT130: 1 | BU130: 1 | BV130: 1 | BW130: 0 | BX130: NA | BY130: 0 | BZ130: NA | CA130: 0 | CB130: NA | CC130: 0 | CD130: NA | CE130: 1 | CF130: 1 | CG130: 0 | CH130: NA | CI130: 0 | CJ130: NA | CK130: 1 | CL130: 1 | CM130: 1 | CN130: 2 | CO130: 0 | CP130: NA | CQ130: 0 | CR130: NA | CS130: 1 | CT130: 2 | CU130: 0 | CV130: NA | CW130: 0 | CX130: NA | CY130: 0 | CZ130: NA | DA130: 1 | DB130: 0 | DC130: 0 | DD130: NA | DE130: 0 | DF130: NA | DG130: 0 | DH130: NA | DI130: 0 | DJ130: NA | DK130: 0 | DL130: NA | DM130: 0 | DN130: NA | DO130: 0 | DP130: NA
A131: 24 | B131: stentex.ru | C131: 88 | D131: 0 | E131: 3 | F131: 1 | G131: 3 | H131: 0 | I131: 1 | J131: 0 | K131: 0 | L131: 1 | M131: 1 | N131: 0 | O131: 1 | P131: 0 | Q131: 0 | R131: 0 | S131: 0 | T131: 0 | U131: 1 | V131: 2 | W131: 1 | X131: 2 | Y131: 1 | Z131: 0 | AA131: 0 | AB131: NA | AC131: 0 | AD131: NA | AE131: 0 | AF131: NA | AG131: 0 | AH131: NA | AI131: 0 | AJ131: NA | AK131: 0 | AL131: NA | AM131: 0 | AN131: NA | AO131: 0 | AP131: NA | AQ131: 0 | AR131: NA | AS131: 0 | AT131: NA | AU131: 0 | AV131: NA | AW131: 0 | AX131: NA | AY131: 0 | AZ131: NA | BA131: 0 | BB131: NA | BC131: 0 | BD131: NA | BE131: 1 | BF131: 0 | BG131: 0 | BH131: NA | BI131: 0 | BJ131: NA | BK131: 0 | BL131: NA | BM131: 1 | BN131: 0 | BO131: 0 | BP131: NA | BQ131: 0 | BR131: NA | BS131: 0 | BT131: NA | BU131: 0 | BV131: NA | BW131: 0 | BX131: NA | BY131: 0 | BZ131: NA | CA131: 0 | CB131: NA | CC131: 0 | CD131: NA | CE131: 0 | CF131: NA | CG131: 0 | CH131: NA | CI131: 0 | CJ131: NA | CK131: 0 | CL131: NA | CM131: 0 | CN131: NA | CO131: 0 | CP131: NA | CQ131: 0 | CR131: NA | CS131: 1 | CT131: 1 | CU131: 0 | CV131: NA | CW131: 0 | CX131: NA | CY131: 0 | CZ131: NA | DA131: 0 | DB131: NA | DC131: 0 | DD131: NA | DE131: 0 | DF131: NA | DG131: 0 | DH131: NA | DI131: 0 | DJ131: NA | DK131: 0 | DL131: NA | DM131: 0 | DN131: NA | DO131: 0 | DP131: NA
A132: 25 | B132: hadassah.ru | C132: 90 | D132: 1 | E132: 1 | F132: 2 | G132: 3 | H132: 0 | I132: 1 | J132: 1 | K132: 1 | L132: 0 | M132: 0 | N132: 0 | O132: 1 | P132: 1 | Q132: 0 | R132: 0 | S132: 0 | T132: 0 | U132: 1 | V132: 1 | W132: 1 | X132: 0 | Y132: 1 | Z132: 0 | AA132: 1 | AB132: 2 | AC132: 1 | AD132: 2 | AE132: 1 | AF132: 2 | AG132: 1 | AH132: 2 | AI132: 1 | AJ132: 0 | AK132: 1 | AL132: 0 | AM132: 1 | AN132: 1 | AO132: 1 | AP132: 2 | AQ132: 0 | AR132: NA | AS132: 1 | AT132: 2 | AU132: 0 | AV132: NA | AW132: 0 | AX132: NA | AY132: 0 | AZ132: NA | BA132: 0 | BB132: NA | BC132: 1 | BD132: 0 | BE132: 1 | BF132: 0 | BG132: 1 | BH132: 0 | BI132: 1 | BJ132: 0 | BK132: 1 | BL132: 0 | BM132: 1 | BN132: 0 | BO132: 0 | BP132: NA | BQ132: 0 | BR132: NA | BS132: 0 | BT132: NA | BU132: 0 | BV132: NA | BW132: 0 | BX132: NA | BY132: 0 | BZ132: NA | CA132: 0 | CB132: NA | CC132: 0 | CD132: NA | CE132: 0 | CF132: NA | CG132: 0 | CH132: NA | CI132: 0 | CJ132: NA | CK132: 0 | CL132: NA | CM132: 0 | CN132: NA | CO132: 0 | CP132: NA | CQ132: 0 | CR132: NA | CS132: 0 | CT132: NA | CU132: 0 | CV132: NA | CW132: 0 | CX132: NA | CY132: 0 | CZ132: NA | DA132: 0 | DB132: NA | DC132: 0 | DD132: NA | DE132: 0 | DF132: NA | DG132: 0 | DH132: NA | DI132: 0 | DJ132: NA | DK132: 0 | DL132: NA | DM132: 0 | DN132: NA | DO132: 0 | DP132: NA
C135: Value | D135: Count - general characteristics
C136: 0 | D136: =COUNTIF(D4:D132,0) -> 40 | E136: =COUNTIF(E4:E132,0) -> 15 | F136: =COUNTIF(F4:F132,0) -> 68 | G136: =COUNTIF(G4:G132,0) -> 8 | H136: =COUNTIF(H4:H132,0) -> 108
C137: 1 | D137: =COUNTIF(D4:D132,1) -> 85 | E137: =COUNTIF(E4:E132,1) -> 43 | F137: =COUNTIF(F4:F132,1) -> 48 | G137: =COUNTIF(G4:G132,1) -> 37 | H137: =COUNTIF(H4:H132,1) -> 5
C138: 2 | E138: =COUNTIF(E4:E132,2) -> 23 | F138: =COUNTIF(F4:F132,2) -> 9 | G138: =COUNTIF(G4:G132,2) -> 21 | H138: =COUNTIF(H4:H132,2) -> 12
C139: 3 | E139: =COUNTIF(E4:E132,3) -> 6 | G139: =COUNTIF(G4:G132,3) -> 52
C140: 4 | E140: =COUNTIF(E4:E132,4) -> 3 | G140: =COUNTIF(G4:G132,4) -> 3
C141: 5 | E141: =COUNTIF(E4:E132,5) -> 9 | G141: =COUNTIF(G4:G132,5) -> 4
C142: 6 | E142: =COUNTIF(E4:E132,6) -> 26

Sheet Credibility scores
A1: Website number | B1: eEurope 2002 quality criteria | N1: AQS | O1: RQS
B2: Q1 | C2: Q2 | D2: Q3 | E2: Q4 | F2: Q5 | G2: Q6 | H2: Q7 | I2: Q8 | J2: Q9 | K2: Q10 | L2: Q11 | M2: Q12
A3: English language
A4: 1 | B4: 0 | C4: 1 | D4: 1 | E4: 0 | F4: 1 | G4: 1 | H4: 1 | I4: 1 | J4: 0 | K4: 1 | L4: 1 | M4: 1 | N4: =SUM(B4:M4) -> 9 | O4: =N4*10/12 -> 7.5
A5: 2 | B5: 1 | C5: 1 | D5: 1 | E5: 0 | F5: 1 | G5: 1 | H5: 1 | I5: 1 | J5: 1 | K5: 1 | L5: 1 | M5: 1 | N5: =SUM(B5:M5) -> 11 | O5: =N5*10/12 -> 9.2
A6: 3 | B6: 1 | C6: 1 | D6: 0 | E6: 1 | F6: 0 | G6: 1 | H6: 1 | I6: 0 | J6: 0 | K6: 0 | L6: 0 | M6: 1 | N6: 6 | O6: 5.0
A7: 4 | B7: 0 | C7: 1 | D7: 1 | E7: 0 | F7: 1 | G7: 1 | H7: 1 | I7: 1 | J7: 1 | K7: 1 | L7: 1 | M7: 1 | N7: 10 | O7: 8.3
A8: 5 | B8: 1 | C8: 1 | D8: 0 | E8: 1 | F8: 0 | G8: 1 | H8: 1 | I8: 0 | J8: 1 | K8: 0 | L8: 1 | M8: 0 | N8: 7 | O8: 5.8
A9: 6 | B9: 1 | C9: 1 | D9: 1 | E9: 0 | F9: 1 | G9: 1 | H9: 1 | I9: 1 | J9: 1 | K9: 1 | L9: 1 | M9: 1 | N9: 11 | O9: 9.2
A10: 7 | B10: 0 | C10: 1 | D10: 1 | E10: 1 | F10: 1 | G10: 1 | H10: 1 | I10: 0 | J10: 1 | K10: 1 | L10: 1 | M10: 1 | N10: 10 | O10: 8.3
A11: 8 | B11: 1 | C11: 1 | D11: 1 | E11: 1 | F11: 1 | G11: 1 | H11: 1 | I11: 0 | J11: 0 | K11: 0 | L11: 0 | M11: 1 | N11: 8 | O11: 6.7
A12: 9 | B12: 1 | C12: 1 | D12: 1 | E12: 1 | F12: 1 | G12: 1 | H12: 1 | I12: 1 | J12: 1 | K12: 0 | L12: 0 | M12: 0 | N12: 9 | O12: 7.5
A13: 10 | B13: 0 | C13: 1 | D13: 1 | E13: 1 | F13: 1 | G13: 1 | H13: 1 | I13: 0 | J13: 0 | K13: 0 | L13: 0 | M13: 0 | N13: 6 | O13: 5.0
A14: 11 | B14: 1 | C14: 1 | D14: 0 | E14: 1 | F14: 1 | G14: 1 | H14: 0 | I14: 0 | J14: 0 | K14: 0 | L14: 1 | M14: 1 | N14: 7 | O14: 5.8
A15: 12 | B15: 1 | C15: 1 | D15: 1 | E15: 1 | F15: 1 | G15: 1 | H15: 1 | I15: 0 | J15: 0 | K15: 0 | L15: 0 | M15: 0 | N15: 7 | O15: 5.8
A16: 13 | B16: 1 | C16: 1 | D16: 0 | E16: 1 | F16: 1 | G16: 1 | H16: 1 | I16: 0 | J16: 0 | K16: 0 | L16: 0 | M16: 0 | N16: 6 | O16: 5.0
A17: 14 | B17: 1 | C17: 1 | D17: 0 | E17: 1 | F17: 0 | G17: 1 | H17: 1 | I17: 0 | J17: 0 | K17: 0 | L17: 0 | M17: 0 | N17: 5 | O17: 4.2
A18: 15 | B18: 1 | C18: 1 | D18: 1 | E18: 1 | F18: 1 | G18: 1 | H18: 1 | I18: 0 | J18: 0 | K18: 0 | L18: 0 | M18: 1 | N18: 8 | O18: 6.7
A19: 16 | B19: 1 | C19: 1 | D19: 1 | E19: 1 | F19: 1 | G19: 1 | H19: 1 | I19: 0 | J19: 0 | K19: 0 | L19: 0 | M19: 0 | N19: 7 | O19: 5.8
A20: 17 | B20: 0 | C20: 1 | D20: 0 | E20: 1 | F20: 0 | G20: 1 | H20: 1 | I20: 0 | J20: 0 | K20: 0 | L20: 0 | M20: 1 | N20: 5 | O20: 4.2
A21: 18 | B21: 1 | C21: 1 | D21: 1 | E21: 1 | F21: 1 | G21: 1 | H21: 1 | I21: 1 | J21: 1 | K21: 1 | L21: 0 | M21: 1 | N21: 11 | O21: 9.2
A22: 19 | B22: 1 | C22: 1 | D22: 0 | E22: 1 | F22: 1 | G22: 1 | H22: 0 | I22: 0 | J22: 0 | K22: 0 | L22: 0 | M22: 0 | N22: 5 | O22: 4.2
A23: 20 | B23: 1 | C23: 1 | D23: 0 | E23: 1 | F23: 0 | G23: 1 | H23: 1 | I23: 0 | J23: 0 | K23: 0 | L23: 0 | M23: 0 | N23: 5 | O23: 4.2
A24: 21 | B24: 1 | C24: 1 | D24: 0 | E24: 1 | F24: 1 | G24: 0 | H24: 1 | I24: 0 | J24: 0 | K24: 0 | L24: 0 | M24: 0 | N24: 5 | O24: 4.2
A25: 22 | B25: 0 | C25: 1 | D25: 1 | E25: 1 | F25: 1 | G25: 1 | H25: 1 | I25: 1 | J25: 0 | K25: 0 | L25: 0 | M25: 1 | N25: 8 | O25: 6.7
A26: 23 | B26: 1 | C26: 1 | D26: 0 | E26: 0 | F26: 0 | G26: 1 | H26: 1 | I26: 0 | J26: 0 | K26: 0 | L26: 0 | M26: 0 | N26: 4 | O26: 3.3
A27: 24 | B27: 0 | C27: 1 | D27: 1 | E27: 1 | F27: 0 | G27: 1 | H27: 1 | I27: 0 | J27: 0 | K27: 0 | L27: 0 | M27: 1 | N27: 6 | O27: 5.0
A28: 25 | B28: 1 | C28: 1 | D28: 0 | E28: 1 | F28: 1 | G28: 0 | H28: 0 | I28: 0 | J28: 0 | K28: 0 | L28: 0 | M28: 0 | N28: 4 | O28: 3.3
A29: Total (n) | B29: =COUNTIF(B4:B28,1) -> 18 | C29: =COUNTIF(C4:C28,1) -> 25 | D29: 14 | E29: 20 | F29: 18 | G29: 23 | H29: 22 | I29: 7 | J29: 7 | K29: 6 | L29: 7 | M29: 13 | N29: Mean | O29: =AVERAGE(O4:O28) -> 6.0
A30: Compliance (%) | B30: =B29*100/25 -> 72 | C30: =C29*100/25 -> 100 | D30: 56 | E30: 80 | F30: 72 | G30: 92 | H30: 88 | I30: 28 | J30: 28 | K30: 24 | L30: 28 | M30: 52 | N30: SD | O30: =STDEV(O4:O29) -> 1.8
A32: German language
A33: 1 | B33: 1 | C33: 1 | D33: 1 | E33: 1 | F33: 1 | G33: 1 | H33: 1 | I33: 1 | J33: 0 | K33: 1 | L33: 0 | M33: 0 | N33: =SUM(B33:M33) -> 9 | O33: =N33*10/12 -> 7.5
A34: 2 | B34: 1 | C34: 1 | D34: 0 | E34: 1 | F34: 1 | G34: 1 | H34: 1 | I34: 0 | J34: 0 | K34: 0 | L34: 1 | M34: 0 | N34: =SUM(B34:M34) -> 7 | O34: =N34*10/12 -> 5.8
A35: 3 | B35: 1 | C35: 1 | D35: 1 | E35: 1 | F35: 1 | G35: 1 | H35: 1 | I35: 0 | J35: 0 | K35: 0 | L35: 0 | M35: 0 | N35: 7 | O35: 5.8
A36: 4 | B36: 1 | C36: 1 | D36: 1 | E36: 1 | F36: 1 | G36: 1 | H36: 1 | I36: 0 | J36: 0 | K36: 0 | L36: 0 | M36: 0 | N36: 7 | O36: 5.8
A37: 5 | B37: 1 | C37: 1 | D37: 0 | E37: 1 | F37: 1 | G37: 1 | H37: 1 | I37: 0 | J37: 0 | K37: 0 | L37: 0 | M37: 0 | N37: 6 | O37: 5.0
A38: 6 | B38: 1 | C38: 1 | D38: 0 | E38: 0 | F38: 0 | G38: 1 | H38: 1 | I38: 1 | J38: 0 | K38: 1 | L38: 0 | M38: 0 | N38: 6 | O38: 5.0
A39: 7 | B39: 1 | C39: 1 | D39: 1 | E39: 1 | F39: 1 | G39: 1 | H39: 1 | I39: 0 | J39: 0 | K39: 1 | L39: 0 | M39: 0 | N39: 8 | O39: 6.7
A40: 8 | B40: 1 | C40: 1 | D40: 1 | E40: 0 | F40: 0 | G40: 1 | H40: 1 | I40: 1 | J40: 0 | K40: 0 | L40: 0 | M40: 0 | N40: 6 | O40: 5.0
A41: 9 | B41: 1 | C41: 1 | D41: 1 | E41: 1 | F41: 1 | G41: 1 | H41: 1 | I41: 1 | J41: 0 | K41: 0 | L41: 1 | M41: 0 | N41: 9 | O41: 7.5
A42: 10 | B42: 1 | C42: 1 | D42: 0 | E42: 1 | F42: 0 | G42: 1 | H42: 1 | I42: 0 | J42: 0 | K42: 0 | L42: 0 | M42: 0 | N42: 5 | O42: 4.2
A43: 11 | B43: 1 | C43: 1 | D43: 0 | E43: 0 | F43: 0 | G43: 1 | H43: 1 | I43: 1 | J43: 0 | K43: 0 | L43: 0 | M43: 0 | N43: 5 | O43: 4.2
A44: 12 | B44: 1 | C44: 0 | D44: 0 | E44: 0 | F44: 0 | G44: 1 | H44: 1 | I44: 1 | J44: 0 | K44: 1 | L44: 0 | M44: 0 | N44: 5 | O44: 4.2
A45: 13 | B45: 1 | C45: 1 | D45: 0 | E45: 0 | F45: 0 | G45: 1 | H45: 1 | I45: 0 | J45: 0 | K45: 0 | L45: 0 | M45: 0 | N45: 4 | O45: 3.3
A46: 14 | B46: 1 | C46: 1 | D46: 1 | E46: 0 | F46: 0 | G46: 1 | H46: 1 | I46: 1 | J46: 0 | K46: 0 | L46: 1 | M46: 0 | N46: 7 | O46: 5.8
A47: 15 | B47: 1 | C47: 1 | D47: 0 | E47: 1 | F47: 1 | G47: 1 | H47: 1 | I47: 1 | J47: 1 | K47: 1 | L47: 0 | M47: 0 | N47: 9 | O47: 7.5
A48: 16 | B48: 1 | C48: 1 | D48: 1 | E48: 0 | F48: 0 | G48: 1 | H48: 1 | I48: 1 | J48: 0 | K48: 0 | L48: 0 | M48: 0 | N48: 6 | O48: 5.0
A49: 17 | B49: 1 | C49: 0 | D49: 0 | E49: 0 | F49: 0 | G49: 1 | H49: 1 | I49: 0 | J49: 0 | K49: 0 | L49: 0 | M49: 0 | N49: 3 | O49: 2.5
A50: 18 | B50: 1 | C50: 1 | D50: 1 | E50: 1 | F50: 1 | G50: 1 | H50: 1 | I50: 1 | J50: 0 | K50: 0 | L50: 1 | M50: 0 | N50: 9 | O50: 7.5
A51: 19 | B51: 1 | C51: 1 | D51: 0 | E51: 1 | F51: 1 | G51: 1 | H51: 1 | I51: 1 | J51: 0 | K51: 1 | L51: 0 | M51: 0 | N51: 8 | O51: 6.7
A52: 20 | B52: 1 | C52: 1 | D52: 0 | E52: 0 | F52: 0 | G52: 1 | H52: 1 | I52: 1 | J52: 0 | K52: 1 | L52: 0 | M52: 0 | N52: 6 | O52: 5.0
A53: 21 | B53: 1 | C53: 0 | D53: 0 | E53: 0 | F53: 0 | G53: 1 | H53: 1 | I53: 1 | J53: 0 | K53: 1 | L53: 1 | M53: 0 | N53: 6 | O53: 5.0
A54: 22 | B54: 1 | C54: 1 | D54: 1 | E54: 0 | F54: 0 | G54: 1 | H54: 1 | I54: 0 | J54: 0 | K54: 0 | L54: 0 | M54: 0 | N54: 5 | O54: 4.2
A55: 23 | B55: 1 | C55: 1 | D55: 1 | E55: 0 | F55: 0 | G55: 1 | H55: 1 | I55: 0 | J55: 0 | K55: 0 | L55: 0 | M55: 0 | N55: 5 | O55: 4.2
A56: 24 | B56: 1 | C56: 1 | D56: 0 | E56: 1 | F56: 1 | G56: 1 | H56: 1 | I56: 0 | J56: 1 | K56: 0 | L56: 0 | M56: 0 | N56: 7 | O56: 5.8
A57: 25 | B57: 1 | C57: 1 | D57: 0 | E57: 1 | F57: 1 | G57: 1 | H57: 1 | I57: 0 | J57: 0 | K57: 1 | L57: 0 | M57: 0 | N57: 7 | O57: 5.8
A58: Total (n) | B58: =COUNTIF(B33:B57,1) -> 25 | C58: =COUNTIF(C33:C57,1) -> 22 | D58: 11 | E58: 13 | F58: 12 | G58: 25 | H58: 25 | I58: 13 | J58: 2 | K58: 9 | L58: 5 | M58: 0 | N58: Mean | O58: =AVERAGE(O33:O57) -> 5.4
A59: Compliance (%) | B59: =B58*100/25 -> 100 | C59: =C58*100/25 -> 88 | D59: 44 | E59: 52 | F59: 48 | G59: 100 | H59: 100 | I59: 52 | J59: 8 | K59: 36 | L59: 20 | M59: 0 | N59: SD | O59: =STDEV(O33:O58) -> 1.3
A61: Hungarian language
A62: 1 | B62: 1 | C62: 1 | D62: 1 | E62: 1 | F62: 1 | G62: 1 | H62: 1 | I62: 1 | J62: 0 | K62: 1 | L62: 1 | M62: 0 | N62: =SUM(B62:M62) -> 10 | O62: =N62*10/12 -> 8.3
A63: 2 | B63: 1 | C63: 1 | D63: 1 | E63: 1 | F63: 0 | G63: 1 | H63: 1 | I63: 1 | J63: 0 | K63: 1 | L63: 1 | M63: 0 | N63: =SUM(B63:M63) -> 9 | O63: =N63*10/12 -> 7.5
A64: 3 | B64: 1 | C64: 1 | D64: 1 | E64: 0 | F64: 0 | G64: 1 | H64: 1 | I64: 1 | J64: 0 | K64: 1 | L64: 1 | M64: 0 | N64: 8 | O64: 6.7
A65: 4 | B65: 1 | C65: 0 | D65: 0 | E65: 0 | F65: 0 | G65: 1 | H65: 1 | I65: 1 | J65: 0 | K65: 1 | L65: 1 | M65: 0 | N65: 6 | O65: 5.0
A66: 5 | B66: 1 | C66: 0 | D66: 0 | E66: 0 | F66: 0 | G66: 0 | H66: 1 | I66: 1 | J66: 0 | K66: 1 | L66: 0 | M66: 0 | N66: 4 | O66: 3.3
A67: 6 | B67: 1 | C67: 1 | D67: 1 | E67: 0 | F67: 0 | G67: 1 | H67: 1 | I67: 1 | J67: 0 | K67: 0 | L67: 1 | M67: 0 | N67: 7 | O67: 5.8
A68: 7 | B68: 1 | C68: 1 | D68: 1 | E68: 0 | F68: 0 | G68: 1 | H68: 1 | I68: 1 | J68: 1 | K68: 1 | L68: 1 | M68: 0 | N68: 9 | O68: 7.5
A69: 8 | B69: 1 | C69: 1 | D69: 0 | E69: 0 | F69: 0 | G69: 1 | H69: 1 | I69: 1 | J69: 0 | K69: 0 | L69: 0 | M69: 0 | N69: 5 | O69: 4.2
A70: 9 | B70: 1 | C70: 0 | D70: 1 | E70: 0 | F70: 0 | G70: 1 | H70: 1 | I70: 0 | J70: 0 | K70: 0 | L70: 0 | M70: 0 | N70: 4 | O70: 3.3
A71: 10 | B71: 0 | C71: 0 | D71: 0 | E71: 0 | F71: 0 | G71: 0 | H71: 0 | I71: 0 | J71: 0 | K71: 0 | L71: 0 | M71: 0 | N71: 0 | O71: 0.0
A72: 11 | B72: 0 | C72: 0 | D72: 0 | E72: 0 | F72: 0 | G72: 0 | H72: 0 | I72: 0 | J72: 0 | K72: 0 | L72: 0 | M72: 0 | N72: 0 | O72: 0.0
A73: 12 | B73: 1 | C73: 0 | D73: 0 | E73: 0 | F73: 0 | G73: 1 | H73: 1 | I73: 0 | J73: 0 | K73: 0 | L73: 0 | M73: 0 | N73: 3 | O73: 2.5
A74: 13 | B74: 1 | C74: 0 | D74: 0 | E74: 0 | F74: 0 | G74: 1 | H74: 1 | I74: 0 | J74: 0 | K74: 0 | L74: 0 | M74: 0 | N74: 3 | O74: 2.5
A75: 14 | B75: 1 | C75: 0 | D75: 0 | E75: 1 | F75: 0 | G75: 0 | H75: 1 | I75: 1 | J75: 0 | K75: 1 | L75: 0 | M75: 0 | N75: 5 | O75: 4.2
A76: 15 | B76: 1 | C76: 1 | D76: 0 | E76: 1 | F76: 1 | G76: 0 | H76: 1 | I76: 0 | J76: 0 | K76: 0 | L76: 0 | M76: 0 | N76: 5 | O76: 4.2
A77: 16 | B77: 1 | C77: 1 | D77: 0 | E77: 1 | F77: 1 | G77: 0 | H77: 1 | I77: 1 | J77: 0 | K77: 0 | L77: 0 | M77: 0 | N77: 6 | O77: 5.0
A78: 17 | B78: 0 | C78: 0 | D78: 0 | E78: 0 | F78: 0 | G78: 0 | H78: 0 | I78: 1 | J78: 1 | K78: 0 | L78: 0 | M78: 0 | N78: 2 | O78: 1.7
A79: 18 | B79: 1 | C79: 1 | D79: 0 | E79: 1 | F79: 1 | G79: 1 | H79: 1 | I79: 0 | J79: 0 | K79: 0 | L79: 0 | M79: 0 | N79: 6 | O79: 5.0
A80: 19 | B80: 0 | C80: 0 | D80: 0 | E80: 0 | F80: 0 | G80: 0 | H80: 0 | I80: 0 | J80: 0 | K80: 0 | L80: 0 | M80: 0 | N80: 0 | O80: 0.0
A81: 20 | B81: 0 | C81: 0 | D81: 0 | E81: 0 | F81: 0 | G81: 0 | H81: 0 | I81: 0 | J81: 0 | K81: 0 | L81: 0 | M81: 0 | N81: 0 | O81: 0.0
A82: 21 | B82: 1 | C82: 1 | D82: 0 | E82: 1 | F82: 1 | G82: 1 | H82: 1 | I82: 1 | J82: 1 | K82: 1 | L82: 0 | M82: 0 | N82: 9 | O82: 7.5
A83: 22 | B83: 0 | C83: 0 | D83: 0 | E83: 0 | F83: 0 | G83: 0 | H83: 1 | I83: 0 | J83: 0 | K83: 0 | L83: 0 | M83: 0 | N83: 1 | O83: 0.8
A84: 23 | B84: 0 | C84: 0 | D84: 0 | E84: 0 | F84: 0 | G84: 0 | H84: 0 | I84: 0 | J84: 0 | K84: 0 | L84: 0 | M84: 0 | N84: 0 | O84: 0.0
A85: 24 | B85: 0 | C85: 0 | D85: 0 | E85: 0 | F85: 0 | G85: 0 | H85: 0 | I85: 0 | J85: 0 | K85: 0 | L85: 0 | M85: 0 | N85: 0 | O85: 0.0
A86: 25 | B86: 1 | C86: 1 | D86: 1 | E86: 1 | F86: 1 | G86: 1 | H86: 1 | I86: 1 | J86: 1 | K86: 1 | L86: 0 | M86: 0 | N86: 10 | O86: 8.3
A87: Total (n) | B87: =COUNTIF(B62:B86,1) -> 17 | C87: =COUNTIF(C62:C86,1) -> 11 | D87: =COUNTIF(D62:D86,1) -> 7 | E87: =COUNTIF(E62:E86,1) -> 8 | F87: =COUNTIF(F62:F86,1) -> 6 | G87: =COUNTIF(G62:G86,1) -> 13 | H87: =COUNTIF(H62:H86,1) -> 18 | I87: =COUNTIF(I62:I86,1) -> 13 | J87: =COUNTIF(J62:J86,1) -> 4 | K87: =COUNTIF(K62:K86,1) -> 9 | L87: =COUNTIF(L62:L86,1) -> 6 | M87: =COUNTIF(M62:M86,1) -> 0 | N87: Mean | O87: =AVERAGE(O62:O86) -> 3.7
A88: Compliance (%) | B88: =B87*100/25 -> 68 | C88: =C87*100/25 -> 44 | D88: =D87*100/25 -> 28 | E88: =E87*100/25 -> 32 | F88: =F87*100/25 -> 24 | G88: =G87*100/25 -> 52 | H88: =H87*100/25 -> 72 | I88: =I87*100/25 -> 52 | J88: =J87*100/25 -> 16 | K88: =K87*100/25 -> 36 | L88: =L87*100/25 -> 24 | M88: =M87*100/25 -> 0 | N88: SD | O88: =STDEV(O62:O86) -> 2.9
A90: Romanian language
A91: 1 | B91: 1 | C91: 1 | D91: 1 | E91: 0 | F91: 0 | G91: 0 | H91: 1 | I91: 0 | J91: 0 | K91: 0 | L91: 0 | M91: 0 | N91: =SUM(B91:M91) -> 4 | O91: =N91*10/12 -> 3.3
A92: 2 | B92: 1 | C92: 1 | D92: 0 | E92: 0 | F92: 0 | G92: 1 | H92: 1 | I92: 0 | J92: 0 | K92: 1 | L92: 0 | M92: 0 | N92: =SUM(B92:M92) -> 5 | O92: =N92*10/12 -> 4.2
A93: 3 | B93: 1 | C93: 1 | D93: 0 | E93: 0 | F93: 0 | G93: 1 | H93: 1 | I93: 0 | J93: 0 | K93: 0 | L93: 0 | M93: 0 | N93: 4 | O93: 3.3
A94: 4 | B94: 1 | C94: 1 | D94: 0 | E94: 0 | F94: 0 | G94: 1 | H94: 1 | I94: 0 | J94: 0 | K94: 0 | L94: 0 | M94: 0 | N94: 4 | O94: 3.3
A95: 5 | B95: 1 | C95: 1 | D95: 0 | E95: 0 | F95: 0 | G95: 1 | H95: 1 | I95: 1 | J95: 0 | K95: 0 | L95: 0 | M95: 0 | N95: 5 | O95: 4.2
A96: 6 | B96: 1 | C96: 1 | D96: 0 | E96: 0 | F96: 0 | G96: 1 | H96: 1 | I96: 0 | J96: 0 | K96: 0 | L96: 0 | M96: 0 | N96: 4 | O96: 3.3
A97: 7 | B97: 1 | C97: 1 | D97: 0 | E97: 1 | F97: 0 | G97: 1 | H97: 1 | I97: 1 | J97: 0 | K97: 1 | L97: 0 | M97: 0 | N97: 7 | O97: 5.8
A98: 8 | B98: 1 | C98: 1 | D98: 0 | E98: 0 | F98: 0 | G98: 1 | H98: 1 | I98: 0 | J98: 0 | K98: 0 | L98: 0 | M98: 0 | N98: 4 | O98: 3.3
A99: 9 | B99: 1 | C99: 1 | D99: 0 | E99: 0 | F99: 0 | G99: 1 | H99: 1 | I99: 0 | J99: 0 | K99: 1 | L99: 0 | M99: 0 | N99: 5 | O99: 4.2
A100: 10 | B100: 1 | C100: 1 | D100: 0 | E100: 0 | F100: 0 | G100: 1 | H100: 1 | I100: 0 | J100: 0 | K100: 0 | L100: 0 | M100: 0 | N100: 4 | O100: 3.3
A101: 11 | B101: 1 | C101: 1 | D101: 0 | E101: 0 | F101: 0 | G101: 0 | H101: 1 | I101: 0 | J101: 0 | K101: 0 | L101: 0 | M101: 0 | N101: 3 | O101: 2.5
A102: 12 | B102: 1 | C102: 1 | D102: 0 | E102: 0 | F102: 0 | G102: 1 | H102: 1 | I102: 0 | J102: 0 | K102: 1 | L102: 0 | M102: 0 | N102: 5 | O102: 4.2
A103: 13 | B103: 0 | C103: 1 | D103: 0 | E103: 0 | F103: 0 | G103: 0 | H103: 1 | I103: 1 | J103: 0 | K103: 1 | L103: 0 | M103: 0 | N103: 4 | O103: 3.3
A104: 14 | B104: 1 | C104: 1 | D104: 0 | E104: 0 | F104: 0 | G104: 0 | H104: 1 | I104: 0 | J104: 0 | K104: 0 | L104: 0 | M104: 0 | N104: 3 | O104: 2.5
A105: 15 | B105: 1 | C105: 1 | D105: 0 | E105: 0 | F105: 0 | G105: 1 | H105: 1 | I105: 1 | J105: 0 | K105: 1 | L105: 0 | M105: 0 | N105: 6 | O105: 5.0
A106: 16 | B106: 1 | C106: 1 | D106: 0 | E106: 0 | F106: 0 | G106: 0 | H106: 1 | I106: 0 | J106: 0 | K106: 0 | L106: 0 | M106: 0 | N106: 3 | O106: 2.5
A107: 17 | B107: 0 | C107: 1 | D107: 0 | E107: 0 | F107: 0 | G107: 0 | H107: 1 | I107: 0 | J107: 0 | K107: 0 | L107: 0 | M107: 0 | N107: 2 | O107: 1.7
A108: 18 | B108: 1 | C108: 1 | D108: 0 | E108: 0 | F108: 1 | G108: 0 | H108: 1 | I108: 0 | J108: 0 | K108: 0 | L108: 0 | M108: 0 | N108: 4 | O108: 3.3
A109: 19 | B109: 0 | C109: 0 | D109: 0 | E109: 0 | F109: 0 | G109: 0 | H109: 0 | I109: 1 | J109: 0 | K109: 0 | L109: 0 | M109: 0 | N109: 1 | O109: 0.8
A110: 20 | B110: 1 | C110: 1 | D110: 0 | E110: 0 | F110: 0 | G110: 1 | H110: 1 | I110: 0 | J110: 0 | K110: 0 | L110: 0 | M110: 0 | N110: 4 | O110: 3.3
A111: 21 | B111: 0 | C111: 0 | D111: 0 | E111: 0 | F111: 0 | G111: 0 | H111: 0 | I111: 0 | J111: 0 | K111: 0 | L111: 0 | M111: 0 | N111: 0 | O111: 0.0
A112: 22 | B112: 0 | C112: 0 | D112: 0 | E112: 0 | F112: 0 | G112: 0 | H112: 0 | I112: 0 | J112: 0 | K112: 1 | L112: 0 | M112: 0 | N112: 1 | O112: 0.8
A113: 23 | B113: 0 | C113: 0 | D113: 0 | E113: 0 | F113: 0 | G113: 0 | H113: 0 | I113: 0 | J113: 0 | K113: 0 | L113: 0 | M113: 0 | N113: 0 | O113: 0.0
A114: 24 | B114: 1 | C114: 0 | D114: 1 | E114: 0 | F114: 0 | G114: 0 | H114: 1 | I114: 0 | J114: 1 | K114: 0 | L114: 0 | M114: 0 | N114: 4 | O114: 3.3
A115: 25 | B115: 0 | C115: 1 | D115: 0 | E115: 0 | F115: 0 | G115: 0 | H115: 1 | I115: 1 | J115: 1 | K115: 1 | L115: 0 | M115: 0 | N115: 5 | O115: 4.2
A116: Total (n) | B116: =COUNTIF(B91:B115,1) -> 18 | C116: =COUNTIF(C91:C115,1) -> 20 | D116: =COUNTIF(D91:D115,1) -> 2 | E116: =COUNTIF(E91:E115,1) -> 1 | F116: =COUNTIF(F91:F115,1) -> 1 | G116: =COUNTIF(G91:G115,1) -> 12 | H116: =COUNTIF(H91:H115,1) -> 21 | I116: =COUNTIF(I91:I115,1) -> 6 | J116: =COUNTIF(J91:J115,1) -> 2 | K116: =COUNTIF(K91:K115,1) -> 8 | L116: =COUNTIF(L91:L115,1) -> 0 | M116: =COUNTIF(M91:M115,1) -> 0 | N116: Mean | O116: =AVERAGE(O91:O115) -> 3.0
A117: Compliance (%) | B117: =B116*100/25 -> 72 | C117: =C116*100/25 -> 80 | D117: =D116*100/25 -> 8 | E117: =E116*100/25 -> 4 | F117: =F116*100/25 -> 4 | G117: =G116*100/25 -> 48 | H117: =H116*100/25 -> 84 | I117: =I116*100/25 -> 24 | J117: =J116*100/25 -> 8 | K117: =K116*100/25 -> 32 | L117: =L116*100/25 -> 0 | M117: =M116*100/25 -> 0 | N117: SD | O117: =STDEV(O91:O115) -> 1.4
A119: Russian language
A120: 1 | B120: 0 | C120: 1 | D120: 0 | E120: 1 | F120: 1 | G120: 1 | H120: 0 | I120: 0 | J120: 1 | K120: 0 | L120: 1 | M120: 0 | N120: =SUM(B120:M120) -> 6 | O120: =N120*10/12 -> 5.0
A121: 2 | B121: 1 | C121: 1 | D121: 0 | E121: 1 | F121: 0 | G121: 0 | H121: 1 | I121: 1 | J121: 0 | K121: 1 | L121: 1 | M121: 0 | N121: =SUM(B121:M121) -> 7 | O121: =N121*10/12 -> 5.8
A122: 3 | B122: 1 | C122: 1 | D122: 1 | E122: 1 | F122: 1 | G122: 1 | H122: 1 | I122: 0 | J122: 0 | K122: 0 | L122: 0 | M122: 0 | N122: 7 | O122: 5.8
A123: 4 | B123: 1 | C123: 0 | D123: 0 | E123: 1 | F123: 1 | G123: 0 | H123: 1 | I123: 0 | J123: 0 | K123: 0 | L123: 0 | M123: 0 | N123: 4 | O123: 3.3
A124: 5 | B124: 1 | C124: 1 | D124: 0 | E124: 0 | F124: 0 | G124: 0 | H124: 1 | I124: 1 | J124: 1 | K124: 0 | L124: 0 | M124: 0 | N124: 5 | O124: 4.2
A125: 6 | B125: 1 | C125: 1 | D125: 1 | E125: 1 | F125: 1 | G125: 0 | H125: 1 | I125: 0 | J125: 0 | K125: 0 | L125: 0 | M125: 0 | N125: 6 | O125: 5.0
A126: 7 | B126: 1 | C126: 1 | D126: 0 | E126: 0 | F126: 0 | G126: 0 | H126: 1 | I126: 1 | J126: 0 | K126: 1 | L126: 0 | M126: 0 | N126: 5 | O126: 4.2
A127: 8 | B127: 1 | C127: 1 | D127: 1 | E127: 0 | F127: 0 | G127: 1 | H127: 1 | I127: 1 | J127: 1 | K127: 1 | L127: 0 | M127: 0 | N127: 8 | O127: 6.7
A128: 9 | B128: 1 | C128: 0 | D128: 0 | E128: 0 | F128: 0 | G128: 0 | H128: 1 | I128: 1 | J128: 0 | K128: 1 | L128: 0 | M128: 0 | N128: 4 | O128: 3.3
A129: 10 | B129: 1 | C129: 1 | D129: 0 | E129: 0 | F129: 0 | G129: 0 | H129: 1 | I129: 0 | J129: 0 | K129: 0 | L129: 0 | M129: 0 | N129: 3 | O129: 2.5
A130: 11 | B130: 1 | C130: 1 | D130: 0 | E130: 0 | F130: 0 | G130: 0 | H130: 1 | I130: 0 | J130: 0 | K130: 0 | L130: 0 | M130: 0 | N130: 3 | O130: 2.5
A131: 12 | B131: 1 | C131: 1 | D131: 1 | E131: 0 | F131: 0 | G131: 1 | H131: 1 | I131: 1 | J131: 1 | K131: 1 | L131: 0 | M131: 0 | N131: 8 | O131: 6.7
A132: 13 | B132: 1 | C132: 0 | D132: 0 | E132: 1 | F132: 0 | G132: 0 | H132: 1 | I132: 1 | J132: 0 | K132: 0 | L132: 0 | M132: 0 | N132: 4 | O132: 3.3
A133: 14 | B133: 1 | C133: 1 | D133: 0 | E133: 0 | F133: 0 | G133: 0 | H133: 1 | I133: 0 | J133: 0 | K133: 0 | L133: 0 | M133: 0 | N133: 3 | O133: 2.5
A134: 15 | B134: 1 | C134: 0 | D134: 0 | E134: 1 | F134: 1 | G134: 0 | H134: 1 | I134: 0 | J134: 0 | K134: 0 | L134: 0 | M134: 0 | N134: 4 | O134: 3.3
A135: 16 | B135: 1 | C135: 1 | D135: 0 | E135: 0 | F135: 0 | G135: 0 | H135: 1 | I135: 0 | J135: 0 | K135: 0 | L135: 0 | M135: 0 | N135: 3 | O135: 2.5
A136: 17 | B136: 1 | C136: 1 | D136: 0 | E136: 1 | F136: 1 | G136: 0 | H136: 0 | I136: 0 | J136: 0 | K136: 0 | L136: 0 | M136: 0 | N136: 4 | O136: 3.3
A137: 18 | B137: 1 | C137: 0 | D137: 0 | E137: 1 | F137: 0 | G137: 0 | H137: 1 | I137: 1 | J137: 0 | K137: 1 | L137: 0 | M137: 0 | N137: 5 | O137: 4.2
A138: 19 | B138: 1 | C138: 0 | D138: 0 | E138: 1 | F138: 0 | G138: 0 | H138: 1 | I138: 0 | J138: 0 | K138: 1 | L138: 0 | M138: 0 | N138: 4 | O138: 3.3
A139: 20 | B139: 1 | C139: 1 | D139: 0 | E139: 0 | F139: 0 | G139: 0 | H139: 1 | I139: 0 | J139: 0 | K139: 0 | L139: 0 | M139: 0 | N139: 3 | O139: 2.5
A140: 21 | B140: 1 | C140: 1 | D140: 0 | E140: 0 | F140: 0 | G140: 0 | H140: 1 | I140: 0 | J140: 0 | K140: 0 | L140: 0 | M140: 0 | N140: 3 | O140: 2.5
A141: 22 | B141: 1 | C141: 0 | D141: 0 | E141: 0 | F141: 0 | G141: 1 | H141: 1 | I141: 0 | J141: 0 | K141: 0 | L141: 0 | M141: 0 | N141: 3 | O141: 2.5
A142: 23 | B142: 1 | C142: 1 | D142: 0 | E142: 1 | F142: 1 | G142: 0 | H142: 1 | I142: 0 | J142: 0 | K142: 0 | L142: 0 | M142: 0 | N142: 5 | O142: 4.2
A143: 24 | B143: 1 | C143: 0 | D143: 0 | E143: 1 | F143: 1 | G143: 0 | H143: 1 | I143: 0 | J143: 0 | K143: 0 | L143: 0 | M143: 0 | N143: 4 | O143: 3.3
A144: 25 | B144: 1 | C144: 1 | D144: 1 | E144: 0 | F144: 0 | G144: 0 | H144: 1 | I144: 1 | J144: 0 | K144: 0 | L144: 0 | M144: 0 | N144: 5 | O144: 4.2
A145: Total (n) | B145: =COUNTIF(B120:B144,1) -> 24 | C145: =COUNTIF(C120:C144,1) -> 17 | D145: =COUNTIF(D120:D144,1) -> 5 | E145: =COUNTIF(E120:E144,1) -> 12 | F145: =COUNTIF(F120:F144,1) -> 8 | G145: =COUNTIF(G120:G144,1) -> 5 | H145: =COUNTIF(H120:H144,1) -> 23 | I145: =COUNTIF(I120:I144,1) -> 9 | J145: =COUNTIF(J120:J144,1) -> 4 | K145: =COUNTIF(K120:K144,1) -> 7 | L145: =COUNTIF(L120:L144,1) -> 2 | M145: =COUNTIF(M120:M144,1) -> 0 | N145: Mean | O145: =AVERAGE(O120:O144) -> 3.9
A146: Compliance (%) | B146: =B145*100/25 -> 96 | C146: =C145*100/25 -> 68 | D146: =D145*100/25 -> 20 | E146: =E145*100/25 -> 48 | F146: =F145*100/25 -> 32 | G146: =G145*100/25 -> 20 | H146: =H145*100/25 -> 92 | I146: =I145*100/25 -> 36 | J146: =J145*100/25 -> 16 | K146: =K145*100/25 -> 28 | L146: =L145*100/25 -> 8 | M146: =M145*100/25 -> 0 | N146: SD | O146: =STDEV(O120:O145) -> 1.3
A148: Overall total (n) | B148: =SUM(B29,B58,B87,B116,B145) -> 102 | C148: =SUM(C29,C58,C87,C116,C145) -> 95 | D148: 39 | E148: 54 | F148: 45 | G148: 78 | H148: 109 | I148: 48 | J148: 19 | K148: 39 | L148: 20 | M148: 13 | N148: Mean | O148: =AVERAGE(O4:O28,O33:O57,O62:O86,O91:O115,O120:O144) -> 4.4
A149: Overall compliance (%) | B149: =B148*100/125 -> 81.6 | C149: =C148*100/125 -> 76.0 | D149: 31.2 | E149: 43.2 | F149: 36.0 | G149: 62.4 | H149: 87.2 | I149: 38.4 | J149: 15.2 | K149: 31.2 | L149: 16.0 | M149: 10.4 | N149: SD | O149: =STDEV(O4:O28,O33:O57,O62:O86,O91:O115,O120:O144) -> 2.2

Sheet Completeness scores
A1: Website number | B1: Completeness | AZ1: ACS | BA1: RCS
B2: E1 | C2: E2 | D2: E3 | E2: E4 | F2: E5 | G2: E6 | H2: E7 | I2: E8 | J2: E9 | K2: E10 | L2: E11 | M2: E12 | N2: E13 | O2: E14 | P2: E15 | Q2: E16 | R2: E17 | S2: E18 | T2: E19 | U2: E20 | V2: E21 | W2: E22 | X2: E23 | Y2: E24 | Z2: E25 | AA2: E26 | AB2: E27 | AC2: E28 | AD2: E29 | AE2: E30 | AF2: E31 | AG2: E32 | AH2: E33 | AI2: E34 | AJ2: E35 | AK2: E36 | AL2: E37 | AM2: E38 | AN2: E39 | AO2: E40 | AP2: E41 | AQ2: E42 | AR2: E43 | AS2: E44 | AT2: E45 | AU2: E46 | AV2: E47 | AW2: E48 | AX2: E49 | AY2: E50
A3: English language
A4: 1 | B4: 1 | C4: 1 | D4: 1 | E4: 0 | F4: 1 | G4: 0 | H4: 1 | I4: 0 | J4: 0 | K4: 1 | L4: 0 | M4: 0 | N4: 0 | O4: 0 | P4: 0 | Q4: 0 | R4: 0 | S4: 0 | T4: 0 | U4: 0 | V4: 0 | W4: 1 | X4: 1 | Y4: 0 | Z4: 0 | AA4: 0 | AB4: 0 | AC4: 0 | AD4: 0 | AE4: 0 | AF4: 0 | AG4: 1 | AH4: 0 | AI4: 0 | AJ4: 0 | AK4: 0 | AL4: 0 | AM4: 0 | AN4: 0 | AO4: 0 | AP4: 0 | AQ4: 0 | AR4: 0 | AS4: 0 | AT4: 0 | AU4: 0 | AV4: 0 | AW4: 0 | AX4: 0 | AY4: 0 | AZ4: =SUM(B4:AY4) -> 9 | BA4: =AZ4*10/50 -> 1.8
A5: 2 | B5: 1 | C5: 1 | D5: 1 | E5: 1 | F5: 1 | G5: 1 | H5: 1 | I5: 0 | J5: 1 | K5: 0 | L5: 1 | M5: 0 | N5: 1 | O5: 0 | P5: 0 | Q5: 0 | R5: 0 | S5: 0 | T5: 1 | U5: 0 | V5: 0 | W5: 1 | X5: 1 | Y5: 1 | Z5: 0 | AA5: 1 | AB5: 1 | AC5: 1 | AD5: 0 | AE5: 1 | AF5: 1 | AG5: 1 | AH5: 0 | AI5: 0 | AJ5: 0 | AK5: 0 | AL5: 0 | AM5: 0 | AN5: 0 | AO5: 0 | AP5: 0 | AQ5: 0 | AR5: 0 | AS5: 0 | AT5: 0 | AU5: 1 | AV5: 1 | AW5: 0 | AX5: 0 | AY5: 1 | AZ5: =SUM(B5:AY5) -> 23 | BA5: =AZ5*10/50 -> 4.6
A6: 3 | B6: 1 | C6: 1 | D6: 1 | E6: 1 | F6: 1 | G6: 0 | H6: 1 | I6: 0 | J6: 0 | K6: 0 | L6: 0 | M6: 0 | N6: 0 | O6: 0 | P6: 0 | Q6: 0 | R6: 0 | S6: 0 | T6: 0 | U6: 0 | V6: 0 | W6: 1 | X6: 1 | Y6: 0 | Z6: 0 | AA6: 0 | AB6: 1 | AC6: 0 | AD6: 0 | AE6: 0 | AF6: 0 | AG6: 0 | AH6: 0 | AI6: 0 | AJ6: 1 | AK6: 0 | AL6: 0 | AM6: 0 | AN6: 0 | AO6: 0 | AP6: 0 | AQ6: 0 | AR6: 1 | AS6: 0 | AT6: 0 | AU6: 0 | AV6: 0 | AW6: 0 | AX6: 0 | AY6: 0 | AZ6: 11 | BA6: 2.2
A7: 4 | B7: 1 | C7: 1 | D7: 1 | E7: 1 | F7: 1 | G7: 0 | H7: 1 | I7: 1 | J7: 1 | K7: 0 | L7: 1 | M7: 0 | N7: 0 | O7: 0 | P7: 0 | Q7: 1 | R7: 1 | S7: 1 | T7: 1 | U7: 1 | V7: 1 | W7: 1 | X7: 1 | Y7: 1 | Z7: 0 | AA7: 1 | AB7: 1 | AC7: 1 | AD7: 0 | AE7: 1 | AF7: 1 | AG7: 1 | AH7: 0 | AI7: 0 | AJ7: 1 | AK7: 1 | AL7: 1 | AM7: 1 | AN7: 1 | AO7: 0 | AP7: 0 | AQ7: 0 | AR7: 1 | AS7: 0 | AT7: 0 | AU7: 1 | AV7: 0 | AW7: 0 | AX7: 0 | AY7: 0 | AZ7: 31 | BA7: 6.2
A8: 5 | B8: 1 | C8: 0 | D8: 0 | E8: 1 | F8: 1 | G8: 1 | H8: 1 | I8: 0 | J8: 0 | K8: 0 | L8: 0 | M8: 0 | N8: 0 | O8: 0 | P8: 0 | Q8: 0 | R8: 0 | S8: 0 | T8: 0 | U8: 1 | V8: 1 | W8: 1 | X8: 0 | Y8: 1 | Z8: 0 | AA8: 1 | AB8: 1 | AC8: 1 | AD8: 0 | AE8: 0 | AF8: 1 | AG8: 0 | AH8: 0 | AI8: 0 | AJ8: 1 | AK8: 1 | AL8: 0 | AM8: 0 | AN8: 1 | AO8: 0 | AP8: 0 | AQ8: 0 | AR8: 1 | AS8: 0 | AT8: 0 | AU8: 0 | AV8: 0 | AW8: 0 | AX8: 0 | AY8: 0 | AZ8: 17 | BA8: 3.4
A9: 6 | B9: 1 | C9: 1 | D9: 0 | E9: 0 | F9: 1 | G9: 0 | H9: 1 | I9: 1 | J9: 1 | K9: 0 | L9: 1 | M9: 1 | N9: 0 | O9: 0 | P9: 0 | Q9: 0 | R9: 0 | S9: 0 | T9: 1 | U9: 1 | V9: 1 | W9: 1 | X9: 1 | Y9: 1 | Z9: 0 | AA9: 0 | AB9: 1 | AC9: 1 | AD9: 0 | AE9: 1 | AF9: 1 | AG9: 1 | AH9: 0 | AI9: 0 | AJ9: 1 | AK9: 1 | AL9: 1 | AM9: 1 | AN9: 1 | AO9: 0 | AP9: 0 | AQ9: 0 | AR9: 1 | AS9: 0 | AT9: 1 | AU9: 1 | AV9: 1 | AW9: 0 | AX9: 0 | AY9: 0 | AZ9: 28 | BA9: 5.6
A10: 7 | B10: 1 | C10: 1 | D10: 1 | E10: 1 | F10: 1 | G10: 1 | H10: 1 | I10: 1 | J10: 1 | K10: 1 | L10: 1 | M10: 1 | N10: 1 | O10: 1 | P10: 0 | Q10: 0 | R10: 0 | S10: 1 | T10: 1 | U10: 1 | V10: 1 | W10: 1 | X10: 1 | Y10: 1 | Z10: 0 | AA10: 1 | AB10: 1 | AC10: 1 | AD10: 1 | AE10: 1 | AF10: 1 | AG10: 1 | AH10: 1 | AI10: 0 | AJ10: 1 | AK10: 1 | AL10: 0 | AM10: 0 | AN10: 1 | AO10: 0 | AP10: 0 | AQ10: 0 | AR10: 1 | AS10: 1 | AT10: 0 | AU10: 0 | AV10: 0 | AW10: 0 | AX10: 0 | AY10: 0 | AZ10: 34 | BA10: 6.8
A11: 8 | B11: 1 | C11: 1 | D11: 1 | E11: 1 | F11: 1 | G11: 0 | H11: 1 | I11: 1 | J11: 1 | K11: 0 | L11: 1 | M11: 1 | N11: 1 | O11: 0 | P11: 0 | Q11: 0 | R11: 0 | S11: 1 | T11: 1 | U11: 1 | V11: 1 | W11: 1 | X11: 1 | Y11: 1 | Z11: 0 | AA11: 1 | AB11: 1 | AC11: 0 | AD11: 0 | AE11: 1 | AF11: 1 | AG11: 1 | AH11: 0 | AI11: 1 | AJ11: 1 | AK11: 1 | AL11: 1 | AM11: 0 | AN11: 0 | AO11: 0 | AP11: 0 | AQ11: 0 | AR11: 0 | AS11: 0 | AT11: 0 | AU11: 1 | AV11: 1 | AW11: 0 | AX11: 0 | AY11: 0 | AZ11: 29 | BA11: 5.8
A12: 9 | B12: 1 | C12: 0 | D12: 1 | E12: 1 | F12: 1 | G12: 0 | H12: 1 | I12: 1 | J12: 0 | K12: 1 | L12: 1 | M12: 0 | N12: 1 | O12: 0 | P12: 0 | Q12: 1 | R12: 1 | S12: 1 | T12: 1 | U12: 1 | V12: 1 | W12: 1 | X12: 1 | Y12: 0 | Z12: 0 | AA12: 0 | AB12: 1 | AC12: 1 | AD12: 0 | AE12: 1 | AF12: 1 | AG12: 1 | AH12: 1 | AI12: 0 | AJ12: 1 | AK12: 1 | AL12: 0 | AM12: 1 | AN12: 1 | AO12: 0 | AP12: 0 | AQ12: 0 | AR12: 1 | AS12: 0 | AT12: 0 | AU12: 0 | AV12: 0 | AW12: 0 | AX12: 0 | AY12: 0 | AZ12: 28 | BA12: 5.6
A13: 10 | B13: 1 | C13: 1 | D13: 1 | E13: 1 | F13: 0 | G13: 0 | H13: 1 | I13: 1 | J13: 1 | K13: 0 | L13: 1 | M13: 0 | N13: 1 | O13: 1 | P13: 0 | Q13: 0 | R13: 1 | S13: 1 | T13: 1 | U13: 1 | V13: 1 | W13: 1 | X13: 1 | Y13: 1 | Z13: 0 | AA13: 1 | AB13: 1 | AC13: 0 | AD13: 0 | AE13: 1 | AF13: 1 | AG13: 1 | AH13: 0 | AI13: 1 | AJ13: 1 | AK13: 1 | AL13: 0 | AM13: 0 | AN13: 1 | AO13: 0 | AP13: 0 | AQ13: 0 | AR13: 1 | AS13: 0 | AT13: 1 | AU13: 1 | AV13: 0 | AW13: 0 | AX13: 0 | AY13: 0 | AZ13: 30 | BA13: 6
A14: 11 | B14: 1 | C14: 1 | D14: 1 | E14: 1 | F14: 1 | G14: 0 | H14: 1 | I14: 1 | J14: 0 | K14: 1 | L14: 1 | M14: 1 | N14: 1 | O14: 0 | P14: 0 | Q14: 0 | R14: 1 | S14: 1 | T14: 1 | U14: 1 | V14: 1 | W14: 1 | X14: 1 | Y14: 1 | Z14: 0 | AA14: 0 | AB14: 1 | AC14: 1 | AD14: 1 | AE14: 1 | AF14: 1 | AG14: 1 | AH14: 1 | AI14: 0 | AJ14: 1 | AK14: 1 | AL14: 1 | AM14: 1 | AN14: 1 | AO14: 0 | AP14: 0 | AQ14: 0 | AR14: 1 | AS14: 1 | AT14: 0 | AU14: 1 | AV14: 0 | AW14: 0 | AX14: 0 | AY14: 0 | AZ14: 34 | BA14: 6.8
A15: 12 | B15: 1 | C15: 1 | D15: 1 | E15: 0 | F15: 0 | G15: 0 | H15: 1 | I15: 0 | J15: 0 | K15: 1 | L15: 0 | M15: 1 | N15: 1 | O15: 0 | P15: 0 | Q15: 0 | R15: 0 | S15: 0 | T15: 1 | U15: 1 | V15: 1 | W15: 1 | X15: 1 | Y15: 1 | Z15: 0 | AA15: 0 | AB15: 1 | AC15: 1 | AD15: 1 | AE15: 1 | AF15: 1 | AG15: 1 | AH15: 1 | AI15: 1 | AJ15: 1 | AK15: 0 | AL15: 1 | AM15: 1 | AN15: 1 | AO15: 0 | AP15: 0 | AQ15: 0 | AR15: 0 | AS15: 0 | AT15: 1 | AU15: 0 | AV15: 0 | AW15: 0 | AX15: 0 | AY15: 0 | AZ15: 26 | BA15: 5.2
A16: 13 | B16: 1 | C16: 0 | D16: 0 | E16: 0 | F16: 0 | G16: 0 | H16: 1 | I16: 1 | J16: 0 | K16: 1 | L16: 1 | M16: 1 | N16: 1 | O16: 1 | P16: 0 | Q16: 1 | R16: 0 | S16: 1 | T16: 1 | U16: 1 | V16: 1 | W16: 1 | X16: 1 | Y16: 0 | Z16: 0 | AA16: 1 | AB16: 0 | AC16: 1 | AD16: 0 | AE16: 1 | AF16: 0 | AG16: 0 | AH16: 1 | AI16: 0 | AJ16: 1 | AK16: 1 | AL16: 0 | AM16: 0 | AN16: 1 | AO16: 0 | AP16: 0 | AQ16: 0 | AR16: 0 | AS16: 0 | AT16: 0 | AU16: 0 | AV16: 0 | AW16: 0 | AX16: 0 | AY16: 0 | AZ16: 22 | BA16: 4.4
A17: 14 | B17: 1 | C17: 0 | D17: 0 | E17: 1 | F17: 1 | G17: 0 | H17: 1 | I17: 0 | J17: 0 | K17: 1 | L17: 0 | M17: 1 | N17: 1 | O17: 0 | P17: 0 | Q17: 0 | R17: 0 | S17: 1 | T17: 0 | U17: 1 | V17: 1 | W17: 0 | X17: 1 | Y17: 0 | Z17: 0 | AA17: 1 | AB17: 0 | AC17: 1 | AD17: 0 | AE17: 1 | AF17: 1 | AG17: 1 | AH17: 0 | AI17: 0 | AJ17: 1 | AK17: 1 | AL17: 1 | AM17: 0 | AN17: 1 | AO17: 0 | AP17: 0 | AQ17: 0 | AR17: 1 | AS17: 0 | AT17: 1 | AU17: 0 | AV17: 0 | AW17: 0 | AX17: 0 | AY17: 0 | AZ17: 22 | BA17: 4.4
A18: 15 | B18: 1 | C18: 1 | D18: 1 | E18: 1 | F18: 1 | G18: 1 | H18: 1 | I18: 1 | J18: 0 | K18: 1 | L18: 1 | M18: 0 | N18: 1 | O18: 0 | P18: 0 | Q18: 1 | R18: 0 | S18: 0 | T18: 1 | U18: 1 | V18: 1 | W18: 1 | X18: 1 | Y18: 1 | Z18: 0 | AA18: 1 | AB18: 1 | AC18: 0 | AD18: 0 | AE18: 1 | AF18: 1 | AG18: 1 | AH18: 0 | AI18: 0 | AJ18: 1 | AK18: 0 | AL18: 0 | AM18: 0 | AN18: 0 | AO18: 0 | AP18: 0 | AQ18: 0 | AR18: 1 | AS18: 0 | AT18: 1 | AU18: 0 | AV18: 1 | AW18: 0 | AX18: 0 | AY18: 0 | AZ18: 27 | BA18: 5.4
A19: 16 | B19: 1 | C19: 0 | D19: 0 | E19: 1 | F19: 1 | G19: 0 | H19: 1 | I19: 1 | J19: 1 | K19: 1 | L19: 1 | M19: 1 | N19: 0 | O19: 1 | P19: 1 | Q19: 1 | R19: 1 | S19: 1 | T19: 1 | U19: 1 | V19: 1 | W19: 1 | X19: 1 | Y19: 1 | Z19: 1 | AA19: 1 | AB19: 1 | AC19: 1 | AD19: 1 | AE19: 1 | AF19: 1 | AG19: 0 | AH19: 1 | AI19: 0 | AJ19: 1 | AK19: 1 | AL19: 0 | AM19: 0 | AN19: 0 | AO19: 1 | AP19: 0 | AQ19: 0 | AR19: 0 | AS19: 1 | AT19: 0 | AU19: 0 | AV19: 0 | AW19: 0 | AX19: 0 | AY19: 0 | AZ19: 32 | BA19: 6.4
A20: 17 | B20: 1 | C20: 1 | D20: 0 | E20: 0 | F20: 0 | G20: 0 | H20: 0 | I20: 1 | J20: 1 | K20: 0 | L20: 1 | M20: 0 | N20: 0 | O20: 0 | P20: 0 | Q20: 0 | R20: 0 | S20: 0 | T20: 1 | U20: 1 | V20: 1 | W20: 0 | X20: 1 | Y20: 1 | Z20: 0 | AA20: 1 | AB20: 0 | AC20: 0 | AD20: 0 | AE20: 1 | AF20: 1 | AG20: 0 | AH20: 1 | AI20: 0 | AJ20: 1 | AK20: 1 | AL20: 0 | AM20: 0 | AN20: 0 | AO20: 0 | AP20: 0 | AQ20: 0 | AR20: 0 | AS20: 0 | AT20: 0 | AU20: 0 | AV20: 0 | AW20: 0 | AX20: 0 | AY20: 0 | AZ20: 16 | BA20: 3.2
A21: 18 | B21: 1 | C21: 0 | D21: 1 | E21: 1 | F21: 1 | G21: 0 | H21: 1 | I21: 0 | J21: 0 | K21: 0 | L21: 0 | M21: 1 | N21: 0 | O21: 0 | P21: 0 | Q21: 0 | R21: 0 | S21: 0 | T21: 0 | U21: 0 | V21: 0 | W21: 0 | X21: 0 | Y21: 0 | Z21: 0 | AA21: 0 | AB21: 1 | AC21: 0 | AD21: 0 | AE21: 0 | AF21: 0 | AG21: 0 | AH21: 0 | AI21: 0 | AJ21: 1 | AK21: 1 | AL21: 0 | AM21: 0 | AN21: 0 | AO21: 0 | AP21: 0 | AQ21: 0 | AR21: 1 | AS21: 0 | AT21: 1 | AU21: 0 | AV21: 0 | AW21: 0 | AX21: 0 | AY21: 0 | AZ21: 11 | BA21: 2.2
A22: 19 | B22: 1 | C22: 0 | D22: 1 | E22: 0 | F22: 0 | G22: 0 | H22: 0 | I22: 1 | J22: 0 | K22: 1 | L22: 0 | M22: 1 | N22: 1 | O22: 0 | P22: 0 | Q22: 0 | R22: 0 | S22: 0 | T22: 1 | U22: 1 | V22: 1 | W22: 1 | X22: 1 | Y22: 0 | Z22: 0 | AA22: 1 | AB22: 1 | AC22: 1 | AD22: 0 | AE22: 0 | AF22: 1 | AG22: 0 | AH22: 0 | AI22: 0 | AJ22: 0 | AK22: 0 | AL22: 0 | AM22: 0 | AN22: 1 | AO22: 0 | AP22: 0 | AQ22: 0 | AR22: 0 | AS22: 0 | AT22: 0 | AU22: 0 | AV22: 0 | AW22: 0 | AX22: 0 | AY22: 0 | AZ22: 16 | BA22: 3.2
A23: 20 | B23: 1 | C23: 1 | D23: 1 | E23: 1 | F23: 1 | G23: 0 | H23: 1 | I23: 1 | J23: 1 | K23: 1 | L23: 0 | M23: 0 | N23: 0 | O23: 0 | P23: 0 | Q23: 0 | R23: 0 | S23: 0 | T23: 0 | U23: 1 | V23: 1 | W23: 1 | X23: 1 | Y23: 0 | Z23: 0 | AA23: 0 | AB23: 1 | AC23: 0 | AD23: 0 | AE23: 0 | AF23: 1 | AG23: 0 | AH23: 0 | AI23: 0 | AJ23: 1 | AK23: 0 | AL23: 0 | AM23: 0 | AN23: 0 | AO23: 0 | AP23: 0 | AQ23: 0 | AR23: 1 | AS23: 1 | AT23: 0 | AU23: 0 | AV23: 0 | AW23: 0 | AX23: 0 | AY23: 0 | AZ23: 18 | BA23: 3.6
A24: 21 | B24: 1 | C24: 0 | D24: 0 | E24: 0 | F24: 0 | G24: 0 | H24: 1 | I24: 1 | J24: 1 | K24: 0 | L24: 0 | M24: 0 | N24: 0 | O24: 0 | P24: 0 | Q24: 1 | R24: 1 | S24: 1 | T24: 1 | U24: 1 | V24: 1 | W24: 1 | X24: 1 | Y24: 1 | Z24: 0 | AA24: 1 | AB24: 0 | AC24: 1 | AD24: 0 | AE24: 1 | AF24: 0 | AG24: 0 | AH24: 1 | AI24: 0 | AJ24: 1 | AK24: 0 | AL24: 0 | AM24: 0 | AN24: 0 | AO24: 0 | AP24: 0 | AQ24: 0 | AR24: 0 | AS24: 0 | AT24: 0 | AU24: 0 | AV24: 0 | AW24: 0 | AX24: 0 | AY24: 0 | AZ24: 18 | BA24: 3.6
A25: 22 | B25: 1 | C25: 1 | D25: 1 | E25: 0 | F25: 1 | G25: 0 | H25: 1 | I25: 0 | J25: 0 | K25: 1 | L25: 0 | M25: 0 | N25: 1 | O25: 0 | P25: 0 | Q25: 0 | R25: 0 | S25: 0 | T25: 1 | U25: 1 | V25: 1 | W25: 1 | X25: 1 | Y25: 1 | Z25: 1 | AA25: 1 | AB25: 1 | AC25: 0 | AD25: 0 | AE25: 0 | AF25: 1 | AG25: 1 | AH25: 0 | AI25: 0 | AJ25: 1 | AK25: 1 | AL25: 1 | AM25: 1 | AN25: 1 | AO25: 0 | AP25: 0 | AQ25: 0 | AR25: 1 | AS25: 1 | AT25: 1 | AU25: 0 | AV25: 0 | AW25: 0 | AX25: 0 | AY25: 0 | AZ25: 26 | BA25: 5.2
A26: 23 | B26: 1 | C26: 1 | D26: 1 | E26: 1 | F26: 0 | G26: 1 | H26: 0 | I26: 0 | J26: 0 | K26: 0 | L26: 0 | M26: 0 | N26: 0 | O26: 0 | P26: 0 | Q26: 0 | R26: 0 | S26: 0 | T26: 0 | U26: 0 | V26: 0 | W26: 0 | X26: 0 | Y26: 0 | Z26: 0 | AA26: 0 | AB26: 0 | AC26: 0 | AD26: 0 | AE26: 0 | AF26: 0 | AG26: 0 | AH26: 0 | AI26: 0 | AJ26: 0 | AK26: 0 | AL26: 0 | AM26: 0 | AN26: 1 | AO26: 0 | AP26: 0 | AQ26: 0 | AR26: 0 | AS26: 0 | AT26: 0 | AU26: 0 | AV26: 0 | AW26: 0 | AX26: 0 | AY26: 0 | AZ26: 6 | BA26: 1.2
A27: 24 | B27: 1 | C27: 0 | D27: 0 | E27: 1 | F27: 1 | G27: 0 | H27: 1 | I27: 1 | J27: 1 | K27: 1 | L27: 1 | M27: 1 | N27: 0 | O27: 1 | P27: 1 | Q27: 1 | R27: 1 | S27: 1 | T27: 1 | U27: 1 | V27: 1 | W27: 1 | X27: 1 | Y27: 1 | Z27: 1 | AA27: 1 | AB27: 1 | AC27: 1 | AD27: 1 | AE27: 1 | AF27: 1 | AG27: 0 | AH27: 1 | AI27: 0 | AJ27: 1 | AK27: 1 | AL27: 0 | AM27: 0 | AN27: 0 | AO27: 1 | AP27: 0 | AQ27: 0 | AR27: 0 | AS27: 1 | AT27: 0 | AU27: 0 | AV27: 0 | AW27: 0 | AX27: 0 | AY27: 0 | AZ27: 32 | BA27: 6.4
A28: 25 | B28: 1 | C28: 0 | D28: 0 | E28: 0 | F28: 0 | G28: 0 | H28: 1 | I28: 1 | J28: 1 | K28: 1 | L28: 1 | M28: 0 | N28: 1 | O28: 1 | P28: 0 | Q28: 1 | R28: 1 | S28: 1 | T28: 1 | U28: 1 | V28: 1 | W28: 1 | X28: 0 | Y28: 1 | Z28: 1 | AA28: 1 | AB28: 0 | AC28: 1 | AD28: 0 | AE28: 1 | AF28: 1 | AG28: 0 | AH28: 0 | AI28: 0 | AJ28: 1 | AK28: 1 | AL28: 0 | AM28: 1 | AN28: 1 | AO28: 0 | AP28: 0 | AQ28: 0 | AR28: 0 | AS28: 0 | AT28: 0 | AU28: 0 | AV28: 0 | AW28: 0 | AX28: 0 | AY28: 0 | AZ28: 25 | BA28: 5
AZ29: Mean | BA29: =AVERAGE(BA4:BA28) -> 4.6
AZ30: SD | BA30: =STDEV(BA4:BA29) -> 1.6
A31: German language
A32: 1 | B32: 1 | C32: 0 | D32: 1 | E32: 1 | F32: 1 | G32: 1 | H32: 1 | I32: 0 | J32: 1 | K32: 1 | L32: 0 | M32: 0 | N32: 0 | O32: 0 | P32: 0 | Q32: 0 | R32: 0 | S32: 0 | T32: 1 | U32: 1 | V32: 1 | W32: 1 | X32: 1 | Y32: 1 | Z32: 0 | AA32: 1 | AB32: 1 | AC32: 1 | AD32: 0 | AE32: 0 | AF32: 0 | AG32: 1 | AH32: 0 | AI32: 1 | AJ32: 1 | AK32: 1 | AL32: 1 | AM32: 0 | AN32: 0 | AO32: 0 | AP32: 0 | AQ32: 0 | AR32: 1 | AS32: 0 | AT32: 0 | AU32: 0 | AV32: 0 | AW32: 0 | AX32: 0 | AY32: 0 | AZ32: =SUM(B32:AY32) -> 23 | BA32: =AZ32*10/50 -> 4.6
A33: 2 | B33: 1 | C33: 0 | D33: 1 | E33: 1 | F33: 1 | G33: 0 | H33: 1 | I33: 0 | J33: 0 | K33: 1 | L33: 0 | M33: 0 | N33: 0 | O33: 0 | P33: 0 | Q33: 0 | R33: 0 | S33: 0 | T33: 1 | U33: 1 | V33: 1 | W33: 1 | X33: 1 | Y33: 1 | Z33: 0 | AA33: 0 | AB33: 1 | AC33: 1 | AD33: 0 | AE33: 0 | AF33: 1 | AG33: 1 | AH33: 0 | AI33: 0 | AJ33: 0 | AK33: 0 | AL33: 0 | AM33: 0 | AN33: 1 | AO33: 0 | AP33: 0 | AQ33: 0 | AR33: 1 | AS33: 0 | AT33: 0 | AU33: 0 | AV33: 0 | AW33: 0 | AX33: 0 | AY33: 0 | AZ33: =SUM(B33:AY33) -> 18 | BA33: =AZ33*10/50 -> 3.6
A34: 3 | B34: 1 | C34: 1 | D34: 1 | E34: 0 | F34: 1 | G34: 0 | H34: 1 | I34: 0 | J34: 0 | K34: 0 | L34: 0 | M34: 0 | N34: 0 | O34: 0 | P34: 0 | Q34: 0 | R34: 0 | S34: 0 | T34: 1 | U34: 1 | V34: 1 | W34: 1 | X34: 1 | Y34: 1 | Z34: 0 | AA34: 1 | AB34: 1 | AC34: 1 | AD34: 0 | AE34: 0 | AF34: 1 | AG34: 1 | AH34: 0 | AI34: 1 | AJ34: 1 | AK34: 1 | AL34: 1 | AM34: 0 | AN34: 1 | AO34: 0 | AP34: 0 | AQ34: 0 | AR34: 1 | AS34: 0 | AT34: 1 | AU34: 1 | AV34: 0 | AW34: 0 | AX34: 0 | AY34: 0 | AZ34: 24 | BA34: 4.8
A35: 4 | B35: 1 | C35: 1 | D35: 1 | E35: 1 | F35: 1 | G35: 1 | H35: 1 | I35: 0 | J35: 1 | K35: 1 | L35: 0 | M35: 0 | N35: 0 | O35: 0 | P35: 0 | Q35: 0 | R35: 0 | S35: 0 | T35: 1 | U35: 1 | V35: 1 | W35: 1 | X35: 1 | Y35: 1 | Z35: 0 | AA35: 1 | AB35: 1 | AC35: 0 | AD35: 0 | AE35: 0 | AF35: 0 | AG35: 1 | AH35: 1 | AI35: 1 | AJ35: 1 | AK35: 1 | AL35: 0 | AM35: 1 | AN35: 1 | AO35: 0 | AP35: 0 | AQ35: 0 | AR35: 1 | AS35: 0 | AT35: 0 | AU35: 0 | AV35: 0 | AW35: 0 | AX35: 0 | AY35: 0 | AZ35: 25 | BA35: 5
A36: 5 | B36: 1 | C36: 1 | D36: 1 | E36: 1 | F36: 1 | G36: 0 | H36: 1 | I36: 0 | J36: 1 | K36: 1 | L36: 0 | M36: 0 | N36: 0 | O36: 0 | P36: 0 | Q36: 0 | R36: 0 | S36: 0 | T36: 1 | U36: 1 | V36: 1 | W36: 1 | X36: 1 | Y36: 0 | Z36: 0 | AA36: 1 | AB36: 1 | AC36: 0 | AD36: 0 | AE36: 0 | AF36: 0 | AG36: 1 | AH36: 0 | AI36: 0 | AJ36: 1 | AK36: 1 | AL36: 0 | AM36: 1 | AN36: 1 | AO36: 0 | AP36: 0 | AQ36: 0 | AR36: 1 | AS36: 0 | AT36: 0 | AU36: 0 | AV36: 0 | AW36: 0 | AX36: 0 | AY36: 0 | AZ36: 21 | BA36: 4.2
A37: 6 | B37: 1 | C37: 1 | D37: 1 | E37: 1 | F37: 1 | G37: 1 | H37: 1 | I37: 0 | J37: 0 | K37: 1 | L37: 0 | M37: 0 | N37: 0 | O37: 0 | P37: 0 | Q37: 0 | R37: 0 | S37: 0 | T37: 1 | U37: 1 | V37: 0 | W37: 0 | X37: 1 | Y37: 0 | Z37: 0 | AA37: 0 | AB37: 1 | AC37: 0 | AD37: 0 | AE37: 0 | AF37: 0 | AG37: 1 | AH37: 0 | AI37: 0 | AJ37: 0 | AK37: 1 | AL37: 0 | AM37: 1 | AN37: 0 | AO37: 0 | AP37: 0 | AQ37: 0 | AR37: 1 | AS37: 0 | AT37: 0 | AU37: 0 | AV37: 0 | AW37: 0 | AX37: 0 | AY37: 0 | AZ37: 16 | BA37: 3.2
A38: 7 | B38: 1 | C38: 1 | D38: 1 | E38: 0 | F38: 0 | G38: 0 | H38: 1 | I38: 0 | J38: 0 | K38: 1 | L38: 0 | M38: 0 | N38: 0 | O38: 0 | P38: 0 | Q38: 0 | R38: 0 | S38: 0 | T38: 0 | U38: 1 | V38: 0 | W38: 1 | X38: 1 | Y38: 0 | Z38: 0 | AA38: 1 | AB38: 1 | AC38: 0 | AD38: 0 | AE38: 0 | AF38: 0 | AG38: 1 | AH38: 0 | AI38: 0 | AJ38: 1 | AK38: 0 | AL38: 0 | AM38: 1 | AN38: 1 | AO38: 0 | AP38: 0 | AQ38: 0 | AR38: 1 | AS38: 0 | AT38: 1 | AU38: 1 | AV38: 0 | AW38: 0 | AX38: 0 | AY38: 0 | AZ38: 17 | BA38: 3.4
A39: 8 | B39: 1 | C39: 1 | D39: 1 | E39: 1 | F39: 1 | G39: 0 | H39: 0 | I39: 0 | J39: 0 | K39: 0 | L39: 0 | M39: 0 | N39: 0 | O39: 0 | P39: 0 | Q39: 0 | R39: 0 | S39: 0 | T39: 1 | U39: 1 | V39: 1 | W39: 1 | X39: 1 | Y39: 1 | Z39: 0 | AA39: 1 | AB39: 1 | AC39: 1 | AD39: 0 | AE39: 0 | AF39: 1 | AG39: 1 | AH39: 1 | AI39: 0 | AJ39: 1 | AK39: 1 | AL39: 0 | AM39: 0 | AN39: 1 | AO39: 0 | AP39: 0 | AQ39: 0 | AR39: 1 | AS39: 1 | AT39: 0 | AU39: 0 | AV39: 0 | AW39: 0 | AX39: 0 | AY39: 0 | AZ39: 22 | BA39: 4.4
A40: 9 | B40: 1 | C40: 0 | D40: 1 | E40: 1 | F40: 1 | G40: 1 | H40: 0 | I40: 0 | J40: 0 | K40: 0 | L40: 0 | M40: 0 | N40: 0 | O40: 0 | P40: 0 | Q40: 0 | R40: 0 | S40: 0 | T40: 1 | U40: 1 | V40: 1 | W40: 0 | X40: 1 | Y40: 1 | Z40: 0 | AA40: 0 | AB40: 1 | AC40: 0 | AD40: 0 | AE40: 0 | AF40: 0 | AG40: 0 | AH40: 0 | AI40: 0 | AJ40: 1 | AK40: 1 | AL40: 1 | AM40: 0 | AN40: 0 | AO40: 0 | AP40: 0 | AQ40: 0 | AR40: 1 | AS40: 0 | AT40: 0 | AU40: 0 | AV40: 0 | AW40: 0 | AX40: 0 | AY40: 0 | AZ40: 15 | BA40: 3
A41: 10 | B41: 1 | C41: 0 | D41: 1 | E41: 1 | F41: 1 | G41: 1 | H41: 1 | I41: 0 | J41: 0 | K41: 1 | L41: 0 | M41: 0 | N41: 0 | O41: 0 | P41: 0 | Q41: 0 | R41: 0 | S41: 0 | T41: 0 | U41: 1 | V41: 1 | W41: 0 | X41: 1 | Y41: 1 | Z41: 0 | AA41: 1 | AB41: 1 | AC41: 0 | AD41: 0 | AE41: 0 | AF41: 0 | AG41: 1 | AH41: 0 | AI41: 0 | AJ41: 1 | AK41: 0 | AL41: 0 | AM41: 0 | AN41: 1 | AO41: 0 | AP41: 0 | AQ41: 0 | AR41: 1 | AS41: 0 | AT41: 0 | AU41: 0 | AV41: 0 | AW41: 0 | AX41: 0 | AY41: 0 | AZ41: 17 | BA41: 3.4
A42: 11 | B42: 1 | C42: 0 | D42: 0 | E42: 1 | F42: 1 | G42: 1 | H42: 0 | I42: 0 | J42: 0 | K42: 0 | L42: 0 | M42: 0 | N42: 0 | O42: 0 | P42: 0 | Q42: 0 | R42: 0 | S42: 0 | T42: 1 | U42: 1 | V42: 1 | W42: 1 | X42: 1 | Y42: 1 | Z42: 0 | AA42: 1 | AB42: 1 | AC42: 0 | AD42: 0 | AE42: 0 | AF42: 1 | AG42: 0 | AH42: 0 | AI42: 0 | AJ42: 0 | AK42: 0 | AL42: 0 | AM42: 0 | AN42: 0 | AO42: 0 | AP42: 0 | AQ42: 0 | AR42: 0 | AS42: 0 | AT42: 0 | AU42: 0 | AV42: 0 | AW42: 0 | AX42: 0 | AY42: 0 | AZ42: 13 | BA42: 2.6
A43: 12 | B43: 1 | C43: 1 | D43: 1 | E43: 1 | F43: 1 | G43: 0 | H43: 1 | I43: 0 | J43: 0 | K43: 1 | L43: 0 | M43: 0 | N43: 0 | O43: 0 | P43: 0 | Q43: 0 | R43: 0 | S43: 0 | T43: 0 | U43: 1 | V43: 1 | W43: 1 | X43: 1 | Y43: 0 | Z43: 0 | AA43: 0 | AB43: 1 | AC43: 0 | AD43: 0 | AE43: 0 | AF43: 0 | AG43: 1 | AH43: 0 | AI43: 0 | AJ43: 0 | AK43: 0 | AL43: 0 | AM43: 0 | AN43: 0 | AO43: 0 | AP43: 0 | AQ43: 0 | AR43: 1 | AS43: 1 | AT43: 0 | AU43: 1 | AV43: 1 | AW43: 0 | AX43: 0 | AY43: 0 | AZ43: 17 | BA43: 3.4
A44: 13 | B44: 1 | C44: 0 | D44: 0 | E44: 1 | F44: 1 | G44: 1 | H44: 1 | I44: 0 | J44: 0 | K44: 0 | L44: 0 | M44: 0 | N44: 1 | O44: 0 | P44: 0 | Q44: 0 | R44: 0 | S44: 0 | T44: 0 | U44: 1 | V44: 0 | W44: 1 | X44: 1 | Y44: 0 | Z44: 0 | AA44: 1 | AB44: 0 | AC44: 1 | AD44: 0 | AE44: 0 | AF44: 0 | AG44: 1 | AH44: 0 | AI44: 0 | AJ44: 0 | AK44: 0 | AL44: 0 | AM44: 0 | AN44: 1 | AO44: 0 | AP44: 0 | AQ44: 0 | AR44: 0 | AS44: 0 | AT44: 0 | AU44: 0 | AV44: 0 | AW44: 0 | AX44: 0 | AY44: 0 | AZ44: 13 | BA44: 2.6
A45: 14 | B45: 1 | C45: 0 | D45: 0 | E45: 0 | F45: 1 | G45: 1 | H45: 1 | I45: 0 | J45: 0 | K45: 0 | L45: 0 | M45: 0 | N45: 0 | O45: 0 | P45: 0 | Q45: 0 | R45: 0 | S45: 0 | T45: 0 | U45: 1 | V45: 0 | W45: 1 | X45: 1 | Y45: 1 | Z45: 0 | AA45: 0 | AB45: 1 | AC45: 0 | AD45: 0 | AE45: 0 | AF45: 0 | AG45: 1 | AH45: 0 | AI45: 0 | AJ45: 0 | AK45: 0 | AL45: 0 | AM45: 0 | AN45: 0 | AO45: 0 | AP45: 0 | AQ45: 0 | AR45: 0 | AS45: 0 | AT45: 0 | AU45: 0 | AV45: 0 | AW45: 0 | AX45: 0 | AY45: 0 | AZ45: 10 | BA45: 2
A46: 15 | B46: 1 | C46: 1 | D46: 1 | E46: 1 | F46: 1 | G46: 1 | H46: 1 | I46: 1 | J46: 1 | K46: 1 | L46: 0 | M46: 0 | N46: 1 | O46: 0 | P46: 0 | Q46: 1 | R46: 0 | S46: 1 | T46: 1 | U46: 1 | V46: 1 | W46: 1 | X46: 1 | Y46: 1 | Z46: 0 | AA46: 1 | AB46: 1 | AC46: 0 | AD46: 0 | AE46: 0 | AF46: 1 | AG46: 1 | AH46: 0 | AI46: 1 | AJ46: 1 | AK46: 1 | AL46: 0 | AM46: 1 | AN46: 0 | AO46: 0 | AP46: 0 | AQ46: 0 | AR46: 1 | AS46: 1 | AT46: 1 | AU46: 0 | AV46: 0 | AW46: 0 | AX46: 0 | AY46: 0 | AZ46: 30 | BA46: 6
A47: 16 | B47: 1 | C47: 1 | D47: 1 | E47: 1 | F47: 1 | G47: 1 | H47: 0 | I47: 0 | J47: 0 | K47: 1 | L47: 0 | M47: 0 | N47: 0 | O47: 0 | P47: 0 | Q47: 0 | R47: 0 | S47: 0 | T47: 1 | U47: 1 | V47: 1 | W47: 1 | X47: 1 | Y47: 0 | Z47: 0 | AA47: 0 | AB47: 0 | AC47: 0 | AD47: 0 | AE47: 0 | AF47: 0 | AG47: 0 | AH47: 0 | AI47: 0 | AJ47: 0 | AK47: 0 | AL47: 0 | AM47: 0 | AN47: 0 | AO47: 0 | AP47: 0 | AQ47: 0 | AR47: 1 | AS47: 0 | AT47: 0 | AU47: 0 | AV47: 0 | AW47: 0 | AX47: 0 | AY47: 0 | AZ47: 13 | BA47: 2.6
A48: 17 | B48: 1 | C48: 0 | D48: 0 | E48: 0 | F48: 1 | G48: 0 | H48: 0 | I48: 0 | J48: 0 | K48: 0 | L48: 0 | M48: 0 | N48: 0 | O48: 0 | P48: 0 | Q48: 0 | R48: 0 | S48: 0 | T48: 0 | U48: 0 | V48: 0 | W48: 0 | X48: 1 | Y48: 0 | Z48: 0 | AA48: 0 | AB48: 1 | AC48: 0 | AD48: 0 | AE48: 0 | AF48: 0 | AG48: 0 | AH48: 0 | AI48: 0 | AJ48: 1 | AK48: 0 | AL48: 0 | AM48: 1 | AN48: 0 | AO48: 0 | AP48: 0 | AQ48: 0 | AR48: 1 | AS48: 0 | AT48: 0 | AU48: 0 | AV48: 0 | AW48: 0 | AX48: 0 | AY48: 0 | AZ48: 7 | BA48: 1.4
A49: 18 | B49: 1 | C49: 1 | D49: 1 | E49: 1 | F49: 1 | G49: 1 | H49: 1 | I49: 0 | J49: 0 | K49: 0 | L49: 0 | M49: 0 | N49: 0 | O49: 0 | P49: 0 | Q49: 0 | R49: 0 | S49: 0 | T49: 0 | U49: 1 | V49: 1 | W49: 1 | X49: 1 | Y49: 0 | Z49: 0 | AA49: 0 | AB49: 1 | AC49: 0 | AD49: 0 | AE49: 0 | AF49: 0 | AG49: 1 | AH49: 0 | AI49: 0 | AJ49: 1 | AK49: 0 | AL49: 0 | AM49: 1 | AN49: 0 | AO49: 0 | AP49: 0 | AQ49: 0 | AR49: 1 | AS49: 1 | AT49: 1 | AU49: 1 | AV49: 0 | AW49: 0 | AX49: 1 | AY49: 1 | AZ49: 21 | BA49: 4.2
A50: 19 | B50: 1 | C50: 1 | D50: 1 | E50: 1 | F50: 1 | G50: 1 | H50: 1 | I50: 0 | J50: 0 | K50: 0 | L50: 0 | M50: 0 | N50: 0 | O50: 0 | P50: 0 | Q50: 0 | R50: 0 | S50: 0 | T50: 1 | U50: 1 | V50: 1 | W50: 1 | X50: 1 | Y50: 1 | Z50: 0 | AA50: 0 | AB50: 1 | AC50: 0 | AD50: 0 | AE50: 0 | AF50: 0 | AG50: 0 | AH50: 0 | AI50: 0 | AJ50: 1 | AK50: 1 | AL50: 0 | AM50: 0 | AN50: 0 | AO50: 0 | AP50: 0 | AQ50: 0 | AR50: 0 | AS50: 0 | AT50: 0 | AU50: 0 | AV50: 0 | AW50: 0 | AX50: 0 | AY50: 0 | AZ50: 16 | BA50: 3.2
A51: 20 | B51: 1 | C51: 1 | D51: 1 | E51: 1 | F51: 1 | G51: 1 | H51: 0 | I51: 0 | J51: 0 | K51: 1 | L51: 0 | M51: 0 | N51: 0 | O51: 0 | P51: 0 | Q51: 0 | R51: 0 | S51: 0 | T51: 0 | U51: 0 | V51: 1 | W51: 0 | X51: 1 | Y51: 0 | Z51: 0 | AA51: 0 | AB51: 1 | AC51: 0 | AD51: 0 | AE51: 0 | AF51: 0 | AG51: 1 | AH51: 0 | AI51: 0 | AJ51: 1 | AK51: 0 | AL51: 0 | AM51: 0 | AN51: 0 | AO51: 0 | AP51: 0 | AQ51: 0 | AR51: 0 | AS51: 0 | AT51: 0 | AU51: 0 | AV51: 0 | AW51: 0 | AX51: 0 | AY51: 0 | AZ51: 12 | BA51: 2.4
A52: 21 | B52: 1 | C52: 0 | D52: 0 | E52: 0 | F52: 0 | G52: 0 | H52: 0 | I52: 0 | J52: 0 | K52: 0 | L52: 0 | M52: 0 | N52: 0 | O52: 0 | P52: 0 | Q52: 0 | R52: 0 | S52: 0 | T52: 0 | U52: 1 | V52: 1 | W52: 0 | X52: 0 | Y52: 0 | Z52: 0 | AA52: 0 | AB52: 0 | AC52: 0 | AD52: 0 | AE52: 0 | AF52: 0 | AG52: 1 | AH52: 0 | AI52: 0 | AJ52: 0 | AK52: 0 | AL52: 0 | AM52: 0 | AN52: 0 | AO52: 0 | AP52: 0 | AQ52: 0 | AR52: 1 | AS52: 0 | AT52: 0 | AU52: 0 | AV52: 0 | AW52: 0 | AX52: 0 | AY52: 0 | AZ52: 5 | BA52: 1
A53: 22 | B53: 1 | C53: 1 | D53: 1 | E53: 0 | F53: 0 | G53: 0 | H53: 0 | I53: 0 | J53: 0 | K53: 1 | L53: 0 | M53: 0 | N53: 0 | O53: 0 | P53: 0 | Q53: 0 | R53: 0 | S53: 0 | T53: 1 | U53: 1 | V53: 1 | W53: 1 | X53: 1 | Y53: 1 | Z53: 0 | AA53: 0 | AB53: 1 | AC53: 0 | AD53: 1 | AE53: 0 | AF53: 0 | AG53: 0 | AH53: 0 | AI53: 0 | AJ53: 1 | AK53: 1 | AL53: 0 | AM53: 1 | AN53: 0 | AO53: 0 | AP53: 0 | AQ53: 0 | AR53: 0 | AS53: 1 | AT53: 0 | AU53: 0 | AV53: 0 | AW53: 0 | AX53: 0 | AY53: 0 | AZ53: 16 | BA53: 3.2
A54: 23 | B54: 1 | C54: 0 | D54: 0 | E54: 1 | F54: 1 | G54: 0 | H54: 1 | I54: 0 | J54: 0 | K54: 0 | L54: 0 | M54: 0 | N54: 0 | O54: 0 | P54: 0 | Q54: 0 | R54: 0 | S54: 0 | T54: 0 | U54: 1 | V54: 0 | W54: 1 | X54: 1 | Y54: 1 | Z54: 0 | AA54: 1 | AB54: 1 | AC54: 0 | AD54: 0 | AE54: 0 | AF54: 1 | AG54: 0 | AH54: 1 | AI54: 0 | AJ54: 0 | AK54: 0 | AL54: 0 | AM54: 0 | AN54: 0 | AO54: 0 | AP54: 0 | AQ54: 0 | AR54: 0 | AS54: 0 | AT54: 0 | AU54: 0 | AV54: 0 | AW54: 0 | AX54: 0 | AY54: 0 | AZ54: 12 | BA54: 2.4
A55: 24 | B55: 1 | C55: 1 | D55: 0 | E55: 1 | F55: 1 | G55: 0 | H55: 1 | I55: 0 | J55: 0 | K55: 0 | L55: 0 | M55: 0 | N55: 0 | O55: 0 | P55: 0 | Q55: 0 | R55: 0 | S55: 1 | T55: 1 | U55: 1 | V55: 0 | W55: 0 | X55: 1 | Y55: 1 | Z55: 0 | AA55: 1 | AB55: 1 | AC55: 0 | AD55: 0 | AE55: 0 | AF55: 0 | AG55: 1 | AH55: 0 | AI55: 0 | AJ55: 1 | AK55: 1 | AL55: 0 | AM55: 1 | AN55: 1 | AO55: 0 | AP55: 0 | AQ55: 0 | AR55: 1 | AS55: 0 | AT55: 0 | AU55: 0 | AV55: 0 | AW55: 0 | AX55: 0 | AY55: 0 | AZ55: 18 | BA55: 3.6
A56: 25 | B56: 1 | C56: 1 | D56: 1 | E56: 1 | F56: 1 | G56: 0 | H56: 0 | I56: 0 | J56: 0 | K56: 0 | L56: 0 | M56: 0 | N56: 0 | O56: 0 | P56: 0 | Q56: 0 | R56: 0 | S56: 0 | T56: 0 | U56: 1 | V56: 0 | W56: 0 | X56: 0 | Y56: 0 | Z56: 0 | AA56: 0 | AB56: 1 | AC56: 0 | AD56: 0 | AE56: 0 | AF56: 0 | AG56: 0 | AH56: 0 | AI56: 0 | AJ56: 1 | AK56: 0 | AL56: 0 | AM56: 0 | AN56: 0 | AO56: 0 | AP56: 0 | AQ56: 0 | AR56: 1 | AS56: 0 | AT56: 0 | AU56: 0 | AV56: 0 | AW56: 0 | AX56: 0 | AY56: 0 | AZ56: 9 | BA56: 1.8
AZ57: Mean | BA57: =AVERAGE(BA32:BA56) -> 3.3
AZ58: SD | BA58: =STDEV(BA32:BA57) -> 1.2
A59: Hungarian language
A60: 1 | B60: 1 | C60: 1 | D60: 1 | E60: 1 | F60: 1 | G60: 1 | H60: 1 | I60: 0 | J60: 0 | K60: 1 | L60: 0 | M60: 0 | N60: 0 | O60: 0 | P60: 0 | Q60: 0 | R60: 0 | S60: 0 | T60: 0 | U60: 1 | V60: 1 | W60: 1 | X60: 1 | Y60: 0 | Z60: 0 | AA60: 0 | AB60: 1 | AC60: 0 | AD60: 0 | AE60: 0 | AF60: 0 | AG60: 0 | AH60: 0 | AI60: 0 | AJ60: 1 | AK60: 1 | AL60: 0 | AM60: 1 | AN60: 0 | AO60: 0 | AP60: 1 | AQ60: 1 | AR60: 1 | AS60: 0 | AT60: 0 | AU60: 0 | AV60: 0 | AW60: 0 | AX60: 0 | AY60: 0 | AZ60: =SUM(B60:AY60) -> 19 | BA60: =AZ60*10/50 -> 3.8
A61: 2 | B61: 1 | C61: 0 | D61: 0 | E61: 1 | F61: 0 | G61: 0 | H61: 0 | I61: 0 | J61: 0 | K61: 0 | L61: 0 | M61: 0 | N61: 0 | O61: 0 | P61: 0 | Q61: 0 | R61: 0 | S61: 0 | T61: 0 | U61: 0 | V61: 0 | W61: 0 | X61: 1 | Y61: 0 | Z61: 0 | AA61: 0 | AB61: 1 | AC61: 0 | AD61: 0 | AE61: 0 | AF61: 1 | AG61: 1 | AH61: 0 | AI61: 0 | AJ61: 1 | AK61: 0 | AL61: 0 | AM61: 1 | AN61: 0 | AO61: 0 | AP61: 0 | AQ61: 0 | AR61: 0 | AS61: 0 | AT61: 1 | AU61: 1 | AV61: 1 | AW61: 0 | AX61: 0 | AY61: 0 | AZ61: =SUM(B61:AY61) -> 11 | BA61: =AZ61*10/50 -> 2.2
A62: 3 | B62: 1 | C62: 0 | D62: 1 | E62: 1 | F62: 1 | G62: 1 | H62: 1 | I62: 1 | J62: 0 | K62: 1 | L62: 1 | M62: 0 | N62: 0 | O62: 0 | P62: 0 | Q62: 0 | R62: 0 | S62: 0 | T62: 0 | U62: 1 | V62: 1 | W62: 1 | X62: 1 | Y62: 1 | Z62: 0 | AA62: 1 | AB62: 1 | AC62: 0 | AD62: 0 | AE62: 1 | AF62: 0 | AG62: 1 | AH62: 0 | AI62: 0 | AJ62: 1 | AK62: 1 | AL62: 0 | AM62: 1 | AN62: 0 | AO62: 0 | AP62: 0 | AQ62: 0 | AR62: 0 | AS62: 1 | AT62: 1 | AU62: 1 | AV62: 1 | AW62: 0 | AX62: 0 | AY62: 0 | AZ62: 25 | BA62: 5
A63: 4 | B63: 1 | C63: 1 | D63: 1 | E63: 1 | F63: 0 | G63: 1 | H63: 1 | I63: 0 | J63: 0 | K63: 0 | L63: 0 | M63: 0 | N63: 0 | O63: 0 | P63: 0 | Q63: 0 | R63: 0 | S63: 0 | T63: 0 | U63: 0 | V63: 0 | W63: 0 | X63: 0 | Y63: 0 | Z63: 0 | AA63: 0 | AB63: 1 | AC63: 0 | AD63: 0 | AE63: 0 | AF63: 1 | AG63: 1 | AH63: 0 | AI63: 0 | AJ63: 1 | AK63: 0 | AL63: 0 | AM63: 1 | AN63: 0 | AO63: 0 | AP63: 0 | AQ63: 0 | AR63: 0 | AS63: 0 | AT63: 1 | AU63: 1 | AV63: 1 | AW63: 0 | AX63: 0 | AY63: 0 | AZ63: 14 | BA63: 2.8
A64: 5 | B64: 1 | C64: 1 | D64: 1 | E64: 1 | F64: 1 | G64: 0 | H64: 1 | I64: 0 | J64: 0 | K64: 1 | L64: 0 | M64: 1 | N64: 0 | O64: 0 | P64: 0 | Q64: 0 | R64: 0 | S64: 1 | T64: 1 | U64: 1 | V64: 1 | W64: 1 | X64: 1 | Y64: 1 | Z64: 0 | AA64: 0 | AB64: 1 | AC64: 0 | AD64: 0 | AE64: 0 | AF64: 1 | AG64: 1 | AH64: 1 | AI64: 1 | AJ64: 1 | AK64: 1 | AL64: 0 | AM64: 1 | AN64: 0 | AO64: 0 | AP64: 0 | AQ64: 0 | AR64: 1 | AS64: 0 | AT64: 1 | AU64: 1 | AV64: 1 | AW64: 0 | AX64: 0 | AY64: 0 | AZ64: 27 | BA64: 5.4
A65: 6 | B65: 1 | C65: 1 | D65: 1 | E65: 1 | F65: 1 | G65: 0 | H65: 1 | I65: 0 | J65: 0 | K65: 1 | L65: 1 | M65: 0 | N65: 0 | O65: 0 | P65: 0 | Q65: 0 | R65: 0 | S65: 0 | T65: 0 | U65: 1 | V65: 0 | W65: 1 | X65: 1 | Y65: 0 | Z65: 1 | AA65: 1 | AB65: 0 | AC65: 1 | AD65: 0 | AE65: 0 | AF65: 1 | AG65: 1 | AH65: 0 | AI65: 1 | AJ65: 0 | AK65: 1 | AL65: 0 | AM65: 1 | AN65: 1 | AO65: 0 | AP65: 0 | AQ65: 0 | AR65: 1 | AS65: 0 | AT65: 1 | AU65: 1 | AV65: 1 | AW65: 0 | AX65: 0 | AY65: 0 | AZ65: 24 | BA65: 4.8
A66: 7 | B66: 1 | C66: 1 | D66: 0 | E66: 1 | F66: 1 | G66: 0 | H66: 1 | I66: 0 | J66: 0 | K66: 1 | L66: 0 | M66: 0 | N66: 0 | O66: 0 | P66: 0 | Q66: 0 | R66: 0 | S66: 1 | T66: 1 | U66: 1 | V66: 1 | W66: 1 | X66: 1 | Y66: 0 | Z66: 0 | AA66: 0 | AB66: 1 | AC66: 0 | AD66: 0 | AE66: 0 | AF66: 1 | AG66: 0 | AH66: 0 | AI66: 0 | AJ66: 1 | AK66: 0 | AL66: 0 | AM66: 1 | AN66: 0 | AO66: 0 | AP66: 0 | AQ66: 0 | AR66: 1 | AS66: 0 | AT66: 0 | AU66: 0 | AV66: 0 | AW66: 0 | AX66: 0 | AY66: 0 | AZ66: 17 | BA66: 3.4
A67: 8 | B67: 1 | C67: 1 | D67: 1 | E67: 1 | F67: 0 | G67: 0 | H67: 1 | I67: 0 | J67: 0 | K67: 1 | L67: 0 | M67: 0 | N67: 0 | O67: 0 | P67: 0 | Q67: 0 | R67: 0 | S67: 0 | T67: 1 | U67: 1 | V67: 1 | W67: 1 | X67: 1 | Y67: 0 | Z67: 0 | AA67: 0 | AB67: 1 | AC67: 0 | AD67: 0 | AE67: 0 | AF67: 1 | AG67: 1 | AH67: 1 | AI67: 0 | AJ67: 0 | AK67: 0 | AL67: 0 | AM67: 1 | AN67: 0 | AO67: 0 | AP67: 0 | AQ67: 0 | AR67: 1 | AS67: 0 | AT67: 1 | AU67: 1 | AV67: 1 | AW67: 0 | AX67: 0 | AY67: 0 | AZ67: 20 | BA67: 4
A68: 9 | B68: 1 | C68: 1 | D68: 1 | E68: 1 | F68: 0 | G68: 0 | H68: 1 | I68: 0 | J68: 0 | K68: 1 | L68: 0 | M68: 0 | N68: 0 | O68: 0 | P68: 0 | Q68: 0 | R68: 0 | S68: 0 | T68: 0 | U68: 1 | V68: 0 | W68: 1 | X68: 1 | Y68: 0 | Z68: 0 | AA68: 0 | AB68: 0 | AC68: 0 | AD68: 0 | AE68: 0 | AF68: 0 | AG68: 1 | AH68: 0 | AI68: 0 | AJ68: 0 | AK68: 0 | AL68: 0 | AM68: 1 | AN68: 0 | AO68: 0 | AP68: 0 | AQ68: 0 | AR68: 1 | AS68: 0 | AT68: 0 | AU68: 1 | AV68: 0 | AW68: 0 | AX68: 0 | AY68: 0 | AZ68: 13 | BA68: 2.6
A69: 10 | B69: 1 | C69: 1 | D69: 1 | E69: 1 | F69: 1 | G69: 1 | H69: 1 | I69: 0 | J69: 1 | K69: 1 | L69: 0 | M69: 0 | N69: 1 | O69: 0 | P69: 0 | Q69: 0 | R69: 0 | S69: 0 | T69: 1 | U69: 1 | V69: 1 | W69: 1 | X69: 1 | Y69: 1 | Z69: 1 | AA69: 1 | AB69: 1 | AC69: 1 | AD69: 0 | AE69: 1 | AF69: 1 | AG69: 1 | AH69: 0 | AI69: 1 | AJ69: 1 | AK69: 1 | AL69: 0 | AM69: 1 | AN69: 1 | AO69: 0 | AP69: 1 | AQ69: 1 | AR69: 1 | AS69: 0 | AT69: 1 | AU69: 1 | AV69: 1 | AW69: 0 | AX69: 0 | AY69: 0 | AZ69: 34 | BA69: 6.8
A70: 11 | B70: 1 | C70: 0 | D70: 1 | E70: 1 | F70: 1 | G70: 1 | H70: 1 | I70: 1 | J70: 1 | K70: 1 | L70: 1 | M70: 1 | N70: 0 | O70: 1 | P70: 0 | Q70: 1 | R70: 1 | S70: 1 | T70: 1 | U70: 1 | V70: 1 | W70: 1 | X70: 1 | Y70: 1 | Z70: 1 | AA70: 1 | AB70: 1 | AC70: 1 | AD70: 0 | AE70: 1 | AF70: 1 | AG70: 1 | AH70: 0 | AI70: 0 | AJ70: 1 | AK70: 1 | AL70: 0 | AM70: 1 | AN70: 1 | AO70: 0 | AP70: 1 | AQ70: 1 | AR70: 1 | AS70: 0 | AT70: 1 | AU70: 1 | AV70: 1 | AW70: 0 | AX70: 0 | AY70: 0 | AZ70: 38 | BA70: 7.6
A71: 12 | B71: 1 | C71: 1 | D71: 1 | E71: 1 | F71: 1 | G71: 1 | H71: 1 | I71: 0 | J71: 0 | K71: 0 | L71: 0 | M71: 0 | N71: 0 | O71: 0 | P71: 0 | Q71: 0 | R71: 0 | S71: 0 | T71: 0 | U71: 1 | V71: 0 | W71: 1 | X71: 1 | Y71: 0 | Z71: 0 | AA71: 0 | AB71: 0 | AC71: 0 | AD71: 0 | AE71: 0 | AF71: 0 | AG71: 0 | AH71: 0 | AI71: 0 | AJ71: 1 | AK71: 0 | AL71: 0 | AM71: 1 | AN71: 0 | AO71: 0 | AP71: 0 | AQ71: 0 | AR71: 0 | AS71: 0 | AT71: 0 | AU71: 0 | AV71: 0 | AW71: 0 | AX71: 0 | AY71: 0 | AZ71: 12 | BA71: 2.4
A72: 13 | B72: 0 | C72: 0 | D72: 1 | E72: 1 | F72: 1 | G72: 1 | H72: 1 | I72: 0 | J72: 0 | K72: 1 | L72: 0 | M72: 0 | N72: 0 | O72: 0 | P72: 0 | Q72: 0 | R72: 0 | S72: 0 | T72: 0 | U72: 1 | V72: 1 | W72: 1 | X72: 1 | Y72: 0 | Z72: 0 | AA72: 0 | AB72: 0 | AC72: 0 | AD72: 0 | AE72: 0 | AF72: 0 | AG72: 0 | AH72: 1 | AI72: 0 | AJ72: 1 | AK72: 0 | AL72: 0 | AM72: 1 | AN72: 0 | AO72: 0 | AP72: 0 | AQ72: 0 | AR72: 1 | AS72: 0 | AT72: 1 | AU72: 1 | AV72: 1 | AW72: 0 | AX72: 0 | AY72: 0 | AZ72: 17 | BA72: 3.4
A73: 14 | B73: 1 | C73: 1 | D73: 0 | E73: 1 | F73: 1 | G73: 1 | H73: 1 | I73: 0 | J73: 0 | K73: 1 | L73: 0 | M73: 0 | N73: 0 | O73: 0 | P73: 0 | Q73: 0 | R73: 0 | S73: 0 | T73: 1 | U73: 1 | V73: 1 | W73: 1 | X73: 1 | Y73: 0 | Z73: 0 | AA73: 0 | AB73: 1 | AC73: 0 | AD73: 0 | AE73: 0 | AF73: 0 | AG73: 0 | AH73: 0 | AI73: 0 | AJ73: 1 | AK73: 0 | AL73: 0 | AM73: 1 | AN73: 0 | AO73: 0 | AP73: 0 | AQ73: 0 | AR73: 0 | AS73: 0 | AT73: 0 | AU73: 0 | AV73: 0 | AW73: 0 | AX73: 0 | AY73: 0 | AZ73: 15 | BA73: 3
A74: 15 | B74: 1 | C74: 1 | D74: 1 | E74: 1 | F74: 1 | G74: 0 | H74: 1 | I74: 0 | J74: 0 | K74: 1 | L74: 0 | M74: 0 | N74: 0 | O74: 0 | P74: 0 | Q74: 0 | R74: 0 | S74: 0 | T74: 0 | U74: 1 | V74: 1 | W74: 1 | X74: 1 | Y74: 0 | Z74: 0 | AA74: 0 | AB74: 1 | AC74: 0 | AD74: 0 | AE74: 0 | AF74: 1 | AG74: 0 | AH74: 0 | AI74: 1 | AJ74: 1 | AK74: 1 | AL74: 0 | AM74: 1 | AN74: 0 | AO74: 0 | AP74: 0 | AQ74: 0 | AR74: 0 | AS74: 0 | AT74: 1 | AU74: 0 | AV74: 0 | AW74: 0 | AX74: 0 | AY74: 0 | AZ74: 18 | BA74: 3.6
A75: 16 | B75: 1 | C75: 1 | D75: 1 | E75: 1 | F75: 1 | G75: 0 | H75: 1 | I75: 0 | J75: 0 | K75: 1 | L75: 0 | M75: 0 | N75: 0 | O75: 0 | P75: 0 | Q75: 0 | R75: 0 | S75: 0 | T75: 0 | U75: 0 | V75: 0 | W75: 0 | X75: 1 | Y75: 0 | Z75: 0 | AA75: 0 | AB75: 1 | AC75: 0 | AD75: 0 | AE75: 0 | AF75: 0 | AG75: 0 | AH75: 0 | AI75: 0 | AJ75: 0 | AK75: 0 | AL75: 0 | AM75: 0 | AN75: 0 | AO75: 0 | AP75: 0 | AQ75: 0 | AR75: 1 | AS75: 0 | AT75: 1 | AU75: 0 | AV75: 1 | AW75: 0 | AX75: 0 | AY75: 0 | AZ75: 12 | BA75: 2.4
A76: 17 | B76: 1 | C76: 1 | D76: 0 | E76: 1 | F76: 1 | G76: 0 | H76: 1 | I76: 0 | J76: 0 | K76: 0 | L76: 0 | M76: 0 | N76: 0 | O76: 0 | P76: 0 | Q76: 0 | R76: 0 | S76: 0 | T76: 0 | U76: 1 | V76: 1 | W76: 1 | X76: 1 | Y76: 1 | Z76: 0 | AA76: 0 | AB76: 0 | AC76: 0 | AD76: 0 | AE76: 0 | AF76: 0 | AG76: 0 | AH76: 0 | AI76: 0 | AJ76: 1 | AK76: 0 | AL76: 0 | AM76: 1 | AN76: 0 | AO76: 0 | AP76: 0 | AQ76: 0 | AR76: 0 | AS76: 1 | AT76: 0 | AU76: 0 | AV76: 0 | AW76: 0 | AX76: 0 | AY76: 0 | AZ76: 13 | BA76: 2.6
A77: 18 | B77: 1 | C77: 1 | D77: 0 | E77: 1 | F77: 1 | G77: 0 | H77: 1 | I77: 0 | J77: 0 | K77: 0 | L77: 0 | M77: 0 | N77: 0 | O77: 0 | P77: 0 | Q77: 0 | R77: 0 | S77: 0 | T77: 0 | U77: 1 | V77: 1 | W77: 1 | X77: 1 | Y77: 0 | Z77: 0 | AA77: 0 | AB77: 1 | AC77: 0 | AD77: 0 | AE77: 0 | AF77: 0 | AG77: 0 | AH77: 0 | AI77: 0 | AJ77: 1 | AK77: 1 | AL77: 0 | AM77: 1 | AN77: 0 | AO77: 0 | AP77: 0 | AQ77: 0 | AR77: 0 | AS77: 0 | AT77: 0 | AU77: 0 | AV77: 0 | AW77: 0 | AX77: 0 | AY77: 0 | AZ77: 13 | BA77: 2.6
A78: 19 | B78: 1 | C78: 1 | D78: 1 | E78: 1 | F78: 0 | G78: 0 | H78: 1 | I78: 0 | J78: 0 | K78: 1 | L78: 0 | M78: 0 | N78: 0 | O78: 0 | P78: 0 | Q78: 0 | R78: 0 | S78: 0 | T78: 0 | U78: 1 | V78: 1 | W78: 1 | X78: 1 | Y78: 0 | Z78: 0 | AA78: 1 | AB78: 0 | AC78: 0 | AD78: 0 | AE78: 0 | AF78: 0 | AG78: 1 | AH78: 0 | AI78: 0 | AJ78: 1 | AK78: 1 | AL78: 1 | AM78: 1 | AN78: 0 | AO78: 0 | AP78: 0 | AQ78: 0 | AR78: 1 | AS78: 0 | AT78: 1 | AU78: 1 | AV78: 1 | AW78: 0 | AX78: 0 | AY78: 0 | AZ78: 20 | BA78: 4
A79: 20 | B79: 1 | C79: 1 | D79: 1 | E79: 0 | F79: 0 | G79: 0 | H79: 1 | I79: 0 | J79: 0 | K79: 0 | L79: 0 | M79: 0 | N79: 0 | O79: 0 | P79: 0 | Q79: 0 | R79: 0 | S79: 0 | T79: 0 | U79: 1 | V79: 1 | W79: 1 | X79: 1 | Y79: 0 | Z79: 0 | AA79: 1 | AB79: 1 | AC79: 0 | AD79: 0 | AE79: 1 | AF79: 1 | AG79: 1 | AH79: 0 | AI79: 0 | AJ79: 1 | AK79: 1 | AL79: 1 | AM79: 1 | AN79: 1 | AO79: 0 | AP79: 0 | AQ79: 0 | AR79: 0 | AS79: 0 | AT79: 0 | AU79: 0 | AV79: 0 | AW79: 0 | AX79: 0 | AY79: 0 | AZ79: 18 | BA79: 3.6
A80: 21 | B80: 1 | C80: 1 | D80: 1 | E80: 0 | F80: 0 | G80: 0 | H80: 1 | I80: 0 | J80: 0 | K80: 1 | L80: 0 | M80: 0 | N80: 0 | O80: 0 | P80: 0 | Q80: 0 | R80: 0 | S80: 0 | T80: 0 | U80: 1 | V80: 0 | W80: 1 | X80: 0 | Y80: 0 | Z80: 0 | AA80: 0 | AB80: 0 | AC80: 0 | AD80: 0 | AE80: 0 | AF80: 1 | AG80: 0 | AH80: 0 | AI80: 0 | AJ80: 0 | AK80: 0 | AL80: 0 | AM80: 1 | AN80: 0 | AO80: 0 | AP80: 0 | AQ80: 0 | AR80: 1 | AS80: 0 | AT80: 0 | AU80: 0 | AV80: 0 | AW80: 0 | AX80: 0 | AY80: 0 | AZ80: 10 | BA80: 2
A81: 22 | B81: 1 | C81: 1 | D81: 1 | E81: 1 | F81: 1 | G81: 0 | H81: 1 | I81: 1 | J81: 1 | K81: 0 | L81: 0 | M81: 0 | N81: 0 | O81: 0 | P81: 0 | Q81: 0 | R81: 0 | S81: 1 | T81: 1 | U81: 1 | V81: 1 | W81: 1 | X81: 1 | Y81: 1 | Z81: 0 | AA81: 0 | AB81: 1 | AC81: 1 | AD81: 0 | AE81: 1 | AF81: 1 | AG81: 1 | AH81: 0 | AI81: 0 | AJ81: 1 | AK81: 1 | AL81: 0 | AM81: 0 | AN81: 0 | AO81: 0 | AP81: 0 | AQ81: 0 | AR81: 1 | AS81: 0 | AT81: 1 | AU81: 1 | AV81: 1 | AW81: 0 | AX81: 0 | AY81: 0 | AZ81: 26 | BA81: 5.2
A82: 23 | B82: 1 | C82: 1 | D82: 1 | E82: 1 | F82: 1 | G82: 0 | H82: 1 | I82: 1 | J82: 1 | K82: 0 | L82: 1 | M82: 0 | N82: 0 | O82: 0 | P82: 0 | Q82: 0 | R82: 1 | S82: 1 | T82: 1 | U82: 1 | V82: 1 | W82: 1 | X82: 1 | Y82: 1 | Z82: 1 | AA82: 0 | AB82: 1 | AC82: 0 | AD82: 0 | AE82: 0 | AF82: 0 | AG82: 0 | AH82: 0 | AI82: 0 | AJ82: 1 | AK82: 0 | AL82: 0 | AM82: 1 | AN82: 0 | AO82: 0 | AP82: 0 | AQ82: 0 | AR82: 0 | AS82: 0 | AT82: 0 | AU82: 0 | AV82: 0 | AW82: 0 | AX82: 0 | AY82: 0 | AZ82: 21 | BA82: 4.2
A83: 24 | B83: 1 | C83: 0 | D83: 1 | E83: 0 | F83: 0 | G83: 0 | H83: 0 | I83: 0 | J83: 0 | K83: 0 | L83: 0 | M83: 0 | N83: 0 | O83: 0 | P83: 0 | Q83: 0 | R83: 0 | S83: 0 | T83: 0 | U83: 1 | V83: 1 | W83: 1 | X83: 1 | Y83: 1 | Z83: 0 | AA83: 0 | AB83: 0 | AC83: 0 | AD83: 0 | AE83: 0 | AF83: 0 | AG83: 0 | AH83: 0 | AI83: 0 | AJ83: 0 | AK83: 0 | AL83: 0 | AM83: 1 | AN83: 0 | AO83: 0 | AP83: 0 | AQ83: 0 | AR83: 0 | AS83: 0 | AT83: 0 | AU83: 0 | AV83: 0 | AW83: 0 | AX83: 0 | AY83: 0 | AZ83: 8 | BA83: 1.6
A84: 25 | B84: 1 | C84: 1 | D84: 1 | E84: 0 | F84: 0 | G84: 0 | H84: 1 | I84: 0 | J84: 0 | K84: 0 | L84: 0 | M84: 0 | N84: 0 | O84: 0 | P84: 0 | Q84: 0 | R84: 0 | S84: 0 | T84: 0 | U84: 1 | V84: 0 | W84: 1 | X84: 1 | Y84: 0 | Z84: 0 | AA84: 0 | AB84: 0 | AC84: 0 | AD84: 0 | AE84: 0 | AF84: 1 | AG84: 0 | AH84: 0 | AI84: 0 | AJ84: 0 | AK84: 0 | AL84: 0 | AM84: 1 | AN84: 1 | AO84: 0 | AP84: 0 | AQ84: 0 | AR84: 1 | AS84: 0 | AT84: 0 | AU84: 0 | AV84: 0 | AW84: 0 | AX84: 0 | AY84: 0 | AZ84: 11 | BA84: 2.2
AZ85: Mean | BA85: =AVERAGE(BA60:BA84) -> 3.6
AZ86: SD | BA86: =STDEV(BA60:BA85) -> 1.5
A87: Romanian language
A88: 1 | B88: 1 | C88: 1 | D88: 1 | E88: 0 | F88: 1 | G88: 1 | H88: 1 | I88: 0 | J88: 0 | K88: 1 | L88: 0 | M88: 0 | N88: 1 | O88: 0 | P88: 0 | Q88: 0 | R88: 0 | S88: 0 | T88: 1 | U88: 1 | V88: 1 | W88: 1 | X88: 1 | Y88: 1 | Z88: 0 | AA88: 1 | AB88: 1 | AC88: 1 | AD88: 1 | AE88: 1 | AF88: 1 | AG88: 1 | AH88: 1 | AI88: 0 | AJ88: 1 | AK88: 1 | AL88: 1 | AM88: 0 | AN88: 1 | AO88: 0 | AP88: 0 | AQ88: 0 | AR88: 1 | AS88: 0 | AT88: 0 | AU88: 0 | AV88: 0 | AW88: 0 | AX88: 0 | AY88: 0 | AZ88: =SUM(B88:AY88) -> 27 | BA88: =AZ88*10/50 -> 5.4
A89: 2 | B89: 1 | C89: 0 | D89: 1 | E89: 1 | F89: 0 | G89: 0 | H89: 1 | I89: 0 | J89: 0 | K89: 0 | L89: 0 | M89: 0 | N89: 1 | O89: 0 | P89: 0 | Q89: 0 | R89: 0 | S89: 0 | T89: 1 | U89: 0 | V89: 1 | W89: 0 | X89: 1 | Y89: 1 | Z89: 0 | AA89: 0 | AB89: 0 | AC89: 0 | AD89: 0 | AE89: 0 | AF89: 0 | AG89: 0 | AH89: 0 | AI89: 0 | AJ89: 1 | AK89: 1 | AL89: 0 | AM89: 0 | AN89: 0 | AO89: 0 | AP89: 0 | AQ89: 0 | AR89: 0 | AS89: 0 | AT89: 0 | AU89: 0 | AV89: 0 | AW89: 0 | AX89: 0 | AY89: 0 | AZ89: =SUM(B89:AY89) -> 11 | BA89: =AZ89*10/50 -> 2.2
A90: 3 | B90: 1 | C90: 0 | D90: 0 | E90: 1 | F90: 1 | G90: 1 | H90: 1 | I90: 0 | J90: 0 | K90: 0 | L90: 0 | M90: 0 | N90: 0 | O90: 0 | P90: 0 | Q90: 0 | R90: 0 | S90: 0 | T90: 1 | U90: 0 | V90: 0 | W90: 1 | X90: 1 | Y90: 0 | Z90: 0 | AA90: 0 | AB90: 0 | AC90: 0 | AD90: 0 | AE90: 0 | AF90: 1 | AG90: 0 | AH90: 0 | AI90: 0 | AJ90: 1 | AK90: 1 | AL90: 0 | AM90: 1 | AN90: 1 | AO90: 0 | AP90: 0 | AQ90: 0 | AR90: 1 | AS90: 0 | AT90: 0 | AU90: 0 | AV90: 0 | AW90: 0 | AX90: 0 | AY90: 0 | AZ90: 14 | BA90: 2.8
A91: 4 | B91: 1 | C91: 1 | D91: 1 | E91: 1 | F91: 1 | G91: 1 | H91: 1 | I91: 0 | J91: 0 | K91: 1 | L91: 0 | M91: 0 | N91: 1 | O91: 0 | P91: 0 | Q91: 0 | R91: 0 | S91: 0 | T91: 1 | U91: 1 | V91: 1 | W91: 0 | X91: 1 | Y91: 1 | Z91: 0 | AA91: 1 | AB91: 1 | AC91: 0 | AD91: 0 | AE91: 0 | AF91: 0 | AG91: 0 | AH91: 0 | AI91: 0 | AJ91: 1 | AK91: 1 | AL91: 0 | AM91: 0 | AN91: 1 | AO91: 0 | AP91: 0 | AQ91: 0 | AR91: 0 | AS91: 0 | AT91: 0 | AU91: 0 | AV91: 0 | AW91: 0 | AX91: 0 | AY91: 0 | AZ91: 19 | BA91: 3.8
A92: 5 | B92: 1 | C92: 0 | D92: 0 | E92: 1 | F92: 1 | G92: 1 | H92: 0 | I92: 0 | J92: 0 | K92: 0 | L92: 0 | M92: 0 | N92: 0 | O92: 0 | P92: 0 | Q92: 0 | R92: 0 | S92: 0 | T92: 0 | U92: 0 | V92: 0 | W92: 0 | X92: 0 | Y92: 0 | Z92: 0 | AA92: 0 | AB92: 0 | AC92: 0 | AD92: 0 | AE92: 0 | AF92: 0 | AG92: 0 | AH92: 0 | AI92: 0 | AJ92: 0 | AK92: 1 | AL92: 0 | AM92: 0 | AN92: 0 | AO92: 0 | AP92: 0 | AQ92: 0 | AR92: 0 | AS92: 0 | AT92: 0 | AU92: 0 | AV92: 0 | AW92: 0 | AX92: 0 | AY92: 0 | AZ92: 5 | BA92: 1
A93: 6 | B93: 1 | C93: 0 | D93: 0 | E93: 1 | F93: 1 | G93: 1 | H93: 0 | I93: 0 | J93: 0 | K93: 0 | L93: 0 | M93: 0 | N93: 0 | O93: 0 | P93: 0 | Q93: 1 | R93: 0 | S93: 0 | T93: 0 | U93: 0 | V93: 0 | W93: 1 | X93: 1 | Y93: 0 | Z93: 0 | AA93: 0 | AB93: 0 | AC93: 0 | AD93: 0 | AE93: 0 | AF93: 0 | AG93: 0 | AH93: 0 | AI93: 0 | AJ93: 1 | AK93: 0 | AL93: 0 | AM93: 0 | AN93: 0 | AO93: 0 | AP93: 0 | AQ93: 0 | AR93: 0 | AS93: 0 | AT93: 0 | AU93: 0 | AV93: 0 | AW93: 0 | AX93: 0 | AY93: 0 | AZ93: 8 | BA93: 1.6
A94: 7 | B94: 0 | C94: 0 | D94: 0 | E94: 1 | F94: 1 | G94: 0 | H94: 0 | I94: 0 | J94: 0 | K94: 0 | L94: 0 | M94: 0 | N94: 0 | O94: 0 | P94: 0 | Q94: 0 | R94: 0 | S94: 0 | T94: 0 | U94: 0 | V94: 0 | W94: 0 | X94: 0 | Y94: 0 | Z94: 0 | AA94: 0 | AB94: 1 | AC94: 0 | AD94: 0 | AE94: 0 | AF94: 0 | AG94: 1 | AH94: 1 | AI94: 1 | AJ94: 0 | AK94: 0 | AL94: 0 | AM94: 0 | AN94: 0 | AO94: 0 | AP94: 0 | AQ94: 0 | AR94: 0 | AS94: 0 | AT94: 1 | AU94: 1 | AV94: 0 | AW94: 0 | AX94: 0 | AY94: 0 | AZ94: 8 | BA94: 1.6
A95: 8 | B95: 1 | C95: 0 | D95: 0 | E95: 0 | F95: 0 | G95: 0 | H95: 0 | I95: 0 | J95: 0 | K95: 0 | L95: 0 | M95: 0 | N95: 1 | O95: 0 | P95: 0 | Q95: 1 | R95: 0 | S95: 0 | T95: 0 | U95: 0 | V95: 0 | W95: 1 | X95: 0 | Y95: 0 | Z95: 0 | AA95: 1 | AB95: 1 | AC95: 0 | AD95: 0 | AE95: 1 | AF95: 0 | AG95: 1 | AH95: 0 | AI95: 0 | AJ95: 1 | AK95: 1 | AL95: 1 | AM95: 0 | AN95: 1 | AO95: 0 | AP95: 0 | AQ95: 0 | AR95: 0 | AS95: 1 | AT95: 0 | AU95: 0 | AV95: 0 | AW95: 0 | AX95: 0 | AY95: 0 | AZ95: 13 | BA95: 2.6
A96: 9 | B96: 1 | C96: 0 | D96: 0 | E96: 0 | F96: 1 | G96: 0 | H96: 0 | I96: 0 | J96: 0 | K96: 0 | L96: 0 | M96: 0 | N96: 0 | O96: 0 | P96: 0 | Q96: 0 | R96: 0 | S96: 0 | T96: 1 | U96: 0 | V96: 0 | W96: 0 | X96: 0 | Y96: 0 | Z96: 0 | AA96: 0 | AB96: 1 | AC96: 1 | AD96: 0 | AE96: 0 | AF96: 0 | AG96: 0 | AH96: 0 | AI96: 0 | AJ96: 0 | AK96: 0 | AL96: 0 | AM96: 0 | AN96: 0 | AO96: 0 | AP96: 0 | AQ96: 0 | AR96: 0 | AS96: 0 | AT96: 0 | AU96: 0 | AV96: 0 | AW96: 0 | AX96: 0 | AY96: 0 | AZ96: 5 | BA96: 1
A97: 10 | B97: 1 | C97: 1 | D97: 1 | E97: 0 | F97: 0 | G97: 0 | H97: 1 | I97: 0 | J97: 0 | K97: 0 | L97: 0 | M97: 0 | N97: 0 | O97: 0 | P97: 0 | Q97: 0 | R97: 0 | S97: 0 | T97: 0 | U97: 0 | V97: 0 | W97: 1 | X97: 1 | Y97: 0 | Z97: 0 | AA97: 0 | AB97: 0 | AC97: 0 | AD97: 0 | AE97: 0 | AF97: 0 | AG97: 0 | AH97: 0 | AI97: 0 | AJ97: 1 | AK97: 1 | AL97: 0 | AM97: 0 | AN97: 0 | AO97: 0 | AP97: 0 | AQ97: 0 | AR97: 0 | AS97: 0 | AT97: 0 | AU97: 0 | AV97: 0 | AW97: 0 | AX97: 0 | AY97: 0 | AZ97: 8 | BA97: 1.6
A98: 11 | B98: 1 | C98: 0 | D98: 0 | E98: 1 | F98: 1 | G98: 1 | H98: 0 | I98: 0 | J98: 0 | K98: 0 | L98: 0 | M98: 0 | N98: 0 | O98: 0 | P98: 0 | Q98: 0 | R98: 0 | S98: 0 | T98: 0 | U98: 0 | V98: 0 | W98: 0 | X98: 0 | Y98: 0 | Z98: 0 | AA98: 0 | AB98: 0 | AC98: 0 | AD98: 0 | AE98: 0 | AF98: 0 | AG98: 0 | AH98: 0 | AI98: 0 | AJ98: 1 | AK98: 0 | AL98: 0 | AM98: 0 | AN98: 0 | AO98: 0 | AP98: 0 | AQ98: 0 | AR98: 0 | AS98: 0 | AT98: 0 | AU98: 0 | AV98: 0 | AW98: 0 | AX98: 0 | AY98: 0 | AZ98: 5 | BA98: 1
A99: 12 | B99: 1 | C99: 0 | D99: 1 | E99: 0 | F99: 0 | G99: 0 | H99: 1 | I99: 1 | J99: 1 | K99: 0 | L99: 1 | M99: 0 | N99: 1 | O99: 0 | P99: 0 | Q99: 0 | R99: 0 | S99: 0 | T99: 1 | U99: 0 | V99: 1 | W99: 0 | X99: 1 | Y99: 1 | Z99: 0 | AA99: 0 | AB99: 1 | AC99: 1 | AD99: 1 | AE99: 0 | AF99: 0 | AG99: 0 | AH99: 0 | AI99: 0 | AJ99: 1 | AK99: 1 | AL99: 0 | AM99: 0 | AN99: 0 | AO99: 0 | AP99: 0 | AQ99: 0 | AR99: 0 | AS99: 0 | AT99: 0 | AU99: 0 | AV99: 0 | AW99: 0 | AX99: 0 | AY99: 0 | AZ99: 16 | BA99: 3.2
A100: 13 | B100: 1 | C100: 1 | D100: 1 | E100: 0 | F100: 0 | G100: 0 | H100: 0 | I100: 0 | J100: 0 | K100: 0 | L100: 0 | M100: 0 | N100: 0 | O100: 0 | P100: 0 | Q100: 0 | R100: 0 | S100: 0 | T100: 0 | U100: 0 | V100: 0 | W100: 0 | X100: 0 | Y100: 0 | Z100: 0 | AA100: 0 | AB100: 1 | AC100: 0 | AD100: 0 | AE100: 0 | AF100: 0 | AG100: 1 | AH100: 0 | AI100: 0 | AJ100: 0 | AK100: 0 | AL100: 0 | AM100: 0 | AN100: 0 | AO100: 0 | AP100: 0 | AQ100: 0 | AR100: 1 | AS100: 0 | AT100: 0 | AU100: 0 | AV100: 0 | AW100: 0 | AX100: 0 | AY100: 0 | AZ100: 6 | BA100: 1.2
A101: 14 | B101: 1 | C101: 0 | D101: 1 | E101: 1 | F101: 1 | G101: 0 | H101: 0 | I101: 1 | J101: 1 | K101: 1 | L101: 1 | M101: 1 | N101: 1 | O101: 1 | P101: 0 | Q101: 1 | R101: 0 | S101: 0 | T101: 1 | U101: 1 | V101: 1 | W101: 1 | X101: 1 | Y101: 0 | Z101: 1 | AA101: 1 | AB101: 1 | AC101: 0 | AD101: 0 | AE101: 1 | AF101: 1 | AG101: 0 | AH101: 0 | AI101: 0 | AJ101: 1 | AK101: 1 | AL101: 1 | AM101: 0 | AN101: 0 | AO101: 0 | AP101: 0 | AQ101: 0 | AR101: 1 | AS101: 0 | AT101: 0 | AU101: 0 | AV101: 0 | AW101: 0 | AX101: 0 | AY101: 0 | AZ101: 26 | BA101: 5.2
A102: 15 | B102: 1 | C102: 0 | D102: 0 | E102: 1 | F102: 1 | G102: 1 | H102: 0 | I102: 0 | J102: 0 | K102: 0 | L102: 0 | M102: 0 | N102: 1 | O102: 0 | P102: 0 | Q102: 0 | R102: 0 | S102: 0 | T102: 0 | U102: 0 | V102: 0 | W102: 0 | X102: 0 | Y102: 0 | Z102: 0 | AA102: 0 | AB102: 0 | AC102: 0 | AD102: 0 | AE102: 0 | AF102: 0 | AG102: 0 | AH102: 0 | AI102: 1 | AJ102: 1 | AK102: 0 | AL102: 0 | AM102: 0 | AN102: 0 | AO102: 0 | AP102: 0 | AQ102: 0 | AR102: 0 | AS102: 0 | AT102: 0 | AU102: 0 | AV102: 0 | AW102: 0 | AX102: 0 | AY102: 0 | AZ102: 7 | BA102: 1.4
A103: 16 | B103: 0 | C103: 0 | D103: 0 | E103: 1 | F103: 1 | G103: 0 | H103: 0 | I103: 0 | J103: 0 | K103: 0 | L103: 0 | M103: 0 | N103: 0 | O103: 0 | P103: 0 | Q103: 0 | R103: 0 | S103: 0 | T103: 0 | U103: 0 | V103: 0 | W103: 0 | X103: 0 | Y103: 0 | Z103: 0 | AA103: 0 | AB103: 1 | AC103: 0 | AD103: 0 | AE103: 0 | AF103: 0 | AG103: 1 | AH103: 1 | AI103: 1 | AJ103: 1 | AK103: 0 | AL103: 0 | AM103: 0 | AN103: 0 | AO103: 0 | AP103: 0 | AQ103: 0 | AR103: 0 | AS103: 0 | AT103: 0 | AU103: 0 | AV103: 0 | AW103: 0 | AX103: 0 | AY103: 0 | AZ103: 7 | BA103: 1.4
A104: 17 | B104: 1 | C104: 0 | D104: 1 | E104: 1 | F104: 1 | G104: 0 | H104: 0 | I104: 1 | J104: 1 | K104: 1 | L104: 1 | M104: 0 | N104: 1 | O104: 0 | P104: 0 | Q104: 0 | R104: 0 | S104: 0 | T104: 0 | U104: 0 | V104: 0 | W104: 0 | X104: 1 | Y104: 1 | Z104: 0 | AA104: 1 | AB104: 0 | AC104: 0 | AD104: 0 | AE104: 0 | AF104: 1 | AG104: 0 | AH104: 0 | AI104: 0 | AJ104: 1 | AK104: 1 | AL104: 0 | AM104: 0 | AN104: 0 | AO104: 0 | AP104: 0 | AQ104: 0 | AR104: 0 | AS104: 0 | AT104: 0 | AU104: 0 | AV104: 0 | AW104: 0 | AX104: 0 | AY104: 0 | AZ104: 15 | BA104: 3
A105: 18 | B105: 1 | C105: 0 | D105: 0 | E105: 1 | F105: 1 | G105: 0 | H105: 0 | I105: 0 | J105: 0 | K105: 0 | L105: 0 | M105: 0 | N105: 1 | O105: 0 | P105: 0 | Q105: 0 | R105: 0 | S105: 0 | T105: 1 | U105: 1 | V105: 1 | W105: 1 | X105: 1 | Y105: 1 | Z105: 0 | AA105: 1 | AB105: 1 | AC105: 0 | AD105: 0 | AE105: 0 | AF105: 0 | AG105: 0 | AH105: 0 | AI105: 0 | AJ105: 1 | AK105: 1 | AL105: 0 | AM105: 0 | AN105: 0 | AO105: 0 | AP105: 0 | AQ105: 0 | AR105: 0 | AS105: 0 | AT105: 0 | AU105: 0 | AV105: 0 | AW105: 0 | AX105: 0 | AY105: 0 | AZ105: 14 | BA105: 2.8
A106: 19 | B106: 1 | C106: 1 | D106: 1 | E106: 1 | F106: 1 | G106: 1 | H106: 1 | I106: 0 | J106: 0 | K106: 0 | L106: 0 | M106: 0 | N106: 0 | O106: 0 | P106: 0 | Q106: 0 | R106: 0 | S106: 0 | T106: 1 | U106: 1 | V106: 1 | W106: 1 | X106: 1 | Y106: 0 | Z106: 0 | AA106: 0 | AB106: 0 | AC106: 0 | AD106: 0 | AE106: 0 | AF106: 0 | AG106: 0 | AH106: 0 | AI106: 0 | AJ106: 1 | AK106: 1 | AL106: 0 | AM106: 0 | AN106: 1 | AO106: 1 | AP106: 0 | AQ106: 0 | AR106: 1 | AS106: 0 | AT106: 0 | AU106: 0 | AV106: 0 | AW106: 0 | AX106: 0 | AY106: 0 | AZ106: 17 | BA106: 3.4
A107: 20 | B107: 1 | C107: 0 | D107: 0 | E107: 0 | F107: 0 | G107: 0 | H107: 0 | I107: 0 | J107: 0 | K107: 0 | L107: 0 | M107: 0 | N107: 0 | O107: 0 | P107: 0 | Q107: 0 | R107: 0 | S107: 0 | T107: 1 | U107: 0 | V107: 0 | W107: 1 | X107: 1 | Y107: 0 | Z107: 0 | AA107: 1 | AB107: 0 | AC107: 0 | AD107: 0 | AE107: 0 | AF107: 0 | AG107: 0 | AH107: 0 | AI107: 0 | AJ107: 0 | AK107: 1 | AL107: 0 | AM107: 0 | AN107: 0 | AO107: 0 | AP107: 0 | AQ107: 0 | AR107: 0 | AS107: 0 | AT107: 0 | AU107: 0 | AV107: 0 | AW107: 0 | AX107: 0 | AY107: 0 | AZ107: 6 | BA107: 1.2
A108: 21 | B108: 0 | C108: 0 | D108: 0 | E108: 0 | F108: 0 | G108: 0 | H108: 0 | I108: 0 | J108: 0 | K108: 0 | L108: 0 | M108: 0 | N108: 0 | O108: 0 | P108: 0 | Q108: 0 | R108: 0 | S108: 0 | T108: 0 | U108: 0 | V108: 1 | W108: 1 | X108: 1 | Y108: 0 | Z108: 0 | AA108: 0 | AB108: 0 | AC108: 0 | AD108: 0 | AE108: 0 | AF108: 0 | AG108: 0 | AH108: 0 | AI108: 0 | AJ108: 0 | AK108: 0 | AL108: 0 | AM108: 0 | AN108: 0 | AO108: 0 | AP108: 0 | AQ108: 0 | AR108: 0 | AS108: 0 | AT108: 0 | AU108: 0 | AV108: 0 | AW108: 0 | AX108: 0 | AY108: 0 | AZ108: 3 | BA108: 0.6
A109: 22 | B109: 1 | C109: 1 | D109: 0 | E109: 0 | F109: 0 | G109: 0 | H109: 1 | I109: 0 | J109: 0 | K109: 0 | L109: 0 | M109: 0 | N109: 1 | O109: 0 | P109: 0 | Q109: 0 | R109: 0 | S109: 0 | T109: 1 | U109: 1 | V109: 1 | W109: 1 | X109: 1 | Y109: 0 | Z109: 0 | AA109: 1 | AB109: 0 | AC109: 1 | AD109: 0 | AE109: 0 | AF109: 0 | AG109: 0 | AH109: 0 | AI109: 0 | AJ109: 0 | AK109: 0 | AL109: 0 | AM109: 0 | AN109: 0 | AO109: 0 | AP109: 0 | AQ109: 0 | AR109: 0 | AS109: 0 | AT109: 0 | AU109: 0 | AV109: 0 | AW109: 0 | AX109: 0 | AY109: 0 | AZ109: 11 | BA109: 2.2
A110: 23 | B110: 1 | C110: 1 | D110: 1 | E110: 1 | F110: 0 | G110: 0 | H110: 1 | I110: 0 | J110: 0 | K110: 0 | L110: 0 | M110: 0 | N110: 0 | O110: 0 | P110: 0 | Q110: 0 | R110: 0 | S110: 0 | T110: 1 | U110: 1 | V110: 1 | W110: 1 | X110: 1 | Y110: 1 | Z110: 0 | AA110: 1 | AB110: 1 | AC110: 1 | AD110: 0 | AE110: 1 | AF110: 1 | AG110: 1 | AH110: 0 | AI110: 1 | AJ110: 1 | AK110: 1 | AL110: 1 | AM110: 0 | AN110: 0 | AO110: 0 | AP110: 1 | AQ110: 0 | AR110: 1 | AS110: 0 | AT110: 1 | AU110: 1 | AV110: 1 | AW110: 0 | AX110: 0 | AY110: 0 | AZ110: 26 | BA110: 5.2
A111: 24 | B111: 1 | C111: 0 | D111: 1 | E111: 0 | F111: 0 | G111: 0 | H111: 0 | I111: 1 | J111: 1 | K111: 0 | L111: 1 | M111: 0 | N111: 1 | O111: 0 | P111: 0 | Q111: 0 | R111: 0 | S111: 0 | T111: 1 | U111: 1 | V111: 0 | W111: 0 | X111: 1 | Y111: 1 | Z111: 0 | AA111: 0 | AB111: 1 | AC111: 1 | AD111: 0 | AE111: 0 | AF111: 0 | AG111: 0 | AH111: 0 | AI111: 0 | AJ111: 1 | AK111: 1 | AL111: 0 | AM111: 0 | AN111: 0 | AO111: 0 | AP111: 0 | AQ111: 0 | AR111: 0 | AS111: 0 | AT111: 0 | AU111: 0 | AV111: 0 | AW111: 0 | AX111: 0 | AY111: 0 | AZ111: 14 | BA111: 2.8
A112: 25 | B112: 1 | C112: 0 | D112: 0 | E112: 1 | F112: 0 | G112: 1 | H112: 0 | I112: 0 | J112: 0 | K112: 0 | L112: 0 | M112: 0 | N112: 0 | O112: 0 | P112: 0 | Q112: 0 | R112: 0 | S112: 0 | T112: 0 | U112: 0 | V112: 0 | W112: 0 | X112: 0 | Y112: 0 | Z112: 0 | AA112: 0 | AB112: 1 | AC112: 0 | AD112: 0 | AE112: 0 | AF112: 0 | AG112: 0 | AH112: 0 | AI112: 0 | AJ112: 0 | AK112: 1 | AL112: 0 | AM112: 0 | AN112: 0 | AO112: 0 | AP112: 0 | AQ112: 0 | AR112: 0 | AS112: 0 | AT112: 0 | AU112: 0 | AV112: 0 | AW112: 0 | AX112: 0 | AY112: 0 | AZ112: 5 | BA112: 1
AZ113: Mean | BA113: =AVERAGE(BA88:BA112) -> 2.4
AZ114: SD | BA114: =STDEV(BA88:BA113) -> 1.4
A115: Russian language
A116: 1 | B116: 1 | C116: 1 | D116: 1 | E116: 1 | F116: 1 | G116: 1 | H116: 0 | I116: 0 | J116: 1 | K116: 1 | L116: 0 | M116: 0 | N116: 1 | O116: 0 | P116: 0 | Q116: 0 | R116: 0 | S116: 1 | T116: 1 | U116: 1 | V116: 1 | W116: 1 | X116: 1 | Y116: 0 | Z116: 0 | AA116: 1 | AB116: 0 | AC116: 0 | AD116: 0 | AE116: 1 | AF116: 1 | AG116: 1 | AH116: 0 | AI116: 0 | AJ116: 1 | AK116: 0 | AL116: 0 | AM116: 1 | AN116: 1 | AO116: 1 | AP116: 0 | AQ116: 0 | AR116: 1 | AS116: 0 | AT116: 0 | AU116: 1 | AV116: 0 | AW116: 0 | AX116: 0 | AY116: 0 | AZ116: =SUM(B116:AY116) -> 25 | BA116: =AZ116*10/50 -> 5
A117: 2 | B117: 1 | C117: 0 | D117: 1 | E117: 0 | F117: 1 | G117: 0 | H117: 1 | I117: 0 | J117: 0 | K117: 0 | L117: 0 | M117: 0 | N117: 1 | O117: 0 | P117: 0 | Q117: 0 | R117: 0 | S117: 0 | T117: 1 | U117: 1 | V117: 1 | W117: 1 | X117: 1 | Y117: 0 | Z117: 0 | AA117: 1 | AB117: 1 | AC117: 1 | AD117: 0 | AE117: 1 | AF117: 1 | AG117: 1 | AH117: 1 | AI117: 0 | AJ117: 1 | AK117: 1 | AL117: 0 | AM117: 1 | AN117: 1 | AO117: 1 | AP117: 0 | AQ117: 0 | AR117: 0 | AS117: 0 | AT117: 0 | AU117: 1 | AV117: 0 | AW117: 0 | AX117: 0 | AY117: 0 | AZ117: =SUM(B117:AY117) -> 23 | BA117: =AZ117*10/50 -> 4.6
A118: 3 | B118: 1 | C118: 0 | D118: 0 | E118: 0 | F118: 1 | G118: 0 | H118: 1 | I118: 0 | J118: 0 | K118: 0 | L118: 0 | M118: 0 | N118: 1 | O118: 0 | P118: 0 | Q118: 0 | R118: 0 | S118: 0 | T118: 1 | U118: 1 | V118: 1 | W118: 1 | X118: 1 | Y118: 0 | Z118: 0 | AA118: 0 | AB118: 1 | AC118: 0 | AD118: 0 | AE118: 0 | AF118: 0 | AG118: 1 | AH118: 0 | AI118: 0 | AJ118: 1 | AK118: 1 | AL118: 0 | AM118: 1 | AN118: 0 | AO118: 1 | AP118: 0 | AQ118: 0 | AR118: 0 | AS118: 0 | AT118: 0 | AU118: 1 | AV118: 0 | AW118: 0 | AX118: 0 | AY118: 0 | AZ118: 16 | BA118: 3.2
A119: 4 | B119: 1 | C119: 1 | D119: 0 | E119: 1 | F119: 1 | G119: 1 | H119: 0 | I119: 0 | J119: 0 | K119: 0 | L119: 0 | M119: 0 | N119: 0 | O119: 0 | P119: 0 | Q119: 0 | R119: 0 | S119: 0 | T119: 1 | U119: 0 | V119: 0 | W119: 0 | X119: 0 | Y119: 0 | Z119: 0 | AA119: 0 | AB119: 0 | AC119: 0 | AD119: 0 | AE119: 0 | AF119: 0 | AG119: 0 | AH119: 0 | AI119: 0 | AJ119: 0 | AK119: 1 | AL119: 0 | AM119: 1 | AN119: 0 | AO119: 0 | AP119: 0 | AQ119: 0 | AR119: 1 | AS119: 0 | AT119: 0 | AU119: 0 | AV119: 0 | AW119: 0 | AX119: 0 | AY119: 0 | AZ119: 9 | BA119: 1.8
A120: 5 | B120: 1 | C120: 0 | D120: 0 | E120: 1 | F120: 1 | G120: 1 | H120: 1 | I120: 1 | J120: 0 | K120: 0 | L120: 1 | M120: 0 | N120: 0 | O120: 0 | P120: 0 | Q120: 1 | R120: 1 | S120: 1 | T120: 1 | U120: 1 | V120: 1 | W120: 1 | X120: 1 | Y120: 1 | Z120: 0 | AA120: 1 | AB120: 1 | AC120: 1 | AD120: 0 | AE120: 1 | AF120: 1 | AG120: 0 | AH120: 1 | AI120: 0 | AJ120: 1 | AK120: 1 | AL120: 1 | AM120: 0 | AN120: 1 | AO120: 0 | AP120: 0 | AQ120: 0 | AR120: 0 | AS120: 0 | AT120: 0 | AU120: 0 | AV120: 0 | AW120: 0 | AX120: 0 | AY120: 0 | AZ120: 26 | BA120: 5.2
A121: 6 | B121: 1 | C121: 0 | D121: 0 | E121: 1 | F121: 1 | G121: 0 | H121: 0 | I121: 0 | J121: 0 | K121: 0 | L121: 0 | M121: 0 | N121: 0 | O121: 0 | P121: 0 | Q121: 0 | R121: 0 | S121: 0 | T121: 0 | U121: 0 | V121: 0 | W121: 0 | X121: 0 | Y121: 0 | Z121: 0 | AA121: 0 | AB121: 0 | AC121: 0 | AD121: 0 | AE121: 0 | AF121: 0 | AG121: 0 | AH121: 0 | AI121: 0 | AJ121: 1 | AK121: 0 | AL121: 0 | AM121: 0 | AN121: 0 | AO121: 0 | AP121: 0 | AQ121: 0 | AR121: 0 | AS121: 0 | AT121: 0 | AU121: 0 | AV121: 0 | AW121: 0 | AX121: 0 | AY121: 0 | AZ121: 4 | BA121: 0.8
A122: 7 | B122: 1 | C122: 0 | D122: 1 | E122: 1 | F122: 1 | G122: 1 | H122: 0 | I122: 0 | J122: 0 | K122: 0 | L122: 0 | M122: 0 | N122: 0 | O122: 0 | P122: 0 | Q122: 0 | R122: 0 | S122: 0 | T122: 0 | U122: 0 | V122: 0 | W122: 0 | X122: 0 | Y122: 0 | Z122: 0 | AA122: 0 | AB122: 0 | AC122: 0 | AD122: 0 | AE122: 0 | AF122: 0 | AG122: 0 | AH122: 0 | AI122: 0 | AJ122: 0 | AK122: 0 | AL122: 0 | AM122: 0 | AN122: 0 | AO122: 0 | AP122: 0 | AQ122: 0 | AR122: 0 | AS122: 0 | AT122: 0 | AU122: 0 | AV122: 0 | AW122: 0 | AX122: 0 | AY122: 0 | AZ122: 5 | BA122: 1
A123: 8 | B123: 1 | C123: 0 | D123: 0 | E123: 0 | F123: 0 | G123: 0 | H123: 0 | I123: 0 | J123: 0 | K123: 0 | L123: 0 | M123: 0 | N123: 0 | O123: 0 | P123: 0 | Q123: 0 | R123: 0 | S123: 0 | T123: 0 | U123: 0 | V123: 0 | W123: 1 | X123: 1 | Y123: 0 | Z123: 0 | AA123: 1 | AB123: 1 | AC123: 0 | AD123: 0 | AE123: 0 | AF123: 0 | AG123: 0 | AH123: 0 | AI123: 0 | AJ123: 1 | AK123: 1 | AL123: 0 | AM123: 1 | AN123: 0 | AO123: 0 | AP123: 0 | AQ123: 0 | AR123: 1 | AS123: 0 | AT123: 0 | AU123: 0 | AV123: 0 | AW123: 0 | AX123: 0 | AY123: 0 | AZ123: 9 | BA123: 1.8
A124: 9 | B124: 1 | C124: 1 | D124: 1 | E124: 1 | F124: 0 | G124: 1 | H124: 0 | I124: 0 | J124: 0 | K124: 0 | L124: 0 | M124: 0 | N124: 0 | O124: 0 | P124: 0 | Q124: 0 | R124: 0 | S124: 0 | T124: 0 | U124: 0 | V124: 0 | W124: 0 | X124: 0 | Y124: 0 | Z124: 0 | AA124: 0 | AB124: 0 | AC124: 0 | AD124: 0 | AE124: 0 | AF124: 0 | AG124: 0 | AH124: 0 | AI124: 0 | AJ124: 0 | AK124: 0 | AL124: 0 | AM124: 0 | AN124: 0 | AO124: 0 | AP124: 0 | AQ124: 0 | AR124: 0 | AS124: 0 | AT124: 0 | AU124: 0 | AV124: 0 | AW124: 0 | AX124: 0 | AY124: 0 | AZ124: 5 | BA124: 1
A125: 10 | B125: 1 | C125: 0 | D125: 1 | E125: 1 | F125: 0 | G125: 0 | H125: 0 | I125: 0 | J125: 1 | K125: 0 | L125: 1 | M125: 0 | N125: 0 | O125: 0 | P125: 0 | Q125: 0 | R125: 0 | S125: 0 | T125: 1 | U125: 1 | V125: 1 | W125: 1 | X125: 1 | Y125: 0 | Z125: 0 | AA125: 0 | AB125: 0 | AC125: 0 | AD125: 0 | AE125: 0 | AF125: 0 | AG125: 0 | AH125: 0 | AI125: 0 | AJ125: 0 | AK125: 1 | AL125: 0 | AM125: 0 | AN125: 0 | AO125: 0 | AP125: 0 | AQ125: 0 | AR125: 0 | AS125: 0 | AT125: 0 | AU125: 0 | AV125: 0 | AW125: 0 | AX125: 0 | AY125: 0 | AZ125: 11 | BA125: 2.2
A126: 11 | B126: 1 | C126: 0 | D126: 0 | E126: 0 | F126: 1 | G126: 0 | H126: 0 | I126: 0 | J126: 0 | K126: 0 | L126: 0 | M126: 0 | N126: 0 | O126: 0 | P126: 0 | Q126: 0 | R126: 0 | S126: 0 | T126: 0 | U126: 1 | V126: 1 | W126: 0 | X126: 1 | Y126: 0 | Z126: 0 | AA126: 0 | AB126: 0 | AC126: 0 | AD126: 0 | AE126: 0 | AF126: 0 | AG126: 0 | AH126: 0 | AI126: 0 | AJ126: 0 | AK126: 0 | AL126: 0 | AM126: 0 | AN126: 0 | AO126: 0 | AP126: 0 | AQ126: 0 | AR126: 0 | AS126: 0 | AT126: 0 | AU126: 0 | AV126: 0 | AW126: 0 | AX126: 0 | AY126: 0 | AZ126: 5 | BA126: 1
A127: 12 | B127: 1 | C127: 0 | D127: 0 | E127: 0 | F127: 0 | G127: 0 | H127: 0 | I127: 0 | J127: 0 | K127: 0 | L127: 0 | M127: 0 | N127: 0 | O127: 0 | P127: 0 | Q127: 0 | R127: 0 | S127: 0 | T127: 0 | U127: 0 | V127: 0 | W127: 1 | X127: 1 | Y127: 0 | Z127: 0 | AA127: 0 | AB127: 1 | AC127: 0 | AD127: 0 | AE127: 0 | AF127: 0 | AG127: 1 | AH127: 0 | AI127: 0 | AJ127: 1 | AK127: 0 | AL127: 0 | AM127: 0 | AN127: 0 | AO127: 0 | AP127: 0 | AQ127: 0 | AR127: 1 | AS127: 0 | AT127: 1 | AU127: 0 | AV127: 0 | AW127: 0 | AX127: 0 | AY127: 0 | AZ127: 8 | BA127: 1.6
A128: 13 | B128: 1 | C128: 1 | D128: 1 | E128: 1 | F128: 1 | G128: 1 | H128: 0 | I128: 0 | J128: 0 | K128: 0 | L128: 0 | M128: 0 | N128: 0 | O128: 0 | P128: 0 | Q128: 0 | R128: 0 | S128: 0 | T128: 0 | U128: 0 | V128: 0 | W128: 0 | X128: 0 | Y128: 0 | Z128: 0 | AA128: 0 | AB128: 0 | AC128: 0 | AD128: 0 | AE128: 0 | AF128: 0 | AG128: 0 | AH128: 0 | AI128: 0 | AJ128: 0 | AK128: 0 | AL128: 0 | AM128: 0 | AN128: 0 | AO128: 0 | AP128: 0 | AQ128: 0 | AR128: 0 | AS128: 0 | AT128: 0 | AU128: 0 | AV128: 0 | AW128: 0 | AX128: 0 | AY128: 0 | AZ128: 6 | BA128: 1.2
A129: 14 | B129: 1 | C129: 1 | D129: 1 | E129: 1 | F129: 1 | G129: 0 | H129: 1 | I129: 0 | J129: 0 | K129: 0 | L129: 0 | M129: 0 | N129: 0 | O129: 0 | P129: 0 | Q129: 0 | R129: 0 | S129: 0 | T129: 0 | U129: 0 | V129: 1 | W129: 1 | X129: 1 | Y129: 0 | Z129: 0 | AA129: 0 | AB129: 1 | AC129: 0 | AD129: 0 | AE129: 0 | AF129: 0 | AG129: 1 | AH129: 0 | AI129: 0 | AJ129: 0 | AK129: 0 | AL129: 0 | AM129: 0 | AN129: 0 | AO129: 0 | AP129: 0 | AQ129: 0 | AR129: 0 | AS129: 0 | AT129: 0 | AU129: 0 | AV129: 0 | AW129: 0 | AX129: 0 | AY129: 0 | AZ129: 11 | BA129: 2.2
A130: 15 | B130: 1 | C130: 1 | D130: 1 | E130: 0 | F130: 0 | G130: 0 | H130: 0 | I130: 0 | J130: 0 | K130: 1 | L130: 0 | M130: 0 | N130: 0 | O130: 0 | P130: 0 | Q130: 0 | R130: 0 | S130: 0 | T130: 1 | U130: 1 | V130: 1 | W130: 1 | X130: 1 | Y130: 0 | Z130: 0 | AA130: 1 | AB130: 0 | AC130: 1 | AD130: 0 | AE130: 0 | AF130: 1 | AG130: 1 | AH130: 0 | AI130: 0 | AJ130: 0 | AK130: 0 | AL130: 0 | AM130: 0 | AN130: 0 | AO130: 0 | AP130: 0 | AQ130: 0 | AR130: 1 | AS130: 0 | AT130: 0 | AU130: 0 | AV130: 0 | AW130: 0 | AX130: 0 | AY130: 0 | AZ130: 14 | BA130: 2.8
A131: 16 | B131: 1 | C131: 1 | D131: 1 | E131: 1 | F131: 1 | G131: 0 | H131: 1 | I131: 0 | J131: 0 | K131: 0 | L131: 0 | M131: 0 | N131: 0 | O131: 0 | P131: 0 | Q131: 0 | R131: 0 | S131: 0 | T131: 0 | U131: 1 | V131: 1 | W131: 1 | X131: 1 | Y131: 0 | Z131: 0 | AA131: 0 | AB131: 0 | AC131: 0 | AD131: 0 | AE131: 0 | AF131: 0 | AG131: 0 | AH131: 0 | AI131: 0 | AJ131: 0 | AK131: 0 | AL131: 0 | AM131: 0 | AN131: 0 | AO131: 0 | AP131: 0 | AQ131: 0 | AR131: 0 | AS131: 0 | AT131: 0 | AU131: 0 | AV131: 1 | AW131: 0 | AX131: 0 | AY131: 0 | AZ131: 11 | BA131: 2.2
A132: 17 | B132: 1 | C132: 1 | D132: 1 | E132: 0 | F132: 0 | G132: 0 | H132: 0 | I132: 0 | J132: 0 | K132: 0 | L132: 0 | M132: 0 | N132: 0 | O132: 0 | P132: 0 | Q132: 0 | R132: 0 | S132: 0 | T132: 1 | U132: 1 | V132: 0 | W132: 0 | X132: 0 | Y132: 0 | Z132: 0 | AA132: 0 | AB132: 0 | AC132: 0 | AD132: 0 | AE132: 0 | AF132: 0 | AG132: 0 | AH132: 0 | AI132: 0 | AJ132: 0 | AK132: 0 | AL132: 0 | AM132: 0 | AN132: 0 | AO132: 0 | AP132: 0 | AQ132: 0 | AR132: 0 | AS132: 0 | AT132: 0 | AU132: 0 | AV132: 0 | AW132: 0 | AX132: 0 | AY132: 0 | AZ132: 5 | BA132: 1
A133: 18 | B133: 1 | C133: 1 | D133: 0 | E133: 1 | F133: 1 | G133: 0 | H133: 0 | I133: 0 | J133: 1 | K133: 0 | L133: 0 | M133: 0 | N133: 0 | O133: 0 | P133: 0 | Q133: 0 | R133: 0 | S133: 1 | T133: 1 | U133: 1 | V133: 0 | W133: 0 | X133: 1 | Y133: 0 | Z133: 0 | AA133: 0 | AB133: 0 | AC133: 0 | AD133: 0 | AE133: 0 | AF133: 0 | AG133: 0 | AH133: 0 | AI133: 0 | AJ133: 0 | AK133: 0 | AL133: 0 | AM133: 0 | AN133: 0 | AO133: 0 | AP133: 0 | AQ133: 0 | AR133: 0 | AS133: 0 | AT133: 0 | AU133: 0 | AV133: 0 | AW133: 0 | AX133: 0 | AY133: 0 | AZ133: 9 | BA133: 1.8
A134: 19 | B134: 1 | C134: 1 | D134: 1 | E134: 1 | F134: 1 | G134: 0 | H134: 1 | I134: 0 | J134: 0 | K134: 0 | L134: 0 | M134: 0 | N134: 0 | O134: 0 | P134: 0 | Q134: 0 | R134: 0 | S134: 0 | T134: 1 | U134: 0 | V134: 0 | W134: 0 | X134: 1 | Y134: 0 | Z134: 0 | AA134: 0 | AB134: 0 | AC134: 0 | AD134: 0 | AE134: 0 | AF134: 0 | AG134: 1 | AH134: 0 | AI134: 0 | AJ134: 0 | AK134: 1 | AL134: 1 | AM134: 1 | AN134: 0 | AO134: 0 | AP134: 0 | AQ134: 0 | AR134: 0 | AS134: 0 | AT134: 0 | AU134: 0 | AV134: 0 | AW134: 0 | AX134: 0 | AY134: 0 | AZ134: 12 | BA134: 2.4
A135: 20 | B135: 1 | C135: 1 | D135: 0 | E135: 0 | F135: 0 | G135: 0 | H135: 0 | I135: 0 | J135: 0 | K135: 0 | L135: 0 | M135: 0 | N135: 1 | O135: 0 | P135: 0 | Q135: 0 | R135: 0 | S135: 0 | T135: 1 | U135: 1 | V135: 1 | W135: 1 | X135: 1 | Y135: 0 | Z135: 0 | AA135: 0 | AB135: 1 | AC135: 0 | AD135: 0 | AE135: 0 | AF135: 1 | AG135: 1 | AH135: 1 | AI135: 0 | AJ135: 0 | AK135: 0 | AL135: 0 | AM135: 0 | AN135: 0 | AO135: 0 | AP135: 0 | AQ135: 0 | AR135: 0 | AS135: 0 | AT135: 0 | AU135: 1 | AV135: 0 | AW135: 0 | AX135: 0 | AY135: 0 | AZ135: 13 | BA135: 2.6
A136: 21 | B136: 1 | C136: 0 | D136: 1 | E136: 1 | F136: 1 | G136: 1 | H136: 1 | I136: 1 | J136: 0 | K136: 1 | L136: 1 | M136: 0 | N136: 0 | O136: 0 | P136: 0 | Q136: 0 | R136: 0 | S136: 0 | T136: 1 | U136: 1 | V136: 0 | W136: 1 | X136: 1 | Y136: 1 | Z136: 0 | AA136: 1 | AB136: 1 | AC136: 0 | AD136: 0 | AE136: 0 | AF136: 0 | AG136: 0 | AH136: 0 | AI136: 0 | AJ136: 0 | AK136: 1 | AL136: 0 | AM136: 0 | AN136: 0 | AO136: 0 | AP136: 0 | AQ136: 0 | AR136: 0 | AS136: 0 | AT136: 0 | AU136: 0 | AV136: 0 | AW136: 0 | AX136: 0 | AY136: 0 | AZ136: 17 | BA136: 3.4
A137: 22 | B137: 1 | C137: 0 | D137: 0 | E137: 1 | F137: 0 | G137: 0 | H137: 0 | I137: 0 | J137: 0 | K137: 0 | L137: 0 | M137: 0 | N137: 1 | O137: 0 | P137: 0 | Q137: 0 | R137: 0 | S137: 0 | T137: 0 | U137: 0 | V137: 0 | W137: 1 | X137: 1 | Y137: 1 | Z137: 0 | AA137: 1 | AB137: 1 | AC137: 0 | AD137: 0 | AE137: 0 | AF137: 1 | AG137: 0 | AH137: 0 | AI137: 0 | AJ137: 0 | AK137: 0 | AL137: 0 | AM137: 0 | AN137: 0 | AO137: 0 | AP137: 0 | AQ137: 0 | AR137: 0 | AS137: 0 | AT137: 0 | AU137: 0 | AV137: 0 | AW137: 0 | AX137: 0 | AY137: 0 | AZ137: 9 | BA137: 1.8
A138: 23 | B138: 1 | C138: 1 | D138: 0 | E138: 1 | F138: 1 | G138: 1 | H138: 1 | I138: 0 | J138: 0 | K138: 0 | L138: 0 | M138: 0 | N138: 0 | O138: 0 | P138: 0 | Q138: 0 | R138: 0 | S138: 0 | T138: 0 | U138: 1 | V138: 1 | W138: 1 | X138: 1 | Y138: 1 | Z138: 0 | AA138: 1 | AB138: 1 | AC138: 0 | AD138: 0 | AE138: 0 | AF138: 0 | AG138: 1 | AH138: 0 | AI138: 0 | AJ138: 1 | AK138: 1 | AL138: 0 | AM138: 0 | AN138: 1 | AO138: 0 | AP138: 0 | AQ138: 0 | AR138: 1 | AS138: 0 | AT138: 0 | AU138: 0 | AV138: 0 | AW138: 0 | AX138: 0 | AY138: 0 | AZ138: 18 | BA138: 3.6
A139: 24 | B139: 1 | C139: 1 | D139: 1 | E139: 0 | F139: 0 | G139: 0 | H139: 0 | I139: 0 | J139: 0 | K139: 0 | L139: 0 | M139: 0 | N139: 0 | O139: 0 | P139: 0 | Q139: 0 | R139: 0 | S139: 0 | T139: 1 | U139: 0 | V139: 0 | W139: 0 | X139: 1 | Y139: 0 | Z139: 0 | AA139: 0 | AB139: 0 | AC139: 0 | AD139: 0 | AE139: 0 | AF139: 0 | AG139: 0 | AH139: 0 | AI139: 0 | AJ139: 0 | AK139: 0 | AL139: 0 | AM139: 0 | AN139: 1 | AO139: 0 | AP139: 0 | AQ139: 0 | AR139: 0 | AS139: 0 | AT139: 0 | AU139: 0 | AV139: 0 | AW139: 0 | AX139: 0 | AY139: 0 | AZ139: 6 | BA139: 1.2
A140: 25 | B140: 1 | C140: 1 | D140: 1 | E140: 1 | F140: 1 | G140: 1 | H140: 1 | I140: 1 | J140: 1 | K140: 1 | L140: 1 | M140: 0 | N140: 1 | O140: 0 | P140: 0 | Q140: 0 | R140: 0 | S140: 1 | T140: 1 | U140: 1 | V140: 1 | W140: 1 | X140: 1 | Y140: 0 | Z140: 0 | AA140: 0 | AB140: 0 | AC140: 0 | AD140: 0 | AE140: 0 | AF140: 0 | AG140: 0 | AH140: 0 | AI140: 0 | AJ140: 0 | AK140: 0 | AL140: 0 | AM140: 0 | AN140: 0 | AO140: 0 | AP140: 0 | AQ140: 0 | AR140: 0 | AS140: 0 | AT140: 0 | AU140: 0 | AV140: 0 | AW140: 0 | AX140: 0 | AY140: 0 | AZ140: 18 | BA140: 3.6
AZ141: Mean | BA141: =AVERAGE(BA116:BA140) -> 2.4
AZ142: SD | BA142: =STDEV(BA116:BA141) -> 1.3
AZ144: Mean | BA144: =AVERAGE(BA4:BA28,BA32:BA56,BA60:BA84,BA88:BA112,BA116:BA140) -> 3.2
AZ145: SD | BA145: =STDEV(BA4:BA28,BA32:BA56,BA60:BA84,BA88:BA112,BA116:BA140) -> 1.6

Sheet Accuracy scores
A1: Website number | B1: Accuracy | AZ1: AAS | BA1: Items | BB1: MAS | BC1: RAS
B2: A1 | C2: A2 | D2: A3 | E2: A4 | F2: A5 | G2: A6 | H2: A7 | I2: A8 | J2: A9 | K2: A10 | L2: A11 | M2: A12 | N2: A13 | O2: A14 | P2: A15 | Q2: A16 | R2: A17 | S2: A18 | T2: A19 | U2: A20 | V2: A21 | W2: A22 | X2: A23 | Y2: A24 | Z2: A25 | AA2: A26 | AB2: A27 | AC2: A28 | AD2: A29 | AE2: A30 | AF2: A31 | AG2: A32 | AH2: A33 | AI2: A34 | AJ2: A35 | AK2: A36 | AL2: A37 | AM2: A38 | AN2: A39 | AO2: A40 | AP2: A41 | AQ2: A42 | AR2: A43 | AS2: A44 | AT2: A45 | AU2: A46 | AV2: A47 | AW2: A48 | AX2: A49 | AY2: A50
A3: English language
A4: 1 | B4: 2 | C4: 2 | D4: 2 | E4: NA | F4: 1 | G4: NA | H4: 1 | I4: NA | J4: NA | K4: 0 | L4: NA | M4: NA | N4: NA | O4: NA | P4: NA | Q4: NA | R4: NA | S4: NA | T4: NA | U4: NA | V4: NA | W4: 0 | X4: 1 | Y4: NA | Z4: NA | AA4: NA | AB4: NA | AC4: NA | AD4: NA | AE4: NA | AF4: NA | AG4: 1 | AH4: NA | AI4: NA | AJ4: NA | AK4: NA | AL4: NA | AM4: NA | AN4: NA | AO4: NA | AP4: NA | AQ4: NA | AR4: NA | AS4: NA | AT4: NA | AU4: NA | AV4: NA | AW4: NA | AX4: NA | AY4: NA | AZ4: =SUM(B4:AY4) -> 10 | BA4: =COUNT(B4:AY4) -> 9 | BB4: =BA4*2 -> 18 | BC4: =AZ4*10/BB4 -> 5.6
A5: 2 | B5: 2 | C5: 2 | D5: 2 | E5: 0 | F5: 0 | G5: 0 | H5: 0 | I5: NA | J5: 0 | K5: NA | L5: 1 | M5: NA | N5: 2 | O5: NA | P5: NA | Q5: NA | R5: NA | S5: NA | T5: 1 | U5: NA | V5: NA | W5: 1 | X5: 2 | Y5: 1 | Z5: NA | AA5: 1 | AB5: 1 | AC5: 0 | AD5: NA | AE5: 1 | AF5: 1 | AG5: 1 | AH5: NA | AI5: NA | AJ5: NA | AK5: NA | AL5: NA | AM5: NA | AN5: NA | AO5: NA | AP5: NA | AQ5: NA | AR5: NA | AS5: NA | AT5: NA | AU5: 0 | AV5: 0 | AW5: NA | AX5: NA | AY5: 0 | AZ5: =SUM(B5:AY5) -> 19 | BA5: =COUNT(B5:AY5) -> 23 | BB5: =BA5*2 -> 46 | BC5: =AZ5*10/BB5 -> 4.1
A6: 3 | B6: 2 | C6: 1 | D6: 1 | E6: 1 | F6: 1 | G6: NA | H6: 0 | I6: NA | J6: NA | K6: NA | L6: NA | M6: NA | N6: NA | O6: NA | P6: NA | Q6: NA | R6: NA | S6: NA | T6: NA | U6: NA | V6: NA | W6: 1 | X6: 2 | Y6: NA | Z6: NA | AA6: NA | AB6: 2 | AC6: NA | AD6: NA | AE6: NA | AF6: NA | AG6: NA | AH6: NA | AI6: NA | AJ6: 1 | AK6: NA | AL6: NA | AM6: NA | AN6: NA | AO6: NA | AP6: NA | AQ6: NA | AR6: 1 | AS6: NA | AT6: NA | AU6: NA | AV6: NA | AW6: NA | AX6: NA | AY6: NA | AZ6: 13 | BA6: 11 | BB6: 22 | BC6: 5.9
A7: 4 | B7: 2 | C7: 2 | D7: 1 | E7: 1 | F7: 1 | G7: NA | H7: 2 | I7: 1 | J7: 1 | K7: NA | L7: 1 | M7: NA | N7: NA | O7: NA | P7: NA | Q7: 1 | R7: 2 | S7: 0 | T7: 2 | U7: 0 | V7: 1 | W7: 1 | X7: 1 | Y7: 0 | Z7: NA | AA7: 0 | AB7: 0 | AC7: 0 | AD7: NA | AE7: 0 | AF7: 1 | AG7: 1 | AH7: NA | AI7: NA | AJ7: 2 | AK7: 1 | AL7: 2 | AM7: 0 | AN7: 2 | AO7: NA | AP7: NA | AQ7: NA | AR7: 0 | AS7: NA | AT7: NA | AU7: 0 | AV7: NA | AW7: NA | AX7: NA | AY7: NA | AZ7: 29 | BA7: 31 | BB7: 62 | BC7: 4.7
A8: 5 | B8: 2 | C8: NA | D8: NA | E8: 0 | F8: 1 | G8: 0 | H8: 0 | I8: NA | J8: NA | K8: NA | L8: NA | M8: NA | N8: NA | O8: NA | P8: NA | Q8: NA | R8: NA | S8: NA | T8: NA | U8: 0 | V8: 0 | W8: 1 | X8: NA | Y8: 1 | Z8: NA | AA8: 1 | AB8: 0 | AC8: 1 | AD8: NA | AE8: NA | AF8: 1 | AG8: NA | AH8: NA | AI8: NA | AJ8: 2 | AK8: 0 | AL8: NA | AM8: NA | AN8: 2 | AO8: NA | AP8: NA | AQ8: NA | AR8: 0 | AS8: NA | AT8: NA | AU8: NA | AV8: NA | AW8: NA | AX8: NA | AY8: NA | AZ8: 12 | BA8: 17 | BB8: 34 | BC8: 3.5
A9: 6 | B9: 1 | C9: 1 | D9: NA | E9: NA | F9: 2 | G9: NA | H9: 2 | I9: 1 | J9: 1 | K9: NA | L9: 1 | M9: 1 | N9: NA | O9: NA | P9: NA | Q9: NA | R9: NA | S9: NA | T9: 0 | U9: 1 | V9: 0 | W9: 0 | X9: 1 | Y9: 0 | Z9: NA | AA9: NA | AB9: 0 | AC9: 2 | AD9: NA | AE9: 1 | AF9: 0 | AG9: 2 | AH9: NA | AI9: NA | AJ9: 1 | AK9: 1 | AL9: 0 | AM9: 1 | AN9: 2 | AO9: NA | AP9: NA | AQ9: NA | AR9: 1 | AS9: NA | AT9: 1 | AU9: 1 | AV9: 1 | AW9: NA | AX9: NA | AY9: NA | AZ9: 26 | BA9: 28 | BB9: 56 | BC9: 4.6
A10: 7 | B10: 2 | C10: 1 | D10: 1 | E10: 2 | F10: 2 | G10: 1 | H10: 1 | I10: 1 | J10: 1 | K10: 0 | L10: 1 | M10: 0 | N10: 2 | O10: 1 | P10: NA | Q10: NA | R10: NA | S10: 0 | T10: 0 | U10: 0 | V10: 1 | W10: 1 | X10: 2 | Y10: 0 | Z10: NA | AA10: 1 | AB10: 2 | AC10: 1 | AD10: 0 | AE10: 2 | AF10: 1 | AG10: 1 | AH10: 1 | AI10: NA | AJ10: 1 | AK10: 1 | AL10: NA | AM10: NA | AN10: 2 | AO10: NA | AP10: NA | AQ10: NA | AR10: 1 | AS10: 2 | AT10: NA | AU10: NA | AV10: NA | AW10: NA | AX10: NA | AY10: NA | AZ10: 36 | BA10: 34 | BB10: 68 | BC10: 5.3
A11: 8 | B11: 2 | C11: 2 | D11: 1 | E11: 0 | F11: 2 | G11: NA | H11: 1 | I11: 1 | J11: 1 | K11: NA | L11: 0 | M11: 0 | N11: 2 | O11: NA | P11: NA | Q11: NA | R11: NA | S11: 0 | T11: 1 | U11: 1 | V11: 0 | W11: 1 | X11: 2 | Y11: 1 | Z11: NA | AA11: 1 | AB11: 2 | AC11: NA | AD11: NA | AE11: 2 | AF11: 1 | AG11: 2 | AH11: NA | AI11: 2 | AJ11: 2 | AK11: 1 | AL11: 0 | AM11: NA | AN11: NA | AO11: NA | AP11: NA | AQ11: NA | AR11: NA | AS11: NA | AT11: NA | AU11: 0 | AV11: 0 | AW11: NA | AX11: NA | AY11: NA | AZ11: 31 | BA11: 29 | BB11: 58 | BC11: 5.3
A12: 9 | B12: 2 | C12: NA | D12: 1 | E12: 2 | F12: 1 | G12: NA | H12: 2 | I12: 1 | J12: NA | K12: 1 | L12: 2 | M12: NA | N12: 1 | O12: NA | P12: NA | Q12: 0 | R12: 2 | S12: 1 | T12: 1 | U12: 2 | V12: 1 | W12: 1 | X12: 2 | Y12: NA | Z12: NA | AA12: NA | AB12: 2 | AC12: 0 | AD12: NA | AE12: 2 | AF12: 1 | AG12: 2 | AH12: 1 | AI12: NA | AJ12: 2 | AK12: 1 | AL12: NA | AM12: 0 | AN12: 2 | AO12: NA | AP12: NA | AQ12: NA | AR12: 2 | AS12: NA | AT12: NA | AU12: NA | AV12: NA | AW12: NA | AX12: NA | AY12: NA | AZ12: 38 | BA12: 28 | BB12: 56 | BC12: 6.8
A13: 10 | B13: 1 | C13: 1 | D13: 1 | E13: 0 | F13: NA | G13: NA | H13: 0 | I13: 1 | J13: 2 | K13: NA | L13: 1 | M13: NA | N13: 0 | O13: 1 | P13: NA | Q13: NA | R13: 2 | S13: 2 | T13: 2 | U13: 2 | V13: 1 | W13: 2 | X13: 0 | Y13: 1 | Z13: NA | AA13: 2 | AB13: 1 | AC13: NA | AD13: NA | AE13: 1 | AF13: 1 | AG13: 2 | AH13: NA | AI13: 2 | AJ13: 2 | AK13: 2 | AL13: NA | AM13: NA | AN13: 2 | AO13: NA | AP13: NA | AQ13: NA | AR13: 1 | AS13: NA | AT13: 1 | AU13: 0 | AV13: NA | AW13: NA | AX13: NA | AY13: NA | AZ13: 37 | BA13: 30 | BB13: 60 | BC13: 6.2
A14: 11 | B14: 2 | C14: 2 | D14: 2 | E14: 0 | F14: 2 | G14: NA | H14: 1 | I14: 1 | J14: NA | K14: 1 | L14: 1 | M14: 1 | N14: 2 | O14: NA | P14: NA | Q14: NA | R14: 2 | S14: 1 | T14: 1 | U14: 1 | V14: 0 | W14: 1 | X14: 1 | Y14: 1 | Z14: NA | AA14: NA | AB14: 2 | AC14: 2 | AD14: 2 | AE14: 2 | AF14: 2 | AG14: 2 | AH14: 2 | AI14: NA | AJ14: 2 | AK14: 1 | AL14: 2 | AM14: 2 | AN14: 2 | AO14: NA | AP14: NA | AQ14: NA | AR14: 2 | AS14: 0 | AT14: NA | AU14: 0 | AV14: NA | AW14: NA | AX14: NA | AY14: NA | AZ14: 48 | BA14: 34 | BB14: 68 | BC14: 7.1
A15: 12 | B15: 1 | C15: 2 | D15: 2 | E15: NA | F15: NA | G15: NA | H15: 1 | I15: NA | J15: NA | K15: 0 | L15: NA | M15: 2 | N15: 2 | O15: NA | P15: NA | Q15: NA | R15: NA | S15: NA | T15: 1 | U15: 1 | V15: 0 | W15: 1 | X15: 1 | Y15: 1 | Z15: NA | AA15: NA | AB15: 1 | AC15: 2 | AD15: 2 | AE15: 2 | AF15: 2 | AG15: 0 | AH15: 1 | AI15: 2 | AJ15: 1 | AK15: NA | AL15: 0 | AM15: 1 | AN15: 2 | AO15: NA | AP15: NA | AQ15: NA | AR15: NA | AS15: NA | AT15: 0 | AU15: NA | AV15: NA | AW15: NA | AX15: NA | AY15: NA | AZ15: 31 | BA15: 26 | BB15: 52 | BC15: 6.0
A16: 13 | B16: 2 | C16: NA | D16: NA | E16: NA | F16: NA | G16: NA | H16: 2 | I16: 1 | J16: NA | K16: 1 | L16: 2 | M16: 2 | N16: 1 | O16: 1 | P16: NA | Q16: 2 | R16: NA | S16: 2 | T16: 1 | U16: 1 | V16: 1 | W16: 1 | X16: 1 | Y16: NA | Z16: NA | AA16: 1 | AB16: NA | AC16: 0 | AD16: NA | AE16: 0 | AF16: NA | AG16: NA | AH16: 0 | AI16: NA | AJ16: 2 | AK16: 2 | AL16: NA | AM16: NA | AN16: 1 | AO16: NA | AP16: NA | AQ16: NA | AR16: NA | AS16: NA | AT16: NA | AU16: NA | AV16: NA | AW16: NA | AX16: NA | AY16: NA | AZ16: 27 | BA16: 22 | BB16: 44 | BC16: 6.1
A17: 14 | B17: 1 | C17: NA | D17: NA | E17: 1 | F17: 1 | G17: NA | H17: 1 | I17: NA | J17: NA | K17: 0 | L17: NA | M17: 1 | N17: 2 | O17: NA | P17: NA | Q17: NA | R17: NA | S17: 1 | T17: NA | U17: 1 | V17: 0 | W17: NA | X17: 2 | Y17: NA | Z17: NA | AA17: 1 | AB17: NA | AC17: 0 | AD17: NA | AE17: 1 | AF17: 2 | AG17: 1 | AH17: NA | AI17: NA | AJ17: 1 | AK17: 2 | AL17: 2 | AM17: NA | AN17: 2 | AO17: NA | AP17: NA | AQ17: NA | AR17: 0 | AS17: NA | AT17: 0 | AU17: NA | AV17: NA | AW17: NA | AX17: NA | AY17: NA | AZ17: 23 | BA17: 22 | BB17: 44 | BC17: 5.2
A18: 15 | B18: 2 | C18: 1 | D18: 0 | E18: 2 | F18: 1 | G18: 1 | H18: 1 | I18: 2 | J18: NA | K18: 1 | L18: 1 | M18: NA | N18: 2 | O18: NA | P18: NA | Q18: 1 | R18: NA | S18: NA | T18: 1 | U18: 1 | V18: 0 | W18: 1 | X18: 2 | Y18: 1 | Z18: NA | AA18: 0 | AB18: 1 | AC18: NA | AD18: NA | AE18: 1 | AF18: 1 | AG18: 2 | AH18: NA | AI18: NA | AJ18: 1 | AK18: NA | AL18: NA | AM18: NA | AN18: NA | AO18: NA | AP18: NA | AQ18: NA | AR18: 0 | AS18: NA | AT18: 1 | AU18: NA | AV18: 0 | AW18: NA | AX18: NA | AY18: NA | AZ18: 28 | BA18: 27 | BB18: 54 | BC18: 5.2
A19: 16 | B19: 2 | C19: NA | D19: NA | E19: 2 | F19: 2 | G19: NA | H19: 1 | I19: 2 | J19: 2 | K19: 1 | L19: 1 | M19: 2 | N19: NA | O19: 2 | P19: 2 | Q19: 2 | R19: 2 | S19: 2 | T19: 2 | U19: 2 | V19: 2 | W19: 2 | X19: 2 | Y19: 2 | Z19: 2 | AA19: 2 | AB19: 0 | AC19: 1 | AD19: 1 | AE19: 2 | AF19: 1 | AG19: NA | AH19: 1 | AI19: NA | AJ19: 2 | AK19: 2 | AL19: NA | AM19: NA | AN19: NA | AO19: 2 | AP19: NA | AQ19: NA | AR19: NA | AS19: 1 | AT19: NA | AU19: NA | AV19: NA | AW19: NA | AX19: NA | AY19: NA | AZ19: 54 | BA19: 32 | BB19: 64 | BC19: 8.4
A20: 17 | B20: 1 | C20: 1 | D20: NA | E20: NA | F20: NA | G20: NA | H20: NA | I20: 1 | J20: 0 | K20: NA | L20: 0 | M20: NA | N20: NA | O20: NA | P20: NA | Q20: NA | R20: NA | S20: NA | T20: 0 | U20: 1 | V20: 0 | W20: NA | X20: 0 | Y20: 1 | Z20: NA | AA20: 1 | AB20: NA | AC20: NA | AD20: NA | AE20: 2 | AF20: 0 | AG20: NA | AH20: 1 | AI20: NA | AJ20: 1 | AK20: 0 | AL20: NA | AM20: NA | AN20: NA | AO20: NA | AP20: NA | AQ20: NA | AR20: NA | AS20: NA | AT20: NA | AU20: NA | AV20: NA | AW20: NA | AX20: NA | AY20: NA | AZ20: 10 | BA20: 16 | BB20: 32 | BC20: 3.1
A21: 18 | B21: 1 | C21: NA | D21: 0 | E21: 2 | F21: 2 | G21: NA | H21: 0 | I21: NA | J21: NA | K21: NA | L21: NA | M21: 1 | N21: NA | O21: NA | P21: NA | Q21: NA | R21: NA | S21: NA | T21: NA | U21: NA | V21: NA | W21: NA | X21: NA | Y21: NA | Z21: NA | AA21: NA | AB21: 1 | AC21: NA | AD21: NA | AE21: NA | AF21: NA | AG21: NA | AH21: NA | AI21: NA | AJ21: 1 | AK21: 0 | AL21: NA | AM21: NA | AN21: NA | AO21: NA | AP21: NA | AQ21: NA | AR21: 0 | AS21: NA | AT21: 1 | AU21: NA | AV21: NA | AW21: NA | AX21: NA | AY21: NA | AZ21: 9 | BA21: 11 | BB21: 22 | BC21: 4.1
A22: 19 | B22: 2 | C22: NA | D22: 1 | E22: NA | F22: NA | G22: NA | H22: NA | I22: 0 | J22: NA | K22: 1 | L22: NA | M22: 2 | N22: 2 | O22: NA | P22: NA | Q22: NA | R22: NA | S22: NA | T22: 0 | U22: 1 | V22: 1 | W22: 2 | X22: 0 | Y22: NA | Z22: NA | AA22: 2 | AB22: 0 | AC22: 0 | AD22: NA | AE22: NA | AF22: 0 | AG22: NA | AH22: NA | AI22: NA | AJ22: NA | AK22: NA | AL22: NA | AM22: NA | AN22: 1 | AO22: NA | AP22: NA | AQ22: NA | AR22: NA | AS22: NA | AT22: NA | AU22: NA | AV22: NA | AW22: NA | AX22: NA | AY22: NA | AZ22: 15 | BA22: 16 | BB22: 32 | BC22: 4.7
A23: 20 | B23: 1 | C23: 2 | D23: 1 | E23: 0 | F23: 2 | G23: NA | H23: 0 | I23: 1 | J23: 0 | K23: 0 | L23: NA | M23: NA | N23: NA | O23: NA | P23: NA | Q23: NA | R23: NA | S23: NA | T23: NA | U23: 1 | V23: 1 | W23: 1 | X23: 1 | Y23: NA | Z23: NA | AA23: NA | AB23: 0 | AC23: NA | AD23: NA | AE23: NA | AF23: 0 | AG23: NA | AH23: NA | AI23: NA | AJ23: 1 | AK23: NA | AL23: NA | AM23: NA | AN23: NA | AO23: NA | AP23: NA | AQ23: NA | AR23: 0 | AS23: 1 | AT23: NA | AU23: NA | AV23: NA | AW23: NA | AX23: NA | AY23: NA | AZ23: 13 | BA23: 18 | BB23: 36 | BC23: 3.6
A24: 21 | B24: 2 | C24: NA | D24: NA | E24: NA | F24: NA | G24: NA | H24: 1 | I24: 0 | J24: 2 | K24: NA | L24: NA | M24: NA | N24: NA | O24: NA | P24: NA | Q24: 2 | R24: 2 | S24: 2 | T24: 2 | U24: 1 | V24: 1 | W24: 1 | X24: 0 | Y24: 1 | Z24: NA | AA24: 1 | AB24: NA | AC24: 0 | AD24: NA | AE24: 2 | AF24: NA | AG24: NA | AH24: 1 | AI24: NA | AJ24: 1 | AK24: NA | AL24: NA | AM24: NA | AN24: NA | AO24: NA | AP24: NA | AQ24: NA | AR24: NA | AS24: NA | AT24: NA | AU24: NA | AV24: NA | AW24: NA | AX24: NA | AY24: NA | AZ24: 22 | BA24: 18 | BB24: 36 | BC24: 6.1
A25: 22 | B25: 1 | C25: 2 | D25: 2 | E25: NA | F25: 1 | G25: NA | H25: 2 | I25: NA | J25: NA | K25: 1 | L25: NA | M25: NA | N25: 2 | O25: NA | P25: NA | Q25: NA | R25: NA | S25: NA | T25: 1 | U25: 1 | V25: 1 | W25: 1 | X25: 1 | Y25: 0 | Z25: 0 | AA25: 0 | AB25: 1 | AC25: NA | AD25: NA | AE25: NA | AF25: 1 | AG25: 2 | AH25: NA | AI25: NA | AJ25: 1 | AK25: 0 | AL25: 0 | AM25: 1 | AN25: 2 | AO25: NA | AP25: NA | AQ25: NA | AR25: 1 | AS25: 1 | AT25: 1 | AU25: NA | AV25: NA | AW25: NA | AX25: NA | AY25: NA | AZ25: 27 | BA25: 26 | BB25: 52 | BC25: 5.2
A26: 23 | B26: 1 | C26: 1 | D26: 0 | E26: 0 | F26: NA | G26: 2 | H26: NA | I26: NA | J26: NA | K26: NA | L26: NA | M26: NA | N26: NA | O26: NA | P26: NA | Q26: NA | R26: NA | S26: NA | T26: NA | U26: NA | V26: NA | W26: NA | X26: NA | Y26: NA | Z26: NA | AA26: NA | AB26: NA | AC26: NA | AD26: NA | AE26: NA | AF26: NA | AG26: NA | AH26: NA | AI26: NA | AJ26: NA | AK26: NA | AL26: NA | AM26: NA | AN26: 1 | AO26: NA | AP26: NA | AQ26: NA | AR26: NA | AS26: NA | AT26: NA | AU26: NA | AV26: NA | AW26: NA | AX26: NA | AY26: NA | AZ26: 5 | BA26: 6 | BB26: 12 | BC26: 4.2
A27: 24 | B27: 2 | C27: NA | D27: NA | E27: 2 | F27: 2 | G27: NA | H27: 1 | I27: 2 | J27: 2 | K27: 1 | L27: 1 | M27: 2 | N27: NA | O27: 2 | P27: 2 | Q27: 2 | R27: 2 | S27: 2 | T27: 2 | U27: 2 | V27: 2 | W27: 2 | X27: 2 | Y27: 2 | Z27: 2 | AA27: 2 | AB27: 0 | AC27: 1 | AD27: 1 | AE27: 2 | AF27: 1 | AG27: NA | AH27: 1 | AI27: NA | AJ27: 2 | AK27: 2 | AL27: NA | AM27: NA | AN27: NA | AO27: 2 | AP27: NA | AQ27: NA | AR27: NA | AS27: 1 | AT27: NA | AU27: NA | AV27: NA | AW27: NA | AX27: NA | AY27: NA | AZ27: 54 | BA27: 32 | BB27: 64 | BC27: 8.4
A28: 25 | B28: 2 | C28: NA | D28: NA | E28: NA | F28: NA | G28: NA | H28: 0 | I28: 0 | J28: 1 | K28: 0 | L28: 0 | M28: NA | N28: 2 | O28: 2 | P28: NA | Q28: 1 | R28: 1 | S28: 1 | T28: 2 | U28: 0 | V28: 1 | W28: 0 | X28: NA | Y28: 0 | Z28: 0 | AA28: 1 | AB28: NA | AC28: 0 | AD28: NA | AE28: 1 | AF28: 0 | AG28: NA | AH28: NA | AI28: NA | AJ28: 1 | AK28: 0 | AL28: NA | AM28: 1 | AN28: 2 | AO28: NA | AP28: NA | AQ28: NA | AR28: NA | AS28: NA | AT28: NA | AU28: NA | AV28: NA | AW28: NA | AX28: NA | AY28: NA | AZ28: 19 | BA28: 25 | BB28: 50 | BC28: 3.8
BB29: Mean | BC29: =AVERAGE(BC4:BC28) -> 5.3
BB30: SD | BC30: =STDEV(BC4:BC28) -> 1.4
A31: German language
A32: 1 | B32: 2 | C32: NA | D32: 1 | E32: 1 | F32: 2 | G32: 2 | H32: 2 | I32: NA | J32: 0 | K32: 2 | L32: NA | M32: NA | N32: NA | O32: NA | P32: NA | Q32: NA | R32: NA | S32: NA | T32: 0 | U32: 1 | V32: 0 | W32: 1 | X32: 2 | Y32: 2 | Z32: NA | AA32: 0 | AB32: 1 | AC32: 0 | AD32: NA | AE32: NA | AF32: NA | AG32: 1 | AH32: NA | AI32: 2 | AJ32: 1 | AK32: 1 | AL32: 0 | AM32: NA | AN32: NA | AO32: NA | AP32: NA | AQ32: NA | AR32: 0 | AS32: NA | AT32: NA | AU32: NA | AV32: NA | AW32: NA | AX32: NA | AY32: NA | AZ32: =SUM(B32:AY32) -> 24 | BA32: =COUNT(B32:AY32) -> 23 | BB32: =BA32*2 -> 46 | BC32: =AZ32*10/BB32 -> 5.2
A33: 2 | B33: 2 | C33: NA | D33: 0 | E33: 1 | F33: 2 | G33: NA | H33: 1 | I33: NA | J33: NA | K33: 2 | L33: NA | M33: NA | N33: NA | O33: NA | P33: NA | Q33: NA | R33: NA | S33: NA | T33: 0 | U33: 1 | V33: 0 | W33: 1 | X33: 1 | Y33: 1 | Z33: NA | AA33: NA | AB33: 0 | AC33: 2 | AD33: NA | AE33: NA | AF33: 1 | AG33: 0 | AH33: NA | AI33: NA | AJ33: NA | AK33: NA | AL33: NA | AM33: NA | AN33: 2 | AO33: NA | AP33: NA | AQ33: NA | AR33: 0 | AS33: NA | AT33: NA | AU33: NA | AV33: NA | AW33: NA | AX33: NA | AY33: NA | AZ33: =SUM(B33:AY33) -> 17 | BA33: =COUNT(B33:AY33) -> 18 | BB33: =BA33*2 -> 36 | BC33: =AZ33*10/BB33 -> 4.7
A34: 3 | B34: 2 | C34: 2 | D34: 1 | E34: NA | F34: 2 | G34: NA | H34: 0 | I34: NA | J34: NA | K34: NA | L34: NA | M34: NA | N34: NA | O34: NA | P34: NA | Q34: NA | R34: NA | S34: NA | T34: 1 | U34: 1 | V34: 1 | W34: 2 | X34: 0 | Y34: 1 | Z34: NA | AA34: 0 | AB34: 1 | AC34: 0 | AD34: NA | AE34: NA | AF34: 1 | AG34: 1 | AH34: NA | AI34: 2 | AJ34: 2 | AK34: 0 | AL34: 1 | AM34: NA | AN34: 0 | AO34: NA | AP34: NA | AQ34: NA | AR34: 0 | AS34: NA | AT34: 0 | AU34: 1 | AV34: NA | AW34: NA | AX34: NA | AY34: NA | AZ34: 22 | BA34: 24 | BB34: 48 | BC34: 4.6
A35: 4 | B35: 1 | C35: 2 | D35: 2 | E35: 2 | F35: 2 | G35: 2 | H35: 1 | I35: NA | J35: 0 | K35: 1 | L35: NA | M35: NA | N35: NA | O35: NA | P35: NA | Q35: NA | R35: NA | S35: NA | T35: 1 | U35: 1 | V35: 1 | W35: 2 | X35: 1 | Y35: 2 | Z35: NA | AA35: 1 | AB35: 2 | AC35: NA | AD35: NA | AE35: NA | AF35: NA | AG35: 1 | AH35: 2 | AI35: 2 | AJ35: 2 | AK35: 1 | AL35: NA | AM35: 2 | AN35: 1 | AO35: NA | AP35: NA | AQ35: NA | AR35: 0 | AS35: NA | AT35: NA | AU35: NA | AV35: NA | AW35: NA | AX35: NA | AY35: NA | AZ35: 35 | BA35: 25 | BB35: 50 | BC35: 7.0
A36: 5 | B36: 2 | C36: 0 | D36: 0 | E36: 2 | F36: 2 | G36: NA | H36: 1 | I36: NA | J36: 1 | K36: 1 | L36: NA | M36: NA | N36: NA | O36: NA | P36: NA | Q36: NA | R36: NA | S36: NA | T36: 1 | U36: 1 | V36: 1 | W36: 2 | X36: 2 | Y36: NA | Z36: NA | AA36: 0 | AB36: 0 | AC36: NA | AD36: NA | AE36: NA | AF36: NA | AG36: 0 | AH36: NA | AI36: NA | AJ36: 1 | AK36: 0 | AL36: NA | AM36: 2 | AN36: 2 | AO36: NA | AP36: NA | AQ36: NA | AR36: 0 | AS36: NA | AT36: NA | AU36: NA | AV36: NA | AW36: NA | AX36: NA | AY36: NA | AZ36: 21 | BA36: 21 | BB36: 42 | BC36: 5.0
A37: 6 | B37: 2 | C37: 1 | D37: 1 | E37: 2 | F37: 2 | G37: 2 | H37: 0 | I37: NA | J37: NA | K37: 1 | L37: NA | M37: NA | N37: NA | O37: NA | P37: NA | Q37: NA | R37: NA | S37: NA | T37: 1 | U37: 1 | V37: NA | W37: NA | X37: 1 | Y37: NA | Z37: NA | AA37: NA | AB37: 0 | AC37: NA | AD37: NA | AE37: NA | AF37: NA | AG37: 1 | AH37: NA | AI37: NA | AJ37: NA | AK37: 2 | AL37: NA | AM37: 0 | AN37: NA | AO37: NA | AP37: NA | AQ37: NA | AR37: 0 | AS37: NA | AT37: NA | AU37: NA | AV37: NA | AW37: NA | AX37: NA | AY37: NA | AZ37: 17 | BA37: 16 | BB37: 32 | BC37: 5.3
A38: 7 | B38: 1 | C38: 2 | D38: 1 | E38: NA | F38: NA | G38: NA | H38: 0 | I38: NA | J38: NA | K38: 0 | L38: NA | M38: NA | N38: NA | O38: NA | P38: NA | Q38: NA | R38: NA | S38: NA | T38: NA | U38: 0 | V38: NA | W38: 0 | X38: 0 | Y38: NA | Z38: NA | AA38: 0 | AB38: 1 | AC38: NA | AD38: NA | AE38: NA | AF38: NA | AG38: 1 | AH38: NA | AI38: NA | AJ38: 1 | AK38: NA | AL38: NA | AM38: 0 | AN38: 2 | AO38: NA | AP38: NA | AQ38: NA | AR38: 1 | AS38: NA | AT38: 0 | AU38: 1 | AV38: NA | AW38: NA | AX38: NA | AY38: NA | AZ38: 11 | BA38: 17 | BB38: 34 | BC38: 3.2
A39: 8 | B39: 2 | C39: 1 | D39: 1 | E39: 2 | F39: 1 | G39: NA | H39: NA | I39: NA | J39: NA | K39: NA | L39: NA | M39: NA | N39: NA | O39: NA | P39: NA | Q39: NA | R39: NA | S39: NA | T39: 1 | U39: 1 | V39: 1 | W39: 1 | X39: 1 | Y39: 0 | Z39: NA | AA39: 1 | AB39: 0 | AC39: 1 | AD39: NA | AE39: NA | AF39: 0 | AG39: 1 | AH39: 1 | AI39: NA | AJ39: 1 | AK39: 1 | AL39: NA | AM39: NA | AN39: 2 | AO39: NA | AP39: NA | AQ39: NA | AR39: 1 | AS39: 0 | AT39: NA | AU39: NA | AV39: NA | AW39: NA | AX39: NA | AY39: NA | AZ39: 21 | BA39: 22 | BB39: 44 | BC39: 4.8
A40: 9 | B40: 2 | C40: NA | D40: 0 | E40: 2 | F40: 2 | G40: 1 | H40: NA | I40: NA | J40: NA | K40: NA | L40: NA | M40: NA | N40: NA | O40: NA | P40: NA | Q40: NA | R40: NA | S40: NA | T40: 1 | U40: 1 | V40: 0 | W40: NA | X40: 1 | Y40: 1 | Z40: NA | AA40: NA | AB40: 0 | AC40: NA | AD40: NA | AE40: NA | AF40: NA | AG40: NA | AH40: NA | AI40: NA | AJ40: 1 | AK40: 0 | AL40: 0 | AM40: NA | AN40: NA | AO40: NA | AP40: NA | AQ40: NA | AR40: 0 | AS40: NA | AT40: NA | AU40: NA | AV40: NA | AW40: NA | AX40: NA | AY40: NA | AZ40: 12 | BA40: 15 | BB40: 30 | BC40: 4.0
A41: 10 | B41: 2 | C41: NA | D41: 0 | E41: 1 | F41: 2 | G41: 0 | H41: 0 | I41: NA | J41: NA | K41: 1 | L41: NA | M41: NA | N41: NA | O41: NA | P41: NA | Q41: NA | R41: NA | S41: NA | T41: NA | U41: 1 | V41: 0 | W41: NA | X41: 1 | Y41: 0 | Z41: NA | AA41: 0 | AB41: 1 | AC41: NA | AD41: NA | AE41: NA | AF41: NA | AG41: 1 | AH41: NA | AI41: NA | AJ41: 1 | AK41: NA | AL41: NA | AM41: NA | AN41: 2 | AO41: NA | AP41: NA | AQ41: NA | AR41: 0 | AS41: NA | AT41: NA | AU41: NA | AV41: NA | AW41: NA | AX41: NA | AY41: NA | AZ41: 13 | BA41: 17 | BB41: 34 | BC41: 3.8
A42: 11 | B42: 1 | C42: NA | D42: NA | E42: 1 | F42: 2 | G42: 0 | H42: NA | I42: NA | J42: NA | K42: NA | L42: NA | M42: NA | N42: NA | O42: NA | P42: NA | Q42: NA | R42: NA | S42: NA | T42: 0 | U42: 1 | V42: 0 | W42: 0 | X42: 1 | Y42: 1 | Z42: NA | AA42: 0 | AB42: 0 | AC42: NA | AD42: NA | AE42: NA | AF42: 1 | AG42: NA | AH42: NA | AI42: NA | AJ42: NA | AK42: NA | AL42: NA | AM42: NA | AN42: NA | AO42: NA | AP42: NA | AQ42: NA | AR42: NA | AS42: NA | AT42: NA | AU42: NA | AV42: NA | AW42: NA | AX42: NA | AY42: NA | AZ42: 8 | BA42: 13 | BB42: 26 | BC42: 3.1
A43: 12 | B43: 1 | C43: 1 | D43: 1 | E43: 2 | F43: 1 | G43: NA | H43: 2 | I43: NA | J43: NA | K43: 0 | L43: NA | M43: NA | N43: NA | O43: NA | P43: NA | Q43: NA | R43: NA | S43: NA | T43: NA | U43: 1 | V43: 0 | W43: 0 | X43: 0 | Y43: NA | Z43: NA | AA43: NA | AB43: 1 | AC43: NA | AD43: NA | AE43: NA | AF43: NA | AG43: 2 | AH43: NA | AI43: NA | AJ43: NA | AK43: NA | AL43: NA | AM43: NA | AN43: NA | AO43: NA | AP43: NA | AQ43: NA | AR43: 2 | AS43: 1 | AT43: NA | AU43: 1 | AV43: 1 | AW43: NA | AX43: NA | AY43: NA | AZ43: 17 | BA43: 17 | BB43: 34 | BC43: 5.0
A44: 13 | B44: 1 | C44: NA | D44: NA | E44: 2 | F44: 1 | G44: 0 | H44: 0 | I44: NA | J44: NA | K44: NA | L44: NA | M44: NA | N44: 1 | O44: NA | P44: NA | Q44: NA | R44: NA | S44: NA | T44: NA | U44: 1 | V44: NA | W44: 0 | X44: 0 | Y44: NA | Z44: NA | AA44: 0 | AB44: NA | AC44: 1 | AD44: NA | AE44: NA | AF44: NA | AG44: 2 | AH44: NA | AI44: NA | AJ44: NA | AK44: NA | AL44: NA | AM44: NA | AN44: 2 | AO44: NA | AP44: NA | AQ44: NA | AR44: NA | AS44: NA | AT44: NA | AU44: NA | AV44: NA | AW44: NA | AX44: NA | AY44: NA | AZ44: 11 | BA44: 13 | BB44: 26 | BC44: 4.2
A45: 14 | B45: 2 | C45: NA | D45: NA | E45: NA | F45: 2 | G45: 1 | H45: 1 | I45: NA | J45: NA | K45: NA | L45: NA | M45: NA | N45: NA | O45: NA | P45: NA | Q45: NA | R45: NA | S45: NA | T45: NA | U45: 1 | V45: NA | W45: 0 | X45: 1 | Y45: 0 | Z45: NA | AA45: NA | AB45: 1 | AC45: NA | AD45: NA | AE45: NA | AF45: NA | AG45: 2 | AH45: NA | AI45: NA | AJ45: NA | AK45: NA | AL45: NA | AM45: NA | AN45: NA | AO45: NA | AP45: NA | AQ45: NA | AR45: NA | AS45: NA | AT45: NA | AU45: NA | AV45: NA | AW45: NA | AX45: NA | AY45: NA | AZ45: 11 | BA45: 10 | BB45: 20 | BC45: 5.5
A46: 15 | B46: 2 | C46: 1 | D46: 0 | E46: 2 | F46: 2 | G46: 1 | H46: 0 | I46: 0 | J46: 2 | K46: 2 | L46: NA | M46: NA | N46: 0 | O46: NA | P46: NA | Q46: 2 | R46: NA | S46: 0 | T46: 0 | U46: 1 | V46: 1 | W46: 2 | X46: 1 | Y46: 0 | Z46: NA | AA46: 1 | AB46: 1 | AC46: NA | AD46: NA | AE46: NA | AF46: 0 | AG46: 1 | AH46: NA | AI46: 2 | AJ46: 2 | AK46: 2 | AL46: NA | AM46: 1 | AN46: NA | AO46: NA | AP46: NA | AQ46: NA | AR46: 1 | AS46: 0 | AT46: 0 | AU46: NA | AV46: NA | AW46: NA | AX46: NA | AY46: NA | AZ46: 30 | BA46: 30 | BB46: 60 | BC46: 5.0
A47: 16 | B47: 0 | C47: 0 | D47: 2 | E47: 0 | F47: 2 | G47: 0 | H47: NA | I47: NA | J47: NA | K47: 1 | L47: NA | M47: NA | N47: NA | O47: NA | P47: NA | Q47: NA | R47: NA | S47: NA | T47: 1 | U47: 0 | V47: 0 | W47: 0 | X47: 0 | Y47: NA | Z47: NA | AA47: NA | AB47: NA | AC47: NA | AD47: NA | AE47: NA | AF47: NA | AG47: NA | AH47: NA | AI47: NA | AJ47: NA | AK47: NA | AL47: NA | AM47: NA | AN47: NA | AO47: NA | AP47: NA | AQ47: NA | AR47: 2 | AS47: NA | AT47: NA | AU47: NA | AV47: NA | AW47: NA | AX47: NA | AY47: NA | AZ47: 8 | BA47: 13 | BB47: 26 | BC47: 3.1
A48: 17 | B48: 0 | C48: NA | D48: NA | E48: NA | F48: 2 | G48: NA | H48: NA | I48: NA | J48: NA | K48: NA | L48: NA | M48: NA | N48: NA | O48: NA | P48: NA | Q48: NA | R48: NA | S48: NA | T48: NA | U48: NA | V48: NA | W48: NA | X48: 0 | Y48: NA | Z48: NA | AA48: NA | AB48: 1 | AC48: NA | AD48: NA | AE48: NA | AF48: NA | AG48: NA | AH48: NA | AI48: NA | AJ48: 1 | AK48: NA | AL48: NA | AM48: 1 | AN48: NA | AO48: NA | AP48: NA | AQ48: NA | AR48: 0 | AS48: NA | AT48: NA | AU48: NA | AV48: NA | AW48: NA | AX48: NA | AY48: NA | AZ48: 5 | BA48: 7 | BB48: 14 | BC48: 3.6
A49: 18 | B49: 1 | C49: 2 | D49: 1 | E49: 2 | F49: 2 | G49: 1 | H49: 1 | I49: NA | J49: NA | K49: NA | L49: NA | M49: NA | N49: NA | O49: NA | P49: NA | Q49: NA | R49: NA | S49: NA | T49: NA | U49: 1 | V49: 0 | W49: 1 | X49: 1 | Y49: NA | Z49: NA | AA49: NA | AB49: 2 | AC49: NA | AD49: NA | AE49: NA | AF49: NA | AG49: 2 | AH49: NA | AI49: NA | AJ49: 1 | AK49: NA | AL49: NA | AM49: 0 | AN49: NA | AO49: NA | AP49: NA | AQ49: NA | AR49: 0 | AS49: 2 | AT49: 2 | AU49: 1 | AV49: NA | AW49: NA | AX49: 1 | AY49: 0 | AZ49: 24 | BA49: 21 | BB49: 42 | BC49: 5.7
A50: 19 | B50: 2 | C50: 0 | D50: 0 | E50: 2 | F50: 2 | G50: 1 | H50: 0 | I50: NA | J50: NA | K50: NA | L50: NA | M50: NA | N50: NA | O50: NA | P50: NA | Q50: NA | R50: NA | S50: NA | T50: 1 | U50: 0 | V50: 0 | W50: 1 | X50: 0 | Y50: 0 | Z50: NA | AA50: NA | AB50: 0 | AC50: NA | AD50: NA | AE50: NA | AF50: NA | AG50: NA | AH50: NA | AI50: NA | AJ50: 1 | AK50: 0 | AL50: NA | AM50: NA | AN50: NA | AO50: NA | AP50: NA | AQ50: NA | AR50: NA | AS50: NA | AT50: NA | AU50: NA | AV50: NA | AW50: NA | AX50: NA | AY50: NA | AZ50: 10 | BA50: 16 | BB50: 32 | BC50: 3.1
A51: 20 | B51: 0 | C51: 2 | D51: 0 | E51: 2 | F51: 2 | G51: 2 | H51: NA | I51: NA | J51: NA | K51: 0 | L51: NA | M51: NA | N51: NA | O51: NA | P51: NA | Q51: NA | R51: NA | S51: NA | T51: NA | U51: NA | V51: 0 | W51: NA | X51: 2 | Y51: NA | Z51: NA | AA51: NA | AB51: 0 | AC51: NA | AD51: NA | AE51: NA | AF51: NA | AG51: 0 | AH51: NA | AI51: NA | AJ51: 1 | AK51: NA | AL51: NA | AM51: NA | AN51: NA | AO51: NA | AP51: NA | AQ51: NA | AR51: NA | AS51: NA | AT51: NA | AU51: NA | AV51: NA | AW51: NA | AX51: NA | AY51: NA | AZ51: 11 | BA51: 12 | BB51: 24 | BC51: 4.6
A52: 21 | B52: 0 | C52: NA | D52: NA | E52: NA | F52: NA | G52: NA | H52: NA | I52: NA | J52: NA | K52: NA | L52: NA | M52: NA | N52: NA | O52: NA | P52: NA | Q52: NA | R52: NA | S52: NA | T52: NA | U52: 0 | V52: 0 | W52: NA | X52: NA | Y52: NA | Z52: NA | AA52: NA | AB52: NA | AC52: NA | AD52: NA | AE52: NA | AF52: NA | AG52: 1 | AH52: NA | AI52: NA | AJ52: NA | AK52: NA | AL52: NA | AM52: NA | AN52: NA | AO52: NA | AP52: NA | AQ52: NA | AR52: 2 | AS52: NA | AT52: NA | AU52: NA | AV52: NA | AW52: NA | AX52: NA | AY52: NA | AZ52: 3 | BA52: 5 | BB52: 10 | BC52: 3.0
A53: 22 | B53: 1 | C53: 2 | D53: 0 | E53: NA | F53: NA | G53: NA | H53: NA | I53: NA | J53: NA | K53: 0 | L53: NA | M53: NA | N53: NA | O53: NA | P53: NA | Q53: NA | R53: NA | S53: NA | T53: 0 | U53: 1 | V53: 1 | W53: 0 | X53: 1 | Y53: 1 | Z53: NA | AA53: NA | AB53: 0 | AC53: NA | AD53: 0 | AE53: NA | AF53: NA | AG53: NA | AH53: NA | AI53: NA | AJ53: 1 | AK53: 0 | AL53: NA | AM53: 0 | AN53: NA | AO53: NA | AP53: NA | AQ53: NA | AR53: NA | AS53: 1 | AT53: NA | AU53: NA | AV53: NA | AW53: NA | AX53: NA | AY53: NA | AZ53: 9 | BA53: 16 | BB53: 32 | BC53: 2.8
A54: 23 | B54: 1 | C54: NA | D54: NA | E54: 2 | F54: 1 | G54: NA | H54: 0 | I54: NA | J54: NA | K54: NA | L54: NA | M54: NA | N54: NA | O54: NA | P54: NA | Q54: NA | R54: NA | S54: NA | T54: NA | U54: 1 | V54: NA | W54: 1 | X54: 0 | Y54: 0 | Z54: NA | AA54: 0 | AB54: 0 | AC54: NA | AD54: NA | AE54: NA | AF54: 0 | AG54: NA | AH54: 1 | AI54: NA | AJ54: NA | AK54: NA | AL54: NA | AM54: NA | AN54: NA | AO54: NA | AP54: NA | AQ54: NA | AR54: NA | AS54: NA | AT54: NA | AU54: NA | AV54: NA | AW54: NA | AX54: NA | AY54: NA | AZ54: 7 | BA54: 12 | BB54: 24 | BC54: 2.9
A55: 24 | B55: 1 | C55: 2 | D55: NA | E55: 2 | F55: 0 | G55: NA | H55: 1 | I55: NA | J55: NA | K55: NA | L55: NA | M55: NA | N55: NA | O55: NA | P55: NA | Q55: NA | R55: NA | S55: 0 | T55: 1 | U55: 1 | V55: NA | W55: NA | X55: 1 | Y55: 2 | Z55: NA | AA55: 0 | AB55: 0 | AC55: NA | AD55: NA | AE55: NA | AF55: NA | AG55: 0 | AH55: NA | AI55: NA | AJ55: 1 | AK55: 0 | AL55: NA | AM55: 0 | AN55: 2 | AO55: NA | AP55: NA | AQ55: NA | AR55: 0 | AS55: NA | AT55: NA | AU55: NA | AV55: NA | AW55: NA | AX55: NA | AY55: NA | AZ55: 14 | BA55: 18 | BB55: 36 | BC55: 3.9
A56: 25 | B56: 1 | C56: 2 | D56: 0 | E56: 1 | F56: 2 | G56: NA | H56: NA | I56: NA | J56: NA | K56: NA | L56: NA | M56: NA | N56: NA | O56: NA | P56: NA | Q56: NA | R56: NA | S56: NA | T56: NA | U56: 0 | V56: NA | W56: NA | X56: NA | Y56: NA | Z56: NA | AA56: NA | AB56: 0 | AC56: NA | AD56: NA | AE56: NA | AF56: NA | AG56: NA | AH56: NA | AI56: NA | AJ56: 1 | AK56: NA | AL56: NA | AM56: NA | AN56: NA | AO56: NA | AP56: NA | AQ56: NA | AR56: 0 | AS56: NA | AT56: NA | AU56: NA | AV56: NA | AW56: NA | AX56: NA | AY56: NA | AZ56: 7 | BA56: 9 | BB56: 18 | BC56: 3.9
BB57: Mean | BC57: =AVERAGE(BC32:BC56) -> 4.3
BB58: SD | BC58: =STDEV(BC32:BC56) -> 1.1
A59: Hungarian language
A60: 1 | B60: 2 | C60: 1 | D60: 0 | E60: 2 | F60: 2 | G60: 1 | H60: 1 | I60: NA | J60: NA | K60: 0 | L60: NA | M60: NA | N60: NA | O60: NA | P60: NA | Q60: NA | R60: NA | S60: NA | T60: NA | U60: 0 | V60: 0 | W60: 1 | X60: 1 | Y60: NA | Z60: NA | AA60: NA | AB60: 0 | AC60: NA | AD60: NA | AE60: NA | AF60: NA | AG60: NA | AH60: NA | AI60: NA | AJ60: 1 | AK60: 0 | AL60: NA | AM60: 1 | AN60: NA | AO60: NA | AP60: 1 | AQ60: 2 | AR60: 0 | AS60: NA | AT60: NA | AU60: NA | AV60: NA | AW60: NA | AX60: NA | AY60: NA | AZ60: =SUM(B60:AY60) -> 16 | BA60: =COUNT(B60:AY60) -> 19 | BB60: =BA60*2 -> 38 | BC60: =AZ60*10/BB60 -> 4.2
A61: 2 | B61: 2 | C61: NA | D61: NA | E61: 1 | F61: NA | G61: NA | H61: NA | I61: NA | J61: NA | K61: NA | L61: NA | M61: NA | N61: NA | O61: NA | P61: NA | Q61: NA | R61: NA | S61: NA | T61: NA | U61: NA | V61: NA | W61: NA | X61: 0 | Y61: NA | Z61: NA | AA61: NA | AB61: 1 | AC61: NA | AD61: NA | AE61: NA | AF61: 0 | AG61: 2 | AH61: NA | AI61: NA | AJ61: 1 | AK61: NA | AL61: NA | AM61: 0 | AN61: NA | AO61: NA | AP61: NA | AQ61: NA | AR61: NA | AS61: NA | AT61: 2 | AU61: 0 | AV61: 2 | AW61: NA | AX61: NA | AY61: NA | AZ61: =SUM(B61:AY61) -> 11 | BA61: =COUNT(B61:AY61) -> 11 | BB61: =BA61*2 -> 22 | BC61: =AZ61*10/BB61 -> 5.0
A62: 3 | B62: 2 | C62: NA | D62: 0 | E62: 0 | F62: 0 | G62: 0 | H62: 0 | I62: 1 | J62: NA | K62: 0 | L62: 1 | M62: NA | N62: NA | O62: NA | P62: NA | Q62: NA | R62: NA | S62: NA | T62: NA | U62: 1 | V62: 0 | W62: 0 | X62: 2 | Y62: 1 | Z62: NA | AA62: 0 | AB62: 1 | AC62: NA | AD62: NA | AE62: 1 | AF62: NA | AG62: 1 | AH62: NA | AI62: NA | AJ62: 1 | AK62: 1 | AL62: NA | AM62: 1 | AN62: NA | AO62: NA | AP62: NA | AQ62: NA | AR62: NA | AS62: 1 | AT62: 1 | AU62: 0 | AV62: 0 | AW62: NA | AX62: NA | AY62: NA | AZ62: 16 | BA62: 25 | BB62: 50 | BC62: 3.2
A63: 4 | B63: 2 | C63: 0 | D63: 2 | E63: 2 | F63: NA | G63: 0 | H63: 0 | I63: NA | J63: NA | K63: NA | L63: NA | M63: NA | N63: NA | O63: NA | P63: NA | Q63: NA | R63: NA | S63: NA | T63: NA | U63: NA | V63: NA | W63: NA | X63: NA | Y63: NA | Z63: NA | AA63: NA | AB63: 1 | AC63: NA | AD63: NA | AE63: NA | AF63: 0 | AG63: 1 | AH63: NA | AI63: NA | AJ63: 1 | AK63: NA | AL63: NA | AM63: 2 | AN63: NA | AO63: NA | AP63: NA | AQ63: NA | AR63: NA | AS63: NA | AT63: 2 | AU63: 2 | AV63: 1 | AW63: NA | AX63: NA | AY63: NA | AZ63: 16 | BA63: 14 | BB63: 28 | BC63: 5.7
A64: 5 | B64: 2 | C64: 2 | D64: 1 | E64: 1 | F64: 1 | G64: NA | H64: 1 | I64: NA | J64: NA | K64: 1 | L64: NA | M64: 1 | N64: NA | O64: NA | P64: NA | Q64: NA | R64: NA | S64: 1 | T64: 0 | U64: 2 | V64: 1 | W64: 1 | X64: 2 | Y64: 1 | Z64: NA | AA64: NA | AB64: 1 | AC64: NA | AD64: NA | AE64: NA | AF64: 1 | AG64: 1 | AH64: 1 | AI64: 2 | AJ64: 1 | AK64: 0 | AL64: NA | AM64: 1 | AN64: NA | AO64: NA | AP64: NA | AQ64: NA | AR64: 0 | AS64: NA | AT64: 1 | AU64: 0 | AV64: 0 | AW64: NA | AX64: NA | AY64: NA | AZ64: 27 | BA64: 27 | BB64: 54 | BC64: 5.0
A65: 6 | B65: 2 | C65: 0 | D65: 2 | E65: 1 | F65: 1 | G65: NA | H65: 0 | I65: NA | J65: NA | K65: 1 | L65: 0 | M65: NA | N65: NA | O65: NA | P65: NA | Q65: NA | R65: NA | S65: NA | T65: NA | U65: 1 | V65: NA | W65: 2 | X65: 1 | Y65: NA | Z65: 1 | AA65: 0 | AB65: NA | AC65: 1 | AD65: NA | AE65: NA | AF65: 2 | AG65: 2 | AH65: NA | AI65: 2 | AJ65: NA | AK65: 0 | AL65: NA | AM65: 1 | AN65: 2 | AO65: NA | AP65: NA | AQ65: NA | AR65: 1 | AS65: NA | AT65: 2 | AU65: 1 | AV65: 0 | AW65: NA | AX65: NA | AY65: NA | AZ65: 26 | BA65: 24 | BB65: 48 | BC65: 5.4
A66: 7 | B66: 2 | C66: 1 | D66: NA | E66: 2 | F66: 2 | G66: NA | H66: 1 | I66: NA | J66: NA | K66: 1 | L66: NA | M66: NA | N66: NA | O66: NA | P66: NA | Q66: NA | R66: NA | S66: 0 | T66: 1 | U66: 1 | V66: 1 | W66: 2 | X66: 2 | Y66: NA | Z66: NA | AA66: NA | AB66: 0 | AC66: NA | AD66: NA | AE66: NA | AF66: 0 | AG66: NA | AH66: NA | AI66: NA | AJ66: 0 | AK66: NA | AL66: NA | AM66: 1 | AN66: NA | AO66: NA | AP66: NA | AQ66: NA | AR66: 1 | AS66: NA | AT66: NA | AU66: NA | AV66: NA | AW66: NA | AX66: NA | AY66: NA | AZ66: 18 | BA66: 17 | BB66: 34 | BC66: 5.3
A67: 8 | B67: 2 | C67: 2 | D67: 2 | E67: 2 | F67: NA | G67: NA | H67: 2 | I67: NA | J67: NA | K67: 2 | L67: NA | M67: NA | N67: NA | O67: NA | P67: NA | Q67: NA | R67: NA | S67: NA | T67: 1 | U67: 1 | V67: 0 | W67: 1 | X67: 2 | Y67: NA | Z67: NA | AA67: NA | AB67: 1 | AC67: NA | AD67: NA | AE67: NA | AF67: 1 | AG67: 2 | AH67: 2 | AI67: NA | AJ67: NA | AK67: NA | AL67: NA | AM67: 1 | AN67: NA | AO67: NA | AP67: NA | AQ67: NA | AR67: 1 | AS67: NA | AT67: 2 | AU67: 1 | AV67: 0 | AW67: NA | AX67: NA | AY67: NA | AZ67: 28 | BA67: 20 | BB67: 40 | BC67: 7.0
A68: 9 | B68: 1 | C68: 0 | D68: 1 | E68: 0 | F68: NA | G68: NA | H68: 1 | I68: NA | J68: NA | K68: 0 | L68: NA | M68: NA | N68: NA | O68: NA | P68: NA | Q68: NA | R68: NA | S68: NA | T68: NA | U68: 0 | V68: NA | W68: 0 | X68: 0 | Y68: NA | Z68: NA | AA68: NA | AB68: NA | AC68: NA | AD68: NA | AE68: NA | AF68: NA | AG68: 1 | AH68: NA | AI68: NA | AJ68: NA | AK68: NA | AL68: NA | AM68: 1 | AN68: NA | AO68: NA | AP68: NA | AQ68: NA | AR68: 1 | AS68: NA | AT68: NA | AU68: 1 | AV68: NA | AW68: NA | AX68: NA | AY68: NA | AZ68: 7 | BA68: 13 | BB68: 26 | BC68: 2.7
A69: 10 | B69: 2 | C69: 2 | D69: 1 | E69: 2 | F69: 2 | G69: 1 | H69: 2 | I69: NA | J69: 1 | K69: 2 | L69: NA | M69: NA | N69: 2 | O69: NA | P69: NA | Q69: NA | R69: NA | S69: NA | T69: 2 | U69: 1 | V69: 1 | W69: 1 | X69: 2 | Y69: 1 | Z69: 0 | AA69: 0 | AB69: 1 | AC69: 0 | AD69: NA | AE69: 0 | AF69: 2 | AG69: 2 | AH69: NA | AI69: 1 | AJ69: 2 | AK69: 1 | AL69: NA | AM69: 2 | AN69: 2 | AO69: NA | AP69: 1 | AQ69: 1 | AR69: 2 | AS69: NA | AT69: 2 | AU69: 2 | AV69: 1 | AW69: NA | AX69: NA | AY69: NA | AZ69: 47 | BA69: 34 | BB69: 68 | BC69: 6.9
A70: 11 | B70: 2 | C70: NA | D70: 1 | E70: 2 | F70: 2 | G70: 0 | H70: 2 | I70: 2 | J70: 1 | K70: 2 | L70: 2 | M70: 0 | N70: NA | O70: 1 | P70: NA | Q70: 2 | R70: 2 | S70: 1 | T70: 1 | U70: 1 | V70: 1 | W70: 1 | X70: 2 | Y70: 1 | Z70: 1 | AA70: 1 | AB70: 2 | AC70: 0 | AD70: NA | AE70: 1 | AF70: 1 | AG70: 2 | AH70: NA | AI70: NA | AJ70: 2 | AK70: 1 | AL70: NA | AM70: 2 | AN70: 2 | AO70: NA | AP70: 1 | AQ70: 1 | AR70: 1 | AS70: NA | AT70: 2 | AU70: 1 | AV70: 1 | AW70: NA | AX70: NA | AY70: NA | AZ70: 51 | BA70: 38 | BB70: 76 | BC70: 6.7
A71: 12 | B71: 2 | C71: 0 | D71: 0 | E71: 1 | F71: 2 | G71: 1 | H71: 1 | I71: NA | J71: NA | K71: NA | L71: NA | M71: NA | N71: NA | O71: NA | P71: NA | Q71: NA | R71: NA | S71: NA | T71: NA | U71: 1 | V71: NA | W71: 1 | X71: 2 | Y71: NA | Z71: NA | AA71: NA | AB71: NA | AC71: NA | AD71: NA | AE71: NA | AF71: NA | AG71: NA | AH71: NA | AI71: NA | AJ71: 1 | AK71: NA | AL71: NA | AM71: 2 | AN71: NA | AO71: NA | AP71: NA | AQ71: NA | AR71: NA | AS71: NA | AT71: NA | AU71: NA | AV71: NA | AW71: NA | AX71: NA | AY71: NA | AZ71: 14 | BA71: 12 | BB71: 24 | BC71: 5.8
A72: 13 | B72: NA | C72: NA | D72: 2 | E72: 0 | F72: 0 | G72: 0 | H72: 1 | I72: NA | J72: NA | K72: 1 | L72: NA | M72: NA | N72: NA | O72: NA | P72: NA | Q72: NA | R72: NA | S72: NA | T72: NA | U72: 1 | V72: 1 | W72: 1 | X72: 2 | Y72: NA | Z72: NA | AA72: NA | AB72: NA | AC72: NA | AD72: NA | AE72: NA | AF72: NA | AG72: NA | AH72: 1 | AI72: NA | AJ72: 1 | AK72: NA | AL72: NA | AM72: 2 | AN72: NA | AO72: NA | AP72: NA | AQ72: NA | AR72: 2 | AS72: NA | AT72: 1 | AU72: 0 | AV72: 0 | AW72: NA | AX72: NA | AY72: NA | AZ72: 16 | BA72: 17 | BB72: 34 | BC72: 4.7
A73: 14 | B73: 1 | C73: 1 | D73: NA | E73: 2 | F73: 2 | G73: 1 | H73: 0 | I73: NA | J73: NA | K73: 0 | L73: NA | M73: NA | N73: NA | O73: NA | P73: NA | Q73: NA | R73: NA | S73: NA | T73: 1 | U73: 1 | V73: 0 | W73: 0 | X73: 0 | Y73: NA | Z73: NA | AA73: NA | AB73: 0 | AC73: NA | AD73: NA | AE73: NA | AF73: NA | AG73: NA | AH73: NA | AI73: NA | AJ73: 0 | AK73: NA | AL73: NA | AM73: 1 | AN73: NA | AO73: NA | AP73: NA | AQ73: NA | AR73: NA | AS73: NA | AT73: NA | AU73: NA | AV73: NA | AW73: NA | AX73: NA | AY73: NA | AZ73: 10 | BA73: 15 | BB73: 30 | BC73: 3.3
A74: 15 | B74: 2 | C74: 0 | D74: 0 | E74: 2 | F74: 2 | G74: NA | H74: 0 | I74: NA | J74: NA | K74: 1 | L74: NA | M74: NA | N74: NA | O74: NA | P74: NA | Q74: NA | R74: NA | S74: NA | T74: NA | U74: 1 | V74: 1 | W74: 2 | X74: 2 | Y74: NA | Z74: NA | AA74: NA | AB74: 1 | AC74: NA | AD74: NA | AE74: NA | AF74: 1 | AG74: NA | AH74: NA | AI74: 2 | AJ74: 1 | AK74: 1 | AL74: NA | AM74: 1 | AN74: NA | AO74: NA | AP74: NA | AQ74: NA | AR74: NA | AS74: NA | AT74: 1 | AU74: NA | AV74: NA | AW74: NA | AX74: NA | AY74: NA | AZ74: 21 | BA74: 18 | BB74: 36 | BC74: 5.8
A75: 16 | B75: 1 | C75: 1 | D75: 1 | E75: 1 | F75: 1 | G75: NA | H75: 2 | I75: NA | J75: NA | K75: 2 | L75: NA | M75: NA | N75: NA | O75: NA | P75: NA | Q75: NA | R75: NA | S75: NA | T75: NA | U75: NA | V75: NA | W75: NA | X75: 0 | Y75: NA | Z75: NA | AA75: NA | AB75: 1 | AC75: NA | AD75: NA | AE75: NA | AF75: NA | AG75: NA | AH75: NA | AI75: NA | AJ75: NA | AK75: NA | AL75: NA | AM75: NA | AN75: NA | AO75: NA | AP75: NA | AQ75: NA | AR75: 0 | AS75: NA | AT75: 1 | AU75: NA | AV75: 1 | AW75: NA | AX75: NA | AY75: NA | AZ75: 12 | BA75: 12 | BB75: 24 | BC75: 5.0
A76: 17 | B76: 1 | C76: 1 | D76: NA | E76: 0 | F76: 0 | G76: NA | H76: 1 | I76: NA | J76: NA | K76: NA | L76: NA | M76: NA | N76: NA | O76: NA | P76: NA | Q76: NA | R76: NA | S76: NA | T76: NA | U76: 1 | V76: 0 | W76: 0 | X76: 1 | Y76: 0 | Z76: NA | AA76: NA | AB76: NA | AC76: NA | AD76: NA | AE76: NA | AF76: NA | AG76: NA | AH76: NA | AI76: NA | AJ76: 1 | AK76: NA | AL76: NA | AM76: 1 | AN76: NA | AO76: NA | AP76: NA | AQ76: NA | AR76: NA | AS76: 0 | AT76: NA | AU76: NA | AV76: NA | AW76: NA | AX76: NA | AY76: NA | AZ76: 7 | BA76: 13 | BB76: 26 | BC76: 2.7
A77: 18 | B77: 2 | C77: 1 | D77: NA | E77: 0 | F77: 2 | G77: NA | H77: 1 | I77: NA | J77: NA | K77: NA | L77: NA | M77: NA | N77: NA | O77: NA | P77: NA | Q77: NA | R77: NA | S77: NA | T77: NA | U77: 1 | V77: 0 | W77: 0 | X77: 2 | Y77: NA | Z77: NA | AA77: NA | AB77: 0 | AC77: NA | AD77: NA | AE77: NA | AF77: NA | AG77: NA | AH77: NA | AI77: NA | AJ77: 1 | AK77: 0 | AL77: NA | AM77: 1 | AN77: NA | AO77: NA | AP77: NA | AQ77: NA | AR77: NA | AS77: NA | AT77: NA | AU77: NA | AV77: NA | AW77: NA | AX77: NA | AY77: NA | AZ77: 11 | BA77: 13 | BB77: 26 | BC77: 4.2
A78: 19 | B78: 2 | C78: 1 | D78: 2 | E78: 2 | F78: NA | G78: NA | H78: 1 | I78: NA | J78: NA | K78: 1 | L78: NA | M78: NA | N78: NA | O78: NA | P78: NA | Q78: NA | R78: NA | S78: NA | T78: NA | U78: 0 | V78: 1 | W78: 1 | X78: 1 | Y78: NA | Z78: NA | AA78: 0 | AB78: NA | AC78: NA | AD78: NA | AE78: NA | AF78: NA | AG78: 1 | AH78: NA | AI78: NA | AJ78: 2 | AK78: 1 | AL78: 1 | AM78: 1 | AN78: NA | AO78: NA | AP78: NA | AQ78: NA | AR78: 0 | AS78: NA | AT78: 1 | AU78: 1 | AV78: 1 | AW78: NA | AX78: NA | AY78: NA | AZ78: 21 | BA78: 20 | BB78: 40 | BC78: 5.3
A79: 20 | B79: 0 | C79: 1 | D79: 1 | E79: NA | F79: NA | G79: NA | H79: 0 | I79: NA | J79: NA | K79: NA | L79: NA | M79: NA | N79: NA | O79: NA | P79: NA | Q79: NA | R79: NA | S79: NA | T79: NA | U79: 1 | V79: 1 | W79: 1 | X79: 1 | Y79: NA | Z79: NA | AA79: 0 | AB79: 0 | AC79: NA | AD79: NA | AE79: 1 | AF79: 2 | AG79: 2 | AH79: NA | AI79: NA | AJ79: 1 | AK79: 1 | AL79: 1 | AM79: 1 | AN79: 1 | AO79: NA | AP79: NA | AQ79: NA | AR79: NA | AS79: NA | AT79: NA | AU79: NA | AV79: NA | AW79: NA | AX79: NA | AY79: NA | AZ79: 16 | BA79: 18 | BB79: 36 | BC79: 4.4
A80: 21 | B80: 0 | C80: 1 | D80: 1 | E80: NA | F80: NA | G80: NA | H80: 1 | I80: NA | J80: NA | K80: 1 | L80: NA | M80: NA | N80: NA | O80: NA | P80: NA | Q80: NA | R80: NA | S80: NA | T80: NA | U80: 0 | V80: NA | W80: 1 | X80: NA | Y80: NA | Z80: NA | AA80: NA | AB80: NA | AC80: NA | AD80: NA | AE80: NA | AF80: 0 | AG80: NA | AH80: NA | AI80: NA | AJ80: 1 | AK80: NA | AL80: NA | AM80: 0 | AN80: NA | AO80: NA | AP80: NA | AQ80: NA | AR80: 0 | AS80: NA | AT80: NA | AU80: NA | AV80: NA | AW80: NA | AX80: NA | AY80: NA | AZ80: 6 | BA80: 11 | BB80: 22 | BC80: 2.7
A81: 22 | B81: 2 | C81: 1 | D81: 1 | E81: 1 | F81: 1 | G81: NA | H81: 1 | I81: 1 | J81: 1 | K81: NA | L81: NA | M81: NA | N81: NA | O81: NA | P81: NA | Q81: NA | R81: NA | S81: 1 | T81: 1 | U81: 1 | V81: 1 | W81: 1 | X81: 1 | Y81: 1 | Z81: NA | AA81: NA | AB81: 1 | AC81: 1 | AD81: NA | AE81: 0 | AF81: 0 | AG81: 1 | AH81: NA | AI81: NA | AJ81: 1 | AK81: 1 | AL81: NA | AM81: NA | AN81: NA | AO81: NA | AP81: NA | AQ81: NA | AR81: 0 | AS81: NA | AT81: 0 | AU81: 0 | AV81: 0 | AW81: NA | AX81: NA | AY81: NA | AZ81: 21 | BA81: 26 | BB81: 52 | BC81: 4.0
A82: 23 | B82: 1 | C82: 1 | D82: 0 | E82: 2 | F82: 2 | G82: NA | H82: 1 | I82: 1 | J82: 1 | K82: NA | L82: 1 | M82: NA | N82: NA | O82: NA | P82: NA | Q82: NA | R82: 2 | S82: 1 | T82: 1 | U82: 1 | V82: 1 | W82: 1 | X82: 1 | Y82: 1 | Z82: 1 | AA82: NA | AB82: 0 | AC82: NA | AD82: NA | AE82: NA | AF82: NA | AG82: NA | AH82: NA | AI82: NA | AJ82: 1 | AK82: NA | AL82: NA | AM82: 1 | AN82: NA | AO82: NA | AP82: NA | AQ82: NA | AR82: NA | AS82: NA | AT82: NA | AU82: NA | AV82: NA | AW82: NA | AX82: NA | AY82: NA | AZ82: 22 | BA82: 21 | BB82: 42 | BC82: 5.2
A83: 24 | B83: 1 | C83: NA | D83: 0 | E83: NA | F83: NA | G83: NA | H83: NA | I83: NA | J83: NA | K83: NA | L83: NA | M83: NA | N83: NA | O83: NA | P83: NA | Q83: NA | R83: NA | S83: NA | T83: NA | U83: 1 | V83: 0 | W83: 1 | X83: 2 | Y83: 0 | Z83: NA | AA83: NA | AB83: NA | AC83: NA | AD83: NA | AE83: NA | AF83: NA | AG83: NA | AH83: NA | AI83: NA | AJ83: NA | AK83: NA | AL83: NA | AM83: 1 | AN83: NA | AO83: NA | AP83: NA | AQ83: NA | AR83: NA | AS83: NA | AT83: NA | AU83: NA | AV83: NA | AW83: NA | AX83: NA | AY83: NA | AZ83: 6 | BA83: 8 | BB83: 16 | BC83: 3.8
A84: 25 | B84: 1 | C84: 1 | D84: 0 | E84: NA | F84: NA | G84: NA | H84: 1 | I84: NA | J84: NA | K84: NA | L84: NA | M84: NA | N84: NA | O84: NA | P84: NA | Q84: NA | R84: NA | S84: NA | T84: NA | U84: 0 | V84: NA | W84: 1 | X84: 2 | Y84: NA | Z84: NA | AA84: NA | AB84: NA | AC84: NA | AD84: NA | AE84: NA | AF84: 0 | AG84: NA | AH84: NA | AI84: NA | AJ84: NA | AK84: NA | AL84: NA | AM84: 1 | AN84: 1 | AO84: NA | AP84: NA | AQ84: NA | AR84: 1 | AS84: NA | AT84: NA | AU84: NA | AV84: NA | AW84: NA | AX84: NA | AY84: NA | AZ84: 9 | BA84: 11 | BB84: 22 | BC84: 4.1
BB85: Mean | BC85: =AVERAGE(BC60:BC84) -> 4.7
BB86: SD | BC86: =STDEV(BC60:BC84) -> 1.3
A87: Romanian language
A88: 1 | B88: 2 | C88: 2 | D88: 1 | E88: NA | F88: 2 | G88: 1 | H88: 2 | I88: NA | J88: NA | K88: 0 | L88: NA | M88: NA | N88: 2 | O88: NA | P88: NA | Q88: NA | R88: NA | S88: NA | T88: 1 | U88: 0 | V88: 0 | W88: 0 | X88: 1 | Y88: 1 | Z88: NA | AA88: 1 | AB88: 0 | AC88: 0 | AD88: 1 | AE88: 0 | AF88: 1 | AG88: 2 | AH88: 1 | AI88: NA | AJ88: 2 | AK88: 1 | AL88: 1 | AM88: NA | AN88: 2 | AO88: NA | AP88: NA | AQ88: NA | AR88: 1 | AS88: NA | AT88: NA | AU88: NA | AV88: NA | AW88: NA | AX88: NA | AY88: NA | AZ88: =SUM(B88:AY88) -> 28 | BA88: =COUNT(B88:AY88) -> 27 | BB88: =BA88*2 -> 54 | BC88: =AZ88*10/BB88 -> 5.2
A89: 2 | B89: 1 | C89: NA | D89: 1 | E89: 0 | F89: NA | G89: NA | H89: 0 | I89: NA | J89: NA | K89: NA | L89: NA | M89: NA | N89: 2 | O89: NA | P89: NA | Q89: NA | R89: NA | S89: NA | T89: 0 | U89: NA | V89: 0 | W89: NA | X89: 0 | Y89: 0 | Z89: NA | AA89: NA | AB89: NA | AC89: NA | AD89: NA | AE89: NA | AF89: NA | AG89: NA | AH89: NA | AI89: NA | AJ89: 2 | AK89: 1 | AL89: NA | AM89: NA | AN89: NA | AO89: NA | AP89: NA | AQ89: NA | AR89: NA | AS89: NA | AT89: NA | AU89: NA | AV89: NA | AW89: NA | AX89: NA | AY89: NA | AZ89: =SUM(B89:AY89) -> 7 | BA89: =COUNT(B89:AY89) -> 11 | BB89: =BA89*2 -> 22 | BC89: =AZ89*10/BB89 -> 3.2
A90: 3 | B90: 1 | C90: NA | D90: NA | E90: 2 | F90: 2 | G90: 1 | H90: 1 | I90: NA | J90: NA | K90: NA | L90: NA | M90: NA | N90: NA | O90: NA | P90: NA | Q90: NA | R90: NA | S90: NA | T90: 0 | U90: NA | V90: NA | W90: 0 | X90: 1 | Y90: NA | Z90: NA | AA90: NA | AB90: NA | AC90: NA | AD90: NA | AE90: NA | AF90: 0 | AG90: NA | AH90: NA | AI90: NA | AJ90: 0 | AK90: 0 | AL90: NA | AM90: 1 | AN90: 1 | AO90: NA | AP90: NA | AQ90: NA | AR90: 0 | AS90: NA | AT90: NA | AU90: NA | AV90: NA | AW90: NA | AX90: NA | AY90: NA | AZ90: 10 | BA90: 14 | BB90: 28 | BC90: 3.6
A91: 4 | B91: 2 | C91: 0 | D91: 0 | E91: 1 | F91: 1 | G91: 0 | H91: 2 | I91: NA | J91: NA | K91: 2 | L91: NA | M91: NA | N91: 2 | O91: NA | P91: NA | Q91: NA | R91: NA | S91: NA | T91: 0 | U91: 0 | V91: 1 | W91: NA | X91: 0 | Y91: 1 | Z91: NA | AA91: 2 | AB91: 0 | AC91: NA | AD91: NA | AE91: NA | AF91: NA | AG91: NA | AH91: NA | AI91: NA | AJ91: 1 | AK91: 0 | AL91: NA | AM91: NA | AN91: 1 | AO91: NA | AP91: NA | AQ91: NA | AR91: NA | AS91: NA | AT91: NA | AU91: NA | AV91: NA | AW91: NA | AX91: NA | AY91: NA | AZ91: 16 | BA91: 19 | BB91: 38 | BC91: 4.2
A92: 5 | B92: 0 | C92: NA | D92: NA | E92: 1 | F92: 2 | G92: 2 | H92: NA | I92: NA | J92: NA | K92: NA | L92: NA | M92: NA | N92: NA | O92: NA | P92: NA | Q92: NA | R92: NA | S92: NA | T92: NA | U92: NA | V92: NA | W92: NA | X92: NA | Y92: NA | Z92: NA | AA92: NA | AB92: NA | AC92: NA | AD92: NA | AE92: NA | AF92: NA | AG92: NA | AH92: NA | AI92: NA | AJ92: NA | AK92: 0 | AL92: NA | AM92: NA | AN92: NA | AO92: NA | AP92: NA | AQ92: NA | AR92: NA | AS92: NA | AT92: NA | AU92: NA | AV92: NA | AW92: NA | AX92: NA | AY92: NA | AZ92: 5 | BA92: 5 | BB92: 10 | BC92: 5.0
A93: 6 | B93: 1 | C93: NA | D93: NA | E93: 1 | F93: 2 | G93: 1 | H93: NA | I93: NA | J93: NA | K93: NA | L93: NA | M93: NA | N93: NA | O93: NA | P93: NA | Q93: 0 | R93: NA | S93: NA | T93: NA | U93: NA | V93: NA | W93: 0 | X93: 1 | Y93: NA | Z93: NA | AA93: NA | AB93: NA | AC93: NA | AD93: NA | AE93: NA | AF93: NA | AG93: NA | AH93: NA | AI93: NA | AJ93: 0 | AK93: NA | AL93: NA | AM93: NA | AN93: NA | AO93: NA | AP93: NA | AQ93: NA | AR93: NA | AS93: NA | AT93: NA | AU93: NA | AV93: NA | AW93: NA | AX93: NA | AY93: NA | AZ93: 6 | BA93: 8 | BB93: 16 | BC93: 3.8
A94: 7 | B94: NA | C94: NA | D94: NA | E94: 0 | F94: 0 | G94: NA | H94: NA | I94: NA | J94: NA | K94: NA | L94: NA | M94: NA | N94: NA | O94: NA | P94: NA | Q94: NA | R94: NA | S94: NA | T94: NA | U94: NA | V94: NA | W94: NA | X94: NA | Y94: NA | Z94: NA | AA94: NA | AB94: 2 | AC94: NA | AD94: NA | AE94: NA | AF94: NA | AG94: 2 | AH94: 1 | AI94: 1 | AJ94: NA | AK94: NA | AL94: NA | AM94: NA | AN94: NA | AO94: NA | AP94: NA | AQ94: NA | AR94: NA | AS94: NA | AT94: 1 | AU94: 0 | AV94: NA | AW94: NA | AX94: NA | AY94: NA | AZ94: 7 | BA94: 8 | BB94: 16 | BC94: 4.4
A95: 8 | B95: 1 | C95: NA | D95: NA | E95: NA | F95: NA | G95: NA | H95: NA | I95: NA | J95: NA | K95: NA | L95: NA | M95: NA | N95: 2 | O95: NA | P95: NA | Q95: 0 | R95: NA | S95: NA | T95: NA | U95: NA | V95: NA | W95: 0 | X95: NA | Y95: NA | Z95: NA | AA95: 0 | AB95: 0 | AC95: NA | AD95: NA | AE95: 0 | AF95: NA | AG95: 2 | AH95: NA | AI95: NA | AJ95: 2 | AK95: 2 | AL95: 1 | AM95: NA | AN95: 1 | AO95: NA | AP95: NA | AQ95: NA | AR95: NA | AS95: 0 | AT95: NA | AU95: NA | AV95: NA | AW95: NA | AX95: NA | AY95: NA | AZ95: 11 | BA95: 13 | BB95: 26 | BC95: 4.2
A96: 9 | B96: 0 | C96: NA | D96: NA | E96: NA | F96: 1 | G96: NA | H96: NA | I96: NA | J96: NA | K96: NA | L96: NA | M96: NA | N96: NA | O96: NA | P96: NA | Q96: NA | R96: NA | S96: NA | T96: 0 | U96: NA | V96: NA | W96: NA | X96: NA | Y96: NA | Z96: NA | AA96: NA | AB96: 0 | AC96: 0 | AD96: NA | AE96: NA | AF96: NA | AG96: NA | AH96: NA | AI96: NA | AJ96: NA | AK96: NA | AL96: NA | AM96: NA | AN96: NA | AO96: NA | AP96: NA | AQ96: NA | AR96: NA | AS96: NA | AT96: NA | AU96: NA | AV96: NA | AW96: NA | AX96: NA | AY96: NA | AZ96: 1 | BA96: 5 | BB96: 10 | BC96: 1.0
A97: 10 | B97: 0 | C97: 1 | D97: 0 | E97: NA | F97: NA | G97: NA | H97: 1 | I97: NA | J97: NA | K97: NA | L97: NA | M97: NA | N97: NA | O97: NA | P97: NA | Q97: NA | R97: NA | S97: NA | T97: NA | U97: NA | V97: NA | W97: 0 | X97: 0 | Y97: NA | Z97: NA | AA97: NA | AB97: NA | AC97: NA | AD97: NA | AE97: NA | AF97: NA | AG97: NA | AH97: NA | AI97: NA | AJ97: 1 | AK97: 1 | AL97: NA | AM97: NA | AN97: NA | AO97: NA | AP97: NA | AQ97: NA | AR97: NA | AS97: NA | AT97: NA | AU97: NA | AV97: NA | AW97: NA | AX97: NA | AY97: NA | AZ97: 4 | BA97: 8 | BB97: 16 | BC97: 2.5
A98: 11 | B98: 1 | C98: NA | D98: NA | E98: 2 | F98: 2 | G98: 1 | H98: NA | I98: NA | J98: NA | K98: NA | L98: NA | M98: NA | N98: NA | O98: NA | P98: NA | Q98: NA | R98: NA | S98: NA | T98: NA | U98: NA | V98: NA | W98: NA | X98: NA | Y98: NA | Z98: NA | AA98: NA | AB98: NA | AC98: NA | AD98: NA | AE98: NA | AF98: NA | AG98: NA | AH98: NA | AI98: NA | AJ98: 1 | AK98: NA | AL98: NA | AM98: NA | AN98: NA | AO98: NA | AP98: NA | AQ98: NA | AR98: NA | AS98: NA | AT98: NA | AU98: NA | AV98: NA | AW98: NA | AX98: NA | AY98: NA | AZ98: 7 | BA98: 5 | BB98: 10 | BC98: 7.0
A99: 12 | B99: 0 | C99: NA | D99: 1 | E99: NA | F99: NA | G99: NA | H99: 0 | I99: 0 | J99: 0 | K99: NA | L99: 0 | M99: NA | N99: 2 | O99: NA | P99: NA | Q99: NA | R99: NA | S99: NA | T99: 0 | U99: NA | V99: 0 | W99: NA | X99: 0 | Y99: 0 | Z99: NA | AA99: NA | AB99: 0 | AC99: 1 | AD99: 1 | AE99: NA | AF99: NA | AG99: NA | AH99: NA | AI99: NA | AJ99: 1 | AK99: 1 | AL99: NA | AM99: NA | AN99: NA | AO99: NA | AP99: NA | AQ99: NA | AR99: NA | AS99: NA | AT99: NA | AU99: NA | AV99: NA | AW99: NA | AX99: NA | AY99: NA | AZ99: 7 | BA99: 16 | BB99: 32 | BC99: 2.2
A100: 13 | B100: 0 | C100: 2 | D100: 1 | E100: NA | F100: NA | G100: NA | H100: NA | I100: NA | J100: NA | K100: NA | L100: NA | M100: NA | N100: NA | O100: NA | P100: NA | Q100: NA | R100: NA | S100: NA | T100: NA | U100: NA | V100: NA | W100: NA | X100: NA | Y100: NA | Z100: NA | AA100: NA | AB100: 1 | AC100: NA | AD100: NA | AE100: NA | AF100: NA | AG100: 0 | AH100: NA | AI100: NA | AJ100: NA | AK100: NA | AL100: NA | AM100: NA | AN100: NA | AO100: NA | AP100: NA | AQ100: NA | AR100: 1 | AS100: NA | AT100: NA | AU100: NA | AV100: NA | AW100: NA | AX100: NA | AY100: NA | AZ100: 5 | BA100: 6 | BB100: 12 | BC100: 4.2
A101: 14 | B101: 2 | C101: NA | D101: 0 | E101: 0 | F101: 0 | G101: NA | H101: NA | I101: 2 | J101: 1 | K101: 1 | L101: 1 | M101: 2 | N101: 2 | O101: 0 | P101: NA | Q101: 2 | R101: NA | S101: NA | T101: 1 | U101: 2 | V101: 1 | W101: 2 | X101: 2 | Y101: NA | Z101: 0 | AA101: 2 | AB101: 0 | AC101: NA | AD101: NA | AE101: 1 | AF101: 1 | AG101: NA | AH101: NA | AI101: NA | AJ101: 0 | AK101: 1 | AL101: 0 | AM101: NA | AN101: NA | AO101: NA | AP101: NA | AQ101: NA | AR101: 0 | AS101: NA | AT101: NA | AU101: NA | AV101: NA | AW101: NA | AX101: NA | AY101: NA | AZ101: 26 | BA101: 26 | BB101: 52 | BC101: 5.0
A102: 15 | B102: 0 | C102: NA | D102: NA | E102: 0 | F102: 1 | G102: 1 | H102: NA | I102: NA | J102: NA | K102: NA | L102: NA | M102: NA | N102: 0 | O102: NA | P102: NA | Q102: NA | R102: NA | S102: NA | T102: NA | U102: NA | V102: NA | W102: NA | X102: NA | Y102: NA | Z102: NA | AA102: NA | AB102: NA | AC102: NA | AD102: NA | AE102: NA | AF102: NA | AG102: NA | AH102: NA | AI102: 0 | AJ102: 1 | AK102: NA | AL102: NA | AM102: NA | AN102: NA | AO102: NA | AP102: NA | AQ102: NA | AR102: NA | AS102: NA | AT102: NA | AU102: NA | AV102: NA | AW102: NA | AX102: NA | AY102: NA | AZ102: 3 | BA102: 7 | BB102: 14 | BC102: 2.1
A103: 16 | B103: NA | C103: NA | D103: NA | E103: 0 | F103: 1 | G103: NA | H103: NA | I103: NA | J103: NA | K103: NA | L103: NA | M103: NA | N103: NA | O103: NA | P103: NA | Q103: NA | R103: NA | S103: NA | T103: NA | U103: NA | V103: NA | W103: NA | X103: NA | Y103: NA | Z103: NA | AA103: NA | AB103: 0 | AC103: NA | AD103: NA | AE103: NA | AF103: NA | AG103: 0 | AH103: 1 | AI103: 1 | AJ103: 1 | AK103: NA | AL103: NA | AM103: NA | AN103: NA | AO103: NA | AP103: NA | AQ103: NA | AR103: NA | AS103: NA | AT103: NA | AU103: NA | AV103: NA | AW103: NA | AX103: NA | AY103: NA | AZ103: 4 | BA103: 7 | BB103: 14 | BC103: 2.9
A104: 17 | B104: 1 | C104: NA | D104: 0 | E104: 1 | F104: 1 | G104: NA | H104: NA | I104: 1 | J104: 0 | K104: 1 | L104: 1 | M104: NA | N104: 2 | O104: NA | P104: NA | Q104: NA | R104: NA | S104: NA | T104: NA | U104: NA | V104: NA | W104: NA | X104: 1 | Y104: 1 | Z104: NA | AA104: 1 | AB104: NA | AC104: NA | AD104: NA | AE104: NA | AF104: 1 | AG104: NA | AH104: NA | AI104: NA | AJ104: 1 | AK104: 1 | AL104: NA | AM104: NA | AN104: NA | AO104: NA | AP104: NA | AQ104: NA | AR104: NA | AS104: NA | AT104: NA | AU104: NA | AV104: NA | AW104: NA | AX104: NA | AY104: NA | AZ104: 14 | BA104: 15 | BB104: 30 | BC104: 4.7
